Workbook

Sheet 目次
B1: ValidationｰSupport処理プログラム（Excel 2010～） ＜マクロ機能を有効にして下さい。＞
B2: アンダーラインのあるセルはクリックによって目的とするシートへ移動します．
B3: 特異性，選択性 （共存物質の影響試験） [特異性・選択性シート]
B4: 真度，正確さ 評価法 （1から3濃度以上に対応） [正確さの評価シート]
B5: 比較対照法との比較実験による方法 [相関分析シート]
B6: 併行精度 （同時再現性） [併行精度シート]
B7: 室内再現精度 (日間変動と日内変動)と不確かさ [室内精度シート]
B8: 検出限界 定量限界 測定 [検出限界と定量限界シート]
B9: 直線性 [直線性シート]
B10: 許容限界の指針 [許容限界シート]
B11: 報告書 検討結果のまとめ [報告書シート]
B12: バージョンアップ情報
B15: バージョンアップ履歴
B16: ･Ver1188の変更点 20120818
B17: 書式辺境を許可し、書式の変更を可能にした。したがって、桁数変更の機能が不要になった。また、グラフの桁数表示も連動する様に変更を行った。
B18: また、並べ替えについても許可とした。
B19: ・Ver1181からの変更点 2012.01
B20: 各種用語の解説をポップアップ形式からシート上に表記するように変更した。また、線形関係式の信頼区間計算を近年有用性が評価されているブートストラップ法を使用してできるようにした。
B21: 日内日間精密度シート名称を室内精度に改め、3濃度に対応するためシートを３つにした。
B22: ・Ver118からの変更点 2011.11
B23: ランダマイズ２回測定シートに偏差図を追加。日内日差精密度シートのUCL・LCL計算バグの修正。正確さの評価で１濃度に対応。定量限界値の許容誤差限界に任意値を入力可能に。
B24: ・Ver8.82からの変更点 2011.09
B25: 日本臨床化学会クオリティマネジメント専門委員会 定量測定法に関するバリデーション指針に従い、「相関図」「検出限界と定量限界」を大幅に改造し、STSSV/EXCELに改名する。 新シートへの書き出しを削除。セルの選択制限強化。
B26: 回帰分析シートを大幅強化した。従来マクロ機能を使用してグラフ作成を行っていたが、データ入力時に即座に作画するようにした。ただし、従来可能であった信頼区間算出のためのブートストラップ計算ができなくなった。
B27: ・Ver8.8からの変更点 2010.02
B28: 回帰分析において「標準主軸回帰式」を追加
B29: ・Ver７.8 からの変更点
B30: 同時再現性シートで標本集団のヒストグラムを表示。
B31: ・Ver7.5からの変更点 200712
B32: 同時再現シートにて母標準偏差の推定
B33: ・Ver7.3からの変更点 200707
B34: 不確かさ算出のために日内日間精密度計算のできる日数を９０日まで拡大
B35: ・Ver7.1からの変更点 2006.6
B36: 日内日間精密度において３０日までの計算を６０日まで拡大
B37: ·Ver 5.8 からの変更点 2005.11
B38: 同時再現性に解説文を追加。ブートストラップにおけるバグの改善。
B39: ·Ver 5.6 からの変更点 2005.01
B40: 正確さの評価においてばらつきが全くない場合（Ｓｙｘ＝０）の不具合を修正
B41: ·Ver 5.5 からの変更点 2003.09
B42: 日内日間精密度の分散分析表の計算式についてコメント表示を行った。
B43: ·Ver 5.0 からの変更点 2003.07
B44: 相関図作成において、日常検査の性能試験法マニュアル（2002.9.12)に則り、標準化残差式を変更。なお従来通りのＳｙｘによるグラフ表示機能も残す。
B45: ·Ver 4.5 からの変更点 2003.05
B46: 正規分布型検定と反復切断法においてべき乗変換と階級数最適値の検索＆許容範囲の検索および信頼区間の算出プログラムの追加を行った。べき乗変換して正規化を行ったデータに対して、信頼区間が容易に求められる。また、日内日間精密度において管理限界値の計算の不具合を改善した。
B47: Ver 4.2 からの変更点 2002.11
B48: ・ 同時再現性シートの追加 ・ 解説の変更 ・検出限界シートの2SD法への対応
B49: Ver 4.1 からの変更点 2002.10
B50: ブートストラップ法による回帰式の区間推定を古典的回帰式から線形回帰式へ変更した。
B51: データ容量低減のため、変更を行った。
B52: Ver 4.0 からの変更点 2002.10
B53: ブートストラップ法のおける信頼区間を線形回帰式より算出するように変更
B54: Ｖｅｒ 3.6 からの変更点 2002.0７
B55: 日内日間の精密度において管理図に使用する予備データの計算を行えるようにした．また、日差と日内の精密度比較グラフを追加した。
B56: 相関図において９５％等確率楕円の表示が行えるようになった。
B57: 各種検定におけるサンプル数の計算を行えるようにした。
B58: 分布型シートで分布型検定後のデータセルロック状態を修正した。
B59: Ｖｅｒ 2.0 からの変更点 2000.08
B60: ・「精密さの評価」において，患者試料による評価を追加
B61: (多数の患者試料の二重測定値 ; ランダマイズ２回測定）
B62: ・「正確さの評価」において「１種類の濃度の血清標準物質による評価」の95％信頼区間を表示するように変更。
B63: ・比較対照法との比較実験による方法において，ブートストラップ法での傾き・切片の信頼区間を求めることが可能となった。
B64: Ｖｅｒ 1.5 からの変更点
B65: ･「分布型検定」 および 「反復切断法」 を加えデータの分布について調査出来るようにした。
B66: ・「正確さの評価」における「比較対照法との比較実験による方法」において，外れ値検出のための「相対的な差の平均値」をグラフ上部に表示するようにした。
B67: Ｖｅｒ 1.0 からの変更点
B68: ＥＸＣＥＬ―Ｂｏｏｋの最初にシートへ［はじめに］を加え，ＳＴＳＳ／ＥＸＣＥＬの使用方法などの解説を表示するようにした。

Sheet 選択性
B1: タイトル | C1: 溶血の影響 | E1: 解説 | N1: 0
B2: 系列 | C2: 測定値 | D2: 変化率(%)
B3: 0 | C3: 3.1 | D3: =IF(COUNTA(C3)<>0,(C3-$C$14)/$C$14*100,"") -> 0
B4: 50 | C4: 3.1 | D4: =IF(COUNTA(C4)<>0,(C4-$C$14)/$C$14*100,"") -> 0
B5: 100 | C5: 3.2 | D5: 3.225806452
B6: 150 | C6: 3.35 | D6: 8.064516129
B7: 200 | C7: 3.45 | D7: 11.29032258
B8: 250 | C8: 3.5 | D8: 12.90322581
B9: 300 | C9: 3.6 | D9: 16.12903226
B10: 350 | C10: 3.65 | D10: 17.74193548
B11: 400 | C11: 3.7 | D11: 19.35483871
B12: 450 | C12: 3.75 | D12: 20.96774194
B13: 500 | C13: 3.77 | D13: 21.61290323
B14: 目標値 | C14: 3.1
B16: タイトル | C16: Bi C の影響
B17: 系列 | C17: 測定値 | D17: 変化率(%)
B18: 0 | C18: 3.2 | D18: =IF(COUNTA(C18)<>0,(C18-$C$29)/$C$29*100,"") -> 0
B19: 4.18 | C19: 3.23 | D19: =IF(COUNTA(C19)<>0,(C19-$C$29)/$C$29*100,"") -> 0.9375
B20: 8.36 | C20: 3.25 | D20: 1.5625
B21: 12.54 | C21: 3.4 | D21: 6.25
B22: 16.72 | C22: 3.6 | D22: 12.5
B23: 20.9 | C23: 3.65 | D23: 14.0625
B29: 目標値 | C29: 3.2
B31: タイトル | C31: RF の影響
B32: 系列 | C32: 測定値 | D32: 変化率(%)
B33: 0 | C33: 4 | D33: =IF(COUNTA(C33)<>0,(C33-$C$44)/$C$44*100,"") -> 0
B34: 94 | C34: 4.1 | D34: =IF(COUNTA(C34)<>0,(C34-$C$44)/$C$44*100,"") -> 2.5
B35: 188 | C35: 4.1 | D35: 2.5
B36: 282 | C36: 4.25 | D36: 6.25
B37: 376 | C37: 4.3 | D37: 7.5
B38: 470 | C38: 4.6 | D38: 15
B44: 目標値 | C44: 4
B46: タイトル | C46: 乳び の影響
B47: 系列 | C47: 測定値 | D47: 変化率(%)
B48: 0 | C48: 4 | D48: =IF(COUNTA(C48)<>0,(C48-$C$59)/$C$59*100,"") -> 0
B49: 468 | C49: 4.1 | D49: =IF(COUNTA(C49)<>0,(C49-$C$59)/$C$59*100,"") -> 2.5
B50: 936 | C50: 4.11 | D50: 2.75
B51: 1404 | C51: 4.25 | D51: 6.25
B52: 1872 | C52: 4.3 | D52: 7.5
B53: 2340 | C53: 4.5 | D53: 12.5
B59: 目標値 | C59: 4
B61: タイトル | C61: アスコルビン酸の影響
B62: 系列 | C62: 測定値 | D62: 変化率(%)
B63: 0 | C63: 4 | D63: =IF(COUNTA(C63)<>0,(C63-$C$74)/$C$74*100,"") -> 0
B64: 10 | C64: 4 | D64: =IF(COUNTA(C64)<>0,(C64-$C$74)/$C$74*100,"") -> 0
B65: 20 | C65: 3.97 | D65: -0.75
B66: 30 | C66: 3.95 | D66: -1.25
B67: 40 | C67: 3.92 | D67: -2
B68: 50 | C68: 3.9 | D68: -2.5
B74: 目標値 | C74: 4

Sheet 正確さの評価
A1: タイトル | B1: Ｎａ | E1: 解説１ | F1: 解説２ | G1: 判定上の注意点 | N1: 偏差 | V1: 標準化残差 | AE1: 行平均
A2: 認証値→ | B2: 127.7 | C2: 141.3 | D2: 156.5 | N2: =IF(B2<>"",B2,0) -> 127.7 | O2: =IF(C2<>"",C2,0) -> 141.3 | P2: 156.5 | Q2: 0 | R2: 0 | S2: 0 | T2: 0 | U2: 0 | V2: =IF(B2<>"",B2,0) -> 127.7 | W2: =IF(C2<>"",C2,0) -> 141.3 | X2: 156.5 | Y2: 0 | Z2: 0 | AA2: 0 | AB2: 0 | AC2: 0 | AE2: =IF(COUNTA(B2:I2)>0,AVERAGE(B2:I2),"") -> 141.8333333 | AF2: =IF(COUNTA(B2:I2)>0,$AE$28*((AE2-$AE$29)^2),"") -> 0.4987777778
A3: 拡張不確かさ (包含係数k=2) | B3: 0.38 | C3: 0.42 | D3: 0.47 | AH3: 1 | AI3: 2 | AJ3: 3 | AK3: 4 | AL3: 5 | AM3: 6 | AN3: 7 | AO3: 8
A4: 1 | B4: 128 | C4: 140.8 | D4: 155.3 | N4: =IF(B4<>"",B4-B$2,NA()) -> 0.3 | O4: =IF(C4<>"",C4-C$2,NA()) -> -0.5 | P4: -1.2 | V4: =IF(B4<>"",(B4-B$2)/$K$40,NA()) -> 1.569078098 | W4: =IF(C4<>"",(C4-C$2)/$K$40,NA()) -> -2.615130164 | X4: -6.276312394 | AE4: 141.3666667 | AF4: =IF(COUNTA(B4:I4)>0,$AE$28*((AE4-$AE$29)^2),"") -> 0.5921111111 | AH4: =IF(B4<>"",(B$2-$AE$30)*(B4-$AE$29),"") -> 192.3546667 | AI4: =IF(C4<>"",(C$2-$AE$30)*(C4-$AE$29),"") -> 0.432 | AJ4: 200.7866667
A5: 2 | B5: 128.1 | C5: 141 | D5: 155.2 | N5: =IF(B5<>"",B5-B$2,NA()) -> 0.4 | O5: -0.3 | P5: -1.3 | V5: =IF(B5<>"",(B5-B$2)/$K$40,NA()) -> 2.092104131 | W5: -1.569078098 | X5: -6.799338427 | AE5: 141.4333333 | AF5: 0.3121111111 | AH5: =IF(B5<>"",(B$2-$AE$30)*(B5-$AE$29),"") -> 190.9413333 | AI5: =IF(C5<>"",(C$2-$AE$30)*(C5-$AE$29),"") -> 0.3253333333 | AJ5: =IF(D5<>"",(D$2-$AE$30)*(D5-$AE$29),"") -> 199.32 | AK5: =IF(E5<>"",(E$2-$AE$30)*(E5-$AE$29),"") ->  | AL5: =IF(F5<>"",(F$2-$AE$30)*(F5-$AE$29),"") ->  | AM5: =IF(G5<>"",(G$2-$AE$30)*(G5-$AE$29),"") ->  | AN5: =IF(H5<>"",(H$2-$AE$30)*(H5-$AE$29),"") ->  | AO5: =IF(I5<>"",(I$2-$AE$30)*(I5-$AE$29),"") -> 
A6: 3 | B6: 128.4 | C6: 140.9 | D6: 155.7 | N6: 0.7 | O6: -0.4 | P6: -0.8 | V6: 3.66118223 | W6: -2.092104131 | X6: -4.184208263 | AE6: 141.6666667 | AF6: 0.03211111111 | AH6: 186.7013333 | AI6: 0.3786666667 | AJ6: 206.6533333
A7: 4 | B7: 128.2 | C7: 141.3 | D7: 155.6 | N7: 0.5 | O7: 0 | P7: -0.9 | V7: 2.615130164 | W7: 0 | X7: -4.707234295 | AE7: 141.7 | AF7: 0.081 | AH7: 189.528 | AI7: 0.1653333333 | AJ7: 205.1866667
A8: 5 | B8: 128.1 | C8: 141.1 | D8: 155.8 | N8: 0.4 | O8: -0.2 | P8: -0.7 | V8: 2.092104131 | W8: -1.046052066 | X8: -3.66118223 | AE8: 141.6666667 | AF8: 0.03211111111 | AH8: 190.9413333 | AI8: 0.272 | AJ8: 208.12
A9: 6 | B9: 128.3 | C9: 140.7 | D9: 155.7 | N9: 0.6 | O9: -0.6 | P9: -0.8 | V9: 3.138156197 | W9: -3.138156197 | X9: -4.184208263 | AE9: 141.5666667 | AF9: 0.01877777778 | AH9: 188.1146667 | AI9: 0.4853333333 | AJ9: 206.6533333
A10: 7 | B10: 128.2 | C10: 140.9 | D10: 155.6 | N10: 0.5 | O10: -0.4 | P10: -0.9 | V10: 2.615130164 | W10: -2.092104131 | X10: -4.707234295 | AE10: 141.5666667 | AF10: 0.01877777778 | AH10: 189.528 | AI10: 0.3786666667 | AJ10: 205.1866667
A11: 8 | B11: 128.3 | C11: 141.1 | D11: 156 | N11: 0.6 | O11: -0.2 | P11: -0.5 | V11: 3.138156197 | W11: -1.046052066 | X11: -2.615130164 | AE11: 141.8 | AF11: 0.361 | AH11: 188.1146667 | AI11: 0.272 | AJ11: 211.0533333
A12: 9 | B12: 128.3 | C12: 141.2 | D12: 155.8 | N12: 0.6 | O12: -0.1 | P12: -0.7 | V12: 3.138156197 | W12: -0.5230260328 | X12: -3.66118223 | AE12: 141.7666667 | AF12: 0.2454444444 | AH12: 188.1146667 | AI12: 0.2186666667 | AJ12: 208.12
A13: 10 | B13: 128.2 | C13: 141.1 | D13: 155.4 | N13: 0.5 | O13: -0.2 | P13: -1.1 | V13: 2.615130164 | W13: -1.046052066 | X13: -5.753286361 | AE13: 141.5666667 | AF13: 0.01877777778 | AH13: 189.528 | AI13: 0.272 | AJ13: 202.2533333
A14: 11
A15: 12
A16: 13
A17: 14
A18: 15
A19: 16
A20: 17 | O20: =IF(C20<>"",C20-C$2,NA()) ->  | W20: =IF(C20<>"",(C20-C$2)/$K$40,NA()) ->  | AD20: =6/160 -> 0.0375
A21: 18
A22: 19
A23: 20 | AE23: =IF(COUNTA(B23:I23)>0,AVERAGE(B23:I23),"") ->  | AH23: =IF(B23<>"",(B$2-$AE$30)*(B23-$AE$29),"") -> 
A24: 平 均 | B24: =IF(B4<>"",AVERAGE(B4:B23),"") -> 128.21 | C24: =IF(C4<>"",AVERAGE(C4:C23),"") -> 141.01 | D24: 155.61 | N24: =AVERAGE(N4:N23) ->  | O24: =AVERAGE(O4:O23) ->  | V24: =AVERAGE(V4:V23) ->  | W24: =AVERAGE(W4:W23) -> 
A25: S D | B25: =IF($B$27<>0,STDEV($B$4:$B$23),"") -> 0.1197219 | C25: =IF(C27<>0,STDEV(C4:C23),"") -> 0.1852925615 | D25: 0.2469817807 | N25: =STDEV(N4:N23) ->  | AD25: 計 | AE25: =SUM(AE4:AE23) -> 1416.1 | AF25: =SUM(AF4:AF23) -> 1.712222222 | AH25: =IF(B24<>"",$AE$28*B24-$AE$29^2,"") -> -18771.2921 | AI25: =IF(C24<>"",$AE$28*C24-$AE$29^2,"") -> -18643.2921 | AJ25: -18497.2921 | AP25: =SUM(AH25:AO25) -> -55911.8763
A26: C V | B26: =IF(B27<>0,B25/B24*100,"") -> 0.09337953356 | C26: =IF(C27<>0,C25/C24*100,"") -> 0.1314038447 | D26: 0.1587184504 | AD26: 全個数 | AE26: =COUNT(B4:I23) -> 30
A27: データ数 | B27: =IF(B24<>"",COUNT(B4:B23),"") -> 10 | C27: =COUNT(C4:C23) -> 10 | D27: 10 | E27: 0 | F27: 0 | G27: =COUNT(G4:G23) -> 0 | H27: 0 | I27: 0 | AD27: 列数( n) | AE27: =COUNT(B24:I24) -> 3 | AH27: 20150627 新たに計算式を組み立てる
A28: 許容誤差限界外数 | B28: =COUNTIF(B4:B23,"<"&B31)+COUNTIF(B4:B23,">"&B32) -> 0 | C28: =COUNTIF(C4:C23,"<"&C31)+COUNTIF(C4:C23,">"&C32) -> 0 | D28: 0 | E28: 0 | F28: 0 | G28: 0 | H28: 0 | I28: 0 | N28: 信頼区間の判定 | AD28: 行数( q ) | AE28: =COUNT(AE4:AE23) -> 10
A29: 平均値の信頼区間下限 | B29: =IF(B27>0,B24-B33*B25/B27^0.5,"") -> 128.1243561 | C29: =IF(C27>0,C24-C33*C25/C27^0.5,"") -> 140.8774497 | D29: 155.4333199 | N29: =IF(B3<>"",IF(B29<B31,B29,0),0) -> 0 | O29: =IF(C3<>"",IF(C29<C31,C29,0),0) -> 0 | P29: 0 | Q29: 0 | R29: 0 | S29: 0 | T29: 0 | U29: 0 | AD29: 全平均 Ｙ | AE29: =AVERAGE(B4:I23) -> 141.61 | AH29: =IF(B24<>"",(B24-$AE$29)^2,"") -> 179.56 | AI29: =IF(C24<>"",(C24-$AE$29)^2,"") -> 0.36 | AJ29: 196 | AP29: =SUM(AH29:AO29) -> 375.92
A30: 平均値の信頼区間上限 | B30: =IF(B27>0,B24+B33*B25/B27^0.5,"") -> 128.2956439 | C30: =IF(C27>0,C24+C33*C25/C27^0.5,"") -> 141.1425503 | D30: 155.7866801 | N30: =IF(B3<>"",IF(B30>B32,B30,0),0) -> 0 | O30: =IF(C3<>"",IF(C30>C32,C30,0),0) -> 0 | P30: 0 | Q30: 0 | R30: 0 | S30: 0 | T30: 0 | U30: 0 | AD30: Ｘの平均 | AE30: =AVERAGE(B2:I2) -> 141.8333333 | AH30: =IF(B2<>"",B2^2,"") -> 16307.29 | AI30: =IF(C2<>"",C2^2,"") -> 19965.69 | AJ30: 24492.25 | AP30: =SUM(AH30:AO30) -> 60765.23
A31: 平均値の 95%信頼区間 | B31: =IF(B$34<>"",B$24-2*((B$3/2)^2+B$25^2)^0.5,"") -> 127.7608527 | C31: =IF(C$34<>"",C$24-2*((C$3/2)^2+C$25^2)^0.5,"") -> 140.449881 | D31: =IF(D$34<>"",D$24-2*((D$3/2)^2+D$25^2)^0.5,"") -> 154.9281642 | AD31: ＳＸＹ | AE31: =SUM(AH4:AO23) -> 3950.4 | AF31: =SUM(AH4:AO23) -> 3950.4 | AH31: SB | AI31: =AE31^2/AE32 -> 3759.071531
B32: =IF(B$34<>"",B$24+2*((B$3/2)^2+B$25^2)^0.5,"") -> 128.6591473 | C32: =IF(C$34<>"",C$24+2*((C$3/2)^2+C$25^2)^0.5,"") -> 141.570119 | D32: 156.2918358 | AD32: ＳＸＸ | AE32: =DEVSQ($B$2:$I$2)*$AE$28 -> 4151.466667 | AH32: SL | AI32: =AE28*AP29-AI31 -> 0.1284686536
A33: t0.05(n-1) | B33: =IF(B27<>0,TINV(0.05,B27-1),"") -> 2.262157163 | C33: =IF(C27<>0,TINV(0.05,C27-1),"") -> 2.262157163 | D33: 2.262157163 | P33: =COUNT(B4:I23) -> 30 | AD33: SYY | AE33: =DEVSQ($B$4:$I$23) -> 3760.187 | AH33: SE | AI33: =AE33-AP29*AE28 -> 0.987
A34: バラツキの標準誤差 | B34: =IF(B27<>0,2*((B25/B27^0.5)^2+(B3/2)^2)^0.5,"") -> 0.387470429 | C34: =IF(C27<>0,2*((C25/C27^0.5)^2+(C3/2)^2)^0.5,"") -> 0.4360428114 | D34: =IF(D27<>0,2*((D25/D27^0.5)^2+(D3/2)^2)^0.5,"") -> 0.4952776999 | P34: =SUM(B28:I28) -> 0 | AD34: ＳＲ | AE34: 32775.19785 | AF34: =AP25-AE31^2/AE32 -> -59670.94783 | AH34: Syx | AI34: =(AI33/(AE26-AE27))^0.5 -> 0.191195072
A35: Δm | B35: =IF(B27<>0,ABS(B24-B2),"") -> 0.51 | C35: =IF(C27<>0,ABS(C24-C2),"") -> 0.29 | D35: 0.89 | J35: 回帰の評価 | AD35: Sb | AE35: =((AE33-K38*AE31)/(AE26-2))^0.5/AE32^0.5 -> 0.00309776802 | AF35: =(L40/AE32^0.5) -> 0.00309776802 | AH35: F0 | AI35: =(AI32/(AE27-2))/(AI33/(AE26-AE27)) -> 3.514340069 | AJ35: ⇐直線性の評価
J36: 直線性検定 F = | K36: =IF(AE27>2,AI35,"") -> 3.514340069 | AD36: Tb | AE36: 0.2486223679 | AH36: FP | AI36: =FDIST(AI35,AE27-2,AE26-AE27) -> 0.07169694883 | AJ36: ⇐Fの確率
J37: F の片側確率 ＝ | K37: =IF(AE27>2,AI36,"") -> 0.07169694883 | AD37: T確率 | AE37: =TDIST(AE36,$AE$27*$AE$28-$AE$27,2) -> 0.8055343163 | AH37: tb | AI37: =(ABS(K38-1)*AE32^0.5)/AI34 -> 16.32159534
J38: 傾き b ＝ | K38: =IF(ISERR(SLOPE(B24:I24,B2:I2)),"",SLOPE(B24:I24,B2:I2)) -> 0.9515673176 | AD38: Ｔａ | AE38: 0.22196023 | AH38: tbP | AI38: =_xlfn.T.DIST(AI37,AE26-AE27,FALSE) -> 1.23496716e-15
J39: 切片 a ＝ | K39: =IF(ISERR(INTERCEPT(B24:I24,B2:I2)),"",INTERCEPT(B24:I24,B2:I2)) -> 6.646035457 | AD39: T確率 | AE39: =TDIST(AE38,$AE$27*$AE$28-$AE$27,2) -> 0.8260151684 | AH39: ta | AI39: =(ABS(K39)/AI34)*((AE27*AE32)/(AP30))^0.5 -> 15.73692198
J40: Syx ＝ | K40: =AI34 -> 0.191195072 | L40: =(($AE$33-2*$K$38*$AE$31+$K$38^2*$AE$32)/(AE26-2))^0.5 -> 0.1995950055 | AH40: taP | AI40: =_xlfn.T.DIST(AI39,AE26-AE27,FALSE) -> 3.11209036e-15
J41: Tb ＝ | K41: =AI37 -> 16.32159534
J42: Ｔｂ 確率＝ | K42: =AI38 -> 1.23496716e-15
J43: Ta ＝ | K43: =AI39 -> 15.73692198
J44: Ｔａ 確率＝ | K44: =AI40 -> 3.11209036e-15
J45: =IF(AE27>2,IF(K37>0.05,"F 確率より有意水準 0.05 以上から直線性あり！","F 確率より有意水準 0.05 以下から直線性はない！"),"") -> F 確率より有意水準 0.05 以上から直線性あり！
J46: =IF(K42>0.05,"Ｔb 確率より有意水準 0.05 以上から比例系統誤差は認められない！","Ｔb 確率より有意水準 0.05 以下から比例系統誤差が認められる！") -> Ｔb 確率より有意水準 0.05 以下から比例系統誤差が認められる！
J47: =IF(K44>0.05,"Ｔa 確率より有意水準 0.05 以上から一定系統誤差は認められない！","Ｔa 確率より有意水準 0.05 以下から一定系統誤差が認められる！") -> Ｔa 確率より有意水準 0.05 以下から一定系統誤差が認められる！
B50: 測定値 | C50: 認証値
A51: 上限 | B51: =B32 -> 128.6591473
A52: 下限 | B52: =B31 -> 127.7608527
A53: 平均 | B53: =B24 -> 128.21 | C53: =B2 -> 127.7
B54: 測定値 | C54: 認証値
A55: 上限 | B55: =C32 -> 141.570119
A56: 下限 | B56: =C31 -> 140.449881
A57: 平均 | B57: =C24 -> 141.01 | C57: =C2 -> 141.3
B58: 測定値 | C58: 認証値
A59: 上限 | B59: =D32 -> 156.2918358
A60: 下限 | B60: =D31 -> 154.9281642
A61: 平均 | B61: =D24 -> 155.61 | C61: =D2 -> 156.5
B62: 測定値 | C62: 認証値
A63: 上限 | B63: =E32 -> 
A64: 下限 | B64: =E31 -> 
A65: 平均 | B65: =E24 ->  | C65: =E2 -> 0
B66: 測定値 | C66: 認証値
A67: 上限 | B67: =F32 -> 
A68: 下限 | B68: =F31 -> 
A69: 平均 | B69: =F24 ->  | C69: =F2 -> 0
B70: 測定値 | C70: 認証値
A71: 上限 | B71: =G32 -> 
A72: 下限 | B72: =G31 -> 
A73: 平均 | B73: =G24 ->  | C73: =G2 -> 0
B74: 測定値 | C74: 認証値
A75: 上限 | B75: =H32 -> 
A76: 下限 | B76: =H31 -> 
A77: 平均 | B77: =H24 ->  | C77: =H2 -> 0
B78: 測定値 | C78: 認証値
A79: 上限 | B79: =I32 -> 
A80: 下限 | B80: =I31 -> 
A81: 平均 | B81: =I24 ->  | C81: =I2 -> 0
B91: 10 | C91: 60 | D91: 110 | E91: 160 | F91: 436
B92: 1 | C92: 2 | D92: 3 | E92: 5 | F92: 5
B93: 12 | C93: 60 | D93: 112 | E93: 160 | F93: 436
B94: 11 | C94: 62 | D94: 111 | E94: 158 | F94: 436
B95: 10 | C95: 68 | D95: 110 | E95: 160 | F95: 436
B96: 10 | C96: 61 | D96: 111 | E96: 160 | F96: 434
B97: 12 | C97: 61 | D97: 110 | E97: 161 | F97: 435
B98: 13 | C98: 60 | D98: 110 | E98: 162 | F98: 434
B99: 11 | C99: 58 | D99: 109 | E99: 157 | F99: 437
B100: 9 | C100: 59 | D100: 108 | E100: 159 | F100: 437
B101: 11 | C101: 60 | D101: 112 | E101: 160 | F101: 437
B102: 10 | C102: 63 | D102: 109 | E102: 162 | F102: 435
B104: Dimension
B105: 127.7 | C105: 141.3 | D105: 156.5
B106: 0.4 | C106: 0.5 | D106: 0.5
B107: 127.21 | C107: 141.06 | D107: 154.82
B108: 128.06 | C108: 139.94 | D108: 155.36
B109: 127.13 | C109: 140.26 | D109: 154.12
B110: 128 | C110: 140.16 | D110: 154.67
B111: 127.18 | C111: 141.19 | D111: 155.67
B112: 127.09 | C112: 141.83 | D112: 155.16
B113: 128.57 | C113: 139.97 | D113: 154.08
B114: 126.67 | C114: 143.02 | D114: 157.31
B115: 127.24 | C115: 143.86 | D115: 155.85
B116: 128.54 | C116: 142.47 | D116: 154.28
B119: 3.49 | C119: 4.48 | D119: 5.59
B120: 0.02 | C120: 0.02 | D120: 0.03
B121: 3.39 | C121: 4.41 | D121: 5.5
B122: 3.41 | C122: 4.37 | D122: 5.52
B123: 3.39 | C123: 4.4 | D123: 5.48
B124: 3.41 | C124: 4.38 | D124: 5.5
B125: 3.39 | C125: 4.42 | D125: 5.54
B126: 3.38 | C126: 4.44 | D126: 5.51
B127: 3.42 | C127: 4.38 | D127: 5.48
B128: 3.38 | C128: 4.48 | D128: 5.59
B129: 3.4 | C129: 4.49 | D129: 5.53
B130: 3.43 | C130: 4.45 | D130: 5.49
B134: 88 | C134: 102 | D134: 118.7
B135: 0.3 | C135: 0.4 | D135: 0.5
B136: 89.3 | C136: 104 | D136: 118.5
B137: 89.4 | C137: 102.9 | D137: 119.1
B138: 88.7 | C138: 103.5 | D138: 118.7
B139: 88.9 | C139: 103.3 | D139: 118.9
B140: 88.4 | C140: 104.3 | D140: 119.4
B141: 88.8 | C141: 105.4 | D141: 119
B142: 89.4 | C142: 103.7 | D142: 118.8
B143: 88.9 | C143: 106.1 | D143: 120.4
B144: 88.9 | C144: 106 | D144: 119.4
B145: 88.9 | C145: 105.1 | D145: 118.8
B147: Na (EA07)
B148: 127.7 | C148: 141.3 | D148: 156.5
B149: 0.4 | C149: 0.5 | D149: 0.5
B150: 127.7 | C150: 140.7 | D150: 155.3
B151: 127.9 | C151: 140.5 | D151: 154.8
B152: 127.7 | C152: 140.8 | D152: 155.7
B153: 128 | C153: 140.8 | D153: 156.1
B154: 128.1 | C154: 140.6 | D154: 155.8
B155: 128.3 | C155: 141.6 | D155: 155.7
B156: 128.9 | C156: 141.2 | D156: 155.6
B157: 128.3 | C157: 141.3 | D157: 156
B158: 128.3 | C158: 141.2 | D158: 155.6
B159: 128.2 | C159: 141.4 | D159: 156.2
B161: K (EA07)
B162: 3.49 | C162: 4.48 | D162: 5.59
B163: 0.02 | C163: 0.02 | D163: 0.03
B164: 3.49 | C164: 4.46 | D164: 5.59
B165: 3.5 | C165: 4.46 | D165: 5.57
B166: 3.5 | C166: 4.48 | D166: 5.59
B167: 3.5 | C167: 4.48 | D167: 5.63
B168: 3.5 | C168: 4.47 | D168: 5.6
B169: 3.51 | C169: 4.5 | D169: 5.62
B170: 3.5 | C170: 4.5 | D170: 5.59
B171: 3.51 | C171: 4.5 | D171: 5.61
B172: 3.5 | C172: 4.49 | D172: 5.61
B173: 3.5 | C173: 4.5 | D173: 5.62
B177: Cl (EA07)
B178: 88 | C178: 102 | D178: 118.7
B179: 0.3 | C179: 0.4 | D179: 0.5
B180: 88.3 | C180: 103.2 | D180: 119.5
B181: 88.4 | C181: 103.2 | D181: 119.3
B182: 88.4 | C182: 103.5 | D182: 119.8
B183: 88.4 | C183: 103.3 | D183: 120
B184: 88.6 | C184: 103.4 | D184: 119.5
B185: 88.7 | C185: 104.1 | D185: 120
B186: 88.7 | C186: 104.2 | D186: 119.4
B187: 88.5 | C187: 104.1 | D187: 119.8
B188: 88.3 | C188: 103.7 | D188: 119.7
B189: 88.5 | C189: 103.9 | D189: 120.2

Sheet 相関分析
C1: 解 説 | AM1: Spearmanの相関係数用 | AO1: Sｘｙ：= | AP1: =COVAR(AN5:AN1304,AO5:AO1304)*$M$5 -> 9321.08 | AQ1: =COVAR(AP5:AP504,AQ5:AQ504)*O5 ->  | AX1: =COUNT(BB1:BKL1) -> 501 | AY1: =SMALL(BB1:BIB1,11) -> 0.9236128567 | AZ1: =LARGE(BB1:BIB1,12) -> 1.424426197 | BA1: Deming b= | BB1: =(BC9-$M$34*BB9+((BC9-$M$34*BB9)^2+4*$M$34*BB8^2)^0.5)/(2*BB8) -> 0.9521832408 | BE1: =(BF9-$M$34*BE9+((BF9-$M$34*BE9)^2+4*$M$34*BE8^2)^0.5)/(2*BE8) -> 1.206729405 | BH1: =(BI9-$M$34*BH9+((BI9-$M$34*BH9)^2+4*$M$34*BH8^2)^0.5)/(2*BH8) -> 1.074717724 | BK1: =(BL9-$M$34*BK9+((BL9-$M$34*BK9)^2+4*$M$34*BK8^2)^0.5)/(2*BK8) -> 1.354918691 | BN1: =(BO9-$M$34*BN9+((BO9-$M$34*BN9)^2+4*$M$34*BN8^2)^0.5)/(2*BN8) -> 0.9594483367 | BQ1: =(BR9-$M$34*BQ9+((BR9-$M$34*BQ9)^2+4*$M$34*BQ8^2)^0.5)/(2*BQ8) -> 1.015101009 | BT1: =(BU9-$M$34*BT9+((BU9-$M$34*BT9)^2+4*$M$34*BT8^2)^0.5)/(2*BT8) -> 1.282385825 | BW1: =(BX9-$M$34*BW9+((BX9-$M$34*BW9)^2+4*$M$34*BW8^2)^0.5)/(2*BW8) -> 1.274211677 | BZ1: =(CA9-$M$34*BZ9+((CA9-$M$34*BZ9)^2+4*$M$34*BZ8^2)^0.5)/(2*BZ8) -> 0.940741273 | CC1: =(CD9-$M$34*CC9+((CD9-$M$34*CC9)^2+4*$M$34*CC8^2)^0.5)/(2*CC8) -> 1.119039585 | CF1: =(CG9-$M$34*CF9+((CG9-$M$34*CF9)^2+4*$M$34*CF8^2)^0.5)/(2*CF8) -> 1.143351717 | CI1: =(CJ9-$M$34*CI9+((CJ9-$M$34*CI9)^2+4*$M$34*CI8^2)^0.5)/(2*CI8) -> 1.028272124 | CL1: =(CM9-$M$34*CL9+((CM9-$M$34*CL9)^2+4*$M$34*CL8^2)^0.5)/(2*CL8) -> 1.009501552 | CO1: =(CP9-$M$34*CO9+((CP9-$M$34*CO9)^2+4*$M$34*CO8^2)^0.5)/(2*CO8) -> 0.9854230592 | CR1: =(CS9-$M$34*CR9+((CS9-$M$34*CR9)^2+4*$M$34*CR8^2)^0.5)/(2*CR8) -> 1.0329694 | CU1: =(CV9-$M$34*CU9+((CV9-$M$34*CU9)^2+4*$M$34*CU8^2)^0.5)/(2*CU8) -> 1.176021861 | CX1: =(CY9-$M$34*CX9+((CY9-$M$34*CX9)^2+4*$M$34*CX8^2)^0.5)/(2*CX8) -> 1.049765016 | DA1: =(DB9-$M$34*DA9+((DB9-$M$34*DA9)^2+4*$M$34*DA8^2)^0.5)/(2*DA8) -> 1.255721443 | DD1: =(DE9-$M$34*DD9+((DE9-$M$34*DD9)^2+4*$M$34*DD8^2)^0.5)/(2*DD8) -> 1.058056585 | DG1: =(DH9-$M$34*DG9+((DH9-$M$34*DG9)^2+4*$M$34*DG8^2)^0.5)/(2*DG8) -> 1.106412558 | DJ1: =(DK9-$M$34*DJ9+((DK9-$M$34*DJ9)^2+4*$M$34*DJ8^2)^0.5)/(2*DJ8) -> 1.163788831 | DM1: =(DN9-$M$34*DM9+((DN9-$M$34*DM9)^2+4*$M$34*DM8^2)^0.5)/(2*DM8) -> 1.210279025 | DP1: =(DQ9-$M$34*DP9+((DQ9-$M$34*DP9)^2+4*$M$34*DP8^2)^0.5)/(2*DP8) -> 1.274088123 | DS1: =(DT9-$M$34*DS9+((DT9-$M$34*DS9)^2+4*$M$34*DS8^2)^0.5)/(2*DS8) -> 1.207870837 | DV1: =(DW9-$M$34*DV9+((DW9-$M$34*DV9)^2+4*$M$34*DV8^2)^0.5)/(2*DV8) -> 1.152604828 | DY1: =(DZ9-$M$34*DY9+((DZ9-$M$34*DY9)^2+4*$M$34*DY8^2)^0.5)/(2*DY8) -> 1.096696108 | EB1: =(EC9-$M$34*EB9+((EC9-$M$34*EB9)^2+4*$M$34*EB8^2)^0.5)/(2*EB8) -> 1.073541494 | EE1: =(EF9-$M$34*EE9+((EF9-$M$34*EE9)^2+4*$M$34*EE8^2)^0.5)/(2*EE8) -> 1.437336901 | EH1: =(EI9-$M$34*EH9+((EI9-$M$34*EH9)^2+4*$M$34*EH8^2)^0.5)/(2*EH8) -> 1.073190531 | EK1: =(EL9-$M$34*EK9+((EL9-$M$34*EK9)^2+4*$M$34*EK8^2)^0.5)/(2*EK8) -> 1.134122246 | EN1: =(EO9-$M$34*EN9+((EO9-$M$34*EN9)^2+4*$M$34*EN8^2)^0.5)/(2*EN8) -> 1.349428943 | EQ1: =(ER9-$M$34*EQ9+((ER9-$M$34*EQ9)^2+4*$M$34*EQ8^2)^0.5)/(2*EQ8) -> 1.278431643 | ET1: =(EU9-$M$34*ET9+((EU9-$M$34*ET9)^2+4*$M$34*ET8^2)^0.5)/(2*ET8) -> 1.299784569 | EW1: =(EX9-$M$34*EW9+((EX9-$M$34*EW9)^2+4*$M$34*EW8^2)^0.5)/(2*EW8) -> 1.070401526 | EZ1: =(FA9-$M$34*EZ9+((FA9-$M$34*EZ9)^2+4*$M$34*EZ8^2)^0.5)/(2*EZ8) -> 1.079361103 | FC1: =(FD9-$M$34*FC9+((FD9-$M$34*FC9)^2+4*$M$34*FC8^2)^0.5)/(2*FC8) -> 1.047281534 | FF1: =(FG9-$M$34*FF9+((FG9-$M$34*FF9)^2+4*$M$34*FF8^2)^0.5)/(2*FF8) -> 1.279833569 | FI1: =(FJ9-$M$34*FI9+((FJ9-$M$34*FI9)^2+4*$M$34*FI8^2)^0.5)/(2*FI8) -> 0.980519636 | FL1: =(FM9-$M$34*FL9+((FM9-$M$34*FL9)^2+4*$M$34*FL8^2)^0.5)/(2*FL8) -> 1.241570047 | FO1: =(FP9-$M$34*FO9+((FP9-$M$34*FO9)^2+4*$M$34*FO8^2)^0.5)/(2*FO8) -> 1.066127502 | FR1: =(FS9-$M$34*FR9+((FS9-$M$34*FR9)^2+4*$M$34*FR8^2)^0.5)/(2*FR8) -> 1.112475829 | FU1: =(FV9-$M$34*FU9+((FV9-$M$34*FU9)^2+4*$M$34*FU8^2)^0.5)/(2*FU8) -> 1.117158072 | FX1: =(FY9-$M$34*FX9+((FY9-$M$34*FX9)^2+4*$M$34*FX8^2)^0.5)/(2*FX8) -> 1.375197504 | GA1: =(GB9-$M$34*GA9+((GB9-$M$34*GA9)^2+4*$M$34*GA8^2)^0.5)/(2*GA8) -> 0.9414396943 | GD1: =(GE9-$M$34*GD9+((GE9-$M$34*GD9)^2+4*$M$34*GD8^2)^0.5)/(2*GD8) -> 1.072606825 | GG1: =(GH9-$M$34*GG9+((GH9-$M$34*GG9)^2+4*$M$34*GG8^2)^0.5)/(2*GG8) -> 1.083694311 | GJ1: =(GK9-$M$34*GJ9+((GK9-$M$34*GJ9)^2+4*$M$34*GJ8^2)^0.5)/(2*GJ8) -> 1.171804162 | GM1: =(GN9-$M$34*GM9+((GN9-$M$34*GM9)^2+4*$M$34*GM8^2)^0.5)/(2*GM8) -> 1.422089604 | GP1: =(GQ9-$M$34*GP9+((GQ9-$M$34*GP9)^2+4*$M$34*GP8^2)^0.5)/(2*GP8) -> 1.239559042 | GS1: =(GT9-$M$34*GS9+((GT9-$M$34*GS9)^2+4*$M$34*GS8^2)^0.5)/(2*GS8) -> 0.9613413386 | GV1: =(GW9-$M$34*GV9+((GW9-$M$34*GV9)^2+4*$M$34*GV8^2)^0.5)/(2*GV8) -> 1.186957805 | GY1: =(GZ9-$M$34*GY9+((GZ9-$M$34*GY9)^2+4*$M$34*GY8^2)^0.5)/(2*GY8) -> 1.093798407 | HB1: =(HC9-$M$34*HB9+((HC9-$M$34*HB9)^2+4*$M$34*HB8^2)^0.5)/(2*HB8) -> 1.037989008 | HE1: =(HF9-$M$34*HE9+((HF9-$M$34*HE9)^2+4*$M$34*HE8^2)^0.5)/(2*HE8) -> 1.439587639 | HH1: =(HI9-$M$34*HH9+((HI9-$M$34*HH9)^2+4*$M$34*HH8^2)^0.5)/(2*HH8) -> 1.02689114 | HK1: =(HL9-$M$34*HK9+((HL9-$M$34*HK9)^2+4*$M$34*HK8^2)^0.5)/(2*HK8) -> 1.136035853 | HN1: =(HO9-$M$34*HN9+((HO9-$M$34*HN9)^2+4*$M$34*HN8^2)^0.5)/(2*HN8) -> 1.293401543 | HQ1: =(HR9-$M$34*HQ9+((HR9-$M$34*HQ9)^2+4*$M$34*HQ8^2)^0.5)/(2*HQ8) -> 1.154062107 | HT1: =(HU9-$M$34*HT9+((HU9-$M$34*HT9)^2+4*$M$34*HT8^2)^0.5)/(2*HT8) -> 0.9125120538 | HW1: =(HX9-$M$34*HW9+((HX9-$M$34*HW9)^2+4*$M$34*HW8^2)^0.5)/(2*HW8) -> 0.9026500444 | HZ1: =(IA9-$M$34*HZ9+((IA9-$M$34*HZ9)^2+4*$M$34*HZ8^2)^0.5)/(2*HZ8) -> 1.196309959 | IC1: =(ID9-$M$34*IC9+((ID9-$M$34*IC9)^2+4*$M$34*IC8^2)^0.5)/(2*IC8) -> 1.223673303 | IF1: =(IG9-$M$34*IF9+((IG9-$M$34*IF9)^2+4*$M$34*IF8^2)^0.5)/(2*IF8) -> 1.061445722 | II1: =(IJ9-$M$34*II9+((IJ9-$M$34*II9)^2+4*$M$34*II8^2)^0.5)/(2*II8) -> 1.15444159 | IL1: =(IM9-$M$34*IL9+((IM9-$M$34*IL9)^2+4*$M$34*IL8^2)^0.5)/(2*IL8) -> 0.9787488167 | IO1: =(IP9-$M$34*IO9+((IP9-$M$34*IO9)^2+4*$M$34*IO8^2)^0.5)/(2*IO8) -> 1.080065016 | IR1: =(IS9-$M$34*IR9+((IS9-$M$34*IR9)^2+4*$M$34*IR8^2)^0.5)/(2*IR8) -> 1.153972201 | IU1: =(IV9-$M$34*IU9+((IV9-$M$34*IU9)^2+4*$M$34*IU8^2)^0.5)/(2*IU8) -> 1.245892139 | IX1: =(IY9-$M$34*IX9+((IY9-$M$34*IX9)^2+4*$M$34*IX8^2)^0.5)/(2*IX8) -> 1.27544366 | JA1: =(JB9-$M$34*JA9+((JB9-$M$34*JA9)^2+4*$M$34*JA8^2)^0.5)/(2*JA8) -> 0.9283503475 | JD1: =(JE9-$M$34*JD9+((JE9-$M$34*JD9)^2+4*$M$34*JD8^2)^0.5)/(2*JD8) -> 1.237463658 | JG1: =(JH9-$M$34*JG9+((JH9-$M$34*JG9)^2+4*$M$34*JG8^2)^0.5)/(2*JG8) -> 1.213267983 | JJ1: =(JK9-$M$34*JJ9+((JK9-$M$34*JJ9)^2+4*$M$34*JJ8^2)^0.5)/(2*JJ8) -> 1.180292823 | JM1: =(JN9-$M$34*JM9+((JN9-$M$34*JM9)^2+4*$M$34*JM8^2)^0.5)/(2*JM8) -> 1.073739503 | JP1: =(JQ9-$M$34*JP9+((JQ9-$M$34*JP9)^2+4*$M$34*JP8^2)^0.5)/(2*JP8) -> 1.016669181 | JS1: =(JT9-$M$34*JS9+((JT9-$M$34*JS9)^2+4*$M$34*JS8^2)^0.5)/(2*JS8) -> 1.230527774 | JV1: =(JW9-$M$34*JV9+((JW9-$M$34*JV9)^2+4*$M$34*JV8^2)^0.5)/(2*JV8) -> 1.099944845 | JY1: =(JZ9-$M$34*JY9+((JZ9-$M$34*JY9)^2+4*$M$34*JY8^2)^0.5)/(2*JY8) -> 1.194204423 | KB1: =(KC9-$M$34*KB9+((KC9-$M$34*KB9)^2+4*$M$34*KB8^2)^0.5)/(2*KB8) -> 1.029935899 | KE1: =(KF9-$M$34*KE9+((KF9-$M$34*KE9)^2+4*$M$34*KE8^2)^0.5)/(2*KE8) -> 0.9678093788 | KH1: =(KI9-$M$34*KH9+((KI9-$M$34*KH9)^2+4*$M$34*KH8^2)^0.5)/(2*KH8) -> 1.234638085 | KK1: =(KL9-$M$34*KK9+((KL9-$M$34*KK9)^2+4*$M$34*KK8^2)^0.5)/(2*KK8) -> 1.26445214 | KN1: =(KO9-$M$34*KN9+((KO9-$M$34*KN9)^2+4*$M$34*KN8^2)^0.5)/(2*KN8) -> 0.9225091845 | KQ1: =(KR9-$M$34*KQ9+((KR9-$M$34*KQ9)^2+4*$M$34*KQ8^2)^0.5)/(2*KQ8) -> 1.200553656 | KT1: =(KU9-$M$34*KT9+((KU9-$M$34*KT9)^2+4*$M$34*KT8^2)^0.5)/(2*KT8) -> 1.149859437 | KW1: =(KX9-$M$34*KW9+((KX9-$M$34*KW9)^2+4*$M$34*KW8^2)^0.5)/(2*KW8) -> 0.9940895615 | KZ1: =(LA9-$M$34*KZ9+((LA9-$M$34*KZ9)^2+4*$M$34*KZ8^2)^0.5)/(2*KZ8) -> 1.102036362 | LC1: =(LD9-$M$34*LC9+((LD9-$M$34*LC9)^2+4*$M$34*LC8^2)^0.5)/(2*LC8) -> 0.9986370701 | LF1: =(LG9-$M$34*LF9+((LG9-$M$34*LF9)^2+4*$M$34*LF8^2)^0.5)/(2*LF8) -> 1.006791557 | LI1: =(LJ9-$M$34*LI9+((LJ9-$M$34*LI9)^2+4*$M$34*LI8^2)^0.5)/(2*LI8) -> 1.084686949 | LL1: =(LM9-$M$34*LL9+((LM9-$M$34*LL9)^2+4*$M$34*LL8^2)^0.5)/(2*LL8) -> 1.004181589 | LO1: =(LP9-$M$34*LO9+((LP9-$M$34*LO9)^2+4*$M$34*LO8^2)^0.5)/(2*LO8) -> 1.047251088 | LR1: =(LS9-$M$34*LR9+((LS9-$M$34*LR9)^2+4*$M$34*LR8^2)^0.5)/(2*LR8) -> 1.124114048 | LU1: =(LV9-$M$34*LU9+((LV9-$M$34*LU9)^2+4*$M$34*LU8^2)^0.5)/(2*LU8) -> 1.066104125 | LX1: =(LY9-$M$34*LX9+((LY9-$M$34*LX9)^2+4*$M$34*LX8^2)^0.5)/(2*LX8) -> 1.134654694 | MA1: =(MB9-$M$34*MA9+((MB9-$M$34*MA9)^2+4*$M$34*MA8^2)^0.5)/(2*MA8) -> 1.116522417 | MD1: =(ME9-$M$34*MD9+((ME9-$M$34*MD9)^2+4*$M$34*MD8^2)^0.5)/(2*MD8) -> 1.242088774 | MG1: =(MH9-$M$34*MG9+((MH9-$M$34*MG9)^2+4*$M$34*MG8^2)^0.5)/(2*MG8) -> 1.067950841 | MJ1: =(MK9-$M$34*MJ9+((MK9-$M$34*MJ9)^2+4*$M$34*MJ8^2)^0.5)/(2*MJ8) -> 1.26558422 | MM1: =(MN9-$M$34*MM9+((MN9-$M$34*MM9)^2+4*$M$34*MM8^2)^0.5)/(2*MM8) -> 1.128712745 | MP1: =(MQ9-$M$34*MP9+((MQ9-$M$34*MP9)^2+4*$M$34*MP8^2)^0.5)/(2*MP8) -> 1.231535491 | MS1: =(MT9-$M$34*MS9+((MT9-$M$34*MS9)^2+4*$M$34*MS8^2)^0.5)/(2*MS8) -> 1.047456309 | MV1: =(MW9-$M$34*MV9+((MW9-$M$34*MV9)^2+4*$M$34*MV8^2)^0.5)/(2*MV8) -> 1.143306398 | MY1: =(MZ9-$M$34*MY9+((MZ9-$M$34*MY9)^2+4*$M$34*MY8^2)^0.5)/(2*MY8) -> 1.05731255 | NB1: =(NC9-$M$34*NB9+((NC9-$M$34*NB9)^2+4*$M$34*NB8^2)^0.5)/(2*NB8) -> 1.148310871 | NE1: =(NF9-$M$34*NE9+((NF9-$M$34*NE9)^2+4*$M$34*NE8^2)^0.5)/(2*NE8) -> 1.071741825 | NH1: =(NI9-$M$34*NH9+((NI9-$M$34*NH9)^2+4*$M$34*NH8^2)^0.5)/(2*NH8) -> 1.041693169 | NK1: =(NL9-$M$34*NK9+((NL9-$M$34*NK9)^2+4*$M$34*NK8^2)^0.5)/(2*NK8) -> 0.9920986409 | NN1: =(NO9-$M$34*NN9+((NO9-$M$34*NN9)^2+4*$M$34*NN8^2)^0.5)/(2*NN8) -> 1.170952754 | NQ1: =(NR9-$M$34*NQ9+((NR9-$M$34*NQ9)^2+4*$M$34*NQ8^2)^0.5)/(2*NQ8) -> 1.17346659 | NT1: =(NU9-$M$34*NT9+((NU9-$M$34*NT9)^2+4*$M$34*NT8^2)^0.5)/(2*NT8) -> 0.9236128567 | NW1: =(NX9-$M$34*NW9+((NX9-$M$34*NW9)^2+4*$M$34*NW8^2)^0.5)/(2*NW8) -> 1.094303983 | NZ1: =(OA9-$M$34*NZ9+((OA9-$M$34*NZ9)^2+4*$M$34*NZ8^2)^0.5)/(2*NZ8) -> 1.117390991 | OC1: =(OD9-$M$34*OC9+((OD9-$M$34*OC9)^2+4*$M$34*OC8^2)^0.5)/(2*OC8) -> 1.366112222 | OF1: =(OG9-$M$34*OF9+((OG9-$M$34*OF9)^2+4*$M$34*OF8^2)^0.5)/(2*OF8) -> 1.184067952 | OI1: =(OJ9-$M$34*OI9+((OJ9-$M$34*OI9)^2+4*$M$34*OI8^2)^0.5)/(2*OI8) -> 1.089840643 | OL1: =(OM9-$M$34*OL9+((OM9-$M$34*OL9)^2+4*$M$34*OL8^2)^0.5)/(2*OL8) -> 1.214502468 | OO1: =(OP9-$M$34*OO9+((OP9-$M$34*OO9)^2+4*$M$34*OO8^2)^0.5)/(2*OO8) -> 1.162987816 | OR1: =(OS9-$M$34*OR9+((OS9-$M$34*OR9)^2+4*$M$34*OR8^2)^0.5)/(2*OR8) -> 1.001192826 | OU1: =(OV9-$M$34*OU9+((OV9-$M$34*OU9)^2+4*$M$34*OU8^2)^0.5)/(2*OU8) -> 0.9988783848 | OX1: =(OY9-$M$34*OX9+((OY9-$M$34*OX9)^2+4*$M$34*OX8^2)^0.5)/(2*OX8) -> 1.043240302 | PA1: =(PB9-$M$34*PA9+((PB9-$M$34*PA9)^2+4*$M$34*PA8^2)^0.5)/(2*PA8) -> 1.156961491 | PD1: =(PE9-$M$34*PD9+((PE9-$M$34*PD9)^2+4*$M$34*PD8^2)^0.5)/(2*PD8) -> 1.081512674 | PG1: =(PH9-$M$34*PG9+((PH9-$M$34*PG9)^2+4*$M$34*PG8^2)^0.5)/(2*PG8) -> 1.213346957 | PJ1: =(PK9-$M$34*PJ9+((PK9-$M$34*PJ9)^2+4*$M$34*PJ8^2)^0.5)/(2*PJ8) -> 1.29964291 | PM1: =(PN9-$M$34*PM9+((PN9-$M$34*PM9)^2+4*$M$34*PM8^2)^0.5)/(2*PM8) -> 1.074935856 | PP1: =(PQ9-$M$34*PP9+((PQ9-$M$34*PP9)^2+4*$M$34*PP8^2)^0.5)/(2*PP8) -> 1.072139608 | PS1: =(PT9-$M$34*PS9+((PT9-$M$34*PS9)^2+4*$M$34*PS8^2)^0.5)/(2*PS8) -> 1.090496839 | PV1: =(PW9-$M$34*PV9+((PW9-$M$34*PV9)^2+4*$M$34*PV8^2)^0.5)/(2*PV8) -> 1.081757223 | PY1: =(PZ9-$M$34*PY9+((PZ9-$M$34*PY9)^2+4*$M$34*PY8^2)^0.5)/(2*PY8) -> 1.441155467 | QB1: =(QC9-$M$34*QB9+((QC9-$M$34*QB9)^2+4*$M$34*QB8^2)^0.5)/(2*QB8) -> 1.316849716 | QE1: =(QF9-$M$34*QE9+((QF9-$M$34*QE9)^2+4*$M$34*QE8^2)^0.5)/(2*QE8) -> 1.050800838 | QH1: =(QI9-$M$34*QH9+((QI9-$M$34*QH9)^2+4*$M$34*QH8^2)^0.5)/(2*QH8) -> 1.18683469 | QK1: =(QL9-$M$34*QK9+((QL9-$M$34*QK9)^2+4*$M$34*QK8^2)^0.5)/(2*QK8) -> 0.9960679942 | QN1: =(QO9-$M$34*QN9+((QO9-$M$34*QN9)^2+4*$M$34*QN8^2)^0.5)/(2*QN8) -> 1.539800169 | QQ1: =(QR9-$M$34*QQ9+((QR9-$M$34*QQ9)^2+4*$M$34*QQ8^2)^0.5)/(2*QQ8) -> 1.199422133 | QT1: =(QU9-$M$34*QT9+((QU9-$M$34*QT9)^2+4*$M$34*QT8^2)^0.5)/(2*QT8) -> 0.9817423566 | QW1: =(QX9-$M$34*QW9+((QX9-$M$34*QW9)^2+4*$M$34*QW8^2)^0.5)/(2*QW8) -> 1.188650169 | QZ1: =(RA9-$M$34*QZ9+((RA9-$M$34*QZ9)^2+4*$M$34*QZ8^2)^0.5)/(2*QZ8) -> 1.035791678 | RC1: =(RD9-$M$34*RC9+((RD9-$M$34*RC9)^2+4*$M$34*RC8^2)^0.5)/(2*RC8) -> 1.173726653 | RF1: =(RG9-$M$34*RF9+((RG9-$M$34*RF9)^2+4*$M$34*RF8^2)^0.5)/(2*RF8) -> 1.012125632 | RI1: =(RJ9-$M$34*RI9+((RJ9-$M$34*RI9)^2+4*$M$34*RI8^2)^0.5)/(2*RI8) -> 1.095186946 | RL1: =(RM9-$M$34*RL9+((RM9-$M$34*RL9)^2+4*$M$34*RL8^2)^0.5)/(2*RL8) -> 1.167824946 | RO1: =(RP9-$M$34*RO9+((RP9-$M$34*RO9)^2+4*$M$34*RO8^2)^0.5)/(2*RO8) -> 0.9531131523 | RR1: =(RS9-$M$34*RR9+((RS9-$M$34*RR9)^2+4*$M$34*RR8^2)^0.5)/(2*RR8) -> 1.065445654 | RU1: =(RV9-$M$34*RU9+((RV9-$M$34*RU9)^2+4*$M$34*RU8^2)^0.5)/(2*RU8) -> 1.106685536 | RX1: =(RY9-$M$34*RX9+((RY9-$M$34*RX9)^2+4*$M$34*RX8^2)^0.5)/(2*RX8) -> 1.362494649 | SA1: =(SB9-$M$34*SA9+((SB9-$M$34*SA9)^2+4*$M$34*SA8^2)^0.5)/(2*SA8) -> 1.123975774 | SD1: =(SE9-$M$34*SD9+((SE9-$M$34*SD9)^2+4*$M$34*SD8^2)^0.5)/(2*SD8) -> 1.073464716 | SG1: =(SH9-$M$34*SG9+((SH9-$M$34*SG9)^2+4*$M$34*SG8^2)^0.5)/(2*SG8) -> 1.160315323 | SJ1: =(SK9-$M$34*SJ9+((SK9-$M$34*SJ9)^2+4*$M$34*SJ8^2)^0.5)/(2*SJ8) -> 1.101948193 | SM1: =(SN9-$M$34*SM9+((SN9-$M$34*SM9)^2+4*$M$34*SM8^2)^0.5)/(2*SM8) -> 1.115616563 | SP1: =(SQ9-$M$34*SP9+((SQ9-$M$34*SP9)^2+4*$M$34*SP8^2)^0.5)/(2*SP8) -> 1.140013118 | SS1: =(ST9-$M$34*SS9+((ST9-$M$34*SS9)^2+4*$M$34*SS8^2)^0.5)/(2*SS8) -> 1.061388214 | SV1: =(SW9-$M$34*SV9+((SW9-$M$34*SV9)^2+4*$M$34*SV8^2)^0.5)/(2*SV8) -> 1.108000108 | SY1: =(SZ9-$M$34*SY9+((SZ9-$M$34*SY9)^2+4*$M$34*SY8^2)^0.5)/(2*SY8) -> 1.145847206 | TB1: =(TC9-$M$34*TB9+((TC9-$M$34*TB9)^2+4*$M$34*TB8^2)^0.5)/(2*TB8) -> 0.933587925 | TE1: =(TF9-$M$34*TE9+((TF9-$M$34*TE9)^2+4*$M$34*TE8^2)^0.5)/(2*TE8) -> 1.077808533 | TH1: =(TI9-$M$34*TH9+((TI9-$M$34*TH9)^2+4*$M$34*TH8^2)^0.5)/(2*TH8) -> 1.046000943 | TK1: =(TL9-$M$34*TK9+((TL9-$M$34*TK9)^2+4*$M$34*TK8^2)^0.5)/(2*TK8) -> 1.125194227 | TN1: =(TO9-$M$34*TN9+((TO9-$M$34*TN9)^2+4*$M$34*TN8^2)^0.5)/(2*TN8) -> 1.205901151 | TQ1: =(TR9-$M$34*TQ9+((TR9-$M$34*TQ9)^2+4*$M$34*TQ8^2)^0.5)/(2*TQ8) -> 1.373003103 | TT1: =(TU9-$M$34*TT9+((TU9-$M$34*TT9)^2+4*$M$34*TT8^2)^0.5)/(2*TT8) -> 1.157438409 | TW1: =(TX9-$M$34*TW9+((TX9-$M$34*TW9)^2+4*$M$34*TW8^2)^0.5)/(2*TW8) -> 1.076590123 | TZ1: =(UA9-$M$34*TZ9+((UA9-$M$34*TZ9)^2+4*$M$34*TZ8^2)^0.5)/(2*TZ8) -> 0.9923073492 | UC1: =(UD9-$M$34*UC9+((UD9-$M$34*UC9)^2+4*$M$34*UC8^2)^0.5)/(2*UC8) -> 1.188186893 | UF1: =(UG9-$M$34*UF9+((UG9-$M$34*UF9)^2+4*$M$34*UF8^2)^0.5)/(2*UF8) -> 1.34760992 | UI1: =(UJ9-$M$34*UI9+((UJ9-$M$34*UI9)^2+4*$M$34*UI8^2)^0.5)/(2*UI8) -> 1.119230895 | UL1: =(UM9-$M$34*UL9+((UM9-$M$34*UL9)^2+4*$M$34*UL8^2)^0.5)/(2*UL8) -> 1.211189785 | UO1: =(UP9-$M$34*UO9+((UP9-$M$34*UO9)^2+4*$M$34*UO8^2)^0.5)/(2*UO8) -> 1.178594429 | UR1: =(US9-$M$34*UR9+((US9-$M$34*UR9)^2+4*$M$34*UR8^2)^0.5)/(2*UR8) -> 0.9057515687 | UU1: =(UV9-$M$34*UU9+((UV9-$M$34*UU9)^2+4*$M$34*UU8^2)^0.5)/(2*UU8) -> 1.032912012 | UX1: =(UY9-$M$34*UX9+((UY9-$M$34*UX9)^2+4*$M$34*UX8^2)^0.5)/(2*UX8) -> 1.09671609 | VA1: =(VB9-$M$34*VA9+((VB9-$M$34*VA9)^2+4*$M$34*VA8^2)^0.5)/(2*VA8) -> 1.226218647 | VD1: =(VE9-$M$34*VD9+((VE9-$M$34*VD9)^2+4*$M$34*VD8^2)^0.5)/(2*VD8) -> 1.350521703 | VG1: =(VH9-$M$34*VG9+((VH9-$M$34*VG9)^2+4*$M$34*VG8^2)^0.5)/(2*VG8) -> 1.199378386 | VJ1: =(VK9-$M$34*VJ9+((VK9-$M$34*VJ9)^2+4*$M$34*VJ8^2)^0.5)/(2*VJ8) -> 1.397807096 | VM1: =(VN9-$M$34*VM9+((VN9-$M$34*VM9)^2+4*$M$34*VM8^2)^0.5)/(2*VM8) -> 1.275015533 | VP1: =(VQ9-$M$34*VP9+((VQ9-$M$34*VP9)^2+4*$M$34*VP8^2)^0.5)/(2*VP8) -> 1.162541039 | VS1: =(VT9-$M$34*VS9+((VT9-$M$34*VS9)^2+4*$M$34*VS8^2)^0.5)/(2*VS8) -> 1.118338037 | VV1: =(VW9-$M$34*VV9+((VW9-$M$34*VV9)^2+4*$M$34*VV8^2)^0.5)/(2*VV8) -> 1.028795557 | VY1: =(VZ9-$M$34*VY9+((VZ9-$M$34*VY9)^2+4*$M$34*VY8^2)^0.5)/(2*VY8) -> 1.197438372 | WB1: =(WC9-$M$34*WB9+((WC9-$M$34*WB9)^2+4*$M$34*WB8^2)^0.5)/(2*WB8) -> 0.9919316845 | WE1: =(WF9-$M$34*WE9+((WF9-$M$34*WE9)^2+4*$M$34*WE8^2)^0.5)/(2*WE8) -> 1.444680728 | WH1: =(WI9-$M$34*WH9+((WI9-$M$34*WH9)^2+4*$M$34*WH8^2)^0.5)/(2*WH8) -> 1.406868165 | WK1: =(WL9-$M$34*WK9+((WL9-$M$34*WK9)^2+4*$M$34*WK8^2)^0.5)/(2*WK8) -> 1.078851471 | WN1: =(WO9-$M$34*WN9+((WO9-$M$34*WN9)^2+4*$M$34*WN8^2)^0.5)/(2*WN8) -> 1.021829289 | WQ1: =(WR9-$M$34*WQ9+((WR9-$M$34*WQ9)^2+4*$M$34*WQ8^2)^0.5)/(2*WQ8) -> 1.239251262 | WT1: =(WU9-$M$34*WT9+((WU9-$M$34*WT9)^2+4*$M$34*WT8^2)^0.5)/(2*WT8) -> 1.341035527 | WW1: =(WX9-$M$34*WW9+((WX9-$M$34*WW9)^2+4*$M$34*WW8^2)^0.5)/(2*WW8) -> 1.298152074 | WZ1: =(XA9-$M$34*WZ9+((XA9-$M$34*WZ9)^2+4*$M$34*WZ8^2)^0.5)/(2*WZ8) -> 1.076808395 | XC1: =(XD9-$M$34*XC9+((XD9-$M$34*XC9)^2+4*$M$34*XC8^2)^0.5)/(2*XC8) -> 1.141543006 | XF1: =(XG9-$M$34*XF9+((XG9-$M$34*XF9)^2+4*$M$34*XF8^2)^0.5)/(2*XF8) -> 1.000622309 | XI1: =(XJ9-$M$34*XI9+((XJ9-$M$34*XI9)^2+4*$M$34*XI8^2)^0.5)/(2*XI8) -> 1.031160278 | XL1: =(XM9-$M$34*XL9+((XM9-$M$34*XL9)^2+4*$M$34*XL8^2)^0.5)/(2*XL8) -> 0.9554829499 | XO1: =(XP9-$M$34*XO9+((XP9-$M$34*XO9)^2+4*$M$34*XO8^2)^0.5)/(2*XO8) -> 1.132149091 | XR1: =(XS9-$M$34*XR9+((XS9-$M$34*XR9)^2+4*$M$34*XR8^2)^0.5)/(2*XR8) -> 0.9991037101 | XU1: =(XV9-$M$34*XU9+((XV9-$M$34*XU9)^2+4*$M$34*XU8^2)^0.5)/(2*XU8) -> 1.230742218 | XX1: =(XY9-$M$34*XX9+((XY9-$M$34*XX9)^2+4*$M$34*XX8^2)^0.5)/(2*XX8) -> 1.152167388 | YA1: =(YB9-$M$34*YA9+((YB9-$M$34*YA9)^2+4*$M$34*YA8^2)^0.5)/(2*YA8) -> 1.081394155 | YD1: =(YE9-$M$34*YD9+((YE9-$M$34*YD9)^2+4*$M$34*YD8^2)^0.5)/(2*YD8) -> 1.340495896 | YG1: =(YH9-$M$34*YG9+((YH9-$M$34*YG9)^2+4*$M$34*YG8^2)^0.5)/(2*YG8) -> 0.9858640704 | YJ1: =(YK9-$M$34*YJ9+((YK9-$M$34*YJ9)^2+4*$M$34*YJ8^2)^0.5)/(2*YJ8) -> 1.155639677 | YM1: =(YN9-$M$34*YM9+((YN9-$M$34*YM9)^2+4*$M$34*YM8^2)^0.5)/(2*YM8) -> 1.307450522 | YP1: =(YQ9-$M$34*YP9+((YQ9-$M$34*YP9)^2+4*$M$34*YP8^2)^0.5)/(2*YP8) -> 1.021917612 | YS1: =(YT9-$M$34*YS9+((YT9-$M$34*YS9)^2+4*$M$34*YS8^2)^0.5)/(2*YS8) -> 1.053634828 | YV1: =(YW9-$M$34*YV9+((YW9-$M$34*YV9)^2+4*$M$34*YV8^2)^0.5)/(2*YV8) -> 1.047768198 | YY1: =(YZ9-$M$34*YY9+((YZ9-$M$34*YY9)^2+4*$M$34*YY8^2)^0.5)/(2*YY8) -> 1.171451458 | ZB1: =(ZC9-$M$34*ZB9+((ZC9-$M$34*ZB9)^2+4*$M$34*ZB8^2)^0.5)/(2*ZB8) -> 1.374952719 | ZE1: =(ZF9-$M$34*ZE9+((ZF9-$M$34*ZE9)^2+4*$M$34*ZE8^2)^0.5)/(2*ZE8) -> 1.15683672 | ZH1: =(ZI9-$M$34*ZH9+((ZI9-$M$34*ZH9)^2+4*$M$34*ZH8^2)^0.5)/(2*ZH8) -> 1.002428914 | ZK1: =(ZL9-$M$34*ZK9+((ZL9-$M$34*ZK9)^2+4*$M$34*ZK8^2)^0.5)/(2*ZK8) -> 1.24594371 | ZN1: =(ZO9-$M$34*ZN9+((ZO9-$M$34*ZN9)^2+4*$M$34*ZN8^2)^0.5)/(2*ZN8) -> 1.31371468 | ZQ1: =(ZR9-$M$34*ZQ9+((ZR9-$M$34*ZQ9)^2+4*$M$34*ZQ8^2)^0.5)/(2*ZQ8) -> 1.034056506 | ZT1: =(ZU9-$M$34*ZT9+((ZU9-$M$34*ZT9)^2+4*$M$34*ZT8^2)^0.5)/(2*ZT8) -> 1.030402498 | ZW1: =(ZX9-$M$34*ZW9+((ZX9-$M$34*ZW9)^2+4*$M$34*ZW8^2)^0.5)/(2*ZW8) -> 0.979509448 | ZZ1: =(AAA9-$M$34*ZZ9+((AAA9-$M$34*ZZ9)^2+4*$M$34*ZZ8^2)^0.5)/(2*ZZ8) -> 1.209541255 | AAC1: =(AAD9-$M$34*AAC9+((AAD9-$M$34*AAC9)^2+4*$M$34*AAC8^2)^0.5)/(2*AAC8) -> 1.171423376 | AAF1: =(AAG9-$M$34*AAF9+((AAG9-$M$34*AAF9)^2+4*$M$34*AAF8^2)^0.5)/(2*AAF8) -> 1.046910916 | AAI1: =(AAJ9-$M$34*AAI9+((AAJ9-$M$34*AAI9)^2+4*$M$34*AAI8^2)^0.5)/(2*AAI8) -> 1.220395521 | AAL1: =(AAM9-$M$34*AAL9+((AAM9-$M$34*AAL9)^2+4*$M$34*AAL8^2)^0.5)/(2*AAL8) -> 1.11563089 | AAO1: =(AAP9-$M$34*AAO9+((AAP9-$M$34*AAO9)^2+4*$M$34*AAO8^2)^0.5)/(2*AAO8) -> 0.9508042751 | AAR1: =(AAS9-$M$34*AAR9+((AAS9-$M$34*AAR9)^2+4*$M$34*AAR8^2)^0.5)/(2*AAR8) -> 1.235754513 | AAU1: =(AAV9-$M$34*AAU9+((AAV9-$M$34*AAU9)^2+4*$M$34*AAU8^2)^0.5)/(2*AAU8) -> 1.033405045 | AAX1: =(AAY9-$M$34*AAX9+((AAY9-$M$34*AAX9)^2+4*$M$34*AAX8^2)^0.5)/(2*AAX8) -> 1.016996217 | ABA1: =(ABB9-$M$34*ABA9+((ABB9-$M$34*ABA9)^2+4*$M$34*ABA8^2)^0.5)/(2*ABA8) -> 1.252579586 | ABD1: =(ABE9-$M$34*ABD9+((ABE9-$M$34*ABD9)^2+4*$M$34*ABD8^2)^0.5)/(2*ABD8) -> 1.259961324 | ABG1: =(ABH9-$M$34*ABG9+((ABH9-$M$34*ABG9)^2+4*$M$34*ABG8^2)^0.5)/(2*ABG8) -> 1.139645444 | ABJ1: =(ABK9-$M$34*ABJ9+((ABK9-$M$34*ABJ9)^2+4*$M$34*ABJ8^2)^0.5)/(2*ABJ8) -> 1.095049075 | ABM1: =(ABN9-$M$34*ABM9+((ABN9-$M$34*ABM9)^2+4*$M$34*ABM8^2)^0.5)/(2*ABM8) -> 1.007360819 | ABP1: =(ABQ9-$M$34*ABP9+((ABQ9-$M$34*ABP9)^2+4*$M$34*ABP8^2)^0.5)/(2*ABP8) -> 1.184900767 | ABS1: =(ABT9-$M$34*ABS9+((ABT9-$M$34*ABS9)^2+4*$M$34*ABS8^2)^0.5)/(2*ABS8) -> 1.086584402 | ABV1: =(ABW9-$M$34*ABV9+((ABW9-$M$34*ABV9)^2+4*$M$34*ABV8^2)^0.5)/(2*ABV8) -> 1.246801551 | ABY1: =(ABZ9-$M$34*ABY9+((ABZ9-$M$34*ABY9)^2+4*$M$34*ABY8^2)^0.5)/(2*ABY8) -> 1.203543947 | ACB1: =(ACC9-$M$34*ACB9+((ACC9-$M$34*ACB9)^2+4*$M$34*ACB8^2)^0.5)/(2*ACB8) -> 1.33543681 | ACE1: =(ACF9-$M$34*ACE9+((ACF9-$M$34*ACE9)^2+4*$M$34*ACE8^2)^0.5)/(2*ACE8) -> 0.9516880479 | ACH1: =(ACI9-$M$34*ACH9+((ACI9-$M$34*ACH9)^2+4*$M$34*ACH8^2)^0.5)/(2*ACH8) -> 1.198012104 | ACK1: =(ACL9-$M$34*ACK9+((ACL9-$M$34*ACK9)^2+4*$M$34*ACK8^2)^0.5)/(2*ACK8) -> 1.222020038 | ACN1: =(ACO9-$M$34*ACN9+((ACO9-$M$34*ACN9)^2+4*$M$34*ACN8^2)^0.5)/(2*ACN8) -> 1.19669786 | ACQ1: =(ACR9-$M$34*ACQ9+((ACR9-$M$34*ACQ9)^2+4*$M$34*ACQ8^2)^0.5)/(2*ACQ8) -> 1.124413533 | ACT1: =(ACU9-$M$34*ACT9+((ACU9-$M$34*ACT9)^2+4*$M$34*ACT8^2)^0.5)/(2*ACT8) -> 1.187114464 | ACW1: =(ACX9-$M$34*ACW9+((ACX9-$M$34*ACW9)^2+4*$M$34*ACW8^2)^0.5)/(2*ACW8) -> 1.053037942 | ACZ1: =(ADA9-$M$34*ACZ9+((ADA9-$M$34*ACZ9)^2+4*$M$34*ACZ8^2)^0.5)/(2*ACZ8) -> 1.100886451 | ADC1: =(ADD9-$M$34*ADC9+((ADD9-$M$34*ADC9)^2+4*$M$34*ADC8^2)^0.5)/(2*ADC8) -> 1.156465349 | ADF1: =(ADG9-$M$34*ADF9+((ADG9-$M$34*ADF9)^2+4*$M$34*ADF8^2)^0.5)/(2*ADF8) -> 1.29552329 | ADI1: =(ADJ9-$M$34*ADI9+((ADJ9-$M$34*ADI9)^2+4*$M$34*ADI8^2)^0.5)/(2*ADI8) -> 1.181927088 | ADL1: =(ADM9-$M$34*ADL9+((ADM9-$M$34*ADL9)^2+4*$M$34*ADL8^2)^0.5)/(2*ADL8) -> 1.18868739 | ADO1: =(ADP9-$M$34*ADO9+((ADP9-$M$34*ADO9)^2+4*$M$34*ADO8^2)^0.5)/(2*ADO8) -> 1.039406453 | ADR1: =(ADS9-$M$34*ADR9+((ADS9-$M$34*ADR9)^2+4*$M$34*ADR8^2)^0.5)/(2*ADR8) -> 1.176520023 | ADU1: =(ADV9-$M$34*ADU9+((ADV9-$M$34*ADU9)^2+4*$M$34*ADU8^2)^0.5)/(2*ADU8) -> 1.139580757 | ADX1: =(ADY9-$M$34*ADX9+((ADY9-$M$34*ADX9)^2+4*$M$34*ADX8^2)^0.5)/(2*ADX8) -> 1.133068338 | AEA1: =(AEB9-$M$34*AEA9+((AEB9-$M$34*AEA9)^2+4*$M$34*AEA8^2)^0.5)/(2*AEA8) -> 1.201561343 | AED1: =(AEE9-$M$34*AED9+((AEE9-$M$34*AED9)^2+4*$M$34*AED8^2)^0.5)/(2*AED8) -> 1.218185212 | AEG1: =(AEH9-$M$34*AEG9+((AEH9-$M$34*AEG9)^2+4*$M$34*AEG8^2)^0.5)/(2*AEG8) -> 0.9350049059 | AEJ1: =(AEK9-$M$34*AEJ9+((AEK9-$M$34*AEJ9)^2+4*$M$34*AEJ8^2)^0.5)/(2*AEJ8) -> 1.175951052 | AEM1: =(AEN9-$M$34*AEM9+((AEN9-$M$34*AEM9)^2+4*$M$34*AEM8^2)^0.5)/(2*AEM8) -> 0.9919050368 | AEP1: =(AEQ9-$M$34*AEP9+((AEQ9-$M$34*AEP9)^2+4*$M$34*AEP8^2)^0.5)/(2*AEP8) -> 1.085698328 | AES1: =(AET9-$M$34*AES9+((AET9-$M$34*AES9)^2+4*$M$34*AES8^2)^0.5)/(2*AES8) -> 1.000966086 | AEV1: =(AEW9-$M$34*AEV9+((AEW9-$M$34*AEV9)^2+4*$M$34*AEV8^2)^0.5)/(2*AEV8) -> 1.072775661 | AEY1: =(AEZ9-$M$34*AEY9+((AEZ9-$M$34*AEY9)^2+4*$M$34*AEY8^2)^0.5)/(2*AEY8) -> 1.071259807 | AFB1: =(AFC9-$M$34*AFB9+((AFC9-$M$34*AFB9)^2+4*$M$34*AFB8^2)^0.5)/(2*AFB8) -> 1.17032804 | AFE1: =(AFF9-$M$34*AFE9+((AFF9-$M$34*AFE9)^2+4*$M$34*AFE8^2)^0.5)/(2*AFE8) -> 1.076670684 | AFH1: =(AFI9-$M$34*AFH9+((AFI9-$M$34*AFH9)^2+4*$M$34*AFH8^2)^0.5)/(2*AFH8) -> 1.09310559 | AFK1: =(AFL9-$M$34*AFK9+((AFL9-$M$34*AFK9)^2+4*$M$34*AFK8^2)^0.5)/(2*AFK8) -> 1.031263867 | AFN1: =(AFO9-$M$34*AFN9+((AFO9-$M$34*AFN9)^2+4*$M$34*AFN8^2)^0.5)/(2*AFN8) -> 1.090550257 | AFQ1: =(AFR9-$M$34*AFQ9+((AFR9-$M$34*AFQ9)^2+4*$M$34*AFQ8^2)^0.5)/(2*AFQ8) -> 0.9058149873 | AFT1: =(AFU9-$M$34*AFT9+((AFU9-$M$34*AFT9)^2+4*$M$34*AFT8^2)^0.5)/(2*AFT8) -> 1.223143373 | AFW1: =(AFX9-$M$34*AFW9+((AFX9-$M$34*AFW9)^2+4*$M$34*AFW8^2)^0.5)/(2*AFW8) -> 1.125285145 | AFZ1: =(AGA9-$M$34*AFZ9+((AGA9-$M$34*AFZ9)^2+4*$M$34*AFZ8^2)^0.5)/(2*AFZ8) -> 1.122644431 | AGC1: =(AGD9-$M$34*AGC9+((AGD9-$M$34*AGC9)^2+4*$M$34*AGC8^2)^0.5)/(2*AGC8) -> 1.175472881 | AGF1: =(AGG9-$M$34*AGF9+((AGG9-$M$34*AGF9)^2+4*$M$34*AGF8^2)^0.5)/(2*AGF8) -> 1.122749646 | AGI1: =(AGJ9-$M$34*AGI9+((AGJ9-$M$34*AGI9)^2+4*$M$34*AGI8^2)^0.5)/(2*AGI8) -> 1.143362432 | AGL1: =(AGM9-$M$34*AGL9+((AGM9-$M$34*AGL9)^2+4*$M$34*AGL8^2)^0.5)/(2*AGL8) -> 1.095341535 | AGO1: =(AGP9-$M$34*AGO9+((AGP9-$M$34*AGO9)^2+4*$M$34*AGO8^2)^0.5)/(2*AGO8) -> 1.297299368 | AGR1: =(AGS9-$M$34*AGR9+((AGS9-$M$34*AGR9)^2+4*$M$34*AGR8^2)^0.5)/(2*AGR8) -> 1.049973881 | AGU1: =(AGV9-$M$34*AGU9+((AGV9-$M$34*AGU9)^2+4*$M$34*AGU8^2)^0.5)/(2*AGU8) -> 1.418507389 | AGX1: =(AGY9-$M$34*AGX9+((AGY9-$M$34*AGX9)^2+4*$M$34*AGX8^2)^0.5)/(2*AGX8) -> 1.077349598 | AHA1: =(AHB9-$M$34*AHA9+((AHB9-$M$34*AHA9)^2+4*$M$34*AHA8^2)^0.5)/(2*AHA8) -> 0.9422057371 | AHD1: =(AHE9-$M$34*AHD9+((AHE9-$M$34*AHD9)^2+4*$M$34*AHD8^2)^0.5)/(2*AHD8) -> 1.145716428 | AHG1: =(AHH9-$M$34*AHG9+((AHH9-$M$34*AHG9)^2+4*$M$34*AHG8^2)^0.5)/(2*AHG8) -> 1.233686299 | AHJ1: =(AHK9-$M$34*AHJ9+((AHK9-$M$34*AHJ9)^2+4*$M$34*AHJ8^2)^0.5)/(2*AHJ8) -> 1.109764234 | AHM1: =(AHN9-$M$34*AHM9+((AHN9-$M$34*AHM9)^2+4*$M$34*AHM8^2)^0.5)/(2*AHM8) -> 1.080860889 | AHP1: =(AHQ9-$M$34*AHP9+((AHQ9-$M$34*AHP9)^2+4*$M$34*AHP8^2)^0.5)/(2*AHP8) -> 0.9770737338 | AHS1: =(AHT9-$M$34*AHS9+((AHT9-$M$34*AHS9)^2+4*$M$34*AHS8^2)^0.5)/(2*AHS8) -> 1.058866465 | AHV1: =(AHW9-$M$34*AHV9+((AHW9-$M$34*AHV9)^2+4*$M$34*AHV8^2)^0.5)/(2*AHV8) -> 1.139899838 | AHY1: =(AHZ9-$M$34*AHY9+((AHZ9-$M$34*AHY9)^2+4*$M$34*AHY8^2)^0.5)/(2*AHY8) -> 1.200615638 | AIB1: =(AIC9-$M$34*AIB9+((AIC9-$M$34*AIB9)^2+4*$M$34*AIB8^2)^0.5)/(2*AIB8) -> 1.161221589 | AIE1: =(AIF9-$M$34*AIE9+((AIF9-$M$34*AIE9)^2+4*$M$34*AIE8^2)^0.5)/(2*AIE8) -> 0.9799615753 | AIH1: =(AII9-$M$34*AIH9+((AII9-$M$34*AIH9)^2+4*$M$34*AIH8^2)^0.5)/(2*AIH8) -> 1.168329216 | AIK1: =(AIL9-$M$34*AIK9+((AIL9-$M$34*AIK9)^2+4*$M$34*AIK8^2)^0.5)/(2*AIK8) -> 1.207331816 | AIN1: =(AIO9-$M$34*AIN9+((AIO9-$M$34*AIN9)^2+4*$M$34*AIN8^2)^0.5)/(2*AIN8) -> 1.291640961 | AIQ1: =(AIR9-$M$34*AIQ9+((AIR9-$M$34*AIQ9)^2+4*$M$34*AIQ8^2)^0.5)/(2*AIQ8) -> 1.22635448 | AIT1: =(AIU9-$M$34*AIT9+((AIU9-$M$34*AIT9)^2+4*$M$34*AIT8^2)^0.5)/(2*AIT8) -> 1.179121023 | AIW1: =(AIX9-$M$34*AIW9+((AIX9-$M$34*AIW9)^2+4*$M$34*AIW8^2)^0.5)/(2*AIW8) -> 1.391835958 | AIZ1: =(AJA9-$M$34*AIZ9+((AJA9-$M$34*AIZ9)^2+4*$M$34*AIZ8^2)^0.5)/(2*AIZ8) -> 1.247652304 | AJC1: =(AJD9-$M$34*AJC9+((AJD9-$M$34*AJC9)^2+4*$M$34*AJC8^2)^0.5)/(2*AJC8) -> 1.115852839 | AJF1: =(AJG9-$M$34*AJF9+((AJG9-$M$34*AJF9)^2+4*$M$34*AJF8^2)^0.5)/(2*AJF8) -> 1.070365444 | AJI1: =(AJJ9-$M$34*AJI9+((AJJ9-$M$34*AJI9)^2+4*$M$34*AJI8^2)^0.5)/(2*AJI8) -> 1.00755661 | AJL1: =(AJM9-$M$34*AJL9+((AJM9-$M$34*AJL9)^2+4*$M$34*AJL8^2)^0.5)/(2*AJL8) -> 1.08977792 | AJO1: =(AJP9-$M$34*AJO9+((AJP9-$M$34*AJO9)^2+4*$M$34*AJO8^2)^0.5)/(2*AJO8) -> 1.268892368 | AJR1: =(AJS9-$M$34*AJR9+((AJS9-$M$34*AJR9)^2+4*$M$34*AJR8^2)^0.5)/(2*AJR8) -> 1.08729822 | AJU1: =(AJV9-$M$34*AJU9+((AJV9-$M$34*AJU9)^2+4*$M$34*AJU8^2)^0.5)/(2*AJU8) -> 0.9245851851 | AJX1: =(AJY9-$M$34*AJX9+((AJY9-$M$34*AJX9)^2+4*$M$34*AJX8^2)^0.5)/(2*AJX8) -> 1.182181108 | AKA1: =(AKB9-$M$34*AKA9+((AKB9-$M$34*AKA9)^2+4*$M$34*AKA8^2)^0.5)/(2*AKA8) -> 1.346234557 | AKD1: =(AKE9-$M$34*AKD9+((AKE9-$M$34*AKD9)^2+4*$M$34*AKD8^2)^0.5)/(2*AKD8) -> 1.176885641 | AKG1: =(AKH9-$M$34*AKG9+((AKH9-$M$34*AKG9)^2+4*$M$34*AKG8^2)^0.5)/(2*AKG8) -> 1.311746238 | AKJ1: =(AKK9-$M$34*AKJ9+((AKK9-$M$34*AKJ9)^2+4*$M$34*AKJ8^2)^0.5)/(2*AKJ8) -> 1.198477648 | AKM1: =(AKN9-$M$34*AKM9+((AKN9-$M$34*AKM9)^2+4*$M$34*AKM8^2)^0.5)/(2*AKM8) -> 1.10253594 | AKP1: =(AKQ9-$M$34*AKP9+((AKQ9-$M$34*AKP9)^2+4*$M$34*AKP8^2)^0.5)/(2*AKP8) -> 1.055903362 | AKS1: =(AKT9-$M$34*AKS9+((AKT9-$M$34*AKS9)^2+4*$M$34*AKS8^2)^0.5)/(2*AKS8) -> 1.248789696 | AKV1: =(AKW9-$M$34*AKV9+((AKW9-$M$34*AKV9)^2+4*$M$34*AKV8^2)^0.5)/(2*AKV8) -> 1.433860619 | AKY1: =(AKZ9-$M$34*AKY9+((AKZ9-$M$34*AKY9)^2+4*$M$34*AKY8^2)^0.5)/(2*AKY8) -> 1.141907359 | ALB1: =(ALC9-$M$34*ALB9+((ALC9-$M$34*ALB9)^2+4*$M$34*ALB8^2)^0.5)/(2*ALB8) -> 1.076087518 | ALE1: =(ALF9-$M$34*ALE9+((ALF9-$M$34*ALE9)^2+4*$M$34*ALE8^2)^0.5)/(2*ALE8) -> 1.280322623 | ALH1: =(ALI9-$M$34*ALH9+((ALI9-$M$34*ALH9)^2+4*$M$34*ALH8^2)^0.5)/(2*ALH8) -> 1.223000836 | ALK1: =(ALL9-$M$34*ALK9+((ALL9-$M$34*ALK9)^2+4*$M$34*ALK8^2)^0.5)/(2*ALK8) -> 1.17138012 | ALN1: =(ALO9-$M$34*ALN9+((ALO9-$M$34*ALN9)^2+4*$M$34*ALN8^2)^0.5)/(2*ALN8) -> 1.093750361 | ALQ1: =(ALR9-$M$34*ALQ9+((ALR9-$M$34*ALQ9)^2+4*$M$34*ALQ8^2)^0.5)/(2*ALQ8) -> 1.238087782 | ALT1: =(ALU9-$M$34*ALT9+((ALU9-$M$34*ALT9)^2+4*$M$34*ALT8^2)^0.5)/(2*ALT8) -> 1.108266535 | ALW1: =(ALX9-$M$34*ALW9+((ALX9-$M$34*ALW9)^2+4*$M$34*ALW8^2)^0.5)/(2*ALW8) -> 1.098896292 | ALZ1: =(AMA9-$M$34*ALZ9+((AMA9-$M$34*ALZ9)^2+4*$M$34*ALZ8^2)^0.5)/(2*ALZ8) -> 1.075899449 | AMC1: =(AMD9-$M$34*AMC9+((AMD9-$M$34*AMC9)^2+4*$M$34*AMC8^2)^0.5)/(2*AMC8) -> 1.223788183 | AMF1: =(AMG9-$M$34*AMF9+((AMG9-$M$34*AMF9)^2+4*$M$34*AMF8^2)^0.5)/(2*AMF8) -> 1.161543667 | AMI1: =(AMJ9-$M$34*AMI9+((AMJ9-$M$34*AMI9)^2+4*$M$34*AMI8^2)^0.5)/(2*AMI8) -> 1.364804169 | AML1: =(AMM9-$M$34*AML9+((AMM9-$M$34*AML9)^2+4*$M$34*AML8^2)^0.5)/(2*AML8) -> 0.995768893 | AMO1: =(AMP9-$M$34*AMO9+((AMP9-$M$34*AMO9)^2+4*$M$34*AMO8^2)^0.5)/(2*AMO8) -> 1.211692044 | AMR1: =(AMS9-$M$34*AMR9+((AMS9-$M$34*AMR9)^2+4*$M$34*AMR8^2)^0.5)/(2*AMR8) -> 1.157011796 | AMU1: =(AMV9-$M$34*AMU9+((AMV9-$M$34*AMU9)^2+4*$M$34*AMU8^2)^0.5)/(2*AMU8) -> 1.034862217 | AMX1: =(AMY9-$M$34*AMX9+((AMY9-$M$34*AMX9)^2+4*$M$34*AMX8^2)^0.5)/(2*AMX8) -> 1.184880237 | ANA1: =(ANB9-$M$34*ANA9+((ANB9-$M$34*ANA9)^2+4*$M$34*ANA8^2)^0.5)/(2*ANA8) -> 1.152570081 | AND1: =(ANE9-$M$34*AND9+((ANE9-$M$34*AND9)^2+4*$M$34*AND8^2)^0.5)/(2*AND8) -> 1.418473695 | ANG1: =(ANH9-$M$34*ANG9+((ANH9-$M$34*ANG9)^2+4*$M$34*ANG8^2)^0.5)/(2*ANG8) -> 1.146008737 | ANJ1: =(ANK9-$M$34*ANJ9+((ANK9-$M$34*ANJ9)^2+4*$M$34*ANJ8^2)^0.5)/(2*ANJ8) -> 1.053818407 | ANM1: =(ANN9-$M$34*ANM9+((ANN9-$M$34*ANM9)^2+4*$M$34*ANM8^2)^0.5)/(2*ANM8) -> 1.185227926 | ANP1: =(ANQ9-$M$34*ANP9+((ANQ9-$M$34*ANP9)^2+4*$M$34*ANP8^2)^0.5)/(2*ANP8) -> 1.125107486 | ANS1: =(ANT9-$M$34*ANS9+((ANT9-$M$34*ANS9)^2+4*$M$34*ANS8^2)^0.5)/(2*ANS8) -> 1.209209973 | ANV1: =(ANW9-$M$34*ANV9+((ANW9-$M$34*ANV9)^2+4*$M$34*ANV8^2)^0.5)/(2*ANV8) -> 1.123502062 | ANY1: =(ANZ9-$M$34*ANY9+((ANZ9-$M$34*ANY9)^2+4*$M$34*ANY8^2)^0.5)/(2*ANY8) -> 0.9832684283 | AOB1: =(AOC9-$M$34*AOB9+((AOC9-$M$34*AOB9)^2+4*$M$34*AOB8^2)^0.5)/(2*AOB8) -> 1.192115876 | AOE1: =(AOF9-$M$34*AOE9+((AOF9-$M$34*AOE9)^2+4*$M$34*AOE8^2)^0.5)/(2*AOE8) -> 1.215258456 | AOH1: =(AOI9-$M$34*AOH9+((AOI9-$M$34*AOH9)^2+4*$M$34*AOH8^2)^0.5)/(2*AOH8) -> 0.9017949762 | AOK1: =(AOL9-$M$34*AOK9+((AOL9-$M$34*AOK9)^2+4*$M$34*AOK8^2)^0.5)/(2*AOK8) -> 1.442459887 | AON1: =(AOO9-$M$34*AON9+((AOO9-$M$34*AON9)^2+4*$M$34*AON8^2)^0.5)/(2*AON8) -> 0.9589009582 | AOQ1: =(AOR9-$M$34*AOQ9+((AOR9-$M$34*AOQ9)^2+4*$M$34*AOQ8^2)^0.5)/(2*AOQ8) -> 1.009222413 | AOT1: =(AOU9-$M$34*AOT9+((AOU9-$M$34*AOT9)^2+4*$M$34*AOT8^2)^0.5)/(2*AOT8) -> 1.326055667 | AOW1: =(AOX9-$M$34*AOW9+((AOX9-$M$34*AOW9)^2+4*$M$34*AOW8^2)^0.5)/(2*AOW8) -> 1.13841279 | AOZ1: =(APA9-$M$34*AOZ9+((APA9-$M$34*AOZ9)^2+4*$M$34*AOZ8^2)^0.5)/(2*AOZ8) -> 0.9712595287 | APC1: =(APD9-$M$34*APC9+((APD9-$M$34*APC9)^2+4*$M$34*APC8^2)^0.5)/(2*APC8) -> 1.256842254 | APF1: =(APG9-$M$34*APF9+((APG9-$M$34*APF9)^2+4*$M$34*APF8^2)^0.5)/(2*APF8) -> 1.051619041 | API1: =(APJ9-$M$34*API9+((APJ9-$M$34*API9)^2+4*$M$34*API8^2)^0.5)/(2*API8) -> 1.211708003 | APL1: =(APM9-$M$34*APL9+((APM9-$M$34*APL9)^2+4*$M$34*APL8^2)^0.5)/(2*APL8) -> 1.035334826 | APO1: =(APP9-$M$34*APO9+((APP9-$M$34*APO9)^2+4*$M$34*APO8^2)^0.5)/(2*APO8) -> 1.143628862 | APR1: =(APS9-$M$34*APR9+((APS9-$M$34*APR9)^2+4*$M$34*APR8^2)^0.5)/(2*APR8) -> 1.158743298 | APU1: =(APV9-$M$34*APU9+((APV9-$M$34*APU9)^2+4*$M$34*APU8^2)^0.5)/(2*APU8) -> 1.220360662 | APX1: =(APY9-$M$34*APX9+((APY9-$M$34*APX9)^2+4*$M$34*APX8^2)^0.5)/(2*APX8) -> 1.210948292 | AQA1: =(AQB9-$M$34*AQA9+((AQB9-$M$34*AQA9)^2+4*$M$34*AQA8^2)^0.5)/(2*AQA8) -> 1.307706982 | AQD1: =(AQE9-$M$34*AQD9+((AQE9-$M$34*AQD9)^2+4*$M$34*AQD8^2)^0.5)/(2*AQD8) -> 1.198800199 | AQG1: =(AQH9-$M$34*AQG9+((AQH9-$M$34*AQG9)^2+4*$M$34*AQG8^2)^0.5)/(2*AQG8) -> 0.906273971 | AQJ1: =(AQK9-$M$34*AQJ9+((AQK9-$M$34*AQJ9)^2+4*$M$34*AQJ8^2)^0.5)/(2*AQJ8) -> 0.967558686 | AQM1: =(AQN9-$M$34*AQM9+((AQN9-$M$34*AQM9)^2+4*$M$34*AQM8^2)^0.5)/(2*AQM8) -> 1.351970905 | AQP1: =(AQQ9-$M$34*AQP9+((AQQ9-$M$34*AQP9)^2+4*$M$34*AQP8^2)^0.5)/(2*AQP8) -> 1.222797959 | AQS1: =(AQT9-$M$34*AQS9+((AQT9-$M$34*AQS9)^2+4*$M$34*AQS8^2)^0.5)/(2*AQS8) -> 1.078661139 | AQV1: =(AQW9-$M$34*AQV9+((AQW9-$M$34*AQV9)^2+4*$M$34*AQV8^2)^0.5)/(2*AQV8) -> 1.006838224 | AQY1: =(AQZ9-$M$34*AQY9+((AQZ9-$M$34*AQY9)^2+4*$M$34*AQY8^2)^0.5)/(2*AQY8) -> 1.045874851 | ARB1: =(ARC9-$M$34*ARB9+((ARC9-$M$34*ARB9)^2+4*$M$34*ARB8^2)^0.5)/(2*ARB8) -> 1.17846507 | ARE1: =(ARF9-$M$34*ARE9+((ARF9-$M$34*ARE9)^2+4*$M$34*ARE8^2)^0.5)/(2*ARE8) -> 1.227952112 | ARH1: =(ARI9-$M$34*ARH9+((ARI9-$M$34*ARH9)^2+4*$M$34*ARH8^2)^0.5)/(2*ARH8) -> 1.34905469 | ARK1: =(ARL9-$M$34*ARK9+((ARL9-$M$34*ARK9)^2+4*$M$34*ARK8^2)^0.5)/(2*ARK8) -> 1.277564322 | ARN1: =(ARO9-$M$34*ARN9+((ARO9-$M$34*ARN9)^2+4*$M$34*ARN8^2)^0.5)/(2*ARN8) -> 1.254878864 | ARQ1: =(ARR9-$M$34*ARQ9+((ARR9-$M$34*ARQ9)^2+4*$M$34*ARQ8^2)^0.5)/(2*ARQ8) -> 1.384350245 | ART1: =(ARU9-$M$34*ART9+((ARU9-$M$34*ART9)^2+4*$M$34*ART8^2)^0.5)/(2*ART8) -> 1.105791577 | ARW1: =(ARX9-$M$34*ARW9+((ARX9-$M$34*ARW9)^2+4*$M$34*ARW8^2)^0.5)/(2*ARW8) -> 1.222725024 | ARZ1: =(ASA9-$M$34*ARZ9+((ASA9-$M$34*ARZ9)^2+4*$M$34*ARZ8^2)^0.5)/(2*ARZ8) -> 1.075538131 | ASC1: =(ASD9-$M$34*ASC9+((ASD9-$M$34*ASC9)^2+4*$M$34*ASC8^2)^0.5)/(2*ASC8) -> 0.9867182923 | ASF1: =(ASG9-$M$34*ASF9+((ASG9-$M$34*ASF9)^2+4*$M$34*ASF8^2)^0.5)/(2*ASF8) -> 0.9687348466 | ASI1: =(ASJ9-$M$34*ASI9+((ASJ9-$M$34*ASI9)^2+4*$M$34*ASI8^2)^0.5)/(2*ASI8) -> 0.919886778 | ASL1: =(ASM9-$M$34*ASL9+((ASM9-$M$34*ASL9)^2+4*$M$34*ASL8^2)^0.5)/(2*ASL8) -> 1.136975068 | ASO1: =(ASP9-$M$34*ASO9+((ASP9-$M$34*ASO9)^2+4*$M$34*ASO8^2)^0.5)/(2*ASO8) -> 1.35568735 | ASR1: =(ASS9-$M$34*ASR9+((ASS9-$M$34*ASR9)^2+4*$M$34*ASR8^2)^0.5)/(2*ASR8) -> 1.069431925 | ASU1: =(ASV9-$M$34*ASU9+((ASV9-$M$34*ASU9)^2+4*$M$34*ASU8^2)^0.5)/(2*ASU8) -> 1.136920583 | ASX1: =(ASY9-$M$34*ASX9+((ASY9-$M$34*ASX9)^2+4*$M$34*ASX8^2)^0.5)/(2*ASX8) -> 1.06271976 | ATA1: =(ATB9-$M$34*ATA9+((ATB9-$M$34*ATA9)^2+4*$M$34*ATA8^2)^0.5)/(2*ATA8) -> 0.9403232507 | ATD1: =(ATE9-$M$34*ATD9+((ATE9-$M$34*ATD9)^2+4*$M$34*ATD8^2)^0.5)/(2*ATD8) -> 1.235731484 | ATG1: =(ATH9-$M$34*ATG9+((ATH9-$M$34*ATG9)^2+4*$M$34*ATG8^2)^0.5)/(2*ATG8) -> 1.173384872 | ATJ1: =(ATK9-$M$34*ATJ9+((ATK9-$M$34*ATJ9)^2+4*$M$34*ATJ8^2)^0.5)/(2*ATJ8) -> 1.309127608 | ATM1: =(ATN9-$M$34*ATM9+((ATN9-$M$34*ATM9)^2+4*$M$34*ATM8^2)^0.5)/(2*ATM8) -> 1.246910799 | ATP1: =(ATQ9-$M$34*ATP9+((ATQ9-$M$34*ATP9)^2+4*$M$34*ATP8^2)^0.5)/(2*ATP8) -> 1.188384618 | ATS1: =(ATT9-$M$34*ATS9+((ATT9-$M$34*ATS9)^2+4*$M$34*ATS8^2)^0.5)/(2*ATS8) -> 0.9432653357 | ATV1: =(ATW9-$M$34*ATV9+((ATW9-$M$34*ATV9)^2+4*$M$34*ATV8^2)^0.5)/(2*ATV8) -> 1.443984935 | ATY1: =(ATZ9-$M$34*ATY9+((ATZ9-$M$34*ATY9)^2+4*$M$34*ATY8^2)^0.5)/(2*ATY8) -> 1.0520012 | AUB1: =(AUC9-$M$34*AUB9+((AUC9-$M$34*AUB9)^2+4*$M$34*AUB8^2)^0.5)/(2*AUB8) -> 1.164089367 | AUE1: =(AUF9-$M$34*AUE9+((AUF9-$M$34*AUE9)^2+4*$M$34*AUE8^2)^0.5)/(2*AUE8) -> 1.143333937 | AUH1: =(AUI9-$M$34*AUH9+((AUI9-$M$34*AUH9)^2+4*$M$34*AUH8^2)^0.5)/(2*AUH8) -> 1.232676272 | AUK1: =(AUL9-$M$34*AUK9+((AUL9-$M$34*AUK9)^2+4*$M$34*AUK8^2)^0.5)/(2*AUK8) -> 1.048681859 | AUN1: =(AUO9-$M$34*AUN9+((AUO9-$M$34*AUN9)^2+4*$M$34*AUN8^2)^0.5)/(2*AUN8) -> 1.051665211 | AUQ1: =(AUR9-$M$34*AUQ9+((AUR9-$M$34*AUQ9)^2+4*$M$34*AUQ8^2)^0.5)/(2*AUQ8) -> 1.031791541 | AUT1: =(AUU9-$M$34*AUT9+((AUU9-$M$34*AUT9)^2+4*$M$34*AUT8^2)^0.5)/(2*AUT8) -> 0.9918631726 | AUW1: =(AUX9-$M$34*AUW9+((AUX9-$M$34*AUW9)^2+4*$M$34*AUW8^2)^0.5)/(2*AUW8) -> 1.211686733 | AUZ1: =(AVA9-$M$34*AUZ9+((AVA9-$M$34*AUZ9)^2+4*$M$34*AUZ8^2)^0.5)/(2*AUZ8) -> 1.024117995 | AVC1: =(AVD9-$M$34*AVC9+((AVD9-$M$34*AVC9)^2+4*$M$34*AVC8^2)^0.5)/(2*AVC8) -> 1.095721606 | AVF1: =(AVG9-$M$34*AVF9+((AVG9-$M$34*AVF9)^2+4*$M$34*AVF8^2)^0.5)/(2*AVF8) -> 0.9621054398 | AVI1: =(AVJ9-$M$34*AVI9+((AVJ9-$M$34*AVI9)^2+4*$M$34*AVI8^2)^0.5)/(2*AVI8) -> 1.424426197 | AVL1: =(AVM9-$M$34*AVL9+((AVM9-$M$34*AVL9)^2+4*$M$34*AVL8^2)^0.5)/(2*AVL8) -> 0.9621408805 | AVO1: =(AVP9-$M$34*AVO9+((AVP9-$M$34*AVO9)^2+4*$M$34*AVO8^2)^0.5)/(2*AVO8) -> 1.207353265 | AVR1: =(AVS9-$M$34*AVR9+((AVS9-$M$34*AVR9)^2+4*$M$34*AVR8^2)^0.5)/(2*AVR8) -> 1.179040348 | AVU1: =(AVV9-$M$34*AVU9+((AVV9-$M$34*AVU9)^2+4*$M$34*AVU8^2)^0.5)/(2*AVU8) -> 1.051727978 | AVX1: =(AVY9-$M$34*AVX9+((AVY9-$M$34*AVX9)^2+4*$M$34*AVX8^2)^0.5)/(2*AVX8) -> 1.197578431 | AWA1: =(AWB9-$M$34*AWA9+((AWB9-$M$34*AWA9)^2+4*$M$34*AWA8^2)^0.5)/(2*AWA8) -> 1.479132196 | AWD1: =(AWE9-$M$34*AWD9+((AWE9-$M$34*AWD9)^2+4*$M$34*AWD8^2)^0.5)/(2*AWD8) -> 1.287778959 | AWG1: =(AWH9-$M$34*AWG9+((AWH9-$M$34*AWG9)^2+4*$M$34*AWG8^2)^0.5)/(2*AWG8) -> 1.281803114 | AWJ1: =(AWK9-$M$34*AWJ9+((AWK9-$M$34*AWJ9)^2+4*$M$34*AWJ8^2)^0.5)/(2*AWJ8) -> 1.235571733 | AWM1: =(AWN9-$M$34*AWM9+((AWN9-$M$34*AWM9)^2+4*$M$34*AWM8^2)^0.5)/(2*AWM8) -> 1.161583204 | AWP1: =(AWQ9-$M$34*AWP9+((AWQ9-$M$34*AWP9)^2+4*$M$34*AWP8^2)^0.5)/(2*AWP8) -> 1.233498417 | AWS1: =(AWT9-$M$34*AWS9+((AWT9-$M$34*AWS9)^2+4*$M$34*AWS8^2)^0.5)/(2*AWS8) -> 0.972034305 | AWV1: =(AWW9-$M$34*AWV9+((AWW9-$M$34*AWV9)^2+4*$M$34*AWV8^2)^0.5)/(2*AWV8) -> 1.238813784 | AWY1: =(AWZ9-$M$34*AWY9+((AWZ9-$M$34*AWY9)^2+4*$M$34*AWY8^2)^0.5)/(2*AWY8) -> 1.024768043 | AXB1: =(AXC9-$M$34*AXB9+((AXC9-$M$34*AXB9)^2+4*$M$34*AXB8^2)^0.5)/(2*AXB8) -> 1.007193554 | AXE1: =(AXF9-$M$34*AXE9+((AXF9-$M$34*AXE9)^2+4*$M$34*AXE8^2)^0.5)/(2*AXE8) -> 1.206246616 | AXH1: =(AXI9-$M$34*AXH9+((AXI9-$M$34*AXH9)^2+4*$M$34*AXH8^2)^0.5)/(2*AXH8) -> 1.186836361 | AXK1: =(AXL9-$M$34*AXK9+((AXL9-$M$34*AXK9)^2+4*$M$34*AXK8^2)^0.5)/(2*AXK8) -> 1.174761003 | AXN1: =(AXO9-$M$34*AXN9+((AXO9-$M$34*AXN9)^2+4*$M$34*AXN8^2)^0.5)/(2*AXN8) -> 1.140033457 | AXQ1: =(AXR9-$M$34*AXQ9+((AXR9-$M$34*AXQ9)^2+4*$M$34*AXQ8^2)^0.5)/(2*AXQ8) -> 1.141403703 | AXT1: =(AXU9-$M$34*AXT9+((AXU9-$M$34*AXT9)^2+4*$M$34*AXT8^2)^0.5)/(2*AXT8) -> 1.151273277 | AXW1: =(AXX9-$M$34*AXW9+((AXX9-$M$34*AXW9)^2+4*$M$34*AXW8^2)^0.5)/(2*AXW8) -> 1.083049337 | AXZ1: =(AYA9-$M$34*AXZ9+((AYA9-$M$34*AXZ9)^2+4*$M$34*AXZ8^2)^0.5)/(2*AXZ8) -> 1.158096001 | AYC1: =(AYD9-$M$34*AYC9+((AYD9-$M$34*AYC9)^2+4*$M$34*AYC8^2)^0.5)/(2*AYC8) -> 1.252908369 | AYF1: =(AYG9-$M$34*AYF9+((AYG9-$M$34*AYF9)^2+4*$M$34*AYF8^2)^0.5)/(2*AYF8) -> 0.8550573139 | AYI1: =(AYJ9-$M$34*AYI9+((AYJ9-$M$34*AYI9)^2+4*$M$34*AYI8^2)^0.5)/(2*AYI8) -> 1.15478581 | AYL1: =(AYM9-$M$34*AYL9+((AYM9-$M$34*AYL9)^2+4*$M$34*AYL8^2)^0.5)/(2*AYL8) -> 1.027823527 | AYO1: =(AYP9-$M$34*AYO9+((AYP9-$M$34*AYO9)^2+4*$M$34*AYO8^2)^0.5)/(2*AYO8) -> 1.170829109 | AYR1: =(AYS9-$M$34*AYR9+((AYS9-$M$34*AYR9)^2+4*$M$34*AYR8^2)^0.5)/(2*AYR8) -> 0.9896058257 | AYU1: =(AYV9-$M$34*AYU9+((AYV9-$M$34*AYU9)^2+4*$M$34*AYU8^2)^0.5)/(2*AYU8) -> 1.169051418 | AYX1: =(AYY9-$M$34*AYX9+((AYY9-$M$34*AYX9)^2+4*$M$34*AYX8^2)^0.5)/(2*AYX8) -> 1.324381164 | AZA1: =(AZB9-$M$34*AZA9+((AZB9-$M$34*AZA9)^2+4*$M$34*AZA8^2)^0.5)/(2*AZA8) -> 0.9324553753 | AZD1: =(AZE9-$M$34*AZD9+((AZE9-$M$34*AZD9)^2+4*$M$34*AZD8^2)^0.5)/(2*AZD8) -> 1.077530522 | AZG1: =(AZH9-$M$34*AZG9+((AZH9-$M$34*AZG9)^2+4*$M$34*AZG8^2)^0.5)/(2*AZG8) -> 1.062283947 | AZJ1: =(AZK9-$M$34*AZJ9+((AZK9-$M$34*AZJ9)^2+4*$M$34*AZJ8^2)^0.5)/(2*AZJ8) -> 1.215324646 | AZM1: =(AZN9-$M$34*AZM9+((AZN9-$M$34*AZM9)^2+4*$M$34*AZM8^2)^0.5)/(2*AZM8) -> 1.077486085 | AZP1: =(AZQ9-$M$34*AZP9+((AZQ9-$M$34*AZP9)^2+4*$M$34*AZP8^2)^0.5)/(2*AZP8) -> 1.285800493 | AZS1: =(AZT9-$M$34*AZS9+((AZT9-$M$34*AZS9)^2+4*$M$34*AZS8^2)^0.5)/(2*AZS8) -> 1.18094639 | AZV1: =(AZW9-$M$34*AZV9+((AZW9-$M$34*AZV9)^2+4*$M$34*AZV8^2)^0.5)/(2*AZV8) -> 1.072006239 | AZY1: =(AZZ9-$M$34*AZY9+((AZZ9-$M$34*AZY9)^2+4*$M$34*AZY8^2)^0.5)/(2*AZY8) -> 1.203422024 | BAB1: =(BAC9-$M$34*BAB9+((BAC9-$M$34*BAB9)^2+4*$M$34*BAB8^2)^0.5)/(2*BAB8) -> 1.184553793 | BAE1: =(BAF9-$M$34*BAE9+((BAF9-$M$34*BAE9)^2+4*$M$34*BAE8^2)^0.5)/(2*BAE8) -> 1.210181896 | BAH1: =(BAI9-$M$34*BAH9+((BAI9-$M$34*BAH9)^2+4*$M$34*BAH8^2)^0.5)/(2*BAH8) -> 0.9833887968 | BAK1: =(BAL9-$M$34*BAK9+((BAL9-$M$34*BAK9)^2+4*$M$34*BAK8^2)^0.5)/(2*BAK8) -> 1.103111136 | BAN1: =(BAO9-$M$34*BAN9+((BAO9-$M$34*BAN9)^2+4*$M$34*BAN8^2)^0.5)/(2*BAN8) -> 1.211676169 | BAQ1: =(BAR9-$M$34*BAQ9+((BAR9-$M$34*BAQ9)^2+4*$M$34*BAQ8^2)^0.5)/(2*BAQ8) -> 1.444437768 | BAT1: =(BAU9-$M$34*BAT9+((BAU9-$M$34*BAT9)^2+4*$M$34*BAT8^2)^0.5)/(2*BAT8) -> 1.191946482 | BAW1: =(BAX9-$M$34*BAW9+((BAX9-$M$34*BAW9)^2+4*$M$34*BAW8^2)^0.5)/(2*BAW8) -> 0.9828004702 | BAZ1: =(BBA9-$M$34*BAZ9+((BBA9-$M$34*BAZ9)^2+4*$M$34*BAZ8^2)^0.5)/(2*BAZ8) -> 1.188695597 | BBC1: =(BBD9-$M$34*BBC9+((BBD9-$M$34*BBC9)^2+4*$M$34*BBC8^2)^0.5)/(2*BBC8) -> 1.024275575 | BBF1: =(BBG9-$M$34*BBF9+((BBG9-$M$34*BBF9)^2+4*$M$34*BBF8^2)^0.5)/(2*BBF8) -> 1.037074497 | BBI1: =(BBJ9-$M$34*BBI9+((BBJ9-$M$34*BBI9)^2+4*$M$34*BBI8^2)^0.5)/(2*BBI8) -> 1.020867078 | BBL1: =(BBM9-$M$34*BBL9+((BBM9-$M$34*BBL9)^2+4*$M$34*BBL8^2)^0.5)/(2*BBL8) -> 1.13794609 | BBO1: =(BBP9-$M$34*BBO9+((BBP9-$M$34*BBO9)^2+4*$M$34*BBO8^2)^0.5)/(2*BBO8) -> 1.178788114 | BBR1: =(BBS9-$M$34*BBR9+((BBS9-$M$34*BBR9)^2+4*$M$34*BBR8^2)^0.5)/(2*BBR8) -> 1.40026624 | BBU1: =(BBV9-$M$34*BBU9+((BBV9-$M$34*BBU9)^2+4*$M$34*BBU8^2)^0.5)/(2*BBU8) -> 0.9450426141 | BBX1: =(BBY9-$M$34*BBX9+((BBY9-$M$34*BBX9)^2+4*$M$34*BBX8^2)^0.5)/(2*BBX8) -> 1.220452371 | BCA1: =(BCB9-$M$34*BCA9+((BCB9-$M$34*BCA9)^2+4*$M$34*BCA8^2)^0.5)/(2*BCA8) -> 1.225324837 | BCD1: =(BCE9-$M$34*BCD9+((BCE9-$M$34*BCD9)^2+4*$M$34*BCD8^2)^0.5)/(2*BCD8) -> 1.119652533 | BCG1: =(BCH9-$M$34*BCG9+((BCH9-$M$34*BCG9)^2+4*$M$34*BCG8^2)^0.5)/(2*BCG8) -> 1.120533609 | BCJ1: =(BCK9-$M$34*BCJ9+((BCK9-$M$34*BCJ9)^2+4*$M$34*BCJ8^2)^0.5)/(2*BCJ8) -> 1.059742204 | BCM1: =(BCN9-$M$34*BCM9+((BCN9-$M$34*BCM9)^2+4*$M$34*BCM8^2)^0.5)/(2*BCM8) -> 1.274800274 | BCP1: =(BCQ9-$M$34*BCP9+((BCQ9-$M$34*BCP9)^2+4*$M$34*BCP8^2)^0.5)/(2*BCP8) -> 1.451674376 | BCS1: =(BCT9-$M$34*BCS9+((BCT9-$M$34*BCS9)^2+4*$M$34*BCS8^2)^0.5)/(2*BCS8) -> 1.405767835 | BCV1: =(BCW9-$M$34*BCV9+((BCW9-$M$34*BCV9)^2+4*$M$34*BCV8^2)^0.5)/(2*BCV8) -> 1.379692402 | BCY1: =(BCZ9-$M$34*BCY9+((BCZ9-$M$34*BCY9)^2+4*$M$34*BCY8^2)^0.5)/(2*BCY8) -> 1.109516759 | BDB1: =(BDC9-$M$34*BDB9+((BDC9-$M$34*BDB9)^2+4*$M$34*BDB8^2)^0.5)/(2*BDB8) -> 0.9972549778 | BDE1: =(BDF9-$M$34*BDE9+((BDF9-$M$34*BDE9)^2+4*$M$34*BDE8^2)^0.5)/(2*BDE8) -> 0.9291961301 | BDH1: =(BDI9-$M$34*BDH9+((BDI9-$M$34*BDH9)^2+4*$M$34*BDH8^2)^0.5)/(2*BDH8) -> 0.9769292501 | BDK1: =(BDL9-$M$34*BDK9+((BDL9-$M$34*BDK9)^2+4*$M$34*BDK8^2)^0.5)/(2*BDK8) -> 1.03780854 | BDN1: =(BDO9-$M$34*BDN9+((BDO9-$M$34*BDN9)^2+4*$M$34*BDN8^2)^0.5)/(2*BDN8) -> 1.331312998 | BDQ1: =(BDR9-$M$34*BDQ9+((BDR9-$M$34*BDQ9)^2+4*$M$34*BDQ8^2)^0.5)/(2*BDQ8) -> 1.031274736 | BDT1: =(BDU9-$M$34*BDT9+((BDU9-$M$34*BDT9)^2+4*$M$34*BDT8^2)^0.5)/(2*BDT8) -> 1.075359243 | BDW1: =(BDX9-$M$34*BDW9+((BDX9-$M$34*BDW9)^2+4*$M$34*BDW8^2)^0.5)/(2*BDW8) -> 1.345097749 | BDZ1: =(BEA9-$M$34*BDZ9+((BEA9-$M$34*BDZ9)^2+4*$M$34*BDZ8^2)^0.5)/(2*BDZ8) -> 0.9934158738 | BEC1: =(BED9-$M$34*BEC9+((BED9-$M$34*BEC9)^2+4*$M$34*BEC8^2)^0.5)/(2*BEC8) -> 1.204986315 | BEF1: =(BEG9-$M$34*BEF9+((BEG9-$M$34*BEF9)^2+4*$M$34*BEF8^2)^0.5)/(2*BEF8) -> 1.323383249 | BEI1: =(BEJ9-$M$34*BEI9+((BEJ9-$M$34*BEI9)^2+4*$M$34*BEI8^2)^0.5)/(2*BEI8) -> 1.081376516 | BEL1: =(BEM9-$M$34*BEL9+((BEM9-$M$34*BEL9)^2+4*$M$34*BEL8^2)^0.5)/(2*BEL8) -> 1.040550485 | BEO1: =(BEP9-$M$34*BEO9+((BEP9-$M$34*BEO9)^2+4*$M$34*BEO8^2)^0.5)/(2*BEO8) -> 0.9805126154 | BER1: =(BES9-$M$34*BER9+((BES9-$M$34*BER9)^2+4*$M$34*BER8^2)^0.5)/(2*BER8) -> 1.19541775 | BEU1: =(BEV9-$M$34*BEU9+((BEV9-$M$34*BEU9)^2+4*$M$34*BEU8^2)^0.5)/(2*BEU8) -> 1.112521973 | BEX1: =(BEY9-$M$34*BEX9+((BEY9-$M$34*BEX9)^2+4*$M$34*BEX8^2)^0.5)/(2*BEX8) -> 1.141251309 | BFA1: =(BFB9-$M$34*BFA9+((BFB9-$M$34*BFA9)^2+4*$M$34*BFA8^2)^0.5)/(2*BFA8) -> 1.208875701 | BFD1: =(BFE9-$M$34*BFD9+((BFE9-$M$34*BFD9)^2+4*$M$34*BFD8^2)^0.5)/(2*BFD8) -> 1.318266402 | BFG1: =(BFH9-$M$34*BFG9+((BFH9-$M$34*BFG9)^2+4*$M$34*BFG8^2)^0.5)/(2*BFG8) -> 1.00713864 | BFJ1: =(BFK9-$M$34*BFJ9+((BFK9-$M$34*BFJ9)^2+4*$M$34*BFJ8^2)^0.5)/(2*BFJ8) -> 1.026266832 | BFM1: =(BFN9-$M$34*BFM9+((BFN9-$M$34*BFM9)^2+4*$M$34*BFM8^2)^0.5)/(2*BFM8) -> 0.9456622549 | BFP1: =(BFQ9-$M$34*BFP9+((BFQ9-$M$34*BFP9)^2+4*$M$34*BFP8^2)^0.5)/(2*BFP8) -> 1.055155245 | BFS1: =(BFT9-$M$34*BFS9+((BFT9-$M$34*BFS9)^2+4*$M$34*BFS8^2)^0.5)/(2*BFS8) -> 0.9647018382 | BFV1: =(BFW9-$M$34*BFV9+((BFW9-$M$34*BFV9)^2+4*$M$34*BFV8^2)^0.5)/(2*BFV8) -> 1.140396228 | BFY1: =(BFZ9-$M$34*BFY9+((BFZ9-$M$34*BFY9)^2+4*$M$34*BFY8^2)^0.5)/(2*BFY8) -> 1.077418135 | BGB1: =(BGC9-$M$34*BGB9+((BGC9-$M$34*BGB9)^2+4*$M$34*BGB8^2)^0.5)/(2*BGB8) -> 1.273955113 | BGE1: =(BGF9-$M$34*BGE9+((BGF9-$M$34*BGE9)^2+4*$M$34*BGE8^2)^0.5)/(2*BGE8) -> 1.213359394 | BGH1: =(BGI9-$M$34*BGH9+((BGI9-$M$34*BGH9)^2+4*$M$34*BGH8^2)^0.5)/(2*BGH8) -> 1.150710279 | BGK1: =(BGL9-$M$34*BGK9+((BGL9-$M$34*BGK9)^2+4*$M$34*BGK8^2)^0.5)/(2*BGK8) -> 1.12396611 | BGN1: =(BGO9-$M$34*BGN9+((BGO9-$M$34*BGN9)^2+4*$M$34*BGN8^2)^0.5)/(2*BGN8) -> 0.8557661005 | BGQ1: =(BGR9-$M$34*BGQ9+((BGR9-$M$34*BGQ9)^2+4*$M$34*BGQ8^2)^0.5)/(2*BGQ8) -> 1.035938869 | BGT1: =(BGU9-$M$34*BGT9+((BGU9-$M$34*BGT9)^2+4*$M$34*BGT8^2)^0.5)/(2*BGT8) -> 1.131758337
D2: データ入力の最大は500まで | M2: 群1(1回目） | O2: 群２(2回目） | AD2: 等確率楕円用データ | AI2: 等確率楕円用データ | AO2: Sｘｘ：= | AP2: =DEVSQ(AN5:AN1304) -> 10367.52 | AQ2: =DEVSQ(AP5:AP504) ->  | AY2: -0.1872451806 | AZ2: 0.7263662675 | BA2: Deming a= | BB2: =BC7-BB1*BB7 -> 0.5406279128 | BE2: =BF7-BE1*BE7 -> 0.5022430393 | BH2: =BI7-BH1*BH7 -> 0.5930070834 | BK2: =BL7-BK1*BK7 -> 0.0201978398 | BN2: =BO7-BN1*BN7 -> 0.6770398813 | BQ2: =BR7-BQ1*BQ7 -> 0.3969616187 | BT2: =BU7-BT1*BT7 -> -0.07524154408 | BW2: =BX7-BW1*BW7 -> 0.1720167327 | BZ2: =CA7-BZ1*BZ7 -> 0.5526860791 | CC2: =CD7-CC1*CC7 -> 0.3372611695 | CF2: =CG7-CF1*CF7 -> 0.2125136896 | CI2: =CJ7-CI1*CI7 -> 0.2734945723 | CL2: =CM7-CL1*CL7 -> 0.4497790815 | CO2: =CP7-CO1*CO7 -> 0.5740458375 | CR2: =CS7-CR1*CR7 -> 0.5601224694 | CU2: =CV7-CU1*CU7 -> 0.2922723192 | CX2: =CY7-CX1*CX7 -> 0.5396599506 | DA2: =DB7-DA1*DA7 -> -0.07374479241 | DD2: =DE7-DD1*DD7 -> 0.5039296333 | DG2: =DH7-DG1*DG7 -> 0.1823645502 | DJ2: =DK7-DJ1*DJ7 -> 0.218577253 | DM2: =DN7-DM1*DM7 -> 0.2568404578 | DP2: =DQ7-DP1*DP7 -> 0.05827958749 | DS2: =DT7-DS1*DS7 -> 0.2630839565 | DV2: =DW7-DV1*DV7 -> 0.3734234568 | DY2: =DZ7-DY1*DY7 -> 0.411105619 | EB2: =EC7-EB1*EB7 -> 0.4985737919 | EE2: =EF7-EE1*EE7 -> -0.339920345 | EH2: =EI7-EH1*EH7 -> 0.4951207198 | EK2: =EL7-EK1*EK7 -> 0.3924640207 | EN2: =EO7-EN1*EN7 -> 0.03921477552 | EQ2: =ER7-EQ1*EQ7 -> 0.1682864744 | ET2: =EU7-ET1*ET7 -> 0.03751679115 | EW2: =EX7-EW1*EW7 -> 0.4929307226 | EZ2: =FA7-EZ1*EZ7 -> 0.3307773236 | FC2: =FD7-FC1*FC7 -> 0.5856747036 | FF2: =FG7-FF1*FF7 -> 0.1139934677 | FI2: =FJ7-FI1*FI7 -> 0.4846203831 | FL2: =FM7-FL1*FL7 -> -0.02565971933 | FO2: =FP7-FO1*FO7 -> 0.4095966593 | FR2: =FS7-FR1*FR7 -> 0.2895381663 | FU2: =FV7-FU1*FU7 -> 0.3351064571 | FX2: =FY7-FX1*FX7 -> -0.2743343589 | GA2: =GB7-GA1*GA7 -> 0.8127557419 | GD2: =GE7-GD1*GD7 -> 0.5178809101 | GG2: =GH7-GG1*GG7 -> 0.4547422865 | GJ2: =GK7-GJ1*GJ7 -> 0.3716439898 | GM2: =GN7-GM1*GM7 -> -0.06064286154 | GP2: =GQ7-GP1*GP7 -> 0.1646194186 | GS2: =GT7-GS1*GS7 -> 0.5226571089 | GV2: =GW7-GV1*GV7 -> 0.3666272046 | GY2: =GZ7-GY1*GY7 -> 0.5872870827 | HB2: =HC7-HB1*HB7 -> 0.4035436451 | HE2: =HF7-HE1*HE7 -> -0.02801198223 | HH2: =HI7-HH1*HH7 -> 0.3559841699 | HK2: =HL7-HK1*HK7 -> 0.2342418414 | HN2: =HO7-HN1*HN7 -> -0.05485632735 | HQ2: =HR7-HQ1*HQ7 -> 0.3376643507 | HT2: =HU7-HT1*HT7 -> 0.7349860613 | HW2: =HX7-HW1*HW7 -> 0.6629530346 | HZ2: =IA7-HZ1*HZ7 -> 0.2937851023 | IC2: =ID7-IC1*IC7 -> -0.0267484325 | IF2: =IG7-IF1*IF7 -> 0.2572459462 | II2: =IJ7-II1*II7 -> 0.3431494718 | IL2: =IM7-IL1*IL7 -> 0.645727192 | IO2: =IP7-IO1*IO7 -> 0.3714813146 | IR2: =IS7-IR1*IR7 -> 0.5076976819 | IU2: =IV7-IU1*IU7 -> 0.1588788165 | IX2: =IY7-IX1*IX7 -> 0.2721509304 | JA2: =JB7-JA1*JA7 -> 0.4600335416 | JD2: =JE7-JD1*JD7 -> 0.1019019018 | JG2: =JH7-JG1*JG7 -> 0.1755247665 | JJ2: =JK7-JJ1*JJ7 -> 0.31458892 | JM2: =JN7-JM1*JM7 -> 0.4197106559 | JP2: =JQ7-JP1*JP7 -> 0.5059267759 | JS2: =JT7-JS1*JS7 -> 0.1356353648 | JV2: =JW7-JV1*JV7 -> 0.3533719085 | JY2: =JZ7-JY1*JY7 -> 0.3514594592 | KB2: =KC7-KB1*KB7 -> 0.4314317912 | KE2: =KF7-KE1*KE7 -> 0.4625428522 | KH2: =KI7-KH1*KH7 -> 0.2527621031 | KK2: =KL7-KK1*KK7 -> 0.1003646569 | KN2: =KO7-KN1*KN7 -> 0.6915742549 | KQ2: =KR7-KQ1*KQ7 -> 0.3034450744 | KT2: =KU7-KT1*KT7 -> 0.2910323987 | KW2: =KX7-KW1*KW7 -> 0.5462141963 | KZ2: =LA7-KZ1*KZ7 -> 0.583790113 | LC2: =LD7-LC1*LC7 -> 0.5719426437 | LF2: =LG7-LF1*LF7 -> 0.4698470054 | LI2: =LJ7-LI1*LI7 -> 0.3272789355 | LL2: =LM7-LL1*LL7 -> 0.6429785284 | LO2: =LP7-LO1*LO7 -> 0.483320011 | LR2: =LS7-LR1*LR7 -> 0.3027064061 | LU2: =LV7-LU1*LU7 -> 0.4822077669 | LX2: =LY7-LX1*LX7 -> 0.4453869247 | MA2: =MB7-MA1*MA7 -> 0.2332928717 | MD2: =ME7-MD1*MD7 -> 0.1259512038 | MG2: =MH7-MG1*MG7 -> 0.4172328004 | MJ2: =MK7-MJ1*MJ7 -> 0.2717923608 | MM2: =MN7-MM1*MM7 -> 0.5019092064 | MP2: =MQ7-MP1*MP7 -> 0.3642497579 | MS2: =MT7-MS1*MS7 -> 0.3737296194 | MV2: =MW7-MV1*MV7 -> 0.2833830642 | MY2: =MZ7-MY1*MY7 -> 0.4972193204 | NB2: =NC7-NB1*NB7 -> 0.2964132744 | NE2: =NF7-NE1*NE7 -> 0.4008436844 | NH2: =NI7-NH1*NH7 -> 0.6590680322 | NK2: =NL7-NK1*NK7 -> 0.5894087071 | NN2: =NO7-NN1*NN7 -> 0.2367897025 | NQ2: =NR7-NQ1*NQ7 -> 0.470810963 | NT2: =NU7-NT1*NT7 -> 0.6370845542 | NW2: =NX7-NW1*NW7 -> 0.3876962466 | NZ2: =OA7-NZ1*NZ7 -> 0.4054694564 | OC2: =OD7-OC1*OC7 -> -0.06578331778 | OF2: =OG7-OF1*OF7 -> 0.3597373111 | OI2: =OJ7-OI1*OI7 -> 0.410575722 | OL2: =OM7-OL1*OL7 -> 0.2429357131 | OO2: =OP7-OO1*OO7 -> 0.3904411795 | OR2: =OS7-OR1*OR7 -> 0.597351539 | OU2: =OV7-OU1*OU7 -> 0.3713377345 | OX2: =OY7-OX1*OX7 -> 0.4804337726 | PA2: =PB7-PA1*PA7 -> 0.4776703062 | PD2: =PE7-PD1*PD7 -> 0.5475421895 | PG2: =PH7-PG1*PG7 -> 0.216448788 | PJ2: =PK7-PJ1*PJ7 -> 0.04755044959 | PM2: =PN7-PM1*PM7 -> 0.4457058335 | PP2: =PQ7-PP1*PP7 -> 0.4420952475 | PS2: =PT7-PS1*PS7 -> 0.4185839655 | PV2: =PW7-PV1*PV7 -> 0.6471039517 | PY2: =PZ7-PY1*PY7 -> -0.07666655802 | QB2: =QC7-QB1*QB7 -> -0.002767493891 | QE2: =QF7-QE1*QE7 -> 0.4911157818 | QH2: =QI7-QH1*QH7 -> 0.3871260491 | QK2: =QL7-QK1*QK7 -> 0.5335141834 | QN2: =QO7-QN1*QN7 -> -0.3417093808 | QQ2: =QR7-QQ1*QQ7 -> 0.2580071529 | QT2: =QU7-QT1*QT7 -> 0.5971897429 | QW2: =QX7-QW1*QW7 -> 0.1893969697 | QZ2: =RA7-QZ1*QZ7 -> 0.5034648688 | RC2: =RD7-RC1*RC7 -> 0.3771998102 | RF2: =RG7-RF1*RF7 -> 0.7263662675 | RI2: =RJ7-RI1*RI7 -> 0.3973405381 | RL2: =RM7-RL1*RL7 -> 0.1003347799 | RO2: =RP7-RO1*RO7 -> 0.7108004875 | RR2: =RS7-RR1*RR7 -> 0.4838109201 | RU2: =RV7-RU1*RU7 -> 0.3193680991 | RX2: =RY7-RX1*RX7 -> -0.002622663749 | SA2: =SB7-SA1*SA7 -> 0.334410119 | SD2: =SE7-SD1*SD7 -> 0.4139253497 | SG2: =SH7-SG1*SG7 -> 0.3399381134 | SJ2: =SK7-SJ1*SJ7 -> 0.4783066693 | SM2: =SN7-SM1*SM7 -> 0.2012234719 | SP2: =SQ7-SP1*SP7 -> 0.3620158559 | SS2: =ST7-SS1*SS7 -> 0.7642622844 | SV2: =SW7-SV1*SV7 -> 0.3814157244 | SY2: =SZ7-SY1*SY7 -> 0.2832280321 | TB2: =TC7-TB1*TB7 -> 0.5968573489 | TE2: =TF7-TE1*TE7 -> 0.5150206474 | TH2: =TI7-TH1*TH7 -> 0.6098350478 | TK2: =TL7-TK1*TK7 -> 0.328553167 | TN2: =TO7-TN1*TN7 -> 0.143386704 | TQ2: =TR7-TQ1*TQ7 -> 0.07316922143 | TT2: =TU7-TT1*TT7 -> 0.330308844 | TW2: =TX7-TW1*TW7 -> 0.2188806147 | TZ2: =UA7-TZ1*TZ7 -> 0.6164100698 | UC2: =UD7-UC1*UC7 -> 0.301053637 | UF2: =UG7-UF1*UF7 -> 0.04684318806 | UI2: =UJ7-UI1*UI7 -> 0.4266642795 | UL2: =UM7-UL1*UL7 -> 0.2111615424 | UO2: =UP7-UO1*UO7 -> 0.2181410002 | UR2: =US7-UR1*UR7 -> 0.7546057105 | UU2: =UV7-UU1*UU7 -> 0.573345298 | UX2: =UY7-UX1*UX7 -> 0.2467653258 | VA2: =VB7-VA1*VA7 -> 0.06050866024 | VD2: =VE7-VD1*VD7 -> -0.08566769279 | VG2: =VH7-VG1*VG7 -> 0.2184377937 | VJ2: =VK7-VJ1*VJ7 -> -0.03405753697 | VM2: =VN7-VM1*VM7 -> -0.0001301307278 | VP2: =VQ7-VP1*VP7 -> 0.5112530618 | VS2: =VT7-VS1*VS7 -> 0.2476979596 | VV2: =VW7-VV1*VV7 -> 0.3216064207 | VY2: =VZ7-VY1*VY7 -> 0.1874964324 | WB2: =WC7-WB1*WB7 -> 0.4875818016 | WE2: =WF7-WE1*WE7 -> -0.5602545982 | WH2: =WI7-WH1*WH7 -> -0.04414398355 | WK2: =WL7-WK1*WK7 -> 0.3858326702 | WN2: =WO7-WN1*WN7 -> 0.3914184373 | WQ2: =WR7-WQ1*WQ7 -> 0.2038759967 | WT2: =WU7-WT1*WT7 -> -0.1934636996 | WW2: =WX7-WW1*WW7 -> 0.04371824558 | WZ2: =XA7-WZ1*WZ7 -> 0.2710586367 | XC2: =XD7-XC1*XC7 -> 0.3639090067 | XF2: =XG7-XF1*XF7 -> 0.5685523759 | XI2: =XJ7-XI1*XI7 -> 0.5324602741 | XL2: =XM7-XL1*XL7 -> 0.5478553773 | XO2: =XP7-XO1*XO7 -> 0.335746935 | XR2: =XS7-XR1*XR7 -> 0.4184163977 | XU2: =XV7-XU1*XU7 -> 0.2003097807 | XX2: =XY7-XX1*XX7 -> 0.2068130452 | YA2: =YB7-YA1*YA7 -> 0.587593834 | YD2: =YE7-YD1*YD7 -> -0.02844932241 | YG2: =YH7-YG1*YG7 -> 0.6752724208 | YJ2: =YK7-YJ1*YJ7 -> 0.3027145889 | YM2: =YN7-YM1*YM7 -> 0.2420090381 | YP2: =YQ7-YP1*YP7 -> 0.5404668985 | YS2: =YT7-YS1*YS7 -> 0.5155800569 | YV2: =YW7-YV1*YV7 -> 0.7321668247 | YY2: =YZ7-YY1*YY7 -> 0.2710342201 | ZB2: =ZC7-ZB1*ZB7 -> -0.09739852322 | ZE2: =ZF7-ZE1*ZE7 -> 0.2942636321 | ZH2: =ZI7-ZH1*ZH7 -> 0.5344379023 | ZK2: =ZL7-ZK1*ZK7 -> 0.09504527793 | ZN2: =ZO7-ZN1*ZN7 -> 0.1026315913 | ZQ2: =ZR7-ZQ1*ZQ7 -> 0.4395957687 | ZT2: =ZU7-ZT1*ZT7 -> 0.6057352318 | ZW2: =ZX7-ZW1*ZW7 -> 0.5581051736 | ZZ2: =AAA7-ZZ1*ZZ7 -> 0.3936695762 | AAC2: =AAD7-AAC1*AAC7 -> 0.2645806976 | AAF2: =AAG7-AAF1*AAF7 -> 0.6406723372 | AAI2: =AAJ7-AAI1*AAI7 -> 0.07312461302 | AAL2: =AAM7-AAL1*AAL7 -> 0.2307683483 | AAO2: =AAP7-AAO1*AAO7 -> 0.6363752931 | AAR2: =AAS7-AAR1*AAR7 -> 0.07852229686 | AAU2: =AAV7-AAU1*AAU7 -> 0.648994941 | AAX2: =AAY7-AAX1*AAX7 -> 0.4404415385 | ABA2: =ABB7-ABA1*ABA7 -> 0.1595669962 | ABD2: =ABE7-ABD1*ABD7 -> 0.140636652 | ABG2: =ABH7-ABG1*ABG7 -> 0.4249846173 | ABJ2: =ABK7-ABJ1*ABJ7 -> 0.4156070182 | ABM2: =ABN7-ABM1*ABM7 -> 0.6275840874 | ABP2: =ABQ7-ABP1*ABP7 -> 0.4501421992 | ABS2: =ABT7-ABS1*ABS7 -> 0.1472233517 | ABV2: =ABW7-ABV1*ABV7 -> 0.09461891305 | ABY2: =ABZ7-ABY1*ABY7 -> 0.1930765269 | ACB2: =ACC7-ACB1*ACB7 -> 0.1118973522 | ACE2: =ACF7-ACE1*ACE7 -> 0.5974921018 | ACH2: =ACI7-ACH1*ACH7 -> 0.3427715399 | ACK2: =ACL7-ACK1*ACK7 -> 0.1923513692 | ACN2: =ACO7-ACN1*ACN7 -> 0.1738501768 | ACQ2: =ACR7-ACQ1*ACQ7 -> 0.3488328569 | ACT2: =ACU7-ACT1*ACT7 -> 0.3780926612 | ACW2: =ACX7-ACW1*ACW7 -> 0.5588566399 | ACZ2: =ADA7-ACZ1*ACZ7 -> 0.3862000827 | ADC2: =ADD7-ADC1*ADC7 -> 0.3593515829 | ADF2: =ADG7-ADF1*ADF7 -> 0.1574983698 | ADI2: =ADJ7-ADI1*ADI7 -> 0.2941003018 | ADL2: =ADM7-ADL1*ADL7 -> 0.2822052733 | ADO2: =ADP7-ADO1*ADO7 -> 0.5537294473 | ADR2: =ADS7-ADR1*ADR7 -> 0.3428260308 | ADU2: =ADV7-ADU1*ADU7 -> 0.3701593236 | ADX2: =ADY7-ADX1*ADX7 -> 0.4354203524 | AEA2: =AEB7-AEA1*AEA7 -> 0.3196228282 | AED2: =AEE7-AED1*AED7 -> 0.2688723175 | AEG2: =AEH7-AEG1*AEG7 -> 0.7945264794 | AEJ2: =AEK7-AEJ1*AEJ7 -> 0.349617737 | AEM2: =AEN7-AEM1*AEM7 -> 0.5277226704 | AEP2: =AEQ7-AEP1*AEP7 -> 0.3819264696 | AES2: =AET7-AES1*AES7 -> 0.5474483341 | AEV2: =AEW7-AEV1*AEV7 -> 0.3356649225 | AEY2: =AEZ7-AEY1*AEY7 -> 0.4014512757 | AFB2: =AFC7-AFB1*AFB7 -> 0.2185515485 | AFE2: =AFF7-AFE1*AFE7 -> 0.4236071128 | AFH2: =AFI7-AFH1*AFH7 -> 0.2560676402 | AFK2: =AFL7-AFK1*AFK7 -> 0.6511679141 | AFN2: =AFO7-AFN1*AFN7 -> 0.3447356689 | AFQ2: =AFR7-AFQ1*AFQ7 -> 0.5492841329 | AFT2: =AFU7-AFT1*AFT7 -> 0.3947963537 | AFW2: =AFX7-AFW1*AFW7 -> 0.2846198427 | AFZ2: =AGA7-AFZ1*AFZ7 -> 0.4121737842 | AGC2: =AGD7-AGC1*AGC7 -> 0.2076115909 | AGF2: =AGG7-AGF1*AGF7 -> 0.2541916806 | AGI2: =AGJ7-AGI1*AGI7 -> 0.4503456805 | AGL2: =AGM7-AGL1*AGL7 -> 0.3510418186 | AGO2: =AGP7-AGO1*AGO7 -> 0.1097093962 | AGR2: =AGS7-AGR1*AGR7 -> 0.4868541543 | AGU2: =AGV7-AGU1*AGU7 -> -0.1628059174 | AGX2: =AGY7-AGX1*AGX7 -> 0.1939164955 | AHA2: =AHB7-AHA1*AHA7 -> 0.5950883062 | AHD2: =AHE7-AHD1*AHD7 -> 0.2251082942 | AHG2: =AHH7-AHG1*AHG7 -> 0.1847697718 | AHJ2: =AHK7-AHJ1*AHJ7 -> 0.3304417944 | AHM2: =AHN7-AHM1*AHM7 -> 0.4838722201 | AHP2: =AHQ7-AHP1*AHP7 -> 0.4978947437 | AHS2: =AHT7-AHS1*AHS7 -> 0.5254817563 | AHV2: =AHW7-AHV1*AHV7 -> 0.1483895024 | AHY2: =AHZ7-AHY1*AHY7 -> 0.2398278749 | AIB2: =AIC7-AIB1*AIB7 -> 0.3599090963 | AIE2: =AIF7-AIE1*AIE7 -> 0.7150989168 | AIH2: =AII7-AIH1*AIH7 -> 0.1073679801 | AIK2: =AIL7-AIK1*AIK7 -> 0.257070325 | AIN2: =AIO7-AIN1*AIN7 -> 0.1378856297 | AIQ2: =AIR7-AIQ1*AIQ7 -> 0.08423941928 | AIT2: =AIU7-AIT1*AIT7 -> 0.3037130922 | AIW2: =AIX7-AIW1*AIW7 -> -0.03551597071 | AIZ2: =AJA7-AIZ1*AIZ7 -> 0.2076439092 | AJC2: =AJD7-AJC1*AJC7 -> 0.3484144314 | AJF2: =AJG7-AJF1*AJF7 -> 0.3787894992 | AJI2: =AJJ7-AJI1*AJI7 -> 0.4072470171 | AJL2: =AJM7-AJL1*AJL7 -> 0.5225873617 | AJO2: =AJP7-AJO1*AJO7 -> 0.06960562225 | AJR2: =AJS7-AJR1*AJR7 -> 0.5108940418 | AJU2: =AJV7-AJU1*AJU7 -> 0.4903831928 | AJX2: =AJY7-AJX1*AJX7 -> 0.1993439983 | AKA2: =AKB7-AKA1*AKA7 -> -0.02497352044 | AKD2: =AKE7-AKD1*AKD7 -> 0.399703513 | AKG2: =AKH7-AKG1*AKG7 -> -0.03560874687 | AKJ2: =AKK7-AKJ1*AKJ7 -> 0.4320032148 | AKM2: =AKN7-AKM1*AKM7 -> 0.5127373064 | AKP2: =AKQ7-AKP1*AKP7 -> 0.6851229097 | AKS2: =AKT7-AKS1*AKS7 -> 0.1230142078 | AKV2: =AKW7-AKV1*AKV7 -> -0.2745241068 | AKY2: =AKZ7-AKY1*AKY7 -> 0.271428485 | ALB2: =ALC7-ALB1*ALB7 -> 0.5741095653 | ALE2: =ALF7-ALE1*ALE7 -> 0.2454033938 | ALH2: =ALI7-ALH1*ALH7 -> -0.009374063255 | ALK2: =ALL7-ALK1*ALK7 -> 0.3022280979 | ALN2: =ALO7-ALN1*ALN7 -> 0.3683989704 | ALQ2: =ALR7-ALQ1*ALQ7 -> 0.205068662 | ALT2: =ALU7-ALT1*ALT7 -> 0.2972120695 | ALW2: =ALX7-ALW1*ALW7 -> 0.4716564835 | ALZ2: =AMA7-ALZ1*ALZ7 -> 0.4989692705 | AMC2: =AMD7-AMC1*AMC7 -> 0.2126446377 | AMF2: =AMG7-AMF1*AMF7 -> 0.276630121 | AMI2: =AMJ7-AMI1*AMI7 -> 0.002362734912 | AML2: =AMM7-AML1*AML7 -> 0.6278827281 | AMO2: =AMP7-AMO1*AMO7 -> 0.124548104 | AMR2: =AMS7-AMR1*AMR7 -> 0.2188540489 | AMU2: =AMV7-AMU1*AMU7 -> 0.5007839621 | AMX2: =AMY7-AMX1*AMX7 -> 0.2956176717 | ANA2: =ANB7-ANA1*ANA7 -> 0.1556073218 | AND2: =ANE7-AND1*AND7 -> -0.185009183 | ANG2: =ANH7-ANG1*ANG7 -> 0.301325617 | ANJ2: =ANK7-ANJ1*ANJ7 -> 0.4848403321 | ANM2: =ANN7-ANM1*ANM7 -> 0.3875646922 | ANP2: =ANQ7-ANP1*ANP7 -> 0.3487242344 | ANS2: =ANT7-ANS1*ANS7 -> 0.06972266417 | ANV2: =ANW7-ANV1*ANV7 -> 0.3410985415 | ANY2: =ANZ7-ANY1*ANY7 -> 0.7326925092 | AOB2: =AOC7-AOB1*AOB7 -> 0.3151105431 | AOE2: =AOF7-AOE1*AOE7 -> 0.1760042773 | AOH2: =AOI7-AOH1*AOH7 -> 0.7761754874 | AOK2: =AOL7-AOK1*AOK7 -> 0.02454262392 | AON2: =AOO7-AON1*AON7 -> 0.5541281182 | AOQ2: =AOR7-AOQ1*AOQ7 -> 0.7348879515 | AOT2: =AOU7-AOT1*AOT7 -> 0.2865381867 | AOW2: =AOX7-AOW1*AOW7 -> 0.4249247588 | AOZ2: =APA7-AOZ1*AOZ7 -> 0.5053991085 | APC2: =APD7-APC1*APC7 -> 0.01913562427 | APF2: =APG7-APF1*APF7 -> 0.5541513679 | API2: =APJ7-API1*API7 -> 0.3251468493 | APL2: =APM7-APL1*APL7 -> 0.5392121315 | APO2: =APP7-APO1*APO7 -> 0.3600130657 | APR2: =APS7-APR1*APR7 -> 0.09486370288 | APU2: =APV7-APU1*APU7 -> 0.2858246269 | APX2: =APY7-APX1*APX7 -> 0.1924754953 | AQA2: =AQB7-AQA1*AQA7 -> 0.1307052266 | AQD2: =AQE7-AQD1*AQD7 -> 0.342565408 | AQG2: =AQH7-AQG1*AQG7 -> 0.7586970016 | AQJ2: =AQK7-AQJ1*AQJ7 -> 0.637804318 | AQM2: =AQN7-AQM1*AQM7 -> -0.01924512848 | AQP2: =AQQ7-AQP1*AQP7 -> 0.237548111 | AQS2: =AQT7-AQS1*AQS7 -> 0.337911518 | AQV2: =AQW7-AQV1*AQV7 -> 0.5287584261 | AQY2: =AQZ7-AQY1*AQY7 -> 0.3931570977 | ARB2: =ARC7-ARB1*ARB7 -> 0.2472595916 | ARE2: =ARF7-ARE1*ARE7 -> 0.1908564903 | ARH2: =ARI7-ARH1*ARH7 -> -0.1872451806 | ARK2: =ARL7-ARK1*ARK7 -> 0.2012616004 | ARN2: =ARO7-ARN1*ARN7 -> 0.1726385732 | ARQ2: =ARR7-ARQ1*ARQ7 -> 0.1098274656 | ART2: =ARU7-ART1*ART7 -> 0.2377891617 | ARW2: =ARX7-ARW1*ARW7 -> 0.001033597638 | ARZ2: =ASA7-ARZ1*ARZ7 -> 0.4162522144 | ASC2: =ASD7-ASC1*ASC7 -> 0.4896160023 | ASF2: =ASG7-ASF1*ASF7 -> 0.5535718982 | ASI2: =ASJ7-ASI1*ASI7 -> 0.5683682632 | ASL2: =ASM7-ASL1*ASL7 -> 0.3040119341 | ASO2: =ASP7-ASO1*ASO7 -> -0.2227513123 | ASR2: =ASS7-ASR1*ASR7 -> 0.4279163111 | ASU2: =ASV7-ASU1*ASU7 -> 0.2685354056 | ASX2: =ASY7-ASX1*ASX7 -> 0.4124503004 | ATA2: =ATB7-ATA1*ATA7 -> 0.6512695357 | ATD2: =ATE7-ATD1*ATD7 -> 0.1842559816 | ATG2: =ATH7-ATG1*ATG7 -> 0.3892242924 | ATJ2: =ATK7-ATJ1*ATJ7 -> 0.1219928844 | ATM2: =ATN7-ATM1*ATM7 -> 0.0829948082 | ATP2: =ATQ7-ATP1*ATP7 -> 0.2458674547 | ATS2: =ATT7-ATS1*ATS7 -> 0.667766202 | ATV2: =ATW7-ATV1*ATV7 -> -0.1627680689 | ATY2: =ATZ7-ATY1*ATY7 -> 0.4333132787 | AUB2: =AUC7-AUB1*AUB7 -> 0.1267009851 | AUE2: =AUF7-AUE1*AUE7 -> 0.2560838114 | AUH2: =AUI7-AUH1*AUH7 -> 0.1192693668 | AUK2: =AUL7-AUK1*AUK7 -> 0.4095517635 | AUN2: =AUO7-AUN1*AUN7 -> 0.506821679 | AUQ2: =AUR7-AUQ1*AUQ7 -> 0.2129229689 | AUT2: =AUU7-AUT1*AUT7 -> 0.5004029447 | AUW2: =AUX7-AUW1*AUW7 -> 0.1740854793 | AUZ2: =AVA7-AUZ1*AUZ7 -> 0.5826285527 | AVC2: =AVD7-AVC1*AVC7 -> 0.4222339 | AVF2: =AVG7-AVF1*AVF7 -> 0.5568984388 | AVI2: =AVJ7-AVI1*AVI7 -> -0.1747461415 | AVL2: =AVM7-AVL1*AVL7 -> 0.6514501268 | AVO2: =AVP7-AVO1*AVO7 -> 0.1342897315 | AVR2: =AVS7-AVR1*AVR7 -> 0.3823129052 | AVU2: =AVV7-AVU1*AVU7 -> 0.386394168 | AVX2: =AVY7-AVX1*AVX7 -> 0.2146903561 | AWA2: =AWB7-AWA1*AWA7 -> -0.2521836804 | AWD2: =AWE7-AWD1*AWD7 -> 0.2589275645 | AWG2: =AWH7-AWG1*AWG7 -> 0.1682241337 | AWJ2: =AWK7-AWJ1*AWJ7 -> 0.1406906248 | AWM2: =AWN7-AWM1*AWM7 -> 0.4547081561 | AWP2: =AWQ7-AWP1*AWP7 -> 0.1055635289 | AWS2: =AWT7-AWS1*AWS7 -> 0.6799122559 | AWV2: =AWW7-AWV1*AWV7 -> 0.4039631502 | AWY2: =AWZ7-AWY1*AWY7 -> 0.5885065151 | AXB2: =AXC7-AXB1*AXB7 -> 0.5989860735 | AXE2: =AXF7-AXE1*AXE7 -> 0.2051186192 | AXH2: =AXI7-AXH1*AXH7 -> 0.2369583638 | AXK2: =AXL7-AXK1*AXK7 -> 0.1929423108 | AXN2: =AXO7-AXN1*AXN7 -> 0.5059019439 | AXQ2: =AXR7-AXQ1*AXQ7 -> 0.339896673 | AXT2: =AXU7-AXT1*AXT7 -> 0.2856852991 | AXW2: =AXX7-AXW1*AXW7 -> 0.4142651592 | AXZ2: =AYA7-AXZ1*AXZ7 -> 0.4397183562 | AYC2: =AYD7-AYC1*AYC7 -> 0.2860141453 | AYF2: =AYG7-AYF1*AYF7 -> 0.7452682934 | AYI2: =AYJ7-AYI1*AYI7 -> 0.1608318262 | AYL2: =AYM7-AYL1*AYL7 -> 0.5531621836 | AYO2: =AYP7-AYO1*AYO7 -> 0.2453827561 | AYR2: =AYS7-AYR1*AYR7 -> 0.4821634324 | AYU2: =AYV7-AYU1*AYU7 -> 0.3246036686 | AYX2: =AYY7-AYX1*AYX7 -> -0.02272954845 | AZA2: =AZB7-AZA1*AZA7 -> 0.5562817793 | AZD2: =AZE7-AZD1*AZD7 -> 0.4676532368 | AZG2: =AZH7-AZG1*AZG7 -> 0.4096430718 | AZJ2: =AZK7-AZJ1*AZJ7 -> 0.3416139499 | AZM2: =AZN7-AZM1*AZM7 -> 0.4858745405 | AZP2: =AZQ7-AZP1*AZP7 -> 0.2406502965 | AZS2: =AZT7-AZS1*AZS7 -> 0.2516307236 | AZV2: =AZW7-AZV1*AZV7 -> 0.5095032159 | AZY2: =AZZ7-AZY1*AZY7 -> 0.3076061517 | BAB2: =BAC7-BAB1*BAB7 -> 0.1801781659 | BAE2: =BAF7-BAE1*BAE7 -> 0.03479237552 | BAH2: =BAI7-BAH1*BAH7 -> 0.5300867989 | BAK2: =BAL7-BAK1*BAK7 -> 0.4016010005 | BAN2: =BAO7-BAN1*BAN7 -> 0.08775534684 | BAQ2: =BAR7-BAQ1*BAQ7 -> -0.2173840407 | BAT2: =BAU7-BAT1*BAT7 -> 0.1846905175 | BAW2: =BAX7-BAW1*BAW7 -> 0.6685881444 | BAZ2: =BBA7-BAZ1*BAZ7 -> 0.2514408392 | BBC2: =BBD7-BBC1*BBC7 -> 0.5461466395 | BBF2: =BBG7-BBF1*BBF7 -> 0.528110389 | BBI2: =BBJ7-BBI1*BBI7 -> 0.6896707626 | BBL2: =BBM7-BBL1*BBL7 -> 0.4576009109 | BBO2: =BBP7-BBO1*BBO7 -> 0.394037026 | BBR2: =BBS7-BBR1*BBR7 -> -0.01427980746 | BBU2: =BBV7-BBU1*BBU7 -> 0.6575368027 | BBX2: =BBY7-BBX1*BBX7 -> 0.2888406541 | BCA2: =BCB7-BCA1*BCA7 -> 0.366027575 | BCD2: =BCE7-BCD1*BCD7 -> 0.43069056 | BCG2: =BCH7-BCG1*BCG7 -> 0.3277766961 | BCJ2: =BCK7-BCJ1*BCJ7 -> 0.5209670967 | BCM2: =BCN7-BCM1*BCM7 -> 0.2449629992 | BCP2: =BCQ7-BCP1*BCP7 -> -8.42916526e-06 | BCS2: =BCT7-BCS1*BCS7 -> -0.3480877356 | BCV2: =BCW7-BCV1*BCV7 -> -0.0579716699 | BCY2: =BCZ7-BCY1*BCY7 -> 0.3555479281 | BDB2: =BDC7-BDB1*BDB7 -> 0.615830288 | BDE2: =BDF7-BDE1*BDE7 -> 0.6602543157 | BDH2: =BDI7-BDH1*BDH7 -> 0.6402563451 | BDK2: =BDL7-BDK1*BDK7 -> 0.4984535094 | BDN2: =BDO7-BDN1*BDN7 -> -0.05707280972 | BDQ2: =BDR7-BDQ1*BDQ7 -> 0.4415833097 | BDT2: =BDU7-BDT1*BDT7 -> 0.4292921118 | BDW2: =BDX7-BDW1*BDW7 -> 0.09771134899 | BDZ2: =BEA7-BDZ1*BDZ7 -> 0.4853595069 | BEC2: =BED7-BEC1*BEC7 -> 0.1774327849 | BEF2: =BEG7-BEF1*BEF7 -> 0.04594291705 | BEI2: =BEJ7-BEI1*BEI7 -> 0.5075383856 | BEL2: =BEM7-BEL1*BEL7 -> 0.4247232291 | BEO2: =BEP7-BEO1*BEO7 -> 0.5363770952 | BER2: =BES7-BER1*BER7 -> 0.2154793433 | BEU2: =BEV7-BEU1*BEU7 -> 0.3863003034 | BEX2: =BEY7-BEX1*BEX7 -> 0.2309285245 | BFA2: =BFB7-BFA1*BFA7 -> 0.3702274201 | BFD2: =BFE7-BFD1*BFD7 -> 0.1628811355 | BFG2: =BFH7-BFG1*BFG7 -> 0.4981110512 | BFJ2: =BFK7-BFJ1*BFJ7 -> 0.4343013123 | BFM2: =BFN7-BFM1*BFM7 -> 0.5655345153 | BFP2: =BFQ7-BFP1*BFP7 -> 0.6707407095 | BFS2: =BFT7-BFS1*BFS7 -> 0.655042868 | BFV2: =BFW7-BFV1*BFV7 -> 0.4480182187 | BFY2: =BFZ7-BFY1*BFY7 -> 0.4570780572 | BGB2: =BGC7-BGB1*BGB7 -> -0.03546376632 | BGE2: =BGF7-BGE1*BGE7 -> 0.2652117458 | BGH2: =BGI7-BGH1*BGH7 -> 0.4126455395 | BGK2: =BGL7-BGK1*BGK7 -> 0.4921277944 | BGN2: =BGO7-BGN1*BGN7 -> 0.7217020892 | BGQ2: =BGR7-BGQ1*BGQ7 -> 0.5889688109 | BGT2: =BGU7-BGT1*BGT7 -> 0.3957437414
D3: 群1(1回目） | F3: 群２(2回目） | K3: 基本統計項目 | M3: X1 | N3: Y1 | O3: X2 | P3: Y2 | R3: X | S3: Y | U3: 階級数 | AD3: X1 | AE3: Y1上側 | AF3: Y1下側 | AG3: HH | AI3: X2 | AJ3: Y2上側 | AK3: Y2下側 | AL3: HH | AO3: Sｙｙ：= | AP3: =DEVSQ(AO5:AO1304) -> 10542.32 | AQ3: =DEVSQ(AQ5:AQ504) ->  | AS3: 偏差図 | AY3: 0.9303220742 | AZ3: 1.338173456 | BA3: 標準主軸b= | BB3: =(BC9/BB9)^0.5 -> 0.9593677272 | BE3: =(BF9/BE9)^0.5 -> 1.167465062 | BH3: =(BI9/BH9)^0.5 -> 1.064030428 | BK3: =(BL9/BK9)^0.5 -> 1.300304669 | BN3: =(BO9/BN9)^0.5 -> 0.9637903709 | BQ3: =(BR9/BQ9)^0.5 -> 1.012893362 | BT3: =(BU9/BT9)^0.5 -> 1.247220129 | BW3: =(BX9/BW9)^0.5 -> 1.232812472 | BZ3: =(CA9/BZ9)^0.5 -> 0.9449614697 | CC3: =(CD9/CC9)^0.5 -> 1.102922554 | CF3: =(CG9/CF9)^0.5 -> 1.110940026 | CI3: =(CJ9/CI9)^0.5 -> 1.024616116 | CL3: =(CM9/CL9)^0.5 -> 1.008568276 | CO3: =(CP9/CO9)^0.5 -> 0.9874450271 | CR3: =(CS9/CR9)^0.5 -> 1.027510559 | CU3: =(CV9/CU9)^0.5 -> 1.130815908 | CX3: =(CY9/CX9)^0.5 -> 1.042834352 | DA3: =(DB9/DA9)^0.5 -> 1.21914689 | DD3: =(DE9/DD9)^0.5 -> 1.050300464 | DG3: =(DH9/DG9)^0.5 -> 1.089627494 | DJ3: =(DK9/DJ9)^0.5 -> 1.136343408 | DM3: =(DN9/DM9)^0.5 -> 1.163167673 | DP3: =(DQ9/DP9)^0.5 -> 1.224261864 | DS3: =(DT9/DS9)^0.5 -> 1.181331308 | DV3: =(DW9/DV9)^0.5 -> 1.126706611 | DY3: =(DZ9/DY9)^0.5 -> 1.083676614 | EB3: =(EC9/EB9)^0.5 -> 1.06094053 | EE3: =(EF9/EE9)^0.5 -> 1.360568567 | EH3: =(EI9/EH9)^0.5 -> 1.064584821 | EK3: =(EL9/EK9)^0.5 -> 1.116856995 | EN3: =(EO9/EN9)^0.5 -> 1.289768192 | EQ3: =(ER9/EQ9)^0.5 -> 1.241763685 | ET3: =(EU9/ET9)^0.5 -> 1.256531141 | EW3: =(EX9/EW9)^0.5 -> 1.061066823 | EZ3: =(FA9/EZ9)^0.5 -> 1.071398763 | FC3: =(FD9/FC9)^0.5 -> 1.041981237 | FF3: =(FG9/FF9)^0.5 -> 1.239792157 | FI3: =(FJ9/FI9)^0.5 -> 0.9823753861 | FL3: =(FM9/FL9)^0.5 -> 1.19515587 | FO3: =(FP9/FO9)^0.5 -> 1.057339725 | FR3: =(FS9/FR9)^0.5 -> 1.097728574 | FU3: =(FV9/FU9)^0.5 -> 1.089699165 | FX3: =(FY9/FX9)^0.5 -> 1.310202202 | GA3: =(GB9/GA9)^0.5 -> 0.951403164 | GD3: =(GE9/GD9)^0.5 -> 1.0639115 | GG3: =(GH9/GG9)^0.5 -> 1.071291635 | GJ3: =(GK9/GJ9)^0.5 -> 1.147781372 | GM3: =(GN9/GM9)^0.5 -> 1.333493907 | GP3: =(GQ9/GP9)^0.5 -> 1.213992564 | GS3: =(GT9/GS9)^0.5 -> 0.9652809923 | GV3: =(GW9/GV9)^0.5 -> 1.144549361 | GY3: =(GZ9/GY9)^0.5 -> 1.077108969 | HB3: =(HC9/HB9)^0.5 -> 1.033448485 | HE3: =(HF9/HE9)^0.5 -> 1.324925793 | HH3: =(HI9/HH9)^0.5 -> 1.024291138 | HK3: =(HL9/HK9)^0.5 -> 1.120324379 | HN3: =(HO9/HN9)^0.5 -> 1.253746926 | HQ3: =(HR9/HQ9)^0.5 -> 1.133318883 | HT3: =(HU9/HT9)^0.5 -> 0.9203607013 | HW3: =(HX9/HW9)^0.5 -> 0.9116593128 | HZ3: =(IA9/HZ9)^0.5 -> 1.170607665 | IC3: =(ID9/IC9)^0.5 -> 1.176842843 | IF3: =(IG9/IF9)^0.5 -> 1.053520918 | II3: =(IJ9/II9)^0.5 -> 1.135431911 | IL3: =(IM9/IL9)^0.5 -> 0.9826623981 | IO3: =(IP9/IO9)^0.5 -> 1.068158659 | IR3: =(IS9/IR9)^0.5 -> 1.134998825 | IU3: =(IV9/IU9)^0.5 -> 1.205992778 | IX3: =(IY9/IX9)^0.5 -> 1.234171033 | JA3: =(JB9/JA9)^0.5 -> 0.9338850366 | JD3: =(JE9/JD9)^0.5 -> 1.198844472 | JG3: =(JH9/JG9)^0.5 -> 1.173572452 | JJ3: =(JK9/JJ9)^0.5 -> 1.148703716 | JM3: =(JN9/JM9)^0.5 -> 1.063223594 | JP3: =(JQ9/JP9)^0.5 -> 1.014067131 | JS3: =(JT9/JS9)^0.5 -> 1.198400691 | JV3: =(JW9/JV9)^0.5 -> 1.088008808 | JY3: =(JZ9/JY9)^0.5 -> 1.161727016 | KB3: =(KC9/KB9)^0.5 -> 1.02669264 | KE3: =(KF9/KE9)^0.5 -> 0.9711525327 | KH3: =(KI9/KH9)^0.5 -> 1.196849105 | KK3: =(KL9/KK9)^0.5 -> 1.226438622 | KN3: =(KO9/KN9)^0.5 -> 0.9314942511 | KQ3: =(KR9/KQ9)^0.5 -> 1.1760384 | KT3: =(KU9/KT9)^0.5 -> 1.122295879 | KW3: =(KX9/KW9)^0.5 -> 0.9948964727 | KZ3: =(LA9/KZ9)^0.5 -> 1.091823243 | LC3: =(LD9/LC9)^0.5 -> 0.9987948862 | LF3: =(LG9/LF9)^0.5 -> 1.005867033 | LI3: =(LJ9/LI9)^0.5 -> 1.075214092 | LL3: =(LM9/LL9)^0.5 -> 1.003502933 | LO3: =(LP9/LO9)^0.5 -> 1.041133768 | LR3: =(LS9/LR9)^0.5 -> 1.106602483 | LU3: =(LV9/LU9)^0.5 -> 1.053038328 | LX3: =(LY9/LX9)^0.5 -> 1.112339265 | MA3: =(MB9/MA9)^0.5 -> 1.090307385 | MD3: =(ME9/MD9)^0.5 -> 1.207770202 | MG3: =(MH9/MG9)^0.5 -> 1.056117393 | MJ3: =(MK9/MJ9)^0.5 -> 1.225076233 | MM3: =(MN9/MM9)^0.5 -> 1.108453925 | MP3: =(MQ9/MP9)^0.5 -> 1.197784434 | MS3: =(MT9/MS9)^0.5 -> 1.041735083 | MV3: =(MW9/MV9)^0.5 -> 1.120484254 | MY3: =(MZ9/MY9)^0.5 -> 1.047999113 | NB3: =(NC9/NB9)^0.5 -> 1.119017758 | NE3: =(NF9/NE9)^0.5 -> 1.062322145 | NH3: =(NI9/NH9)^0.5 -> 1.036460376 | NK3: =(NL9/NK9)^0.5 -> 0.9930348249 | NN3: =(NO9/NN9)^0.5 -> 1.137582266 | NQ3: =(NR9/NQ9)^0.5 -> 1.141076283 | NT3: =(NU9/NT9)^0.5 -> 0.9303220742 | NW3: =(NX9/NW9)^0.5 -> 1.080299679 | NZ3: =(OA9/NZ9)^0.5 -> 1.104098149 | OC3: =(OD9/OC9)^0.5 -> 1.312463667 | OF3: =(OG9/OF9)^0.5 -> 1.157856663 | OI3: =(OJ9/OI9)^0.5 -> 1.079632947 | OL3: =(OM9/OL9)^0.5 -> 1.190128665 | OO3: =(OP9/OO9)^0.5 -> 1.140279339 | OR3: =(OS9/OR9)^0.5 -> 1.001059107 | OU3: =(OV9/OU9)^0.5 -> 0.9990175693 | OX3: =(OY9/OX9)^0.5 -> 1.038798256 | PA3: =(PB9/PA9)^0.5 -> 1.135317407 | PD3: =(PE9/PD9)^0.5 -> 1.0703432 | PG3: =(PH9/PG9)^0.5 -> 1.182276643 | PJ3: =(PK9/PJ9)^0.5 -> 1.243134199 | PM3: =(PN9/PM9)^0.5 -> 1.06511013 | PP3: =(PQ9/PP9)^0.5 -> 1.063584269 | PS3: =(PT9/PS9)^0.5 -> 1.076118233 | PV3: =(PW9/PV9)^0.5 -> 1.070269151 | PY3: =(PZ9/PY9)^0.5 -> 1.342477024 | QB3: =(QC9/QB9)^0.5 -> 1.257291345 | QE3: =(QF9/QE9)^0.5 -> 1.043873008 | QH3: =(QI9/QH9)^0.5 -> 1.157290602 | QK3: =(QL9/QK9)^0.5 -> 0.9965512153 | QN3: =(QO9/QN9)^0.5 -> 1.421970064 | QQ3: =(QR9/QQ9)^0.5 -> 1.158689877 | QT3: =(QU9/QT9)^0.5 -> 0.9838461796 | QW3: =(QX9/QW9)^0.5 -> 1.141127171 | QZ3: =(RA9/QZ9)^0.5 -> 1.030064313 | RC3: =(RD9/RC9)^0.5 -> 1.141580888 | RF3: =(RG9/RF9)^0.5 -> 1.010489701 | RI3: =(RJ9/RI9)^0.5 -> 1.081635662 | RL3: =(RM9/RL9)^0.5 -> 1.146433352 | RO3: =(RP9/RO9)^0.5 -> 0.9577262323 | RR3: =(RS9/RR9)^0.5 -> 1.046854535 | RU3: =(RV9/RU9)^0.5 -> 1.088539269 | RX3: =(RY9/RX9)^0.5 -> 1.30079917 | SA3: =(SB9/SA9)^0.5 -> 1.095136392 | SD3: =(SE9/SD9)^0.5 -> 1.059929335 | SG3: =(SH9/SG9)^0.5 -> 1.132207678 | SJ3: =(SK9/SJ9)^0.5 -> 1.085802374 | SM3: =(SN9/SM9)^0.5 -> 1.100097889 | SP3: =(SQ9/SP9)^0.5 -> 1.116972832 | SS3: =(ST9/SS9)^0.5 -> 1.049780471 | SV3: =(SW9/SV9)^0.5 -> 1.09616616 | SY3: =(SZ9/SY9)^0.5 -> 1.124720925 | TB3: =(TC9/TB9)^0.5 -> 0.9401664173 | TE3: =(TF9/TE9)^0.5 -> 1.065135472 | TH3: =(TI9/TH9)^0.5 -> 1.037342427 | TK3: =(TL9/TK9)^0.5 -> 1.104503868 | TN3: =(TO9/TN9)^0.5 -> 1.170601104 | TQ3: =(TR9/TQ9)^0.5 -> 1.309564426 | TT3: =(TU9/TT9)^0.5 -> 1.127818185 | TW3: =(TX9/TW9)^0.5 -> 1.069399997 | TZ3: =(UA9/TZ9)^0.5 -> 0.9930935692 | UC3: =(UD9/UC9)^0.5 -> 1.150930992 | UF3: =(UG9/UF9)^0.5 -> 1.284911701 | UI3: =(UJ9/UI9)^0.5 -> 1.095374451 | UL3: =(UM9/UL9)^0.5 -> 1.182701879 | UO3: =(UP9/UO9)^0.5 -> 1.15477632 | UR3: =(US9/UR9)^0.5 -> 0.9204805917 | UU3: =(UV9/UU9)^0.5 -> 1.028725201 | UX3: =(UY9/UX9)^0.5 -> 1.085641282 | VA3: =(VB9/VA9)^0.5 -> 1.192447391 | VD3: =(VE9/VD9)^0.5 -> 1.2843329 | VG3: =(VH9/VG9)^0.5 -> 1.158239967 | VJ3: =(VK9/VJ9)^0.5 -> 1.304656682 | VM3: =(VN9/VM9)^0.5 -> 1.212549487 | VP3: =(VQ9/VP9)^0.5 -> 1.12845324 | VS3: =(VT9/VS9)^0.5 -> 1.098725121 | VV3: =(VW9/VV9)^0.5 -> 1.025850394 | VY3: =(VZ9/VY9)^0.5 -> 1.168484629 | WB3: =(WC9/WB9)^0.5 -> 0.9926782513 | WE3: =(WF9/WE9)^0.5 -> 1.329599881 | WH3: =(WI9/WH9)^0.5 -> 1.344625206 | WK3: =(WL9/WK9)^0.5 -> 1.070279995 | WN3: =(WO9/WN9)^0.5 -> 1.019495213 | WQ3: =(WR9/WQ9)^0.5 -> 1.198340273 | WT3: =(WU9/WT9)^0.5 -> 1.27199718 | WW3: =(WX9/WW9)^0.5 -> 1.238112626 | WZ3: =(XA9/WZ9)^0.5 -> 1.067791261 | XC3: =(XD9/XC9)^0.5 -> 1.117754126 | XF3: =(XG9/XF9)^0.5 -> 1.000536666 | XI3: =(XJ9/XI9)^0.5 -> 1.026220634 | XL3: =(XM9/XL9)^0.5 -> 0.9599286281 | XO3: =(XP9/XO9)^0.5 -> 1.115673811 | XR3: =(XS9/XR9)^0.5 -> 0.9992061469 | XU3: =(XV9/XU9)^0.5 -> 1.193766811 | XX3: =(XY9/XX9)^0.5 -> 1.126128177 | YA3: =(YB9/YA9)^0.5 -> 1.069085401 | YD3: =(YE9/YD9)^0.5 -> 1.285794469 | YG3: =(YH9/YG9)^0.5 -> 0.987389651 | YJ3: =(YK9/YJ9)^0.5 -> 1.137631672 | YM3: =(YN9/YM9)^0.5 -> 1.248644289 | YP3: =(YQ9/YP9)^0.5 -> 1.018892167 | YS3: =(YT9/YS9)^0.5 -> 1.044959432 | YV3: =(YW9/YV9)^0.5 -> 1.036605836 | YY3: =(YZ9/YY9)^0.5 -> 1.155903379 | ZB3: =(ZC9/ZB9)^0.5 -> 1.317303022 | ZE3: =(ZF9/ZE9)^0.5 -> 1.120668839 | ZH3: =(ZI9/ZH9)^0.5 -> 1.002123411 | ZK3: =(ZL9/ZK9)^0.5 -> 1.217224839 | ZN3: =(ZO9/ZN9)^0.5 -> 1.22829502 | ZQ3: =(ZR9/ZQ9)^0.5 -> 1.029555221 | ZT3: =(ZU9/ZT9)^0.5 -> 1.026823533 | ZW3: =(ZX9/ZW9)^0.5 -> 0.9815017885 | ZZ3: =(AAA9/ZZ9)^0.5 -> 1.165798292 | AAC3: =(AAD9/AAC9)^0.5 -> 1.139693568 | AAF3: =(AAG9/AAF9)^0.5 -> 1.039262627 | AAI3: =(AAJ9/AAI9)^0.5 -> 1.170741189 | AAL3: =(AAM9/AAL9)^0.5 -> 1.098850643 | AAO3: =(AAP9/AAO9)^0.5 -> 0.9561656916 | AAR3: =(AAS9/AAR9)^0.5 -> 1.206069267 | AAU3: =(AAV9/AAU9)^0.5 -> 1.027212844 | AAX3: =(AAY9/AAX9)^0.5 -> 1.015000608 | ABA3: =(ABB9/ABA9)^0.5 -> 1.20718642 | ABD3: =(ABE9/ABD9)^0.5 -> 1.217179757 | ABG3: =(ABH9/ABG9)^0.5 -> 1.117531778 | ABJ3: =(ABK9/ABJ9)^0.5 -> 1.077311785 | ABM3: =(ABN9/ABM9)^0.5 -> 1.00657151 | ABP3: =(ABQ9/ABP9)^0.5 -> 1.151875272 | ABS3: =(ABT9/ABS9)^0.5 -> 1.073220797 | ABV3: =(ABW9/ABV9)^0.5 -> 1.202195878 | ABY3: =(ABZ9/ABY9)^0.5 -> 1.16791983 | ACB3: =(ACC9/ACB9)^0.5 -> 1.277229566 | ACE3: =(ACF9/ACE9)^0.5 -> 0.9579982941 | ACH3: =(ACI9/ACH9)^0.5 -> 1.16695209 | ACK3: =(ACL9/ACK9)^0.5 -> 1.200777216 | ACN3: =(ACO9/ACN9)^0.5 -> 1.149945032 | ACQ3: =(ACR9/ACQ9)^0.5 -> 1.109119741 | ACT3: =(ACU9/ACT9)^0.5 -> 1.165776981 | ACW3: =(ACX9/ACW9)^0.5 -> 1.045956978 | ACZ3: =(ADA9/ACZ9)^0.5 -> 1.085185664 | ADC3: =(ADD9/ADC9)^0.5 -> 1.134035457 | ADF3: =(ADG9/ADF9)^0.5 -> 1.247965597 | ADI3: =(ADJ9/ADI9)^0.5 -> 1.161576505 | ADL3: =(ADM9/ADL9)^0.5 -> 1.157432137 | ADO3: =(ADP9/ADO9)^0.5 -> 1.034161365 | ADR3: =(ADS9/ADR9)^0.5 -> 1.135400527 | ADU3: =(ADV9/ADU9)^0.5 -> 1.123177482 | ADX3: =(ADY9/ADX9)^0.5 -> 1.116096823 | AEA3: =(AEB9/AEA9)^0.5 -> 1.171918523 | AED3: =(AEE9/AED9)^0.5 -> 1.191641509 | AEG3: =(AEH9/AEG9)^0.5 -> 0.946452247 | AEJ3: =(AEK9/AEJ9)^0.5 -> 1.148902155 | AEM3: =(AEN9/AEM9)^0.5 -> 0.9930439765 | AEP3: =(AEQ9/AEP9)^0.5 -> 1.073968201 | AES3: =(AET9/AES9)^0.5 -> 1.000809402 | AEV3: =(AEW9/AEV9)^0.5 -> 1.066341362 | AEY3: =(AEZ9/AEY9)^0.5 -> 1.059706651 | AFB3: =(AFC9/AFB9)^0.5 -> 1.155878976 | AFE3: =(AFF9/AFE9)^0.5 -> 1.066798075 | AFH3: =(AFI9/AFH9)^0.5 -> 1.077433492 | AFK3: =(AFL9/AFK9)^0.5 -> 1.026395863 | AFN3: =(AFO9/AFN9)^0.5 -> 1.07811855 | AFQ3: =(AFR9/AFQ9)^0.5 -> 0.9199319989 | AFT3: =(AFU9/AFT9)^0.5 -> 1.202439539 | AFW3: =(AFX9/AFW9)^0.5 -> 1.106126284 | AFZ3: =(AGA9/AFZ9)^0.5 -> 1.104975506 | AGC3: =(AGD9/AGC9)^0.5 -> 1.146553126 | AGF3: =(AGG9/AGF9)^0.5 -> 1.107518824 | AGI3: =(AGJ9/AGI9)^0.5 -> 1.12241658 | AGL3: =(AGM9/AGL9)^0.5 -> 1.084952185 | AGO3: =(AGP9/AGO9)^0.5 -> 1.250393323 | AGR3: =(AGS9/AGR9)^0.5 -> 1.044994046 | AGU3: =(AGV9/AGU9)^0.5 -> 1.347793356 | AGX3: =(AGY9/AGX9)^0.5 -> 1.060006707 | AHA3: =(AHB9/AHA9)^0.5 -> 0.9479354713 | AHD3: =(AHE9/AHD9)^0.5 -> 1.126913541 | AHG3: =(AHH9/AHG9)^0.5 -> 1.195708806 | AHJ3: =(AHK9/AHJ9)^0.5 -> 1.093455556 | AHM3: =(AHN9/AHM9)^0.5 -> 1.07098897 | AHP3: =(AHQ9/AHP9)^0.5 -> 0.9793578523 | AHS3: =(AHT9/AHS9)^0.5 -> 1.05029823 | AHV3: =(AHW9/AHV9)^0.5 -> 1.11878963 | AHY3: =(AHZ9/AHY9)^0.5 -> 1.155209778 | AIB3: =(AIC9/AIB9)^0.5 -> 1.128706794 | AIE3: =(AIF9/AIE9)^0.5 -> 0.9826026914 | AIH3: =(AII9/AIH9)^0.5 -> 1.146323396 | AIK3: =(AIL9/AIK9)^0.5 -> 1.156889145 | AIN3: =(AIO9/AIN9)^0.5 -> 1.242688738 | AIQ3: =(AIR9/AIQ9)^0.5 -> 1.187072058 | AIT3: =(AIU9/AIT9)^0.5 -> 1.152207466 | AIW3: =(AIX9/AIW9)^0.5 -> 1.333787314 | AIZ3: =(AJA9/AIZ9)^0.5 -> 1.195994125 | AJC3: =(AJD9/AJC9)^0.5 -> 1.097025105 | AJF3: =(AJG9/AJF9)^0.5 -> 1.057772472 | AJI3: =(AJJ9/AJI9)^0.5 -> 1.006763138 | AJL3: =(AJM9/AJL9)^0.5 -> 1.071989804 | AJO3: =(AJP9/AJO9)^0.5 -> 1.233026313 | AJR3: =(AJS9/AJR9)^0.5 -> 1.075079243 | AJU3: =(AJV9/AJU9)^0.5 -> 0.9288644391 | AJX3: =(AJY9/AJX9)^0.5 -> 1.152874192 | AKA3: =(AKB9/AKA9)^0.5 -> 1.280133485 | AKD3: =(AKE9/AKD9)^0.5 -> 1.147267539 | AKG3: =(AKH9/AKG9)^0.5 -> 1.254771144 | AKJ3: =(AKK9/AKJ9)^0.5 -> 1.160449383 | AKM3: =(AKN9/AKM9)^0.5 -> 1.081972378 | AKP3: =(AKQ9/AKP9)^0.5 -> 1.046190672 | AKS3: =(AKT9/AKS9)^0.5 -> 1.218944741 | AKV3: =(AKW9/AKV9)^0.5 -> 1.337349942 | AKY3: =(AKZ9/AKY9)^0.5 -> 1.122717181 | ALB3: =(ALC9/ALB9)^0.5 -> 1.064054412 | ALE3: =(ALF9/ALE9)^0.5 -> 1.231143042 | ALH3: =(ALI9/ALH9)^0.5 -> 1.183533313 | ALK3: =(ALL9/ALK9)^0.5 -> 1.148849723 | ALN3: =(ALO9/ALN9)^0.5 -> 1.075803055 | ALQ3: =(ALR9/ALQ9)^0.5 -> 1.19844146 | ALT3: =(ALU9/ALT9)^0.5 -> 1.090128633 | ALW3: =(ALX9/ALW9)^0.5 -> 1.075014547 | ALZ3: =(AMA9/ALZ9)^0.5 -> 1.064072737 | AMC3: =(AMD9/AMC9)^0.5 -> 1.189584848 | AMF3: =(AMG9/AMF9)^0.5 -> 1.141159176 | AMI3: =(AMJ9/AMI9)^0.5 -> 1.287973696 | AML3: =(AMM9/AML9)^0.5 -> 0.9961991589 | AMO3: =(AMP9/AMO9)^0.5 -> 1.176289062 | AMR3: =(AMS9/AMR9)^0.5 -> 1.133753109 | AMU3: =(AMV9/AMU9)^0.5 -> 1.030362668 | AMX3: =(AMY9/AMX9)^0.5 -> 1.153170193 | ANA3: =(ANB9/ANA9)^0.5 -> 1.125668146 | AND3: =(ANE9/AND9)^0.5 -> 1.327099121 | ANG3: =(ANH9/ANG9)^0.5 -> 1.121799414 | ANJ3: =(ANK9/ANJ9)^0.5 -> 1.042728092 | ANM3: =(ANN9/ANM9)^0.5 -> 1.136982222 | ANP3: =(ANQ9/ANP9)^0.5 -> 1.109752964 | ANS3: =(ANT9/ANS9)^0.5 -> 1.178859801 | ANV3: =(ANW9/ANV9)^0.5 -> 1.1042864 | ANY3: =(ANZ9/ANY9)^0.5 -> 0.9868023594 | AOB3: =(AOC9/AOB9)^0.5 -> 1.166080869 | AOE3: =(AOF9/AOE9)^0.5 -> 1.171195168 | AOH3: =(AOI9/AOH9)^0.5 -> 0.9182603436 | AOK3: =(AOL9/AOK9)^0.5 -> 1.349437828 | AON3: =(AOO9/AON9)^0.5 -> 0.9625192892 | AOQ3: =(AOR9/AOQ9)^0.5 -> 1.007498657 | AOT3: =(AOU9/AOT9)^0.5 -> 1.28010672 | AOW3: =(AOX9/AOW9)^0.5 -> 1.123307441 | AOZ3: =(APA9/AOZ9)^0.5 -> 0.9740887468 | APC3: =(APD9/APC9)^0.5 -> 1.195267279 | APF3: =(APG9/APF9)^0.5 -> 1.044645395 | API3: =(APJ9/API9)^0.5 -> 1.175915289 | APL3: =(APM9/APL9)^0.5 -> 1.031599751 | APO3: =(APP9/APO9)^0.5 -> 1.118956073 | APR3: =(APS9/APR9)^0.5 -> 1.13558737 | APU3: =(APV9/APU9)^0.5 -> 1.18821293 | APX3: =(APY9/APX9)^0.5 -> 1.193236794 | AQA3: =(AQB9/AQA9)^0.5 -> 1.268786732 | AQD3: =(AQE9/AQD9)^0.5 -> 1.154570116 | AQG3: =(AQH9/AQG9)^0.5 -> 0.9135704789 | AQJ3: =(AQK9/AQJ9)^0.5 -> 0.9721403653 | AQM3: =(AQN9/AQM9)^0.5 -> 1.273965861 | AQP3: =(AQQ9/AQP9)^0.5 -> 1.178379578 | AQS3: =(AQT9/AQS9)^0.5 -> 1.069770543 | AQV3: =(AQW9/AQV9)^0.5 -> 1.005995249 | AQY3: =(AQZ9/AQY9)^0.5 -> 1.038590727 | ARB3: =(ARC9/ARB9)^0.5 -> 1.128550893 | ARE3: =(ARF9/ARE9)^0.5 -> 1.177246757 | ARH3: =(ARI9/ARH9)^0.5 -> 1.284614392 | ARK3: =(ARL9/ARK9)^0.5 -> 1.236566506 | ARN3: =(ARO9/ARN9)^0.5 -> 1.207783167 | ARQ3: =(ARR9/ARQ9)^0.5 -> 1.326410103 | ART3: =(ARU9/ART9)^0.5 -> 1.093279674 | ARW3: =(ARX9/ARW9)^0.5 -> 1.175655294 | ARZ3: =(ASA9/ARZ9)^0.5 -> 1.066139803 | ASC3: =(ASD9/ASC9)^0.5 -> 0.9883714862 | ASF3: =(ASG9/ASF9)^0.5 -> 0.9712878163 | ASI3: =(ASJ9/ASI9)^0.5 -> 0.9284806154 | ASL3: =(ASM9/ASL9)^0.5 -> 1.106021904 | ASO3: =(ASP9/ASO9)^0.5 -> 1.2900817 | ASR3: =(ASS9/ASR9)^0.5 -> 1.058767231 | ASU3: =(ASV9/ASU9)^0.5 -> 1.12217651 | ASX3: =(ASY9/ASX9)^0.5 -> 1.056474842 | ATA3: =(ATB9/ATA9)^0.5 -> 0.9455731835 | ATD3: =(ATE9/ATD9)^0.5 -> 1.202685697 | ATG3: =(ATH9/ATG9)^0.5 -> 1.149936244 | ATJ3: =(ATK9/ATJ9)^0.5 -> 1.255731916 | ATM3: =(ATN9/ATM9)^0.5 -> 1.210928708 | ATP3: =(ATQ9/ATP9)^0.5 -> 1.166938191 | ATS3: =(ATT9/ATS9)^0.5 -> 0.9482201722 | ATV3: =(ATW9/ATV9)^0.5 -> 1.318543846 | ATY3: =(ATZ9/ATY9)^0.5 -> 1.04259713 | AUB3: =(AUC9/AUB9)^0.5 -> 1.141917712 | AUE3: =(AUF9/AUE9)^0.5 -> 1.12458153 | AUH3: =(AUI9/AUH9)^0.5 -> 1.17944498 | AUK3: =(AUL9/AUK9)^0.5 -> 1.042032379 | AUN3: =(AUO9/AUN9)^0.5 -> 1.047151963 | AUQ3: =(AUR9/AUQ9)^0.5 -> 1.028563927 | AUT3: =(AUU9/AUT9)^0.5 -> 0.9926829141 | AUW3: =(AUX9/AUW9)^0.5 -> 1.176922828 | AUZ3: =(AVA9/AUZ9)^0.5 -> 1.020702222 | AVC3: =(AVD9/AVC9)^0.5 -> 1.07805017 | AVF3: =(AVG9/AVF9)^0.5 -> 0.9673822597 | AVI3: =(AVJ9/AVI9)^0.5 -> 1.343293866 | AVL3: =(AVM9/AVL9)^0.5 -> 0.966800806 | AVO3: =(AVP9/AVO9)^0.5 -> 1.168446275 | AVR3: =(AVS9/AVR9)^0.5 -> 1.15886884 | AVU3: =(AVV9/AVU9)^0.5 -> 1.043598816 | AVX3: =(AVY9/AVX9)^0.5 -> 1.164305239 | AWA3: =(AWB9/AWA9)^0.5 -> 1.405354885 | AWD3: =(AWE9/AWD9)^0.5 -> 1.220487122 | AWG3: =(AWH9/AWG9)^0.5 -> 1.232959326 | AWJ3: =(AWK9/AWJ9)^0.5 -> 1.195740026 | AWM3: =(AWN9/AWM9)^0.5 -> 1.141034898 | AWP3: =(AWQ9/AWP9)^0.5 -> 1.166193643 | AWS3: =(AWT9/AWS9)^0.5 -> 0.9750517421 | AWV3: =(AWW9/AWV9)^0.5 -> 1.191533706 | AWY3: =(AWZ9/AWY9)^0.5 -> 1.022044139 | AXB3: =(AXC9/AXB9)^0.5 -> 1.006392748 | AXE3: =(AXF9/AXE9)^0.5 -> 1.175377141 | AXH3: =(AXI9/AXH9)^0.5 -> 1.15407851 | AXK3: =(AXL9/AXK9)^0.5 -> 1.157313592 | AXN3: =(AXO9/AXN9)^0.5 -> 1.111104096 | AXQ3: =(AXR9/AXQ9)^0.5 -> 1.124194936 | AXT3: =(AXU9/AXT9)^0.5 -> 1.128271203 | AXW3: =(AXX9/AXW9)^0.5 -> 1.074640562 | AXZ3: =(AYA9/AXZ9)^0.5 -> 1.125434622 | AYC3: =(AYD9/AYC9)^0.5 -> 1.212373 | AYF3: =(AYG9/AYF9)^0.5 -> 0.8655343763 | AYI3: =(AYJ9/AYI9)^0.5 -> 1.128495601 | AYL3: =(AYM9/AYL9)^0.5 -> 1.0240975 | AYO3: =(AYP9/AYO9)^0.5 -> 1.148409901 | AYR3: =(AYS9/AYR9)^0.5 -> 0.9907928669 | AYU3: =(AYV9/AYU9)^0.5 -> 1.137263019 | AYX3: =(AYY9/AYX9)^0.5 -> 1.261583629 | AZA3: =(AZB9/AZA9)^0.5 -> 0.9406979005 | AZD3: =(AZE9/AZD9)^0.5 -> 1.069618079 | AZG3: =(AZH9/AZG9)^0.5 -> 1.055928099 | AZJ3: =(AZK9/AZJ9)^0.5 -> 1.172416085 | AZM3: =(AZN9/AZM9)^0.5 -> 1.066171428 | AZP3: =(AZQ9/AZP9)^0.5 -> 1.241182841 | AZS3: =(AZT9/AZS9)^0.5 -> 1.15759777 | AZV3: =(AZW9/AZV9)^0.5 -> 1.063295714 | AZY3: =(AZZ9/AZY9)^0.5 -> 1.162094971 | BAB3: =(BAC9/BAB9)^0.5 -> 1.160953936 | BAE3: =(BAF9/BAE9)^0.5 -> 1.167226391 | BAH3: =(BAI9/BAH9)^0.5 -> 0.9853016816 | BAK3: =(BAL9/BAK9)^0.5 -> 1.081584597 | BAN3: =(BAO9/BAN9)^0.5 -> 1.183049533 | BAQ3: =(BAR9/BAQ9)^0.5 -> 1.346738069 | BAT3: =(BAU9/BAT9)^0.5 -> 1.147758887 | BAW3: =(BAX9/BAW9)^0.5 -> 0.9850040301 | BAZ3: =(BBA9/BAZ9)^0.5 -> 1.16381037 | BBC3: =(BBD9/BBC9)^0.5 -> 1.021438412 | BBF3: =(BBG9/BBF9)^0.5 -> 1.032713421 | BBI3: =(BBJ9/BBI9)^0.5 -> 1.0172105 | BBL3: =(BBM9/BBL9)^0.5 -> 1.109110969 | BBO3: =(BBP9/BBO9)^0.5 -> 1.159046868 | BBR3: =(BBS9/BBR9)^0.5 -> 1.338173456 | BBU3: =(BBV9/BBU9)^0.5 -> 0.9523362069 | BBX3: =(BBY9/BBX9)^0.5 -> 1.193359518 | BCA3: =(BCB9/BCA9)^0.5 -> 1.200600605 | BCD3: =(BCE9/BCD9)^0.5 -> 1.100597763 | BCG3: =(BCH9/BCG9)^0.5 -> 1.095631444 | BCJ3: =(BCK9/BCJ9)^0.5 -> 1.046879238 | BCM3: =(BCN9/BCM9)^0.5 -> 1.217797968 | BCP3: =(BCQ9/BCP9)^0.5 -> 1.350303498 | BCS3: =(BCT9/BCS9)^0.5 -> 1.33661301 | BCV3: =(BCW9/BCV9)^0.5 -> 1.339464065 | BCY3: =(BCZ9/BCY9)^0.5 -> 1.093045995 | BDB3: =(BDC9/BDB9)^0.5 -> 0.9976247079 | BDE3: =(BDF9/BDE9)^0.5 -> 0.9382101563 | BDH3: =(BDI9/BDH9)^0.5 -> 0.9789670408 | BDK3: =(BDL9/BDK9)^0.5 -> 1.03361358 | BDN3: =(BDO9/BDN9)^0.5 -> 1.267072303 | BDQ3: =(BDR9/BDQ9)^0.5 -> 1.025963288 | BDT3: =(BDU9/BDT9)^0.5 -> 1.067144006 | BDW3: =(BDX9/BDW9)^0.5 -> 1.256923026 | BDZ3: =(BEA9/BDZ9)^0.5 -> 0.9940693309 | BEC3: =(BED9/BEC9)^0.5 -> 1.16825752 | BEF3: =(BEG9/BEF9)^0.5 -> 1.277867252 | BEI3: =(BEJ9/BEI9)^0.5 -> 1.068283515 | BEL3: =(BEM9/BEL9)^0.5 -> 1.034734703 | BEO3: =(BEP9/BEO9)^0.5 -> 0.9828623622 | BER3: =(BES9/BER9)^0.5 -> 1.152034597 | BEU3: =(BEV9/BEU9)^0.5 -> 1.094288365 | BEX3: =(BEY9/BEX9)^0.5 -> 1.120936717 | BFA3: =(BFB9/BFA9)^0.5 -> 1.178727606 | BFD3: =(BFE9/BFD9)^0.5 -> 1.257912393 | BFG3: =(BFH9/BFG9)^0.5 -> 1.006633705 | BFJ3: =(BFK9/BFJ9)^0.5 -> 1.021944323 | BFM3: =(BFN9/BFM9)^0.5 -> 0.9505363319 | BFP3: =(BFQ9/BFP9)^0.5 -> 1.047115338 | BFS3: =(BFT9/BFS9)^0.5 -> 0.9690788474 | BFV3: =(BFW9/BFV9)^0.5 -> 1.119553048 | BFY3: =(BFZ9/BFY9)^0.5 -> 1.062891438 | BGB3: =(BGC9/BGB9)^0.5 -> 1.228873586 | BGE3: =(BGF9/BGE9)^0.5 -> 1.172230043 | BGH3: =(BGI9/BGH9)^0.5 -> 1.12911881 | BGK3: =(BGL9/BGK9)^0.5 -> 1.091088842 | BGN3: =(BGO9/BGN9)^0.5 -> 0.8645329321 | BGQ3: =(BGR9/BGQ9)^0.5 -> 1.032030585 | BGT3: =(BGU9/BGT9)^0.5 -> 1.11211785
C4: No. | D4: X1 | E4: Y1 | F4: X2 | G4: Y2 | K4: 合 計：=SUM(セル範囲) | M4: =SUM(D5:D1304) -> 124.88 | N4: =SUM(E5:E1304) -> 158.54 | O4: =SUM(F5:F1304) -> 0 | P4: =SUM(G5:G1304) -> 0 | Q4: 偏差平方和 | R4: =SUM(H5:H504) -> 0 | S4: =SUM(I5:I504) -> 0 | U4: 11 | AB4: CHIINV(0.05,2)^0.5 | AC4: 2.448 | AD4: =AC5 -> -1.610313643 | AE4: =(Y1SD/X1SD*(相関係数1*AD4+AG4))+切片1 -> -0.6892746417 | AF4: =(Y1SD/X1SD*(相関係数1*AD4-AG4))+切片1 -> -0.6892746417 | AG4: =IF((1-相関係数1^2)*((X1SD*t1_0.05)^2-(AD4-X1m)^2)>0,SQRT((1-相関係数1^2)*((X1SD*t1_0.05)^2-(AD4-X1m)^2)),0) -> 0 | AH4: 2.448 | AI4: =AH5 ->  | AJ4: =(Y2SD/X2SD*(相関係数2*AI4+AL4))+切片2 ->  | AK4: =(Y2SD/X2SD*(相関係数2*AI4-AL4))+切片2 ->  | AL4: =IF((1-相関係数2^2)*((X2SD*t1_0.05)^2-(AI4-X2m)^2)>0,SQRT((1-相関係数2^2)*((X2SD*t1_0.05)^2-(AI4-X2m)^2)),0) ->  | AO4: rs= | AP4: =AP1/SQRT(AP2*AP3) -> 0.8915807789 | AQ4: =AQ1/SQRT(AQ2*AQ3) ->  | AS4: (X1+Y1)/2 | AT4: Y1-X1 | AY4: 0.001971921394 | AZ4: 0.7117881293 | BA4: 標準主軸a= | BB4: =BC7-BB3*BB7 -> 0.5212714693 | BE4: =BF7-BE3*BE7 -> 0.6063171077 | BH4: =BI7-BH3*BH7 -> 0.6192101976 | BK4: =BL7-BK3*BK7 -> 0.1450236477 | BN4: =BO7-BN3*BN7 -> 0.6646364265 | BQ4: =BR7-BQ3*BQ7 -> 0.4021716646 | BT4: =BU7-BT3*BT7 -> 0.009444484614 | BW4: =BX7-BW3*BW7 -> 0.2516688048 | BZ4: =CA7-BZ3*BZ7 -> 0.5421541562 | CC4: =CD7-CC3*CC7 -> 0.3739983306 | CF4: =CG7-CF3*CF7 -> 0.3117907008 | CI4: =CJ7-CI3*CI7 -> 0.2830257864 | CL4: =CM7-CL3*CL7 -> 0.4522563673 | CO4: =CP7-CO3*CO7 -> 0.568907208 | CR4: =CS7-CR3*CR7 -> 0.5716591855 | CU4: =CV7-CU3*CU7 -> 0.4074118811 | CX4: =CY7-CX3*CX7 -> 0.5570600749 | DA4: =DB7-DA3*DA7 -> 0.01060344266 | DD4: =DE7-DD3*DD7 -> 0.5234440326 | DG4: =DH7-DG3*DG7 -> 0.2314575062 | DJ4: =DK7-DJ3*DJ7 -> 0.2828928567 | DM4: =DN7-DM3*DM7 -> 0.3969025071 | DP4: =DQ7-DP3*DP7 -> 0.1858447759 | DS4: =DT7-DS3*DS7 -> 0.3224157283 | DV4: =DW7-DV3*DV7 -> 0.429762439 | DY4: =DZ7-DY3*DY7 -> 0.4383970808 | EB4: =EC7-EB3*EB7 -> 0.5289748771 | EE4: =EF7-EE3*EE7 -> -0.1259209387 | EH4: =EI7-EH3*EH7 -> 0.5168587428 | EK4: =EL7-EK3*EK7 -> 0.4400850371 | EN4: =EO7-EN3*EN7 -> 0.1807539414 | EQ4: =ER7-EQ3*EQ7 -> 0.2475552652 | ET4: =EU7-ET3*ET7 -> 0.1332452783 | EW4: =EX7-EW3*EW7 -> 0.5134652027 | EZ4: =FA7-EZ3*EZ7 -> 0.3489394225 | FC4: =FD7-FC3*FC7 -> 0.5976162729 | FF4: =FG7-FF3*FF7 -> 0.1874854743 | FI4: =FJ7-FI3*FI7 -> 0.4798934166 | FL4: =FM7-FL3*FL7 -> 0.1113827773 | FO4: =FP7-FO3*FO7 -> 0.4293181888 | FR4: =FS7-FR3*FR7 -> 0.3250259592 | FU4: =FV7-FU3*FU7 -> 0.4111127118 | FX4: =FY7-FX3*FX7 -> -0.1149398797 | GA4: =GB7-GA3*GA7 -> 0.7825803774 | GD4: =GE7-GD3*GD7 -> 0.5386853454 | GG4: =GH7-GG3*GG7 -> 0.4859300545 | GJ4: =GK7-GJ3*GJ7 -> 0.4236533286 | GM4: =GN7-GM3*GM7 -> 0.1363762495 | GP4: =GQ7-GP3*GP7 -> 0.2223331865 | GS4: =GT7-GS3*GS7 -> 0.5115228596 | GV4: =GW7-GV3*GV7 -> 0.4733692582 | GY4: =GZ7-GY3*GY7 -> 0.62837314 | HB4: =HC7-HB3*HB7 -> 0.4157894373 | HE4: =HF7-HE3*HE7 -> 0.2355956029 | HH4: =HI7-HH3*HH7 -> 0.3630244578 | HK4: =HL7-HK3*HK7 -> 0.2684928534 | HN4: =HO7-HN3*HN7 -> 0.04300333692 | HQ4: =HR7-HQ3*HQ7 -> 0.3891158429 | HT4: =HU7-HT3*HT7 -> 0.7145152188 | HW4: =HX7-HW3*HW7 -> 0.6415794462 | HZ4: =IA7-HZ3*HZ7 -> 0.3594339017 | IC4: =ID7-IC3*IC7 -> 0.1042644626 | IF4: =IG7-IF3*IF7 -> 0.278262525 | II4: =IJ7-II3*II7 -> 0.3884761502 | IL4: =IM7-IL3*IL7 -> 0.6351699149 | IO4: =IP7-IO3*IO7 -> 0.403471315 | IR4: =IS7-IR3*IR7 -> 0.5508886738 | IU4: =IV7-IU3*IU7 -> 0.2558023428 | IX4: =IY7-IX3*IX7 -> 0.3632313644 | JA4: =JB7-JA3*JA7 -> 0.4452459593 | JD4: =JE7-JD3*JD7 -> 0.1995620997 | JG4: =JH7-JG3*JG7 -> 0.2561702062 | JJ4: =JK7-JJ3*JJ7 -> 0.3843945281 | JM4: =JN7-JM3*JM7 -> 0.4439098666 | JP4: =JQ7-JP3*JP7 -> 0.5127129225 | JS4: =JT7-JS3*JS7 -> 0.2099388821 | JV4: =JW7-JV3*JV7 -> 0.3819181353 | JY4: =JZ7-JY3*JY7 -> 0.4309186823 | KB4: =KC7-KB3*KB7 -> 0.4411356206 | KE4: =KF7-KE3*KE7 -> 0.4529941361 | KH4: =KI7-KH3*KH7 -> 0.3542633046 | KK4: =KL7-KK3*KK7 -> 0.18055037 | KN4: =KO7-KN3*KN7 -> 0.6727469463 | KQ4: =KR7-KQ3*KQ7 -> 0.3545838981 | KT4: =KU7-KT3*KT7 -> 0.3620967658 | KW4: =KX7-KW3*KW7 -> 0.5440824985 | KZ4: =LA7-KZ3*KZ7 -> 0.6079135001 | LC4: =LD7-LC3*LC7 -> 0.5715787514 | LF4: =LG7-LF3*LF7 -> 0.4719369861 | LI4: =LJ7-LI3*LI7 -> 0.3498205464 | LL4: =LM7-LL3*LL7 -> 0.6448646488 | LO4: =LP7-LO3*LO7 -> 0.4995651652 | LR4: =LS7-LR3*LR7 -> 0.3453295553 | LU4: =LV7-LU3*LU7 -> 0.5133566256 | LX4: =LY7-LX3*LX7 -> 0.5030276793 | MA4: =MB7-MA3*MA7 -> 0.3004505404 | MD4: =ME7-MD3*MD7 -> 0.2040396833 | MG4: =MH7-MG3*MG7 -> 0.4459265462 | MJ4: =MK7-MJ3*MJ7 -> 0.3573290259 | MM4: =MN7-MM3*MM7 -> 0.5493310525 | MP4: =MQ7-MP3*MP7 -> 0.445407549 | MS4: =MT7-MS3*MS7 -> 0.3890007177 | MV4: =MW7-MV3*MV7 -> 0.3379462455 | MY4: =MZ7-MY3*MY7 -> 0.5234440981 | NB4: =NC7-NB3*NB7 -> 0.3793655143 | NE4: =NF7-NE3*NE7 -> 0.424445633 | NH4: =NI7-NH3*NH7 -> 0.6719616331 | NK4: =NL7-NK3*NK7 -> 0.5870616941 | NN4: =NO7-NN3*NN7 -> 0.3230323925 | NQ4: =NR7-NQ3*NQ7 -> 0.5504652055 | NT4: =NU7-NT3*NT7 -> 0.6204242253 | NW4: =NX7-NW3*NW7 -> 0.4225501582 | NZ4: =OA7-NZ3*NZ7 -> 0.4377790396 | OC4: =OD7-OC3*OC7 -> 0.0461382977 | OF4: =OG7-OF3*OF7 -> 0.4246521886 | OI4: =OJ7-OI3*OI7 -> 0.4360520903 | OL4: =OM7-OL3*OL7 -> 0.2951443988 | OO4: =OP7-OO3*OO7 -> 0.4489245902 | OR4: =OS7-OR3*OR7 -> 0.5977381227 | OU4: =OV7-OU3*OU7 -> 0.3709731824 | OX4: =OY7-OX3*OX7 -> 0.4938878417 | PA4: =PB7-PA3*PA7 -> 0.5361829214 | PD4: =PE7-PD3*PD7 -> 0.5740786246 | PG4: =PH7-PG3*PG7 -> 0.2937144452 | PJ4: =PK7-PJ3*PJ7 -> 0.1789671058 | PM4: =PN7-PM3*PM7 -> 0.4703428589 | PP4: =PQ7-PP3*PP7 -> 0.4638104083 | PS4: =PT7-PS3*PS7 -> 0.45163463 | PV4: =PW7-PV3*PV7 -> 0.6762882499 | PY4: =PZ7-PY3*PY7 -> 0.1633588857 | QB4: =QC7-QB3*QB7 -> 0.1580162847 | QE4: =QF7-QE3*QE7 -> 0.5068100877 | QH4: =QI7-QH3*QH7 -> 0.4615535158 | QK4: =QL7-QK3*QK7 -> 0.5322220502 | QN4: =QO7-QN3*QN7 -> -0.04769970307 | QQ4: =QR7-QQ3*QQ7 -> 0.3459155077 | QT4: =QU7-QT3*QT7 -> 0.591521623 | QW4: =QX7-QW3*QW7 -> 0.3077957657 | QZ4: =RA7-QZ3*QZ7 -> 0.5198084773 | RC4: =RD7-RC3*RC7 -> 0.4626496845 | RF4: =RG7-RF3*RF7 -> 0.7298786119 | RI4: =RJ7-RI3*RI7 -> 0.437097294 | RL4: =RM7-RL3*RL7 -> 0.1557133371 | RO4: =RP7-RO3*RO7 -> 0.6984429688 | RR4: =RS7-RR3*RR7 -> 0.5324973441 | RU4: =RV7-RU3*RU7 -> 0.365434211 | RX4: =RY7-RX3*RX7 -> 0.1395977534 | SA4: =SB7-SA3*SA7 -> 0.4093117617 | SD4: =SE7-SD3*SD7 -> 0.4530723769 | SG4: =SH7-SG3*SG7 -> 0.4153396836 | SJ4: =SK7-SJ3*SJ7 -> 0.517534552 | SM4: =SN7-SM3*SM7 -> 0.2397966879 | SP4: =SQ7-SP3*SP7 -> 0.4114464868 | SS4: =ST7-SS3*SS7 -> 0.7968870082 | SV4: =SW7-SV3*SV7 -> 0.4115686235 | SY4: =SZ7-SY3*SY7 -> 0.3357183886 | TB4: =TC7-TB3*TB7 -> 0.5797348491 | TE4: =TF7-TE3*TE7 -> 0.5486346733 | TH4: =TI7-TH3*TH7 -> 0.6295920496 | TK4: =TL7-TK3*TK7 -> 0.3814791047 | TN4: =TO7-TN3*TN7 -> 0.2346302665 | TQ4: =TR7-TQ3*TQ7 -> 0.2199155698 | TT4: =TU7-TT3*TT7 -> 0.4050169727 | TW4: =TX7-TW3*TW7 -> 0.2349074073 | TZ4: =UA7-TZ3*TZ7 -> 0.6144876047 | UC4: =UD7-UC3*UC7 -> 0.3984852709 | UF4: =UG7-UF3*UF7 -> 0.1930428963 | UI4: =UJ7-UI3*UI7 -> 0.4901987627 | UL4: =UM7-UL3*UL7 -> 0.2806093606 | UO4: =UP7-UO3*UO7 -> 0.271841309 | UR4: =US7-UR3*UR7 -> 0.7049394449 | UU4: =UV7-UU3*UU7 -> 0.5837327752 | UX4: =UY7-UX3*UX7 -> 0.273358153 | VA4: =VB7-VA3*VA7 -> 0.1414651153 | VD4: =VE7-VD3*VD7 -> 0.06374691163 | VG4: =VH7-VG3*VG7 -> 0.313590957 | VJ4: =VK7-VJ3*VJ7 -> 0.1656942101 | VM4: =VN7-VM3*VM7 -> 0.1612571463 | VP4: =VQ7-VP3*VP7 -> 0.6042309415 | VS4: =VT7-VS3*VS7 -> 0.3006842118 | VV4: =VW7-VV3*VV7 -> 0.3292561873 | VY4: =VZ7-VY3*VY7 -> 0.2532388021 | WB4: =WC7-WB3*WB7 -> 0.485769884 | WE4: =WF7-WE3*WE7 -> -0.284728035 | WH4: =WI7-WH3*WH7 -> 0.1119489076 | WK4: =WL7-WK3*WK7 -> 0.4075699329 | WN4: =WO7-WN3*WN7 -> 0.3970192868 | WQ4: =WR7-WQ3*WQ7 -> 0.3076917231 | WT4: =WU7-WT3*WT7 -> -0.01720880065 | WW4: =WX7-WW3*WW7 -> 0.1781705856 | WZ4: =XA7-WZ3*WZ7 -> 0.2974427696 | XC4: =XD7-XC3*XC7 -> 0.415017036 | XF4: =XG7-XF3*XF7 -> 0.5687791219 | XI4: =XJ7-XI3*XI7 -> 0.5450692106 | XL4: =XM7-XL3*XL7 -> 0.5346677176 | XO4: =XP7-XO3*XO7 -> 0.3797128671 | XR4: =XS7-XR3*XR7 -> 0.418140228 | XU4: =XV7-XU3*XU7 -> 0.2874016537 | XX4: =XY7-XX3*XX7 -> 0.2762179567 | YA4: =YB7-YA3*YA7 -> 0.6199264697 | YD4: =YE7-YD3*YD7 -> 0.09921286887 | YG4: =YH7-YG3*YG7 -> 0.6717031725 | YJ4: =YK7-YJ3*YJ7 -> 0.3400271758 | YM4: =YN7-YM3*YM7 -> 0.3751698718 | YP4: =YQ7-YP3*YP7 -> 0.5496509376 | YS4: =YT7-YS3*YS7 -> 0.5354137461 | YV4: =YW7-YV3*YV7 -> 0.7660111059 | YY4: =YZ7-YY3*YY7 -> 0.3060173973 | ZB4: =ZC7-ZB3*ZB7 -> 0.05681441538 | ZE4: =ZF7-ZE3*ZE7 -> 0.3935950996 | ZH4: =ZI7-ZH3*ZH7 -> 0.535288423 | ZK4: =ZL7-ZK3*ZK7 -> 0.1559005665 | ZN4: =ZO7-ZN3*ZN7 -> 0.2902815008 | ZQ4: =ZR7-ZQ3*ZQ7 -> 0.4497470661 | ZT4: =ZU7-ZT3*ZT7 -> 0.6141715686 | ZW4: =ZX7-ZW3*ZW7 -> 0.5532916791 | ZZ4: =AAA7-ZZ3*ZZ7 -> 0.500997311 | AAC4: =AAD7-AAC3*AAC7 -> 0.356095812 | AAF4: =AAG7-AAF3*AAF7 -> 0.6612034051 | AAI4: =AAJ7-AAI3*AAI7 -> 0.2226933914 | AAL4: =AAM7-AAL3*AAL7 -> 0.2764273995 | AAO4: =AAP7-AAO3*AAO7 -> 0.6221450214 | AAR4: =AAS7-AAR3*AAR7 -> 0.1548371288 | AAU4: =AAV7-AAU3*AAU7 -> 0.6649745353 | AAX4: =AAY7-AAX3*AAX7 -> 0.4455794338 | ABA4: =ABB7-ABA3*ABA7 -> 0.2630906511 | ABD4: =ABE7-ABD3*ABD7 -> 0.2431241746 | ABG4: =ABH7-ABG3*ABG7 -> 0.4801582132 | ABJ4: =ABK7-ABJ3*ABJ7 -> 0.4600566665 | ABM4: =ABN7-ABM3*ABM7 -> 0.6294730611 | ABP4: =ABQ7-ABP3*ABP7 -> 0.5337429355 | ABS4: =ABT7-ABS3*ABS7 -> 0.1767916647 | ABV4: =ABW7-ABV3*ABV7 -> 0.1994779303 | ABY4: =ABZ7-ABY3*ABY7 -> 0.2811678432 | ACB4: =ACC7-ACB3*ACB7 -> 0.2291150992 | ACE4: =ACF7-ACE3*ACE7 -> 0.5813883534 | ACH4: =ACI7-ACH3*ACH7 -> 0.4116999222 | ACK4: =ACL7-ACK3*ACK7 -> 0.2362730281 | ACN4: =ACO7-ACN3*ACN7 -> 0.2934906642 | ACQ4: =ACR7-ACQ3*ACQ7 -> 0.3861986487 | ACT4: =ACU7-ACT3*ACT7 -> 0.4281888044 | ACW4: =ACX7-ACW3*ACW7 -> 0.5765788758 | ACZ4: =ADA7-ACZ3*ACZ7 -> 0.4262276688 | ADC4: =ADD7-ADC3*ADC7 -> 0.421029299 | ADF4: =ADG7-ADF3*ADF7 -> 0.2592528083 | ADI4: =ADJ7-ADI3*ADI7 -> 0.343308011 | ADL4: =ADM7-ADL3*ADL7 -> 0.3633376588 | ADO4: =ADP7-ADO3*ADO7 -> 0.5652654942 | ADR4: =ADS7-ADR3*ADR7 -> 0.4581744429 | ADU4: =ADV7-ADU3*ADU7 -> 0.402998681 | ADX4: =ADY7-ADX3*ADX7 -> 0.4811280358 | AEA4: =AEB7-AEA3*AEA7 -> 0.3920935945 | AED4: =AEE7-AED3*AED7 -> 0.3289619523 | AEG4: =AEH7-AEG3*AEG7 -> 0.7629776074 | AEJ4: =AEK7-AEJ3*AEJ7 -> 0.4062797656 | AEM4: =AEN7-AEM3*AEM7 -> 0.5245819305 | AEP4: =AEQ7-AEP3*AEP7 -> 0.4118852159 | AES4: =AET7-AES3*AES7 -> 0.5477972996 | AEV4: =AEW7-AEV3*AEV7 -> 0.3492747511 | AEY4: =AEZ7-AEY3*AEY7 -> 0.4323444162 | AFB4: =AFC7-AFB3*AFB7 -> 0.2566277237 | AFE4: =AFF7-AFE3*AFE7 -> 0.4503638559 | AFH4: =AFI7-AFH3*AFH7 -> 0.2910007468 | AFK4: =AFL7-AFK3*AFK7 -> 0.6646259967 | AFN4: =AFO7-AFN3*AFN7 -> 0.3796712503 | AFQ4: =AFR7-AFQ3*AFQ7 -> 0.5104510576 | AFT4: =AFU7-AFT3*AFT7 -> 0.444825098 | AFW4: =AFX7-AFW3*AFW7 -> 0.337038487 | AFZ4: =AGA7-AFZ3*AFZ7 -> 0.4566075986 | AGC4: =AGD7-AGC3*AGC7 -> 0.2747863988 | AGF4: =AGG7-AGF3*AGF7 -> 0.2920372259 | AGI4: =AGJ7-AGI3*AGI7 -> 0.4976037121 | AGL4: =AGM7-AGL3*AGL7 -> 0.3774515464 | AGO4: =AGP7-AGO3*AGO7 -> 0.2029679945 | AGR4: =AGS7-AGR3*AGR7 -> 0.4990856247 | AGU4: =AGV7-AGU3*AGU7 -> 0.001971921394 | AGX4: =AGY7-AGX3*AGX7 -> 0.2385987199 | AHA4: =AHB7-AHA3*AHA7 -> 0.5795343696 | AHD4: =AHE7-AHD3*AHD7 -> 0.2726833585 | AHG4: =AHH7-AHG3*AHG7 -> 0.2827061309 | AHJ4: =AHK7-AHJ3*AHJ7 -> 0.3688878723 | AHM4: =AHN7-AHM3*AHM7 -> 0.5096477988 | AHP4: =AHQ7-AHP3*AHP7 -> 0.4920071999 | AHS4: =AHT7-AHS3*AHS7 -> 0.549078674 | AHV4: =AHW7-AHV3*AHV7 -> 0.2060330354 | AHY4: =AHZ7-AHY3*AHY7 -> 0.3616790396 | AIB4: =AIC7-AIB3*AIB7 -> 0.4389850764 | AIE4: =AIF7-AIE3*AIE7 -> 0.7085748318 | AIH4: =AII7-AIH3*AIH7 -> 0.1642662269 | AIK4: =AIL7-AIK3*AIK7 -> 0.3919842927 | AIN4: =AIO7-AIN3*AIN7 -> 0.2374740315 | AIQ4: =AIR7-AIQ3*AIQ7 -> 0.1831525571 | AIT4: =AIU7-AIT3*AIT7 -> 0.3625353628 | AIW4: =AIX7-AIW3*AIW7 -> 0.08254336134 | AIZ4: =AJA7-AIZ3*AIZ7 -> 0.3406327236 | AJC4: =AJD7-AJC3*AJC7 -> 0.3997990836 | AJF4: =AJG7-AJF3*AJF7 -> 0.4106472016 | AJI4: =AJJ7-AJI3*AJI7 -> 0.4092581494 | AJL4: =AJM7-AJL3*AJL7 -> 0.5689929982 | AJO4: =AJP7-AJO3*AJO7 -> 0.1582521655 | AJR4: =AJS7-AJR3*AJR7 -> 0.5411140168 | AJU4: =AJV7-AJU3*AJU7 -> 0.479466816 | AJX4: =AJY7-AJX3*AJX7 -> 0.2772769492 | AKA4: =AKB7-AKA3*AKA7 -> 0.1108377419 | AKD4: =AKE7-AKD3*AKD7 -> 0.4779486164 | AKG4: =AKH7-AKG3*AKG7 -> 0.1007326519 | AKJ4: =AKK7-AKJ3*AKJ7 -> 0.5369992528 | AKM4: =AKN7-AKM3*AKM7 -> 0.5680615131 | AKP4: =AKQ7-AKP3*AKP7 -> 0.7117881293 | AKS4: =AKT7-AKS3*AKS7 -> 0.1813133423 | AKV4: =AKW7-AKV3*AKV7 -> -0.008984629164 | AKY4: =AKZ7-AKY3*AKY7 -> 0.319918226 | ALB4: =ALC7-ALB3*ALB7 -> 0.602052845 | ALE4: =ALF7-ALE3*ALE7 -> 0.3509821164 | ALH4: =ALI7-ALH3*ALH7 -> 0.09744873521 | ALK4: =ALL7-ALK3*ALK7 -> 0.3551519995 | ALN4: =ALO7-ALN3*ALN7 -> 0.41962776 | ALQ4: =ALR7-ALQ3*ALQ7 -> 0.3169585105 | ALT4: =ALU7-ALT3*ALT7 -> 0.3434818564 | ALW4: =ALX7-ALW3*ALW7 -> 0.5338970883 | ALZ4: =AMA7-ALZ3*ALZ7 -> 0.5300758861 | AMC4: =AMD7-AMC3*AMC7 -> 0.3009781725 | AMF4: =AMG7-AMF3*AMF7 -> 0.3333846214 | AMI4: =AMJ7-AMI3*AMI7 -> 0.1878314972 | AML4: =AMM7-AML3*AML7 -> 0.6268574044 | AMO4: =AMP7-AMO3*AMO7 -> 0.2127581737 | AMR4: =AMS7-AMR3*AMR7 -> 0.2771217106 | AMU4: =AMV7-AMU3*AMU7 -> 0.5134861895 | AMX4: =AMY7-AMX3*AMX7 -> 0.3760216589 | ANA4: =ANB7-ANA3*ANA7 -> 0.2241964944 | AND4: =ANE7-AND3*AND7 -> 0.02277659964 | ANG4: =ANH7-ANG3*ANG7 -> 0.3633499009 | ANJ4: =ANK7-ANJ3*ANJ7 -> 0.5114149457 | ANM4: =ANN7-ANM3*ANM7 -> 0.5110350983 | ANP4: =ANQ7-ANP3*ANP7 -> 0.3845463339 | ANS4: =ANT7-ANS3*ANS7 -> 0.1436617521 | ANV4: =ANW7-ANV3*ANV7 -> 0.3789226506 | ANY4: =ANZ7-ANY3*ANY7 -> 0.7238442525 | AOB4: =AOC7-AOB3*AOB7 -> 0.3718772729 | AOE4: =AOF7-AOE3*AOE7 -> 0.2871142632 | AOH4: =AOI7-AOH3*AOH7 -> 0.7357727688 | AOK4: =AOL7-AOK3*AOK7 -> 0.2312190329 | AON4: =AOO7-AON3*AON7 -> 0.5454361636 | AOQ4: =AOR7-AOQ3*AOQ7 -> 0.739955448 | AOT4: =AOU7-AOT3*AOT7 -> 0.3745396106 | AOW4: =AOX7-AOW3*AOW7 -> 0.4569088253 | AOZ4: =APA7-AOZ3*AOZ7 -> 0.4985280696 | APC4: =APD7-APC3*APC7 -> 0.1745016028 | APF4: =APG7-APF3*APF7 -> 0.5712884057 | API4: =APJ7-API3*API7 -> 0.4208136169 | APL4: =APM7-APL3*APL7 -> 0.5488934444 | APO4: =APP7-APO3*APO7 -> 0.4281050293 | APR4: =APS7-APR3*APR7 -> 0.1560324047 | APU4: =APV7-APU3*APU7 -> 0.3649209077 | APX4: =APY7-APX3*APX7 -> 0.2352558482 | AQA4: =AQB7-AQA3*AQA7 -> 0.2188518104 | AQD4: =AQE7-AQD3*AQD7 -> 0.4563074895 | AQG4: =AQH7-AQG3*AQG7 -> 0.7387600233 | AQJ4: =AQK7-AQJ3*AQJ7 -> 0.6272114754 | AQM4: =AQN7-AQM3*AQM7 -> 0.1729124983 | AQP4: =AQQ7-AQP3*AQP7 -> 0.3427041872 | AQS4: =AQT7-AQS3*AQS7 -> 0.3577233225 | AQV4: =AQW7-AQV3*AQV7 -> 0.5309085177 | AQY4: =AQZ7-AQY3*AQY7 -> 0.4150123832 | ARB4: =ARC7-ARB3*ARB7 -> 0.3791428309 | ARE4: =ARF7-ARE3*ARE7 -> 0.3175894566 | ARH4: =ARI7-ARH3*ARH7 -> -0.05671491335 | ARK4: =ARL7-ARK3*ARK7 -> 0.2856515042 | ARN4: =ARO7-ARN3*ARN7 -> 0.2832757851 | ARQ4: =ARR7-ARQ3*ARQ7 -> 0.2267738482 | ART4: =ARU7-ART3*ART7 -> 0.2696995196 | ARW4: =ARX7-ARW3*ARW7 -> 0.1143869204 | ARZ4: =ASA7-ARZ3*ARZ7 -> 0.4424979847 | ASC4: =ASD7-ASC3*ASC7 -> 0.4854317685 | ASF4: =ASG7-ASF3*ASF7 -> 0.5477766571 | ASI4: =ASJ7-ASI3*ASI7 -> 0.5464883532 | ASL4: =ASM7-ASL3*ASL7 -> 0.3972923896 | ASO4: =ASP7-ASO3*ASO7 -> -0.05893400575 | ASR4: =ASS7-ASR3*ASR7 -> 0.4536416864 | ASU4: =ASV7-ASU3*ASU7 -> 0.3032164135 | ASX4: =ASY7-ASX3*ASX7 -> 0.4273606676 | ATA4: =ATB7-ATA3*ATA7 -> 0.6375220616 | ATD4: =ATE7-ATD3*ATD7 -> 0.2715827773 | ATG4: =ATH7-ATG3*ATG7 -> 0.4497545795 | ATJ4: =ATK7-ATJ3*ATJ7 -> 0.2487435778 | ATM4: =ATN7-ATM3*ATM7 -> 0.1755335491 | ATP4: =ATQ7-ATP3*ATP7 -> 0.2936286488 | ATS4: =ATT7-ATS3*ATS7 -> 0.6537608613 | ATV4: =ATW7-ATV3*ATV7 -> 0.07647317762 | ATY4: =ATZ7-ATY3*ATY7 -> 0.4546323059 | AUB4: =AUC7-AUB3*AUB7 -> 0.1774652074 | AUE4: =AUF7-AUE3*AUE7 -> 0.3033548793 | AUH4: =AUI7-AUH3*AUH7 -> 0.2410093304 | AUK4: =AUL7-AUK3*AUK7 -> 0.4257033515 | AUN4: =AUO7-AUN3*AUN7 -> 0.5171976381 | AUQ4: =AUR7-AUQ3*AUQ7 -> 0.2217634042 | AUT4: =AUU7-AUT3*AUT7 -> 0.4982668625 | AUW4: =AUX7-AUW3*AUW7 -> 0.2604529257 | AUZ4: =AVA7-AUZ3*AUZ7 -> 0.5910655109 | AVC4: =AVD7-AVC3*AVC7 -> 0.4693777566 | AVF4: =AVG7-AVF3*AVF7 -> 0.5417064743 | AVI4: =AVJ7-AVI3*AVI7 -> 0.04496021074 | AVL4: =AVM7-AVL3*AVL7 -> 0.6407108626 | AVO4: =AVP7-AVO3*AVO7 -> 0.2370975639 | AVR4: =AVS7-AVR3*AVR7 -> 0.4281546736 | AVU4: =AVV7-AVU3*AVU7 -> 0.4060391019 | AVX4: =AVY7-AVX3*AVX7 -> 0.3000227853 | AWA4: =AWB7-AWA3*AWA7 -> -0.08348448017 | AWD4: =AWE7-AWD3*AWD7 -> 0.4102803644 | AWG4: =AWH7-AWG3*AWG7 -> 0.2759246866 | AWJ4: =AWK7-AWJ3*AWJ7 -> 0.2458463308 | AWM4: =AWN7-AWM3*AWM7 -> 0.5032473634 | AWP4: =AWQ7-AWP3*AWP7 -> 0.2726408995 | AWS4: =AWT7-AWS3*AWS7 -> 0.6727573091 | AWV4: =AWW7-AWV3*AWV7 -> 0.5185606037 | AWY4: =AWZ7-AWY3*AWY7 -> 0.5953353443 | AXB4: =AXC7-AXB3*AXB7 -> 0.6011918142 | AXE4: =AXF7-AXE3*AXE7 -> 0.2723338142 | AXH4: =AXI7-AXH3*AXH7 -> 0.3206677766 | AXK4: =AXL7-AXK3*AXK7 -> 0.2358175784 | AXN4: =AXO7-AXN3*AXN7 -> 0.5733941444 | AXQ4: =AXR7-AXQ3*AXQ7 -> 0.386033376 | AXT4: =AXU7-AXT3*AXT7 -> 0.3439403521 | AXW4: =AXX7-AXW3*AXW7 -> 0.4354401356 | AXZ4: =AYA7-AXZ3*AXZ7 -> 0.5264212531 | AYC4: =AYD7-AYC3*AYC7 -> 0.3819856859 | AYF4: =AYG7-AYF3*AYF7 -> 0.7180845073 | AYI4: =AYJ7-AYI3*AYI7 -> 0.2279507305 | AYL4: =AYM7-AYL3*AYL7 -> 0.5639341278 | AYO4: =AYP7-AYO3*AYO7 -> 0.2953865567 | AYR4: =AYS7-AYR3*AYR7 -> 0.479244023 | AYU4: =AYV7-AYU3*AYU7 -> 0.4174194364 | AYX4: =AYY7-AYX3*AYX7 -> 0.1203985924 | AZA4: =AZB7-AZA3*AZA7 -> 0.5371129626 | AZD4: =AZE7-AZD3*AZD7 -> 0.4859974466 | AZG4: =AZH7-AZG3*AZG7 -> 0.4256191301 | AZJ4: =AZK7-AZJ3*AZJ7 -> 0.4572696856 | AZM4: =AZN7-AZM3*AZM7 -> 0.5143671103 | AZP4: =AZQ7-AZP3*AZP7 -> 0.3477058903 | AZS4: =AZT7-AZS3*AZS7 -> 0.304557375 | AZV4: =AZW7-AZV3*AZV7 -> 0.5329345281 | AZY4: =AZZ7-AZY3*AZY7 -> 0.404146147 | BAB4: =BAC7-BAB3*BAB7 -> 0.2460878479 | BAE4: =BAF7-BAE3*BAE7 -> 0.148057452 | BAH4: =BAI7-BAH3*BAH7 -> 0.5250329572 | BAK4: =BAL7-BAK3*BAK7 -> 0.4584698105 | BAN4: =BAO7-BAN3*BAN7 -> 0.1570031792 | BAQ4: =BAR7-BAQ3*BAQ7 -> 0.01615732099 | BAT4: =BAU7-BAT3*BAT7 -> 0.309626522 | BAW4: =BAX7-BAW3*BAW7 -> 0.6625168961 | BAZ4: =BBA7-BAZ3*BAZ7 -> 0.3156347702 | BBC4: =BBD7-BBC3*BBC7 -> 0.5542404975 | BBF4: =BBG7-BBF3*BBF7 -> 0.5385429543 | BBI4: =BBJ7-BBI3*BBI7 -> 0.6996115352 | BBL4: =BBM7-BBL3*BBL7 -> 0.5351097153 | BBO4: =BBP7-BBO3*BBO7 -> 0.4401209924 | BBR4: =BBS7-BBR3*BBR7 -> 0.1069501447 | BBU4: =BBV7-BBU3*BBU7 -> 0.6390183706 | BBX4: =BBY7-BBX3*BBX7 -> 0.3479735157 | BCA4: =BCB7-BCA3*BCA7 -> 0.4191105003 | BCD4: =BCE7-BCD3*BCD7 -> 0.4830378261 | BCG4: =BCH7-BCG3*BCG7 -> 0.3900918756 | BCJ4: =BCK7-BCJ3*BCJ7 -> 0.5530550537 | BCM4: =BCN7-BCM3*BCM7 -> 0.3699690557 | BCP4: =BCQ7-BCP3*BCP7 -> 0.2160331853 | BCS4: =BCT7-BCS3*BCS7 -> -0.1786999077 | BCV4: =BCW7-BCV3*BCV7 -> 0.03780395409 | BCY4: =BCZ7-BCY3*BCY7 -> 0.4029903168 | BDB4: =BDC7-BDB3*BDB7 -> 0.6147486794 | BDE4: =BDF7-BDE3*BDE7 -> 0.6393940563 | BDH4: =BDI7-BDH3*BDH7 -> 0.634987026 | BDK4: =BDL7-BDK3*BDK7 -> 0.5095206526 | BDN4: =BDO7-BDN3*BDN7 -> 0.09747745436 | BDQ4: =BDR7-BDQ3*BDQ7 -> 0.4545613022 | BDT4: =BDU7-BDT3*BDT7 -> 0.4492534949 | BDW4: =BDX7-BDW3*BDW7 -> 0.3292229022 | BDZ4: =BEA7-BDZ3*BDZ7 -> 0.4839939122 | BEC4: =BED7-BEC3*BEC7 -> 0.2788409863 | BEF4: =BEG7-BEF3*BEF7 -> 0.1472342181 | BEI4: =BEJ7-BEI3*BEI7 -> 0.5406924835 | BEL4: =BEM7-BEL3*BEL7 -> 0.4411702604 | BEO4: =BEP7-BEO3*BEO7 -> 0.5308815073 | BER4: =BES7-BER3*BER7 -> 0.3218895405 | BEU4: =BEV7-BEU3*BEU7 -> 0.4358373701 | BEX4: =BEY7-BEX3*BEX7 -> 0.2809877422 | BFA4: =BFB7-BFA3*BFA7 -> 0.4349433217 | BFD4: =BFE7-BFD3*BFD7 -> 0.3060770568 | BFG4: =BFH7-BFG3*BFG7 -> 0.4992632127 | BFJ4: =BFK7-BFJ3*BFJ7 -> 0.4460343297 | BFM4: =BFN7-BFM3*BFM7 -> 0.5538435543 | BFP4: =BFQ7-BFP3*BFP7 -> 0.6914193518 | BFS4: =BFT7-BFS3*BFS7 -> 0.6442990612 | BFV4: =BFW7-BFV3*BFV7 -> 0.4960867603 | BFY4: =BFZ7-BFY3*BFY7 -> 0.4954169156 | BGB4: =BGC7-BGB3*BGB7 -> 0.08970960185 | BGE4: =BGF7-BGE3*BGE7 -> 0.3729295181 | BGH4: =BGI7-BGH3*BGH7 -> 0.460202909 | BGK4: =BGL7-BGK3*BGK7 -> 0.5780755485 | BGN4: =BGO7-BGN3*BGN7 -> 0.6943074937 | BGQ4: =BGR7-BGQ3*BGQ7 -> 0.5977155516 | BGT4: =BGU7-BGT3*BGT7 -> 0.4399348368
C5: 1 | D5: 0.22 | E5: 0.51 | H5: =IF(ISERROR(DEVSQ(D5,F5)),"",DEVSQ(D5,F5)) -> 0 | I5: =IF(ISERROR(DEVSQ(E5,G5)),"",DEVSQ(E5,G5)) -> 0 | K5: データ数：=COUNT(セル範囲) | M5: =COUNT(D5:D1304) -> 50 | N5: =COUNT(E5:E1304) -> 50 | O5: =COUNT(F5:F1304) -> 0 | P5: =COUNT(G5:G1304) -> 0 | Q5: 分 散 | R5: =R4/M5 -> 0 | S5: =S4/N5 -> 0 | U5: データ区間 | V5: X累積 | W5: X | X5: データ区間 | Y5: Y累積 | Z5: Y | AB5: X開始点 | AC5: =X1m-(X1SD*t1_0.05) -> -1.610313643 | AD5: =AD4+$AC$7 -> -1.555541461 | AE5: -0.249200383 | AF5: =(Y1SD/X1SD*(相関係数1*AD5-AG5))+切片1 -> -1.026413577 | AG5: =IF((1-相関係数1^2)*((X1SD*t1_0.05)^2-(AD5-X1m)^2)>0,SQRT((1-相関係数1^2)*((X1SD*t1_0.05)^2-(AD5-X1m)^2)),0) -> 0.3517099839 | AH5: =X2m-(X2SD*t1_0.05) ->  | AI5: =AI4+$AH$7 ->  | AN5: =IF(D5<>"",RANK(D5,D$5:D$1304),"") -> 49 | AO5: =IF(E5<>"",RANK(E5,E$5:E$1304),"") -> 50 | AP5: =IF(F5<>"",RANK(F5,F$5:F$504),"") ->  | AQ5: =IF(G5<>"",RANK(G5,G$5:G$504),"") ->  | AS5: =IF(D5<>"",(D5+E5)/2,"") -> 0.365 | AT5: =IF(D5<>"",(E5-D5),"") -> 0.29 | AV5: =IF(D5<>"",(D5+E5)/2,"") -> 0.365 | AW5: =IF(D5<>"",(E5-D5),"") -> 0.29 | AY5: 0.96 | AZ5: 1.365994236 | BA5: Passing b | BB5: 1.108695652 | BE5: 1 | BH5: 1.146938776 | BK5: 1.116888046 | BN5: 1.018334163 | BQ5: 1.115226337 | BT5: 1.186741873 | BW5: 1.29535865 | BZ5: 1.08908046 | CC5: 1 | CF5: 1.157894737 | CI5: 1.337248958 | CL5: 1.032608696 | CO5: 1.072463768 | CR5: 1.17218543 | CU5: 1.039215686 | CX5: 1.092896175 | DA5: 0.9947643979 | DD5: 1.034836066 | DG5: 1.03264095 | DJ5: 1.288888889 | DM5: 1.205479452 | DP5: 1.157894737 | DS5: 1.15493521 | DV5: 1.038160233 | DY5: 1.051020408 | EB5: 1.064814815 | EE5: 1.103274559 | EH5: 1.116129032 | EK5: 1.007142857 | EN5: 1.282051282 | EQ5: 1.096385542 | ET5: 1.080246914 | EW5: 1.069767442 | EZ5: 0.9287469287 | FC5: 0.9791666667 | FF5: 1.14 | FI5: 1 | FL5: 1.202020202 | FO5: 1.14 | FR5: 1.124223602 | FU5: 1.064814815 | FX5: 1.096491228 | GA5: 1.066666667 | GD5: 1.081355932 | GG5: 1.14 | GJ5: 1.12244898 | GM5: 1.248979592 | GP5: 1.004032258 | GS5: 1.096491228 | GV5: 1.111111111 | GY5: 1.216326531 | HB5: 1.068217054 | HE5: 1.273542601 | HH5: 1.138613861 | HK5: 1.032608696 | HN5: 1.119748301 | HQ5: 1.009090909 | HT5: 1.088983051 | HW5: 1.076054893 | HZ5: 1.017857143 | IC5: 1.333333333 | IF5: 1.059025974 | II5: 1.162790698 | IL5: 1.033426184 | IO5: 1.098259937 | IR5: 1.071428571 | IU5: 1.197526174 | IX5: 0.9895469114 | JA5: 1.229885057 | JD5: 1.101694915 | JG5: 1 | JJ5: 1.282051282 | JM5: 1.095744681 | JP5: 0.9874213836 | JS5: 1.066666667 | JV5: 1.069204152 | JY5: 1.169435216 | KB5: 1.011688312 | KE5: 1.08974359 | KH5: 1.116129032 | KK5: 1.006968641 | KN5: 1.182481752 | KQ5: 0.968498252 | KT5: 1.062248996 | KW5: 1.117924528 | KZ5: 1.216450216 | LC5: 1.201219512 | LF5: 1.082474227 | LI5: 1.070063694 | LL5: 0.9047619048 | LO5: 1.138256941 | LR5: 1.071428571 | LU5: 1.172299612 | LX5: 1.22754491 | MA5: 0.9895833333 | MD5: 1.234042553 | MG5: 1.047619048 | MJ5: 1.033426184 | MM5: 1.146938776 | MP5: 1 | MS5: 1.093167702 | MV5: 1.045977011 | MY5: 0.9653469915 | NB5: 1.172413793 | NE5: 1.090680101 | NH5: 1.093167702 | NK5: 0.9664082687 | NN5: 1.235988201 | NQ5: 1.062248996 | NT5: 1.127016629 | NW5: 1.066666667 | NZ5: 1.071942446 | OC5: 1.055682618 | OF5: 1.322115385 | OI5: 1.222222222 | OL5: 1.093839948 | OO5: 1.06887627 | OR5: 1.28358209 | OU5: 1.020408163 | OX5: 1.180327869 | PA5: 1.1 | PD5: 1.125791047 | PG5: 1.388888889 | PJ5: 1.119341564 | PM5: 1.062248996 | PP5: 1.180103435 | PS5: 1.079646018 | PV5: 1.156328321 | PY5: 1.097484277 | QB5: 1.201219512 | QE5: 1.142463768 | QH5: 1.162790698 | QK5: 1.071942446 | QN5: 1.082474227 | QQ5: 0.9347826087 | QT5: 1.179039301 | QW5: 0.96 | QZ5: 1.21761658 | RC5: 1.090680101 | RF5: 1.127404735 | RI5: 1.151975684 | RL5: 1.255411255 | RO5: 1.450980392 | RR5: 1.264705882 | RU5: 1.081355932 | RX5: 1.075949367 | SA5: 1.095744681 | SD5: 1.154761905 | SG5: 1.124223602 | SJ5: 1.109903382 | SM5: 1.126582278 | SP5: 1.062857143 | SS5: 1.088983051 | SV5: 1.32967033 | SY5: 1.286458333 | TB5: 1.302788845 | TE5: 1.17218543 | TH5: 1.17218543 | TK5: 1.066666667 | TN5: 1.12745098 | TQ5: 1.120155039 | TT5: 1.363636364 | TW5: 1.225 | TZ5: 1.428571429 | UC5: 1.337078652 | UF5: 1.135869565 | UI5: 1.097484277 | UL5: 1.097249601 | UO5: 1.301886792 | UR5: 1.047619048 | UU5: 1.298319328 | UX5: 1.137778268 | VA5: 1.22754491 | VD5: 1.071942446 | VG5: 1.038744404 | VJ5: 1.020710059 | VM5: 1.086021505 | VP5: 0.9791666667 | VS5: 1.00484771 | VV5: 1.302337819 | VY5: 1.079646018 | WB5: 1.282051282 | WE5: 1.200607903 | WH5: 1.12745098 | WK5: 1.154761905 | WN5: 1.229321614 | WQ5: 1.071428571 | WT5: 1.062248996 | WW5: 1.26984127 | WZ5: 1.156328321 | XC5: 1.415929204 | XF5: 1.259259259 | XI5: 1.320895522 | XL5: 1.016260163 | XO5: 1.273542601 | XR5: 0.9565217391 | XU5: 1.111111111 | XX5: 1.096385542 | YA5: 1.052208835 | YD5: 1.124223602 | YG5: 1.2 | YJ5: 1.273542601 | YM5: 1.104970613 | YP5: 1.307692308 | YS5: 0.96 | YV5: 1.090680101 | YY5: 1.038062284 | ZB5: 1.100775194 | ZE5: 1.139444444 | ZH5: 1.039215686 | ZK5: 1.11552456 | ZN5: 1.005347594 | ZQ5: 1.288888889 | ZT5: 0.9642857143 | ZW5: 1.26984127 | ZZ5: 1.221238938 | AAC5: 1.036449175 | AAF5: 1.100775194 | AAI5: 1.090680101 | AAL5: 1.235988201 | AAO5: 1.139444444 | AAR5: 1.013192612 | AAU5: 0.9753521127 | AAX5: 1.292131873 | ABA5: 1.079646018 | ABD5: 1.116129032 | ABG5: 1.117647059 | ABJ5: 1.066666667 | ABM5: 1 | ABP5: 1.277777778 | ABS5: 1.058721901 | ABV5: 1.019148607 | ABY5: 1.17218543 | ACB5: 1.162790698 | ACE5: 1.225146199 | ACH5: 1.298319328 | ACK5: 1.160580021 | ACN5: 1.138888889 | ACQ5: 1.162790698 | ACT5: 1.113402062 | ACW5: 1.09034005 | ACZ5: 1.00990099 | ADC5: 0.9707602339 | ADF5: 1.282816686 | ADI5: 0.9625 | ADL5: 1.079646018 | ADO5: 1.22875817 | ADR5: 1.069767442 | ADU5: 1.028568544 | ADX5: 1 | AEA5: 1.03264095 | AED5: 1.060344828 | AEG5: 0.9565217391 | AEJ5: 0.8978723404 | AEM5: 1.084337349 | AEP5: 1.13176457 | AES5: 1.229321614 | AEV5: 1.124223602 | AEY5: 1.096491228 | AFB5: 1.325670498 | AFE5: 1.052208835 | AFH5: 1.163265306 | AFK5: 1.05370182 | AFN5: 1.106666667 | AFQ5: 1.25 | AFT5: 1.172413793 | AFW5: 1.035598706 | AFZ5: 1.201010101 | AGC5: 1.004004329 | AGF5: 1.359090909 | AGI5: 1.055194805 | AGL5: 1.416666667 | AGO5: 1.135869565 | AGR5: 1.069565217 | AGU5: 1.17218543 | AGX5: 1.186915888 | AHA5: 1.092896175 | AHD5: 0.9874213836 | AHG5: 1.062248996 | AHJ5: 1.152910919 | AHM5: 1.103274559 | AHP5: 1.200913707 | AHS5: 1.29535865 | AHV5: 1.08908046 | AHY5: 1.031496063 | AIB5: 1.325670498 | AIE5: 0.9761407836 | AIH5: 1.175069456 | AIK5: 1.106382979 | AIN5: 1.033426184 | AIQ5: 1.326704545 | AIT5: 1.069157914 | AIW5: 1.17218543 | AIZ5: 1.038062284 | AJC5: 1.049092923 | AJF5: 1.08974359 | AJI5: 1.08191508 | AJL5: 1.243523316 | AJO5: 1.166666667 | AJR5: 1.095128438 | AJU5: 1.306666667 | AJX5: 1.092896175 | AKA5: 1.069204152 | AKD5: 1.32967033 | AKG5: 1.243935058 | AKJ5: 1.221238938 | AKM5: 1.095744681 | AKP5: 1.17218543 | AKS5: 1.096685083 | AKV5: 1.080801423 | AKY5: 0.9642857143 | ALB5: 1.249042146 | ALE5: 1.333333333 | ALH5: 1.081355932 | ALK5: 1.194444444 | ALN5: 1.151975684 | ALQ5: 1.126582278 | ALT5: 1.101694915 | ALW5: 1.088983051 | ALZ5: 1.084337349 | AMC5: 1.177725118 | AMF5: 1.186915888 | AMI5: 1.298319328 | AML5: 1.348623853 | AMO5: 1.055194805 | AMR5: 1.036830495 | AMU5: 1 | AMX5: 1.354141752 | ANA5: 1.013192612 | AND5: 1.162790698 | ANG5: 1.08974359 | ANJ5: 1.039215686 | ANM5: 1.45 | ANP5: 1.094456191 | ANS5: 1.071942446 | ANV5: 1.025104603 | ANY5: 1.40562249 | AOB5: 1.123774 | AOE5: 1.008928571 | AOH5: 1.216326531 | AOK5: 1.146938776 | AON5: 1.151975684 | AOQ5: 1.219427759 | AOT5: 1.008928571 | AOW5: 1.002673797 | AOZ5: 1.039215686 | APC5: 1.032608696 | APF5: 1.017857143 | API5: 1.138888889 | APL5: 1.116129032 | APO5: 0.997382199 | APR5: 1.070854944 | APU5: 0.9741935484 | APX5: 1.042689126 | AQA5: 1.203208556 | AQD5: 1.121302009 | AQG5: 1.176821238 | AQJ5: 1.1 | AQM5: 1.089031755 | AQP5: 1.081355932 | AQS5: 1.014285714 | AQV5: 1.127358491 | AQY5: 1.03264095 | ARB5: 1.202020202 | ARE5: 1.163265306 | ARH5: 1.069204152 | ARK5: 0.9706742346 | ARN5: 1.097014925 | ARQ5: 1.307692308 | ART5: 1.174603175 | ARW5: 1.2 | ARZ5: 1.020408163 | ASC5: 1.071942446 | ASF5: 1.103274559 | ASI5: 1.064761905 | ASL5: 1.229775828 | ASO5: 1.201954397 | ASR5: 1.079646018 | ASU5: 1.006622517 | ASX5: 1.070063694 | ATA5: 1.052208835 | ATD5: 1.080246914 | ATG5: 0.9841549296 | ATJ5: 1.288888889 | ATM5: 1.08908046 | ATP5: 1.111111111 | ATS5: 1.157894737 | ATV5: 1.14 | ATY5: 1.039215686 | AUB5: 1.192307692 | AUE5: 1.102484737 | AUH5: 1.048951049 | AUK5: 1.258342501 | AUN5: 1.377811944 | AUQ5: 1.116129032 | AUT5: 1.309090909 | AUW5: 1.004761905 | AUZ5: 1.025641026 | AVC5: 1.025641026 | AVF5: 1.108888889 | AVI5: 1.050847458 | AVL5: 1.048951049 | AVO5: 1.363636364 | AVR5: 1.216450216 | AVU5: 1.126582278 | AVX5: 1.060344828 | AWA5: 1.203208556 | AWD5: 1.071428571 | AWG5: 1.265264334 | AWJ5: 1.038062284 | AWM5: 1.287234043 | AWP5: 1.031496063 | AWS5: 1.081355932 | AWV5: 1.12133298 | AWY5: 0.9565217391 | AXB5: 1.120155039 | AXE5: 1.090680101 | AXH5: 1.264705882 | AXK5: 1.192307692 | AXN5: 1.365994236 | AXQ5: 1.182481752 | AXT5: 1.286885246 | AXW5: 1.43977591 | AXZ5: 1.1 | AYC5: 1.209302326 | AYF5: 1.221121807 | AYI5: 1.234042553 | AYL5: 1.401253918 | AYO5: 1.062248996 | AYR5: 1.097256098 | AYU5: 1.100775194 | AYX5: 1.261982571 | AZA5: 1.127358491 | AZD5: 1.166666667 | AZG5: 1.5625 | AZJ5: 1.032624823 | AZM5: 1.302788845 | AZP5: 1.174603175 | AZS5: 1.00990099 | AZV5: 1.180327869 | AZY5: 1.066666667 | BAB5: 1.169435216 | BAE5: 1.045643154 | BAH5: 1.256418499 | BAK5: 1.139028046 | BAN5: 0.9355107985 | BAQ5: 1.055194805 | BAT5: 1.119341564 | BAW5: 1.100775194 | BAZ5: 1.139442231 | BBC5: 1.286458333 | BBF5: 1.096385542 | BBI5: 1.002016129 | BBL5: 1.096588155 | BBO5: 1.066666667 | BBR5: 1.009090909 | BBU5: 1.094512195 | BBX5: 1.045643154 | BCA5: 1.216216216 | BCD5: 1.048951049 | BCG5: 1.004149378 | BCJ5: 1.2 | BCM5: 1.039215686 | BCP5: 1.172413793 | BCS5: 1.08908046 | BCV5: 1.354545455 | BCY5: 1.034836066 | BDB5: 1.155870445 | BDE5: 1.214285714 | BDH5: 0.9234828496 | BDK5: 1.096491228 | BDN5: 1.111111111 | BDQ5: 1.062248996 | BDT5: 1.028423773 | BDW5: 1.047619048 | BDZ5: 0.96 | BEC5: 1.014285714 | BEF5: 1.249042146 | BEI5: 1.221238938 | BEL5: 1.127659574 | BEO5: 1.096753077 | BER5: 1.233734841 | BEU5: 1.082474227 | BEX5: 1.162790698 | BFA5: 1.157894737 | BFD5: 1.106382979 | BFG5: 1.066666667 | BFJ5: 1.048951049 | BFM5: 1.045977011 | BFP5: 0.9811320755 | BFS5: 1.200607903 | BFV5: 1.008928571 | BFY5: 1.108695652 | BGB5: 1.008677686 | BGE5: 1.307692308 | BGH5: 1.162790698 | BGK5: 1.096438385 | BGN5: 0.9565217391 | BGQ5: 1.082474227 | BGT5: 1.22754491 | BGW5: 1.13176457
C6: 2 | D6: 0.22 | E6: 0.56 | H6: 0 | I6: 0 | K6: 平 均：=AVERAGE(セル範囲) | M6: =AVERAGE(D5:D1304) -> 2.4976 | N6: =AVERAGE(E5:E1304) -> 3.1708 | O6: =AVERAGE(F5:F1304) ->  | P6: =AVERAGE(G5:G1304) ->  | Q6: 精密度SD | R6: =R5^0.5 -> 0 | S6: =S5^0.5 -> 0 | U6: =CEILING(((_MAX1-_MIN1)/階級数)+_MIN1,0.01) -> 0.85 | V6: =FREQUENCY($D$5:$D$1304,U6) -> 8 | W6: =V6 -> 8 | X6: =CEILING(((_MAX2-_MIN2)/階級数)+_MIN2,0.1) -> 1.1 | Y6: =FREQUENCY($E$5:$E$1304,X6) -> 7 | Z6: =Y6 -> 7 | AB6: X終了点 | AC6: =X1m+(X1SD*t1_0.05) -> 6.605513643 | AD6: =AD5+$AC$7 -> -1.50076928 | AE6: -0.03861390677 | AF6: -1.134064729 | AG6: 0.4957211151 | AH6: =X2m+(X2SD*t1_0.05) ->  | AI6: =AI5+$AH$7 ->  | AN6: =IF(D6<>"",RANK(D6,$D$5:$D$1304),"") -> 49 | AO6: =IF(E6<>"",RANK(E6,$E$5:$E$1304),"") -> 49 | AS6: =IF(D6<>"",(D6+E6)/2,"") -> 0.39 | AT6: =IF(D6<>"",(E6-D6),"") -> 0.34 | AV6: =IF(D6<>"",(D6+E6)/2,"") -> 0.39 | AW6: =IF(D6<>"",(E6-D6),"") -> 0.34 | AY6: 0.09285714286 | AZ6: 0.585 | BA6: Passing a | BB6: 0.3419565217 | BE6: 0.53 | BH6: 0.3862653061 | BK6: 0.3480455408 | BN6: 0.537663846 | BQ6: 0.393127572 | BT6: 0.2572355653 | BW6: 0.225021097 | BZ6: 0.1990229885 | CC6: 0.48 | CF6: 0.3794736842 | CI6: 0.1687912088 | CL6: 0.4195652174 | CO6: 0.3963768116 | CR6: 0.3823509934 | CU6: 0.4174509804 | CX6: 0.3620218579 | DA6: 0.4995811518 | DD6: 0.5195901639 | DG6: 0.4195548961 | DJ6: 0.3181111111 | DM6: 0.3199315068 | DP6: 0.3794736842 | DS6: 0.4268892977 | DV6: 0.4702552092 | DY6: 0.5008163265 | EB6: 0.4157407407 | EE6: 0.4968513854 | EH6: 0.4390322581 | EK6: 0.4907142857 | EN6: 0.1333333333 | EQ6: 0.5221686747 | ET6: 0.4043209877 | EW6: 0.4076744186 | EZ6: 0.6203931204 | FC6: 0.5526041667 | FF6: 0.4956 | FI6: 0.5 | FL6: 0.3256565657 | FO6: 0.3852 | FR6: 0.4159006211 | FU6: 0.3796296296 | FX6: 0.3868421053 | GA6: 0.4826666667 | GD6: 0.3591186441 | GG6: 0.318 | GJ6: 0.272244898 | GM6: 0.2711836735 | GP6: 0.5784677419 | GS6: 0.3298245614 | GV6: 0.25 | GY6: 0.2924081633 | HB6: 0.5540775194 | HE6: 0.242690583 | HH6: 0.461980198 | HK6: 0.4576086957 | HN6: 0.3136553737 | HQ6: 0.5609090909 | HT6: 0.3271610169 | HW6: 0.3656919328 | HZ6: 0.5392857143 | IC6: 0.1866666667 | IF6: 0.4232662338 | II6: 0.2541860465 | IL6: 0.3763231198 | IO6: 0.3248721755 | IR6: 0.4071428571 | IU6: 0.3667916245 | IX6: 0.5135890152 | JA6: 0.2894252874 | JD6: 0.4420338983 | JG6: 0.385 | JJ6: 0.1434615385 | JM6: 0.4489361702 | JP6: 0.4340251572 | JS6: 0.4133333333 | JV6: 0.4100346021 | JY6: 0.2912292359 | KB6: 0.4848051948 | KE6: 0.3363461538 | KH6: 0.2748387097 | KK6: 0.5637630662 | KN6: 0.3716058394 | KQ6: 0.5409522724 | KT6: 0.382811245 | KW6: 0.3849528302 | KZ6: 0.2923809524 | LC6: 0.2957317073 | LF6: 0.3617525773 | LI6: 0.3617834395 | LL6: 0.6371428571 | LO6: 0.3857577789 | LR6: 0.4071428571 | LU6: 0.2463484814 | LX6: 0.2041916168 | MA6: 0.5260416667 | MD6: 0.2885106383 | MG6: 0.4523809524 | MJ6: 0.5064066852 | MM6: 0.4215306122 | MP6: 0.49 | MS6: 0.3895341615 | MV6: 0.3481609195 | MY6: 0.5029697305 | NB6: 0.4522413793 | NE6: 0.3200503778 | NH6: 0.3590062112 | NK6: 0.6001550388 | NN6: 0.2380825959 | NQ6: 0.3930823293 | NT6: 0.3348783817 | NW6: 0.368 | NZ6: 0.3985611511 | OC6: 0.44408867 | OF6: 0.08125 | OI6: 0.3011111111 | OL6: 0.3046056469 | OO6: 0.3658206831 | OR6: 0.3986567164 | OU6: 0.4734693878 | OX6: 0.2363934426 | PA6: 0.319 | PD6: 0.3040191023 | PG6: 0.1666666667 | PJ6: 0.5083950617 | PM6: 0.2763052209 | PP6: 0.3558655343 | PS6: 0.3662831858 | PV6: 0.3786591479 | PY6: 0.4228616352 | QB6: 0.2457317073 | QE6: 0.260357971 | QH6: 0.3041860465 | QK6: 0.3985611511 | QN6: 0.3397938144 | QQ6: 0.5847826087 | QT6: 0.362510917 | QW6: 0.6028 | QZ6: 0.3044041451 | RC6: 0.4548110831 | RF6: 0.3119709582 | RI6: 0.271550152 | RL6: 0.214025974 | RO6: -0.0862745098 | RR6: 0.1908823529 | RU6: 0.3656610169 | RX6: 0.384556962 | SA6: 0.314787234 | SD6: 0.255952381 | SG6: 0.3093167702 | SJ6: 0.3571256039 | SM6: 0.2934810127 | SP6: 0.3862857143 | SS6: 0.4015254237 | SV6: 0.1975274725 | SY6: 0.180859375 | TB6: 0.3272908367 | TE6: 0.3705298013 | TH6: 0.3749006623 | TK6: 0.368 | TN6: 0.2567647059 | TQ6: 0.3122868217 | TT6: 0.1381818182 | TW6: 0.277 | TZ6: 0.09285714286 | UC6: 0.0841011236 | UF6: 0.3483152174 | UI6: 0.3501572327 | UL6: 0.301502863 | UO6: 0.1131132075 | UR6: 0.4088095238 | UU6: 0.1185714286 | UX6: 0.3859109542 | VA6: 0.2951197605 | VD6: 0.3553956835 | VG6: 0.4915156702 | VJ6: 0.4730769231 | VM6: 0.3210752688 | VP6: 0.528125 | VS6: 0.481128691 | VV6: 0.1969608359 | VY6: 0.3442477876 | WB6: 0.2303846154 | WE6: 0.2958662614 | WH6: 0.4859803922 | WK6: 0.2620238095 | WN6: 0.2669585305 | WQ6: 0.4071428571 | WT6: 0.3855823293 | WW6: 0.1492063492 | WZ6: 0.3786591479 | XC6: 0.1017699115 | XF6: 0.232962963 | XI6: 0.1728358209 | XL6: 0.4500406504 | XO6: 0.1141704036 | XR6: 0.4852173913 | XU6: 0.3155555556 | XX6: 0.4481927711 | YA6: 0.3285140562 | YD6: 0.3059627329 | YG6: 0.312 | YJ6: 0.3424663677 | YM6: 0.3635382032 | YP6: 0.2030769231 | YS6: 0.6028 | YV6: 0.3200503778 | YY6: 0.5405190311 | ZB6: 0.4431007752 | ZE6: 0.3853777778 | ZH6: 0.4420588235 | ZK6: 0.42599151 | ZN6: 0.5744919786 | ZQ6: 0.1388888889 | ZT6: 0.5744642857 | ZW6: 0.1603968254 | ZZ6: 0.2913274336 | AAC6: 0.4183362641 | AAF6: 0.4204263566 | AAI6: 0.3200503778 | AAL6: 0.2380825959 | AAO6: 0.3187222222 | AAR6: 0.5071240106 | AAU6: 0.3454225352 | AAX6: 0.225730988 | ABA6: 0.3769911504 | ABD6: 0.4159354839 | ABG6: 0.3141176471 | ABJ6: 0.393 | ABM6: 0.585 | ABP6: 0.2288888889 | ABS6: 0.4236615292 | ABV6: 0.4549580486 | ABY6: 0.3602649007 | ACB6: 0.3711627907 | ACE6: 0.2404678363 | ACH6: 0.2743697479 | ACK6: 0.3737271751 | ACN6: 0.4094444444 | ACQ6: 0.41 | ACT6: 0.2449484536 | ACW6: 0.3479783375 | ACZ6: 0.5485148515 | ADC6: 0.5198830409 | ADF6: 0.2223383085 | ADI6: 0.59425 | ADL6: 0.4454867257 | ADO6: 0.2911437908 | ADR6: 0.3734883721 | ADU6: 0.4514435696 | ADX6: 0.6 | AEA6: 0.4575667656 | AED6: 0.4027586207 | AEG6: 0.3495652174 | AEJ6: 0.4113617021 | AEM6: 0.3596385542 | AEP6: 0.3110117946 | AES6: 0.2918819022 | AEV6: 0.2626708075 | AEY6: 0.3403508772 | AFB6: 0.1301340996 | AFE6: 0.4224899598 | AFH6: 0.377755102 | AFK6: 0.4301876337 | AFN6: 0.3613333333 | AFQ6: 0.27 | AFT6: 0.3339655172 | AFW6: 0.4519093851 | AFZ6: 0.3278282828 | AGC6: 0.4947943723 | AGF6: 0.1737727273 | AGI6: 0.4123376623 | AGL6: 0.1758333333 | AGO6: 0.4351358696 | AGR6: 0.5535652174 | AGU6: 0.3632119205 | AGX6: 0.3470093458 | AHA6: 0.3448087432 | AHD6: 0.5796855346 | AHG6: 0.382811245 | AHJ6: 0.4781575871 | AHM6: 0.3969521411 | AHP6: 0.3280355289 | AHS6: 0.118628692 | AHV6: 0.3673850575 | AHY6: 0.4362204724 | AIB6: 0.2683524904 | AIE6: 0.587676691 | AIH6: 0.1594680503 | AIK6: 0.3959574468 | AIN6: 0.456545961 | AIQ6: 0.09269886364 | AIT6: 0.4063578395 | AIW6: 0.331192053 | AIZ6: 0.435432526 | AJC6: 0.4330840604 | AJF6: 0.3833333333 | AJI6: 0.3584253014 | AJL6: 0.243626943 | AJO6: 0.2533333333 | AJR6: 0.3190717436 | AJU6: 0.2752 | AJX6: 0.32 | AKA6: 0.4100346021 | AKD6: 0.07142857143 | AKG6: 0.1277898734 | AKJ6: 0.2913274336 | AKM6: 0.2988297872 | AKP6: 0.331192053 | AKS6: 0.3020165746 | AKV6: 0.3598062356 | AKY6: 0.5464285714 | ALB6: 0.2298850575 | ALE6: 0.1733333333 | ALH6: 0.3411186441 | ALK6: 0.2472222222 | ALN6: 0.271550152 | ALQ6: 0.3624683544 | ALT6: 0.4420338983 | ALW6: 0.4291525424 | ALZ6: 0.3903614458 | AMC6: 0.2395853081 | AMF6: 0.3701869159 | AMI6: 0.3457563025 | AML6: 0.2133027523 | AMO6: 0.4019480519 | AMR6: 0.4182142417 | AMU6: 0.58 | AMX6: 0.1491955672 | ANA6: 0.4828496042 | AND6: 0.2581395349 | ANG6: 0.3833333333 | ANJ6: 0.5145098039 | ANM6: -0.08425 | ANP6: 0.3042285582 | ANS6: 0.3985611511 | ANV6: 0.4288702929 | ANY6: 0.1265060241 | AOB6: 0.3127697201 | AOE6: 0.4736607143 | AOH6: 0.3007346939 | AOK6: 0.2927346939 | AON6: 0.3924316109 | AOQ6: 0.291725893 | AOT6: 0.2880357143 | AOW6: 0.5568983957 | AOZ6: 0.4490196078 | APC6: 0.5086956522 | APF6: 0.4822321429 | API6: 0.3922222222 | APL6: 0.4321612903 | APO6: 0.5096858639 | APR6: 0.4016061569 | APU6: 0.5617419355 | APX6: 0.4118788986 | AQA6: 0.3606684492 | AQD6: 0.3423073881 | AQG6: 0.3601323907 | AQJ6: 0.482 | AQM6: 0.3496006234 | AQP6: 0.3591186441 | AQS6: 0.5714285714 | AQV6: 0.3344339623 | AQY6: 0.4302670623 | ARB6: 0.3256565657 | ARE6: 0.377755102 | ARH6: 0.5384775087 | ARK6: 0.4393842449 | ARN6: 0.373880597 | ARQ6: 0.1965384615 | ART6: 0.3015873016 | ARW6: 0.348 | ARZ6: 0.4346938776 | ASC6: 0.3645683453 | ASF6: 0.3813476071 | ASI6: 0.3714857143 | ASL6: 0.2894493177 | ASO6: 0.3609446254 | ASR6: 0.396460177 | ASU6: 0.4778807947 | ASX6: 0.4075796178 | ATA6: 0.4224899598 | ATD6: 0.369537037 | ATG6: 0.5783802817 | ATJ6: 0.2248888889 | ATM6: 0.4014942529 | ATP6: 0.3555555556 | ATS6: 0.3052631579 | ATV6: 0.459 | ATY6: 0.4901960784 | AUB6: 0.215 | AUE6: 0.5185091577 | AUH6: 0.4143356643 | AUK6: 0.2541547488 | AUN6: 0.2275101149 | AUQ6: 0.316 | AUT6: 0.2117272727 | AUW6: 0.5544761905 | AUZ6: 0.4666666667 | AVC6: 0.4666666667 | AVF6: 0.4484444444 | AVI6: 0.5124576271 | AVL6: 0.4948951049 | AVO6: 0.1495454545 | AVR6: 0.3086147186 | AVU6: 0.1756962025 | AVX6: 0.4215517241 | AWA6: 0.309197861 | AWD6: 0.3592857143 | AWG6: 0.1896816828 | AWJ6: 0.445467128 | AWM6: 0.2768085106 | AWP6: 0.4929133858 | AWS6: 0.4039661017 | AWV6: 0.4192537429 | AWY6: 0.4458695652 | AXB6: 0.2701162791 | AXE6: 0.3200503778 | AXH6: 0.1908823529 | AXK6: 0.3678846154 | AXN6: 0.06429394813 | AXQ6: 0.08905109489 | AXT6: 0.2469672131 | AXW6: 0.03770308123 | AXZ6: 0.398 | AYC6: 0.4544186047 | AYF6: 0.2413532025 | AYI6: 0.2885106383 | AYL6: 0.1963322884 | AYO6: 0.3794477912 | AYR6: 0.3735670732 | AYU6: 0.3178294574 | AYX6: 0.249422658 | AZA6: 0.3618396226 | AZD6: 0.3383333333 | AZG6: -0.2375 | AZJ6: 0.4303509225 | AZM6: 0.1090039841 | AZP6: 0.2515873016 | AZS6: 0.5740594059 | AZV6: 0.2829508197 | AZY6: 0.3706666667 | BAB6: 0.4694186047 | BAE6: 0.4034024896 | BAH6: 0.2625545412 | BAK6: 0.2634844779 | BAN6: 0.6045058966 | BAQ6: 0.4123376623 | BAT6: 0.3448559671 | BAW6: 0.3520155039 | BAZ6: 0.3140239044 | BBC6: 0.1293229167 | BBF6: 0.3404819277 | BBI6: 0.4575 | BBL6: 0.3295531647 | BBO6: 0.4826666667 | BBR6: 0.5690909091 | BBU6: 0.3771341463 | BBX6: 0.444813278 | BCA6: 0.2951351351 | BCD6: 0.423951049 | BCG6: 0.4846473029 | BCJ6: 0.33 | BCM6: 0.4490196078 | BCP6: 0.2462068966 | BCS6: 0.4916091954 | BCV6: 0.212 | BCY6: 0.418852459 | BDB6: 0.4248785425 | BDE6: 0.3114285714 | BDH6: 0.6174934037 | BDK6: 0.3403508772 | BDN6: 0.2888888889 | BDQ6: 0.4877911647 | BDT6: 0.5629457364 | BDW6: 0.4019047619 | BDZ6: 0.604 | BEC6: 0.5257142857 | BEF6: 0.2298850575 | BEI6: 0.2913274336 | BEL6: 0.4005319149 | BEO6: 0.3187143231 | BER6: 0.238578335 | BEU6: 0.3809278351 | BEX6: 0.2418604651 | BFA6: 0.4852631579 | BFD6: 0.3093617021 | BFG6: 0.4086666667 | BFJ6: 0.416993007 | BFM6: 0.4044252874 | BFP6: 0.5532075472 | BFS6: 0.3272948328 | BFV6: 0.5190178571 | BFY6: 0.3586956522 | BGB6: 0.4272231405 | BGE6: 0.11 | BGH6: 0.2034883721 | BGK6: 0.3404164025 | BGN6: 0.5630434783 | BGQ6: 0.3927835052 | BGT6: 0.2960479042 | BGW6: 0.3110117946
C7: 3 | D7: 0.46 | E7: 0.7 | H7: 0 | I7: 0 | K7: 分 散：=VER（セル範囲) | M7: =VAR(D5:D1304) -> 2.815916571 | N7: =VAR(E5:E1304) -> 3.437721796 | O7: =VAR(F5:F1304) ->  | P7: =VAR(G5:G1304) ->  | Q7: CV | R7: =R6/X1m -> 0 | S7: =S6/X1m -> 0 | U7: =U6+CEILING((_MAX1-_MIN1)/階級数,0.01) -> 1.48 | V7: 17 | W7: =V7-V6 -> 9 | X7: =X6+CEILING((_MAX2-_MIN2)/階級数,0.01) -> 1.68 | Y7: 12 | Z7: =Y7-Y6 -> 5 | AB7: serp | AC7: =(AC6-AC5)/150 -> 0.05477218191 | AD7: -1.445997098 | AE7: 0.1336820941 | AF7: -1.203425406 | AG7: 0.6050772957 | AH7: =(AH6-AH5)/150 ->  | AN7: 44 | AO7: 48 | AS7: =IF(D7<>"",(D7+E7)/2,"") -> 0.58 | AT7: 0.24 | AV7: 0.58 | AW7: 0.24 | AY7: ↑ rank ブートストラップ用に使用 | BA7: 平均X・Y= | BB7: =AVERAGE(BB11:BB511) -> 2.6942 | BC7: =AVERAGE(BC11:BC511) -> 3.106 | BE7: =AVERAGE(BE11:BE511) -> 2.6506 | BF7: =AVERAGE(BF11:BF511) -> 3.7008 | BH7: =AVERAGE(BH11:BH511) -> 2.4518 | BI7: =AVERAGE(BI11:BI511) -> 3.228 | BK7: =AVERAGE(BK11:BK511) -> 2.2856 | BL7: =AVERAGE(BL11:BL511) -> 3.117 | BN7: =AVERAGE(BN11:BN511) -> 2.8566 | BO7: =AVERAGE(BO11:BO511) -> 3.4178 | BQ7: =AVERAGE(BQ11:BQ511) -> 2.36 | BR7: =AVERAGE(BR11:BR511) -> 2.7926 | BT7: =AVERAGE(BT11:BT511) -> 2.4082 | BU7: =AVERAGE(BU11:BU511) -> 3.013 | BW7: =AVERAGE(BW11:BW511) -> 1.924 | BX7: =AVERAGE(BX11:BX511) -> 2.6236 | BZ7: =AVERAGE(BZ11:BZ511) -> 2.4956 | CA7: =AVERAGE(CA11:CA511) -> 2.9004 | CC7: =AVERAGE(CC11:CC511) -> 2.2794 | CD7: =AVERAGE(CD11:CD511) -> 2.888 | CF7: =AVERAGE(CF11:CF511) -> 3.063 | CG7: =AVERAGE(CG11:CG511) -> 3.7146 | CI7: =AVERAGE(CI11:CI511) -> 2.607 | CJ7: =AVERAGE(CJ11:CJ511) -> 2.9542 | CL7: =AVERAGE(CL11:CL511) -> 2.6544 | CM7: =AVERAGE(CM11:CM511) -> 3.1294 | CO7: =AVERAGE(CO11:CO511) -> 2.5414 | CP7: =AVERAGE(CP11:CP511) -> 3.0784 | CR7: =AVERAGE(CR11:CR511) -> 2.1134 | CS7: =AVERAGE(CS11:CS511) -> 2.7432 | CU7: =AVERAGE(CU11:CU511) -> 2.547 | CV7: =AVERAGE(CV11:CV511) -> 3.2876 | CX7: =AVERAGE(CX11:CX511) -> 2.5106 | CY7: =AVERAGE(CY11:CY511) -> 3.1752 | DA7: =AVERAGE(DA11:DA511) -> 2.3062 | DB7: =AVERAGE(DB11:DB511) -> 2.8222 | DD7: =AVERAGE(DD11:DD511) -> 2.516 | DE7: =AVERAGE(DE11:DE511) -> 3.166 | DG7: =AVERAGE(DG11:DG511) -> 2.9248 | DH7: =AVERAGE(DH11:DH511) -> 3.4184 | DJ7: =AVERAGE(DJ11:DJ511) -> 2.3434 | DK7: =AVERAGE(DK11:DK511) -> 2.9458 | DM7: =AVERAGE(DM11:DM511) -> 2.973 | DN7: =AVERAGE(DN11:DN511) -> 3.855 | DP7: =AVERAGE(DP11:DP511) -> 2.5602 | DQ7: =AVERAGE(DQ11:DQ511) -> 3.3202 | DS7: =AVERAGE(DS11:DS511) -> 2.2356 | DT7: =AVERAGE(DT11:DT511) -> 2.9634 | DV7: =AVERAGE(DV11:DV511) -> 2.1754 | DW7: =AVERAGE(DW11:DW511) -> 2.8808 | DY7: =AVERAGE(DY11:DY511) -> 2.0962 | DZ7: =AVERAGE(DZ11:DZ511) -> 2.71 | EB7: =AVERAGE(EB11:EB511) -> 2.4126 | EC7: =AVERAGE(EC11:EC511) -> 3.0886 | EE7: =AVERAGE(EE11:EE511) -> 2.7876 | EF7: =AVERAGE(EF11:EF511) -> 3.6668 | EH7: =AVERAGE(EH11:EH511) -> 2.526 | EI7: =AVERAGE(EI11:EI511) -> 3.206 | EK7: =AVERAGE(EK11:EK511) -> 2.7582 | EL7: =AVERAGE(EL11:EL511) -> 3.5206 | EN7: =AVERAGE(EN11:EN511) -> 2.3724 | EO7: =AVERAGE(EO11:EO511) -> 3.2406 | EQ7: =AVERAGE(EQ11:EQ511) -> 2.1618 | ER7: =AVERAGE(ER11:ER511) -> 2.932 | ET7: =AVERAGE(ET11:ET511) -> 2.2132 | EU7: =AVERAGE(EU11:EU511) -> 2.9142 | EW7: =AVERAGE(EW11:EW511) -> 2.1998 | EX7: =AVERAGE(EX11:EX511) -> 2.8476 | EZ7: =AVERAGE(EZ11:EZ511) -> 2.281 | FA7: =AVERAGE(FA11:FA511) -> 2.7928 | FC7: =AVERAGE(FC11:FC511) -> 2.253 | FD7: =AVERAGE(FD11:FD511) -> 2.9452 | FF7: =AVERAGE(FF11:FF511) -> 1.8354 | FG7: =AVERAGE(FG11:FG511) -> 2.463 | FI7: =AVERAGE(FI11:FI511) -> 2.5472 | FJ7: =AVERAGE(FJ11:FJ511) -> 2.9822 | FL7: =AVERAGE(FL11:FL511) -> 2.9526 | FM7: =AVERAGE(FM11:FM511) -> 3.6402 | FO7: =AVERAGE(FO11:FO511) -> 2.2442 | FP7: =AVERAGE(FP11:FP511) -> 2.8022 | FR7: =AVERAGE(FR11:FR511) -> 2.4064 | FS7: =AVERAGE(FS11:FS511) -> 2.9666 | FU7: =AVERAGE(FU11:FU511) -> 2.768 | FV7: =AVERAGE(FV11:FV511) -> 3.4274 | FX7: =AVERAGE(FX11:FX511) -> 2.4524 | FY7: =AVERAGE(FY11:FY511) -> 3.0982 | GA7: =AVERAGE(GA11:GA511) -> 3.0286 | GB7: =AVERAGE(GB11:GB511) -> 3.664 | GD7: =AVERAGE(GD11:GD511) -> 2.3926 | GE7: =AVERAGE(GE11:GE511) -> 3.0842 | GG7: =AVERAGE(GG11:GG511) -> 2.5146 | GH7: =AVERAGE(GH11:GH511) -> 3.1798 | GJ7: =AVERAGE(GJ11:GJ511) -> 2.165 | GK7: =AVERAGE(GK11:GK511) -> 2.9086 | GM7: =AVERAGE(GM11:GM511) -> 2.2238 | GN7: =AVERAGE(GN11:GN511) -> 3.1018 | GP7: =AVERAGE(GP11:GP511) -> 2.2574 | GQ7: =AVERAGE(GQ11:GQ511) -> 2.9628 | GS7: =AVERAGE(GS11:GS511) -> 2.8262 | GT7: =AVERAGE(GT11:GT511) -> 3.2396 | GV7: =AVERAGE(GV11:GV511) -> 2.517 | GW7: =AVERAGE(GW11:GW511) -> 3.3542 | GY7: =AVERAGE(GY11:GY511) -> 2.4618 | GZ7: =AVERAGE(GZ11:GZ511) -> 3.28 | HB7: =AVERAGE(HB11:HB511) -> 2.697 | HC7: =AVERAGE(HC11:HC511) -> 3.203 | HE7: =AVERAGE(HE11:HE511) -> 2.299 | HF7: =AVERAGE(HF11:HF511) -> 3.2816 | HH7: =AVERAGE(HH11:HH511) -> 2.7078 | HI7: =AVERAGE(HI11:HI511) -> 3.1366 | HK7: =AVERAGE(HK11:HK511) -> 2.18 | HL7: =AVERAGE(HL11:HL511) -> 2.7108 | HN7: =AVERAGE(HN11:HN511) -> 2.4678 | HO7: =AVERAGE(HO11:HO511) -> 3.137 | HQ7: =AVERAGE(HQ11:HQ511) -> 2.4804 | HR7: =AVERAGE(HR11:HR511) -> 3.2002 | HT7: =AVERAGE(HT11:HT511) -> 2.6082 | HU7: =AVERAGE(HU11:HU511) -> 3.115 | HW7: =AVERAGE(HW11:HW511) -> 2.3724 | HX7: =AVERAGE(HX11:HX511) -> 2.8044 | HZ7: =AVERAGE(HZ11:HZ511) -> 2.5542 | IA7: =AVERAGE(IA11:IA511) -> 3.3494 | IC7: =AVERAGE(IC11:IC511) -> 2.7976 | ID7: =AVERAGE(ID11:ID511) -> 3.3966 | IF7: =AVERAGE(IF11:IF511) -> 2.652 | IG7: =AVERAGE(IG11:IG511) -> 3.0722 | II7: =AVERAGE(II11:II511) -> 2.3844 | IJ7: =AVERAGE(IJ11:IJ511) -> 3.0958 | IL7: =AVERAGE(IL11:IL511) -> 2.6976 | IM7: =AVERAGE(IM11:IM511) -> 3.286 | IO7: =AVERAGE(IO11:IO511) -> 2.6868 | IP7: =AVERAGE(IP11:IP511) -> 3.2734 | IR7: =AVERAGE(IR11:IR511) -> 2.2764 | IS7: =AVERAGE(IS11:IS511) -> 3.1346 | IU7: =AVERAGE(IU11:IU511) -> 2.4292 | IV7: =AVERAGE(IV11:IV511) -> 3.1854 | IX7: =AVERAGE(IX11:IX511) -> 2.2068 | IY7: =AVERAGE(IY11:IY511) -> 3.0868 | JA7: =AVERAGE(JA11:JA511) -> 2.6718 | JB7: =AVERAGE(JB11:JB511) -> 2.9404 | JD7: =AVERAGE(JD11:JD511) -> 2.5288 | JE7: =AVERAGE(JE11:JE511) -> 3.2312 | JG7: =AVERAGE(JG11:JG511) -> 2.0316 | JH7: =AVERAGE(JH11:JH511) -> 2.6404 | JJ7: =AVERAGE(JJ11:JJ511) -> 2.2098 | JK7: =AVERAGE(JK11:JK511) -> 2.9228 | JM7: =AVERAGE(JM11:JM511) -> 2.3012 | JN7: =AVERAGE(JN11:JN511) -> 2.8906 | JP7: =AVERAGE(JP11:JP511) -> 2.608 | JQ7: =AVERAGE(JQ11:JQ511) -> 3.1574 | JS7: =AVERAGE(JS11:JS511) -> 2.3128 | JT7: =AVERAGE(JT11:JT511) -> 2.9816 | JV7: =AVERAGE(JV11:JV511) -> 2.3916 | JW7: =AVERAGE(JW11:JW511) -> 2.984 | JY7: =AVERAGE(JY11:JY511) -> 2.4466 | JZ7: =AVERAGE(JZ11:JZ511) -> 3.2732 | KB7: =AVERAGE(KB11:KB511) -> 2.992 | KC7: =AVERAGE(KC11:KC511) -> 3.513 | KE7: =AVERAGE(KE11:KE511) -> 2.8562 | KF7: =AVERAGE(KF11:KF511) -> 3.2268 | KH7: =AVERAGE(KH11:KH511) -> 2.686 | KI7: =AVERAGE(KI11:KI511) -> 3.569 | KK7: =AVERAGE(KK11:KK511) -> 2.1094 | KL7: =AVERAGE(KL11:KL511) -> 2.7676 | KN7: =AVERAGE(KN11:KN511) -> 2.0954 | KO7: =AVERAGE(KO11:KO511) -> 2.6246 | KQ7: =AVERAGE(KQ11:KQ511) -> 2.086 | KR7: =AVERAGE(KR11:KR511) -> 2.8078 | KT7: =AVERAGE(KT11:KT511) -> 2.5782 | KU7: =AVERAGE(KU11:KU511) -> 3.2556 | KW7: =AVERAGE(KW11:KW511) -> 2.6418 | KX7: =AVERAGE(KX11:KX511) -> 3.1724 | KZ7: =AVERAGE(KZ11:KZ511) -> 2.362 | LA7: =AVERAGE(LA11:LA511) -> 3.1868 | LC7: =AVERAGE(LC11:LC511) -> 2.3058 | LD7: =AVERAGE(LD11:LD511) -> 2.8746 | LF7: =AVERAGE(LF11:LF511) -> 2.2606 | LG7: =AVERAGE(LG11:LG511) -> 2.7458 | LI7: =AVERAGE(LI11:LI511) -> 2.3796 | LJ7: =AVERAGE(LJ11:LJ511) -> 2.9084 | LL7: =AVERAGE(LL11:LL511) -> 2.7792 | LM7: =AVERAGE(LM11:LM511) -> 3.4338 | LO7: =AVERAGE(LO11:LO511) -> 2.6556 | LP7: =AVERAGE(LP11:LP511) -> 3.2644 | LR7: =AVERAGE(LR11:LR511) -> 2.434 | LS7: =AVERAGE(LS11:LS511) -> 3.0388 | LU7: =AVERAGE(LU11:LU511) -> 2.384 | LV7: =AVERAGE(LV11:LV511) -> 3.0238 | LX7: =AVERAGE(LX11:LX511) -> 2.583 | LY7: =AVERAGE(LY11:LY511) -> 3.3762 | MA7: =AVERAGE(MA11:MA511) -> 2.5618 | MB7: =AVERAGE(MB11:MB511) -> 3.0936 | MD7: =AVERAGE(MD11:MD511) -> 2.2754 | ME7: =AVERAGE(ME11:ME511) -> 2.9522 | MG7: =AVERAGE(MG11:MG511) -> 2.4248 | MH7: =AVERAGE(MH11:MH511) -> 3.0068 | MJ7: =AVERAGE(MJ11:MJ511) -> 2.1116 | MK7: =AVERAGE(MK11:MK511) -> 2.9442 | MM7: =AVERAGE(MM11:MM511) -> 2.3408 | MN7: =AVERAGE(MN11:MN511) -> 3.144 | MP7: =AVERAGE(MP11:MP511) -> 2.4046 | MQ7: =AVERAGE(MQ11:MQ511) -> 3.3256 | MS7: =AVERAGE(MS11:MS511) -> 2.6692 | MT7: =AVERAGE(MT11:MT511) -> 3.1696 | MV7: =AVERAGE(MV11:MV511) -> 2.3908 | MW7: =AVERAGE(MW11:MW511) -> 3.0168 | MY7: =AVERAGE(MY11:MY511) -> 2.8158 | MZ7: =AVERAGE(MZ11:MZ511) -> 3.4744 | NB7: =AVERAGE(NB11:NB511) -> 2.8318 | NC7: =AVERAGE(NC11:NC511) -> 3.5482 | NE7: =AVERAGE(NE11:NE511) -> 2.5056 | NF7: =AVERAGE(NF11:NF511) -> 3.0862 | NH7: =AVERAGE(NH11:NH511) -> 2.464 | NI7: =AVERAGE(NI11:NI511) -> 3.2258 | NK7: =AVERAGE(NK11:NK511) -> 2.507 | NL7: =AVERAGE(NL11:NL511) -> 3.0766 | NN7: =AVERAGE(NN11:NN511) -> 2.5844 | NO7: =AVERAGE(NO11:NO511) -> 3.263 | NQ7: =AVERAGE(NQ11:NQ511) -> 2.4592 | NR7: =AVERAGE(NR11:NR511) -> 3.3566 | NT7: =AVERAGE(NT11:NT511) -> 2.4832 | NU7: =AVERAGE(NU11:NU511) -> 2.9306 | NW7: =AVERAGE(NW11:NW511) -> 2.4888 | NX7: =AVERAGE(NX11:NX511) -> 3.1112 | NZ7: =AVERAGE(NZ11:NZ511) -> 2.4306 | OA7: =AVERAGE(OA11:OA511) -> 3.1214 | OC7: =AVERAGE(OC11:OC511) -> 2.0862 | OD7: =AVERAGE(OD11:OD511) -> 2.7842 | OF7: =AVERAGE(OF11:OF511) -> 2.4766 | OG7: =AVERAGE(OG11:OG511) -> 3.2922 | OI7: =AVERAGE(OI11:OI511) -> 2.4958 | OJ7: =AVERAGE(OJ11:OJ511) -> 3.1306 | OL7: =AVERAGE(OL11:OL511) -> 2.142 | OM7: =AVERAGE(OM11:OM511) -> 2.8444 | OO7: =AVERAGE(OO11:OO511) -> 2.5754 | OP7: =AVERAGE(OP11:OP511) -> 3.3856 | OR7: =AVERAGE(OR11:OR511) -> 2.891 | OS7: =AVERAGE(OS11:OS511) -> 3.4918 | OU7: =AVERAGE(OU11:OU511) -> 2.6192 | OV7: =AVERAGE(OV11:OV511) -> 2.9876 | OX7: =AVERAGE(OX11:OX511) -> 3.0288 | OY7: =AVERAGE(OY11:OY511) -> 3.6402 | PA7: =AVERAGE(PA11:PA511) -> 2.7034 | PB7: =AVERAGE(PB11:PB511) -> 3.6054 | PD7: =AVERAGE(PD11:PD511) -> 2.3758 | PE7: =AVERAGE(PE11:PE511) -> 3.117 | PG7: =AVERAGE(PG11:PG511) -> 2.4868 | PH7: =AVERAGE(PH11:PH511) -> 3.2338 | PJ7: =AVERAGE(PJ11:PJ511) -> 2.3256 | PK7: =AVERAGE(PK11:PK511) -> 3.07 | PM7: =AVERAGE(PM11:PM511) -> 2.5074 | PN7: =AVERAGE(PN11:PN511) -> 3.141 | PP7: =AVERAGE(PP11:PP511) -> 2.5382 | PQ7: =AVERAGE(PQ11:PQ511) -> 3.1634 | PS7: =AVERAGE(PS11:PS511) -> 2.2986 | PT7: =AVERAGE(PT11:PT511) -> 2.9252 | PV7: =AVERAGE(PV11:PV511) -> 2.5404 | PW7: =AVERAGE(PW11:PW511) -> 3.3952 | PY7: =AVERAGE(PY11:PY511) -> 2.4324 | PZ7: =AVERAGE(PZ11:PZ511) -> 3.4288 | QB7: =AVERAGE(QB11:QB511) -> 2.6996 | QC7: =AVERAGE(QC11:QC511) -> 3.5522 | QE7: =AVERAGE(QE11:QE511) -> 2.2654 | QF7: =AVERAGE(QF11:QF511) -> 2.8716 | QH7: =AVERAGE(QH11:QH511) -> 2.5192 | QI7: =AVERAGE(QI11:QI511) -> 3.377 | QK7: =AVERAGE(QK11:QK511) -> 2.674 | QL7: =AVERAGE(QL11:QL511) -> 3.197 | QN7: =AVERAGE(QN11:QN511) -> 2.4952 | QO7: =AVERAGE(QO11:QO511) -> 3.5004 | QQ7: =AVERAGE(QQ11:QQ511) -> 2.1582 | QR7: =AVERAGE(QR11:QR511) -> 2.8466 | QT7: =AVERAGE(QT11:QT511) -> 2.6942 | QU7: =AVERAGE(QU11:QU511) -> 3.2422 | QW7: =AVERAGE(QW11:QW511) -> 2.4914 | QX7: =AVERAGE(QX11:QX511) -> 3.1508 | QZ7: =AVERAGE(QZ11:QZ511) -> 2.8536 | RA7: =AVERAGE(RA11:RA511) -> 3.4592 | RC7: =AVERAGE(RC11:RC511) -> 2.6582 | RD7: =AVERAGE(RD11:RD511) -> 3.4972 | RF7: =AVERAGE(RF11:RF511) -> 2.147 | RG7: =AVERAGE(RG11:RG511) -> 2.8994 | RI7: =AVERAGE(RI11:RI511) -> 2.9338 | RJ7: =AVERAGE(RJ11:RJ511) -> 3.6104 | RL7: =AVERAGE(RL11:RL511) -> 2.5888 | RM7: =AVERAGE(RM11:RM511) -> 3.1236 | RO7: =AVERAGE(RO11:RO511) -> 2.6788 | RP7: =AVERAGE(RP11:RP511) -> 3.264 | RR7: =AVERAGE(RR11:RR511) -> 2.6188 | RS7: =AVERAGE(RS11:RS511) -> 3.274 | RU7: =AVERAGE(RU11:RU511) -> 2.5386 | RV7: =AVERAGE(RV11:RV511) -> 3.1288 | RX7: =AVERAGE(RX11:RX511) -> 2.3052 | RY7: =AVERAGE(RY11:RY511) -> 3.1382 | SA7: =AVERAGE(SA11:SA511) -> 2.5972 | SB7: =AVERAGE(SB11:SB511) -> 3.2536 | SD7: =AVERAGE(SD11:SD511) -> 2.8922 | SE7: =AVERAGE(SE11:SE511) -> 3.5186 | SG7: =AVERAGE(SG11:SG511) -> 2.6826 | SH7: =AVERAGE(SH11:SH511) -> 3.4526 | SJ7: =AVERAGE(SJ11:SJ511) -> 2.4296 | SK7: =AVERAGE(SK11:SK511) -> 3.1556 | SM7: =AVERAGE(SM11:SM511) -> 2.4856 | SN7: =AVERAGE(SN11:SN511) -> 2.9742 | SP7: =AVERAGE(SP11:SP511) -> 2.1454 | SQ7: =AVERAGE(SQ11:SQ511) -> 2.8078 | SS7: =AVERAGE(SS11:SS511) -> 2.8106 | ST7: =AVERAGE(ST11:ST511) -> 3.7474 | SV7: =AVERAGE(SV11:SV511) -> 2.548 | SW7: =AVERAGE(SW11:SW511) -> 3.2046 | SY7: =AVERAGE(SY11:SY511) -> 2.4846 | SZ7: =AVERAGE(SZ11:SZ511) -> 3.1302 | TB7: =AVERAGE(TB11:TB511) -> 2.6028 | TC7: =AVERAGE(TC11:TC511) -> 3.0268 | TE7: =AVERAGE(TE11:TE511) -> 2.6524 | TF7: =AVERAGE(TF11:TF511) -> 3.3738 | TH7: =AVERAGE(TH11:TH511) -> 2.2818 | TI7: =AVERAGE(TI11:TI511) -> 2.9966 | TK7: =AVERAGE(TK11:TK511) -> 2.558 | TL7: =AVERAGE(TL11:TL511) -> 3.2068 | TN7: =AVERAGE(TN11:TN511) -> 2.5848 | TO7: =AVERAGE(TO11:TO511) -> 3.2604 | TQ7: =AVERAGE(TQ11:TQ511) -> 2.3132 | TR7: =AVERAGE(TR11:TR511) -> 3.2492 | TT7: =AVERAGE(TT11:TT511) -> 2.5222 | TU7: =AVERAGE(TU11:TU511) -> 3.2496 | TW7: =AVERAGE(TW11:TW511) -> 2.229 | TX7: =AVERAGE(TX11:TX511) -> 2.6186 | TZ7: =AVERAGE(TZ11:TZ511) -> 2.4452 | UA7: =AVERAGE(UA11:UA511) -> 3.0428 | UC7: =AVERAGE(UC11:UC511) -> 2.6152 | UD7: =AVERAGE(UD11:UD511) -> 3.4084 | UF7: =AVERAGE(UF11:UF511) -> 2.3318 | UG7: =AVERAGE(UG11:UG511) -> 3.1892 | UI7: =AVERAGE(UI11:UI511) -> 2.6632 | UJ7: =AVERAGE(UJ11:UJ511) -> 3.4074 | UL7: =AVERAGE(UL11:UL511) -> 2.4378 | UM7: =AVERAGE(UM11:UM511) -> 3.1638 | UO7: =AVERAGE(UO11:UO511) -> 2.2546 | UP7: =AVERAGE(UP11:UP511) -> 2.8754 | UR7: =AVERAGE(UR11:UR511) -> 3.372 | US7: =AVERAGE(US11:US511) -> 3.8088 | UU7: =AVERAGE(UU11:UU511) -> 2.481 | UV7: =AVERAGE(UV11:UV511) -> 3.136 | UX7: =AVERAGE(UX11:UX511) -> 2.4012 | UY7: =AVERAGE(UY11:UY511) -> 2.8802 | VA7: =AVERAGE(VA11:VA511) -> 2.3972 | VB7: =AVERAGE(VB11:VB511) -> 3 | VD7: =AVERAGE(VD11:VD511) -> 2.2574 | VE7: =AVERAGE(VE11:VE511) -> 2.963 | VG7: =AVERAGE(VG11:VG511) -> 2.313 | VH7: =AVERAGE(VH11:VH511) -> 2.9926 | VJ7: =AVERAGE(VJ11:VJ511) -> 2.1444 | VK7: =AVERAGE(VK11:VK511) -> 2.9634 | VM7: =AVERAGE(VM11:VM511) -> 2.5836 | VN7: =AVERAGE(VN11:VN511) -> 3.294 | VP7: =AVERAGE(VP11:VP511) -> 2.7276 | VQ7: =AVERAGE(VQ11:VQ511) -> 3.6822 | VS7: =AVERAGE(VS11:VS511) -> 2.7016 | VT7: =AVERAGE(VT11:VT511) -> 3.269 | VV7: =AVERAGE(VV11:VV511) -> 2.5974 | VW7: =AVERAGE(VW11:VW511) -> 2.9938 | VY7: =AVERAGE(VY11:VY511) -> 2.2706 | VZ7: =AVERAGE(VZ11:VZ511) -> 2.9064 | WB7: =AVERAGE(WB11:WB511) -> 2.427 | WC7: =AVERAGE(WC11:WC511) -> 2.895 | WE7: =AVERAGE(WE11:WE511) -> 2.3942 | WF7: =AVERAGE(WF11:WF511) -> 2.8986 | WH7: =AVERAGE(WH11:WH511) -> 2.5078 | WI7: =AVERAGE(WI11:WI511) -> 3.484 | WK7: =AVERAGE(WK11:WK511) -> 2.536 | WL7: =AVERAGE(WL11:WL511) -> 3.1218 | WN7: =AVERAGE(WN11:WN511) -> 2.3996 | WO7: =AVERAGE(WO11:WO511) -> 2.8434 | WQ7: =AVERAGE(WQ11:WQ511) -> 2.5376 | WR7: =AVERAGE(WR11:WR511) -> 3.3486 | WT7: =AVERAGE(WT11:WT511) -> 2.553 | WU7: =AVERAGE(WU11:WU511) -> 3.2302 | WW7: =AVERAGE(WW11:WW511) -> 2.2394 | WX7: =AVERAGE(WX11:WX511) -> 2.9508 | WZ7: =AVERAGE(WZ11:WZ511) -> 2.926 | XA7: =AVERAGE(XA11:XA511) -> 3.4218 | XC7: =AVERAGE(XC11:XC511) -> 2.1484 | XD7: =AVERAGE(XD11:XD511) -> 2.8164 | XF7: =AVERAGE(XF11:XF511) -> 2.6476 | XG7: =AVERAGE(XG11:XG511) -> 3.2178 | XI7: =AVERAGE(XI11:XI511) -> 2.5526 | XJ7: =AVERAGE(XJ11:XJ511) -> 3.1646 | XL7: =AVERAGE(XL11:XL511) -> 2.9664 | XM7: =AVERAGE(XM11:XM511) -> 3.3822 | XO7: =AVERAGE(XO11:XO511) -> 2.6686 | XP7: =AVERAGE(XP11:XP511) -> 3.357 | XR7: =AVERAGE(XR11:XR511) -> 2.696 | XS7: =AVERAGE(XS11:XS511) -> 3.112 | XU7: =AVERAGE(XU11:XU511) -> 2.3554 | XV7: =AVERAGE(XV11:XV511) -> 3.0992 | XX7: =AVERAGE(XX11:XX511) -> 2.6654 | XY7: =AVERAGE(XY11:XY511) -> 3.2778 | YA7: =AVERAGE(YA11:YA511) -> 2.6268 | YB7: =AVERAGE(YB11:YB511) -> 3.4282 | YD7: =AVERAGE(YD11:YD511) -> 2.3338 | YE7: =AVERAGE(YE11:YE511) -> 3.1 | YG7: =AVERAGE(YG11:YG511) -> 2.3396 | YH7: =AVERAGE(YH11:YH511) -> 2.9818 | YJ7: =AVERAGE(YJ11:YJ511) -> 2.072 | YK7: =AVERAGE(YK11:YK511) -> 2.6972 | YM7: =AVERAGE(YM11:YM511) -> 2.2644 | YN7: =AVERAGE(YN11:YN511) -> 3.2026 | YP7: =AVERAGE(YP11:YP511) -> 3.0356 | YQ7: =AVERAGE(YQ11:YQ511) -> 3.6426 | YS7: =AVERAGE(YS11:YS511) -> 2.2862 | YT7: =AVERAGE(YT11:YT511) -> 2.9244 | YV7: =AVERAGE(YV11:YV511) -> 3.032 | YW7: =AVERAGE(YW11:YW511) -> 3.909 | YY7: =AVERAGE(YY11:YY511) -> 2.25 | YZ7: =AVERAGE(YZ11:YZ511) -> 2.9068 | ZB7: =AVERAGE(ZB11:ZB511) -> 2.675 | ZC7: =AVERAGE(ZC11:ZC511) -> 3.5806 | ZE7: =AVERAGE(ZE11:ZE511) -> 2.7464 | ZF7: =AVERAGE(ZF11:ZF511) -> 3.4714 | ZH7: =AVERAGE(ZH11:ZH511) -> 2.784 | ZI7: =AVERAGE(ZI11:ZI511) -> 3.3252 | ZK7: =AVERAGE(ZK11:ZK511) -> 2.119 | ZL7: =AVERAGE(ZL11:ZL511) -> 2.7352 | ZN7: =AVERAGE(ZN11:ZN511) -> 2.1968 | ZO7: =AVERAGE(ZO11:ZO511) -> 2.9886 | ZQ7: =AVERAGE(ZQ11:ZQ511) -> 2.2552 | ZR7: =AVERAGE(ZR11:ZR511) -> 2.7716 | ZT7: =AVERAGE(ZT11:ZT511) -> 2.3572 | ZU7: =AVERAGE(ZU11:ZU511) -> 3.0346 | ZW7: =AVERAGE(ZW11:ZW511) -> 2.416 | ZX7: =AVERAGE(ZX11:ZX511) -> 2.9246 | ZZ7: =AVERAGE(ZZ11:ZZ511) -> 2.4536 | AAA7: =AVERAGE(AAA11:AAA511) -> 3.3614 | AAC7: =AVERAGE(AAC11:AAC511) -> 2.8842 | AAD7: =AVERAGE(AAD11:AAD511) -> 3.6432 | AAF7: =AVERAGE(AAF11:AAF511) -> 2.6844 | AAG7: =AVERAGE(AAG11:AAG511) -> 3.451 | AAI7: =AVERAGE(AAI11:AAI511) -> 3.0122 | AAJ7: =AVERAGE(AAJ11:AAJ511) -> 3.7492 | AAL7: =AVERAGE(AAL11:AAL511) -> 2.721 | AAM7: =AVERAGE(AAM11:AAM511) -> 3.2664 | AAO7: =AVERAGE(AAO11:AAO511) -> 2.6542 | AAP7: =AVERAGE(AAP11:AAP511) -> 3.16 | AAR7: =AVERAGE(AAR11:AAR511) -> 2.5708 | AAS7: =AVERAGE(AAS11:AAS511) -> 3.2554 | AAU7: =AVERAGE(AAU11:AAU511) -> 2.5806 | AAV7: =AVERAGE(AAV11:AAV511) -> 3.3158 | AAX7: =AVERAGE(AAX11:AAX511) -> 2.5746 | AAY7: =AVERAGE(AAY11:AAY511) -> 3.0588 | ABA7: =AVERAGE(ABA11:ABA511) -> 2.2806 | ABB7: =AVERAGE(ABB11:ABB511) -> 3.0162 | ABD7: =AVERAGE(ABD11:ABD511) -> 2.3956 | ABE7: =AVERAGE(ABE11:ABE511) -> 3.159 | ABG7: =AVERAGE(ABG11:ABG511) -> 2.495 | ABH7: =AVERAGE(ABH11:ABH511) -> 3.2684 | ABJ7: =AVERAGE(ABJ11:ABJ511) -> 2.506 | ABK7: =AVERAGE(ABK11:ABK511) -> 3.1598 | ABM7: =AVERAGE(ABM11:ABM511) -> 2.3932 | ABN7: =AVERAGE(ABN11:ABN511) -> 3.0384 | ABP7: =AVERAGE(ABP11:ABP511) -> 2.5314 | ABQ7: =AVERAGE(ABQ11:ABQ511) -> 3.4496 | ABS7: =AVERAGE(ABS11:ABS511) -> 2.2126 | ABT7: =AVERAGE(ABT11:ABT511) -> 2.5514 | ABV7: =AVERAGE(ABV11:ABV511) -> 2.3508 | ABW7: =AVERAGE(ABW11:ABW511) -> 3.0256 | ABY7: =AVERAGE(ABY11:ABY511) -> 2.4728 | ABZ7: =AVERAGE(ABZ11:ABZ511) -> 3.1692 | ACB7: =AVERAGE(ACB11:ACB511) -> 2.0138 | ACC7: =AVERAGE(ACC11:ACC511) -> 2.8012 | ACE7: =AVERAGE(ACE11:ACE511) -> 2.552 | ACF7: =AVERAGE(ACF11:ACF511) -> 3.0262 | ACH7: =AVERAGE(ACH11:ACH511) -> 2.2192 | ACI7: =AVERAGE(ACI11:ACI511) -> 3.0014 | ACK7: =AVERAGE(ACK11:ACK511) -> 2.0676 | ACL7: =AVERAGE(ACL11:ACL511) -> 2.719 | ACN7: =AVERAGE(ACN11:ACN511) -> 2.559 | ACO7: =AVERAGE(ACO11:ACO511) -> 3.2362 | ACQ7: =AVERAGE(ACQ11:ACQ511) -> 2.4432 | ACR7: =AVERAGE(ACR11:ACR511) -> 3.096 | ACT7: =AVERAGE(ACT11:ACT511) -> 2.3478 | ACU7: =AVERAGE(ACU11:ACU511) -> 3.1652 | ACW7: =AVERAGE(ACW11:ACW511) -> 2.5028 | ACX7: =AVERAGE(ACX11:ACX511) -> 3.1944 | ACZ7: =AVERAGE(ACZ11:ACZ511) -> 2.5494 | ADA7: =AVERAGE(ADA11:ADA511) -> 3.1928 | ADC7: =AVERAGE(ADC11:ADC511) -> 2.7498 | ADD7: =AVERAGE(ADD11:ADD511) -> 3.5394 | ADF7: =AVERAGE(ADF11:ADF511) -> 2.1396 | ADG7: =AVERAGE(ADG11:ADG511) -> 2.9294 | ADI7: =AVERAGE(ADI11:ADI511) -> 2.418 | ADJ7: =AVERAGE(ADJ11:ADJ511) -> 3.152 | ADL7: =AVERAGE(ADL11:ADL511) -> 2.5958 | ADM7: =AVERAGE(ADM11:ADM511) -> 3.3678 | ADO7: =AVERAGE(ADO11:ADO511) -> 2.1994 | ADP7: =AVERAGE(ADP11:ADP511) -> 2.8398 | ADR7: =AVERAGE(ADR11:ADR511) -> 2.8052 | ADS7: =AVERAGE(ADS11:ADS511) -> 3.6432 | ADU7: =AVERAGE(ADU11:ADU511) -> 2.002 | ADV7: =AVERAGE(ADV11:ADV511) -> 2.6516 | ADX7: =AVERAGE(ADX11:ADX511) -> 2.6932 | ADY7: =AVERAGE(ADY11:ADY511) -> 3.487 | AEA7: =AVERAGE(AEA11:AEA511) -> 2.4448 | AEB7: =AVERAGE(AEB11:AEB511) -> 3.2572 | AED7: =AVERAGE(AED11:AED511) -> 2.2638 | AEE7: =AVERAGE(AEE11:AEE511) -> 3.0266 | AEG7: =AVERAGE(AEG11:AEG511) -> 2.756 | AEH7: =AVERAGE(AEH11:AEH511) -> 3.3714 | AEJ7: =AVERAGE(AEJ11:AEJ511) -> 2.0948 | AEK7: =AVERAGE(AEK11:AEK511) -> 2.813 | AEM7: =AVERAGE(AEM11:AEM511) -> 2.7576 | AEN7: =AVERAGE(AEN11:AEN511) -> 3.263 | AEP7: =AVERAGE(AEP11:AEP511) -> 2.554 | AEQ7: =AVERAGE(AEQ11:AEQ511) -> 3.1548 | AES7: =AVERAGE(AES11:AES511) -> 2.2272 | AET7: =AVERAGE(AET11:AET511) -> 2.7768 | AEV7: =AVERAGE(AEV11:AEV511) -> 2.1152 | AEW7: =AVERAGE(AEW11:AEW511) -> 2.6048 | AEY7: =AVERAGE(AEY11:AEY511) -> 2.674 | AEZ7: =AVERAGE(AEZ11:AEZ511) -> 3.266 | AFB7: =AVERAGE(AFB11:AFB511) -> 2.6352 | AFC7: =AVERAGE(AFC11:AFC511) -> 3.3026 | AFE7: =AVERAGE(AFE11:AFE511) -> 2.7102 | AFF7: =AVERAGE(AFF11:AFF511) -> 3.3416 | AFH7: =AVERAGE(AFH11:AFH511) -> 2.229 | AFI7: =AVERAGE(AFI11:AFI511) -> 2.6926 | AFK7: =AVERAGE(AFK11:AFK511) -> 2.7646 | AFL7: =AVERAGE(AFL11:AFL511) -> 3.5022 | AFN7: =AVERAGE(AFN11:AFN511) -> 2.8102 | AFO7: =AVERAGE(AFO11:AFO511) -> 3.4094 | AFQ7: =AVERAGE(AFQ11:AFQ511) -> 2.7508 | AFR7: =AVERAGE(AFR11:AFR511) -> 3.041 | AFT7: =AVERAGE(AFT11:AFT511) -> 2.4164 | AFU7: =AVERAGE(AFU11:AFU511) -> 3.3504 | AFW7: =AVERAGE(AFW11:AFW511) -> 2.736 | AFX7: =AVERAGE(AFX11:AFX511) -> 3.3634 | AFZ7: =AVERAGE(AFZ11:AFZ511) -> 2.5148 | AGA7: =AVERAGE(AGA11:AGA511) -> 3.2354 | AGC7: =AVERAGE(AGC11:AGC511) -> 2.3228 | AGD7: =AVERAGE(AGD11:AGD511) -> 2.938 | AGF7: =AVERAGE(AGF11:AGF511) -> 2.4848 | AGG7: =AVERAGE(AGG11:AGG511) -> 3.044 | AGI7: =AVERAGE(AGI11:AGI511) -> 2.2562 | AGJ7: =AVERAGE(AGJ11:AGJ511) -> 3.03 | AGL7: =AVERAGE(AGL11:AGL511) -> 2.542 | AGM7: =AVERAGE(AGM11:AGM511) -> 3.1354 | AGO7: =AVERAGE(AGO11:AGO511) -> 1.9882 | AGP7: =AVERAGE(AGP11:AGP511) -> 2.689 | AGR7: =AVERAGE(AGR11:AGR511) -> 2.4562 | AGS7: =AVERAGE(AGS11:AGS511) -> 3.0658 | AGU7: =AVERAGE(AGU11:AGU511) -> 2.3302 | AGV7: =AVERAGE(AGV11:AGV511) -> 3.1426 | AGX7: =AVERAGE(AGX11:AGX511) -> 2.5764 | AGY7: =AVERAGE(AGY11:AGY511) -> 2.9696 | AHA7: =AVERAGE(AHA11:AHA511) -> 2.7146 | AHB7: =AVERAGE(AHB11:AHB511) -> 3.1528 | AHD7: =AVERAGE(AHD11:AHD511) -> 2.5302 | AHE7: =AVERAGE(AHE11:AHE511) -> 3.124 | AHG7: =AVERAGE(AHG11:AHG511) -> 2.5788 | AHH7: =AVERAGE(AHH11:AHH511) -> 3.3662 | AHJ7: =AVERAGE(AHJ11:AHJ511) -> 2.3574 | AHK7: =AVERAGE(AHK11:AHK511) -> 2.9466 | AHM7: =AVERAGE(AHM11:AHM511) -> 2.611 | AHN7: =AVERAGE(AHN11:AHN511) -> 3.306 | AHP7: =AVERAGE(AHP11:AHP511) -> 2.5776 | AHQ7: =AVERAGE(AHQ11:AHQ511) -> 3.0164 | AHS7: =AVERAGE(AHS11:AHS511) -> 2.754 | AHT7: =AVERAGE(AHT11:AHT511) -> 3.4416 | AHV7: =AVERAGE(AHV11:AHV511) -> 2.7306 | AHW7: =AVERAGE(AHW11:AHW511) -> 3.261 | AHY7: =AVERAGE(AHY11:AHY511) -> 2.6836 | AHZ7: =AVERAGE(AHZ11:AHZ511) -> 3.4618 | AIB7: =AVERAGE(AIB11:AIB511) -> 2.432 | AIC7: =AVERAGE(AIC11:AIC511) -> 3.184 | AIE7: =AVERAGE(AIE11:AIE511) -> 2.4702 | AIF7: =AVERAGE(AIF11:AIF511) -> 3.1358 | AIH7: =AVERAGE(AIH11:AIH511) -> 2.5856 | AII7: =AVERAGE(AII11:AII511) -> 3.1282 | AIK7: =AVERAGE(AIK11:AIK511) -> 2.6746 | AIL7: =AVERAGE(AIL11:AIL511) -> 3.4862 | AIN7: =AVERAGE(AIN11:AIN511) -> 2.0344 | AIO7: =AVERAGE(AIO11:AIO511) -> 2.7656 | AIQ7: =AVERAGE(AIQ11:AIQ511) -> 2.518 | AIR7: =AVERAGE(AIR11:AIR511) -> 3.1722 | AIT7: =AVERAGE(AIT11:AIT511) -> 2.1856 | AIU7: =AVERAGE(AIU11:AIU511) -> 2.8808 | AIW7: =AVERAGE(AIW11:AIW511) -> 2.0338 | AIX7: =AVERAGE(AIX11:AIX511) -> 2.7952 | AIZ7: =AVERAGE(AIZ11:AIZ511) -> 2.5744 | AJA7: =AVERAGE(AJA11:AJA511) -> 3.4196 | AJC7: =AVERAGE(AJC11:AJC511) -> 2.7292 | AJD7: =AVERAGE(AJD11:AJD511) -> 3.3938 | AJF7: =AVERAGE(AJF11:AJF511) -> 2.5298 | AJG7: =AVERAGE(AJG11:AJG511) -> 3.0866 | AJI7: =AVERAGE(AJI11:AJI511) -> 2.5346 | AJJ7: =AVERAGE(AJJ11:AJJ511) -> 2.961 | AJL7: =AVERAGE(AJL11:AJL511) -> 2.6088 | AJM7: =AVERAGE(AJM11:AJM511) -> 3.3656 | AJO7: =AVERAGE(AJO11:AJO511) -> 2.4716 | AJP7: =AVERAGE(AJP11:AJP511) -> 3.2058 | AJR7: =AVERAGE(AJR11:AJR511) -> 2.4732 | AJS7: =AVERAGE(AJS11:AJS511) -> 3.2 | AJU7: =AVERAGE(AJU11:AJU511) -> 2.551 | AJV7: =AVERAGE(AJV11:AJV511) -> 2.849 | AJX7: =AVERAGE(AJX11:AJX511) -> 2.6592 | AJY7: =AVERAGE(AJY11:AJY511) -> 3.343 | AKA7: =AVERAGE(AKA11:AKA511) -> 2.0546 | AKB7: =AVERAGE(AKB11:AKB511) -> 2.741 | AKD7: =AVERAGE(AKD11:AKD511) -> 2.6418 | AKE7: =AVERAGE(AKE11:AKE511) -> 3.5088 | AKG7: =AVERAGE(AKG11:AKG511) -> 2.393 | AKH7: =AVERAGE(AKH11:AKH511) -> 3.1034 | AKJ7: =AVERAGE(AKJ11:AKJ511) -> 2.761 | AKK7: =AVERAGE(AKK11:AKK511) -> 3.741 | AKM7: =AVERAGE(AKM11:AKM511) -> 2.6904 | AKN7: =AVERAGE(AKN11:AKN511) -> 3.479 | AKP7: =AVERAGE(AKP11:AKP511) -> 2.7454 | AKQ7: =AVERAGE(AKQ11:AKQ511) -> 3.584 | AKS7: =AVERAGE(AKS11:AKS511) -> 1.9534 | AKT7: =AVERAGE(AKT11:AKT511) -> 2.5624 | AKV7: =AVERAGE(AKV11:AKV511) -> 2.7514 | AKW7: =AVERAGE(AKW11:AKW511) -> 3.6706 | AKY7: =AVERAGE(AKY11:AKY511) -> 2.5268 | AKZ7: =AVERAGE(AKZ11:AKZ511) -> 3.1568 | ALB7: =AVERAGE(ALB11:ALB511) -> 2.3222 | ALC7: =AVERAGE(ALC11:ALC511) -> 3.073 | ALE7: =AVERAGE(ALE11:ALE511) -> 2.1468 | ALF7: =AVERAGE(ALF11:ALF511) -> 2.994 | ALH7: =AVERAGE(ALH11:ALH511) -> 2.7066 | ALI7: =AVERAGE(ALI11:ALI511) -> 3.3008 | ALK7: =AVERAGE(ALK11:ALK511) -> 2.349 | ALL7: =AVERAGE(ALL11:ALL511) -> 3.0538 | ALN7: =AVERAGE(ALN11:ALN511) -> 2.8544 | ALO7: =AVERAGE(ALO11:ALO511) -> 3.4904 | ALQ7: =AVERAGE(ALQ11:ALQ511) -> 2.8222 | ALR7: =AVERAGE(ALR11:ALR511) -> 3.6992 | ALT7: =AVERAGE(ALT11:ALT511) -> 2.551 | ALU7: =AVERAGE(ALU11:ALU511) -> 3.1244 | ALW7: =AVERAGE(ALW11:ALW511) -> 2.6062 | ALX7: =AVERAGE(ALX11:ALX511) -> 3.3356 | ALZ7: =AVERAGE(ALZ11:ALZ511) -> 2.6302 | AMA7: =AVERAGE(AMA11:AMA511) -> 3.3288 | AMC7: =AVERAGE(AMC11:AMC511) -> 2.5826 | AMD7: =AVERAGE(AMD11:AMD511) -> 3.3732 | AMF7: =AVERAGE(AMF11:AMF511) -> 2.7842 | AMG7: =AVERAGE(AMG11:AMG511) -> 3.5106 | AMI7: =AVERAGE(AMI11:AMI511) -> 2.414 | AMJ7: =AVERAGE(AMJ11:AMJ511) -> 3.297 | AML7: =AVERAGE(AML11:AML511) -> 2.383 | AMM7: =AVERAGE(AMM11:AMM511) -> 3.0008 | AMO7: =AVERAGE(AMO11:AMO511) -> 2.4916 | AMP7: =AVERAGE(AMP11:AMP511) -> 3.1436 | AMR7: =AVERAGE(AMR11:AMR511) -> 2.5052 | AMS7: =AVERAGE(AMS11:AMS511) -> 3.1174 | AMU7: =AVERAGE(AMU11:AMU511) -> 2.823 | AMV7: =AVERAGE(AMV11:AMV511) -> 3.4222 | AMX7: =AVERAGE(AMX11:AMX511) -> 2.5356 | AMY7: =AVERAGE(AMY11:AMY511) -> 3.3 | ANA7: =AVERAGE(ANA11:ANA511) -> 2.5496 | ANB7: =AVERAGE(ANB11:ANB511) -> 3.0942 | AND7: =AVERAGE(AND11:AND511) -> 2.274 | ANE7: =AVERAGE(ANE11:ANE511) -> 3.0406 | ANG7: =AVERAGE(ANG11:ANG511) -> 2.562 | ANH7: =AVERAGE(ANH11:ANH511) -> 3.2374 | ANJ7: =AVERAGE(ANJ11:ANJ511) -> 2.3962 | ANK7: =AVERAGE(ANK11:ANK511) -> 3.01 | ANM7: =AVERAGE(ANM11:ANM511) -> 2.5592 | ANN7: =AVERAGE(ANN11:ANN511) -> 3.4208 | ANP7: =AVERAGE(ANP11:ANP511) -> 2.333 | ANQ7: =AVERAGE(ANQ11:ANQ511) -> 2.9736 | ANS7: =AVERAGE(ANS11:ANS511) -> 2.4362 | ANT7: =AVERAGE(ANT11:ANT511) -> 3.0156 | ANV7: =AVERAGE(ANV11:ANV511) -> 1.9684 | ANW7: =AVERAGE(ANW11:ANW511) -> 2.5526 | ANY7: =AVERAGE(ANY11:ANY511) -> 2.5038 | ANZ7: =AVERAGE(ANZ11:ANZ511) -> 3.1946 | AOB7: =AVERAGE(AOB11:AOB511) -> 2.1804 | AOC7: =AVERAGE(AOC11:AOC511) -> 2.9144 | AOE7: =AVERAGE(AOE11:AOE511) -> 2.5216 | AOF7: =AVERAGE(AOF11:AOF511) -> 3.2404 | AOH7: =AVERAGE(AOH11:AOH511) -> 2.4538 | AOI7: =AVERAGE(AOI11:AOI511) -> 2.989 | AOK7: =AVERAGE(AOK11:AOK511) -> 2.2218 | AOL7: =AVERAGE(AOL11:AOL511) -> 3.2294 | AON7: =AVERAGE(AON11:AON511) -> 2.4022 | AOO7: =AVERAGE(AOO11:AOO511) -> 2.8576 | AOQ7: =AVERAGE(AOQ11:AOQ511) -> 2.9398 | AOR7: =AVERAGE(AOR11:AOR511) -> 3.7018 | AOT7: =AVERAGE(AOT11:AOT511) -> 1.9152 | AOU7: =AVERAGE(AOU11:AOU511) -> 2.8262 | AOW7: =AVERAGE(AOW11:AOW511) -> 2.1174 | AOX7: =AVERAGE(AOX11:AOX511) -> 2.8354 | AOZ7: =AVERAGE(AOZ11:AOZ511) -> 2.4286 | APA7: =AVERAGE(APA11:APA511) -> 2.8642 | APC7: =AVERAGE(APC11:APC511) -> 2.5232 | APD7: =AVERAGE(APD11:APD511) -> 3.1904 | APF7: =AVERAGE(APF11:APF511) -> 2.4574 | APG7: =AVERAGE(APG11:APG511) -> 3.1384 | API7: =AVERAGE(API11:API511) -> 2.6728 | APJ7: =AVERAGE(APJ11:APJ511) -> 3.5638 | APL7: =AVERAGE(APL11:APL511) -> 2.592 | APM7: =AVERAGE(APM11:APM511) -> 3.2228 | APO7: =AVERAGE(APO11:APO511) -> 2.7598 | APP7: =AVERAGE(APP11:APP511) -> 3.5162 | APR7: =AVERAGE(APR11:APR511) -> 2.6416 | APS7: =AVERAGE(APS11:APS511) -> 3.1558 | APU7: =AVERAGE(APU11:APU511) -> 2.4604 | APV7: =AVERAGE(APV11:APV511) -> 3.2884 | APX7: =AVERAGE(APX11:APX511) -> 2.4154 | APY7: =AVERAGE(APY11:APY511) -> 3.1174 | AQA7: =AVERAGE(AQA11:AQA511) -> 2.2648 | AQB7: =AVERAGE(AQB11:AQB511) -> 3.0924 | AQD7: =AVERAGE(AQD11:AQD511) -> 2.5716 | AQE7: =AVERAGE(AQE11:AQE511) -> 3.4254 | AQG7: =AVERAGE(AQG11:AQG511) -> 2.7324 | AQH7: =AVERAGE(AQH11:AQH511) -> 3.235 | AQJ7: =AVERAGE(AQJ11:AQJ511) -> 2.312 | AQK7: =AVERAGE(AQK11:AQK511) -> 2.8748 | AQM7: =AVERAGE(AQM11:AQM511) -> 2.4634 | AQN7: =AVERAGE(AQN11:AQN511) -> 3.3112 | AQP7: =AVERAGE(AQP11:AQP511) -> 2.3674 | AQQ7: =AVERAGE(AQQ11:AQQ511) -> 3.1324 | AQS7: =AVERAGE(AQS11:AQS511) -> 2.2284 | AQT7: =AVERAGE(AQT11:AQT511) -> 2.7416 | AQV7: =AVERAGE(AQV11:AQV511) -> 2.5506 | AQW7: =AVERAGE(AQW11:AQW511) -> 3.0968 | AQY7: =AVERAGE(AQY11:AQY511) -> 3.0004 | AQZ7: =AVERAGE(AQZ11:AQZ511) -> 3.5312 | ARB7: =AVERAGE(ARB11:ARB511) -> 2.6422 | ARC7: =AVERAGE(ARC11:ARC511) -> 3.361 | ARE7: =AVERAGE(ARE11:ARE511) -> 2.4994 | ARF7: =AVERAGE(ARF11:ARF511) -> 3.26 | ARH7: =AVERAGE(ARH11:ARH511) -> 2.0256 | ARI7: =AVERAGE(ARI11:ARI511) -> 2.5454 | ARK7: =AVERAGE(ARK11:ARK511) -> 2.0584 | ARL7: =AVERAGE(ARL11:ARL511) -> 2.831 | ARN7: =AVERAGE(ARN11:ARN511) -> 2.3492 | ARO7: =AVERAGE(ARO11:ARO511) -> 3.1206 | ARQ7: =AVERAGE(ARQ11:ARQ511) -> 2.0184 | ARR7: =AVERAGE(ARR11:ARR511) -> 2.904 | ART7: =AVERAGE(ART11:ART511) -> 2.5504 | ARU7: =AVERAGE(ARU11:ARU511) -> 3.058 | ARW7: =AVERAGE(ARW11:ARW511) -> 2.4082 | ARX7: =AVERAGE(ARX11:ARX511) -> 2.9456 | ARZ7: =AVERAGE(ARZ11:ARZ511) -> 2.7926 | ASA7: =AVERAGE(ASA11:ASA511) -> 3.4198 | ASC7: =AVERAGE(ASC11:ASC511) -> 2.531 | ASD7: =AVERAGE(ASD11:ASD511) -> 2.987 | ASF7: =AVERAGE(ASF11:ASF511) -> 2.27 | ASG7: =AVERAGE(ASG11:ASG511) -> 2.7526 | ASI7: =AVERAGE(ASI11:ASI511) -> 2.546 | ASJ7: =AVERAGE(ASJ11:ASJ511) -> 2.9104 | ASL7: =AVERAGE(ASL11:ASL511) -> 3.0136 | ASM7: =AVERAGE(ASM11:ASM511) -> 3.7304 | ASO7: =AVERAGE(ASO11:ASO511) -> 2.497 | ASP7: =AVERAGE(ASP11:ASP511) -> 3.1624 | ASR7: =AVERAGE(ASR11:ASR511) -> 2.4122 | ASS7: =AVERAGE(ASS11:ASS511) -> 3.0076 | ASU7: =AVERAGE(ASU11:ASU511) -> 2.3522 | ASV7: =AVERAGE(ASV11:ASV511) -> 2.9428 | ASX7: =AVERAGE(ASX11:ASX511) -> 2.3876 | ASY7: =AVERAGE(ASY11:ASY511) -> 2.9498 | ATA7: =AVERAGE(ATA11:ATA511) -> 2.6186 | ATB7: =AVERAGE(ATB11:ATB511) -> 3.1136 | ATD7: =AVERAGE(ATD11:ATD511) -> 2.6426 | ATE7: =AVERAGE(ATE11:ATE511) -> 3.4498 | ATG7: =AVERAGE(ATG11:ATG511) -> 2.5814 | ATH7: =AVERAGE(ATH11:ATH511) -> 3.4182 | ATJ7: =AVERAGE(ATJ11:ATJ511) -> 2.3738 | ATK7: =AVERAGE(ATK11:ATK511) -> 3.2296 | ATM7: =AVERAGE(ATM11:ATM511) -> 2.5718 | ATN7: =AVERAGE(ATN11:ATN511) -> 3.2898 | ATP7: =AVERAGE(ATP11:ATP511) -> 2.227 | ATQ7: =AVERAGE(ATQ11:ATQ511) -> 2.8924 | ATS7: =AVERAGE(ATS11:ATS511) -> 2.8266 | ATT7: =AVERAGE(ATT11:ATT511) -> 3.334 | ATV7: =AVERAGE(ATV11:ATV511) -> 1.9072 | ATW7: =AVERAGE(ATW11:ATW511) -> 2.5912 | ATY7: =AVERAGE(ATY11:ATY511) -> 2.267 | ATZ7: =AVERAGE(ATZ11:ATZ511) -> 2.8182 | AUB7: =AVERAGE(AUB11:AUB511) -> 2.2896 | AUC7: =AVERAGE(AUC11:AUC511) -> 2.792 | AUE7: =AVERAGE(AUE11:AUE511) -> 2.5208 | AUF7: =AVERAGE(AUF11:AUF511) -> 3.1382 | AUH7: =AVERAGE(AUH11:AUH511) -> 2.287 | AUI7: =AVERAGE(AUI11:AUI511) -> 2.9384 | AUK7: =AVERAGE(AUK11:AUK511) -> 2.429 | AUL7: =AVERAGE(AUL11:AUL511) -> 2.9568 | AUN7: =AVERAGE(AUN11:AUN511) -> 2.299 | AUO7: =AVERAGE(AUO11:AUO511) -> 2.9246 | AUQ7: =AVERAGE(AUQ11:AUQ511) -> 2.739 | AUR7: =AVERAGE(AUR11:AUR511) -> 3.039 | AUT7: =AVERAGE(AUT11:AUT511) -> 2.6058 | AUU7: =AVERAGE(AUU11:AUU511) -> 3.085 | AUW7: =AVERAGE(AUW11:AUW511) -> 2.4844 | AUX7: =AVERAGE(AUX11:AUX511) -> 3.1844 | AUZ7: =AVERAGE(AUZ11:AUZ511) -> 2.47 | AVA7: =AVERAGE(AVA11:AVA511) -> 3.1122 | AVC7: =AVERAGE(AVC11:AVC511) -> 2.6678 | AVD7: =AVERAGE(AVD11:AVD511) -> 3.3454 | AVF7: =AVERAGE(AVF11:AVF511) -> 2.879 | AVG7: =AVERAGE(AVG11:AVG511) -> 3.3268 | AVI7: =AVERAGE(AVI11:AVI511) -> 2.708 | AVJ7: =AVERAGE(AVJ11:AVJ511) -> 3.6826 | AVL7: =AVERAGE(AVL11:AVL511) -> 2.3046 | AVM7: =AVERAGE(AVM11:AVM511) -> 2.8688 | AVO7: =AVERAGE(AVO11:AVO511) -> 2.6424 | AVP7: =AVERAGE(AVP11:AVP511) -> 3.3246 | AVR7: =AVERAGE(AVR11:AVR511) -> 2.2726 | AVS7: =AVERAGE(AVS11:AVS511) -> 3.0618 | AVU7: =AVERAGE(AVU11:AVU511) -> 2.4166 | AVV7: =AVERAGE(AVV11:AVV511) -> 2.928 | AVX7: =AVERAGE(AVX11:AVX511) -> 2.5646 | AVY7: =AVERAGE(AVY11:AVY511) -> 3.286 | AWA7: =AVERAGE(AWA11:AWA511) -> 2.2866 | AWB7: =AVERAGE(AWB11:AWB511) -> 3.13 | AWD7: =AVERAGE(AWD11:AWD511) -> 2.2492 | AWE7: =AVERAGE(AWE11:AWE511) -> 3.1554 | AWG7: =AVERAGE(AWG11:AWG511) -> 2.205 | AWH7: =AVERAGE(AWH11:AWH511) -> 2.9946 | AWJ7: =AVERAGE(AWJ11:AWJ511) -> 2.64 | AWK7: =AVERAGE(AWK11:AWK511) -> 3.4026 | AWM7: =AVERAGE(AWM11:AWM511) -> 2.3622 | AWN7: =AVERAGE(AWN11:AWN511) -> 3.1986 | AWP7: =AVERAGE(AWP11:AWP511) -> 2.4824 | AWQ7: =AVERAGE(AWQ11:AWQ511) -> 3.1676 | AWS7: =AVERAGE(AWS11:AWS511) -> 2.3712 | AWT7: =AVERAGE(AWT11:AWT511) -> 2.9848 | AWV7: =AVERAGE(AWV11:AWV511) -> 2.4238 | AWW7: =AVERAGE(AWW11:AWW511) -> 3.4066 | AWY7: =AVERAGE(AWY11:AWY511) -> 2.507 | AWZ7: =AVERAGE(AWZ11:AWZ511) -> 3.1576 | AXB7: =AVERAGE(AXB11:AXB511) -> 2.7544 | AXC7: =AVERAGE(AXC11:AXC511) -> 3.3732 | AXE7: =AVERAGE(AXE11:AXE511) -> 2.1774 | AXF7: =AVERAGE(AXF11:AXF511) -> 2.8316 | AXH7: =AVERAGE(AXH11:AXH511) -> 2.5554 | AXI7: =AVERAGE(AXI11:AXI511) -> 3.2698 | AXK7: =AVERAGE(AXK11:AXK511) -> 2.4574 | AXL7: =AVERAGE(AXL11:AXL511) -> 3.0798 | AXN7: =AVERAGE(AXN11:AXN511) -> 2.333 | AXO7: =AVERAGE(AXO11:AXO511) -> 3.1656 | AXQ7: =AVERAGE(AXQ11:AXQ511) -> 2.681 | AXR7: =AVERAGE(AXR11:AXR511) -> 3.4 | AXT7: =AVERAGE(AXT11:AXT511) -> 2.5326 | AXU7: =AVERAGE(AXU11:AXU511) -> 3.2014 | AXW7: =AVERAGE(AXW11:AXW511) -> 2.5182 | AXX7: =AVERAGE(AXX11:AXX511) -> 3.1416 | AXZ7: =AVERAGE(AXZ11:AXZ511) -> 2.6546 | AYA7: =AVERAGE(AYA11:AYA511) -> 3.514 | AYC7: =AVERAGE(AYC11:AYC511) -> 2.3676 | AYD7: =AVERAGE(AYD11:AYD511) -> 3.2524 | AYF7: =AVERAGE(AYF11:AYF511) -> 2.5946 | AYG7: =AVERAGE(AYG11:AYG511) -> 2.9638 | AYI7: =AVERAGE(AYI11:AYI511) -> 2.553 | AYJ7: =AVERAGE(AYJ11:AYJ511) -> 3.109 | AYL7: =AVERAGE(AYL11:AYL511) -> 2.891 | AYM7: =AVERAGE(AYM11:AYM511) -> 3.5246 | AYO7: =AVERAGE(AYO11:AYO511) -> 2.2304 | AYP7: =AVERAGE(AYP11:AYP511) -> 2.8568 | AYR7: =AVERAGE(AYR11:AYR511) -> 2.4594 | AYS7: =AVERAGE(AYS11:AYS511) -> 2.916 | AYU7: =AVERAGE(AYU11:AYU511) -> 2.9198 | AYV7: =AVERAGE(AYV11:AYV511) -> 3.738 | AYX7: =AVERAGE(AYX11:AYX511) -> 2.2792 | AYY7: =AVERAGE(AYY11:AYY511) -> 2.9958 | AZA7: =AVERAGE(AZA11:AZA511) -> 2.3256 | AZB7: =AVERAGE(AZB11:AZB511) -> 2.7248 | AZD7: =AVERAGE(AZD11:AZD511) -> 2.3184 | AZE7: =AVERAGE(AZE11:AZE511) -> 2.9658 | AZG7: =AVERAGE(AZG11:AZG511) -> 2.5136 | AZH7: =AVERAGE(AZH11:AZH511) -> 3.0798 | AZJ7: =AVERAGE(AZJ11:AZJ511) -> 2.6954 | AZK7: =AVERAGE(AZK11:AZK511) -> 3.6174 | AZM7: =AVERAGE(AZM11:AZM511) -> 2.5182 | AZN7: =AVERAGE(AZN11:AZN511) -> 3.1992 | AZP7: =AVERAGE(AZP11:AZP511) -> 2.3994 | AZQ7: =AVERAGE(AZQ11:AZQ511) -> 3.3258 | AZS7: =AVERAGE(AZS11:AZS511) -> 2.2668 | AZT7: =AVERAGE(AZT11:AZT511) -> 2.9286 | AZV7: =AVERAGE(AZV11:AZV511) -> 2.69 | AZW7: =AVERAGE(AZW11:AZW511) -> 3.3932 | AZY7: =AVERAGE(AZY11:AZY511) -> 2.336 | AZZ7: =AVERAGE(AZZ11:AZZ511) -> 3.1188 | BAB7: =AVERAGE(BAB11:BAB511) -> 2.7928 | BAC7: =AVERAGE(BAC11:BAC511) -> 3.4884 | BAE7: =AVERAGE(BAE11:BAE511) -> 2.6368 | BAF7: =AVERAGE(BAF11:BAF511) -> 3.2258 | BAH7: =AVERAGE(BAH11:BAH511) -> 2.642 | BAI7: =AVERAGE(BAI11:BAI511) -> 3.1282 | BAK7: =AVERAGE(BAK11:BAK511) -> 2.6418 | BAL7: =AVERAGE(BAL11:BAL511) -> 3.3158 | BAN7: =AVERAGE(BAN11:BAN511) -> 2.419 | BAO7: =AVERAGE(BAO11:BAO511) -> 3.0188 | BAQ7: =AVERAGE(BAQ11:BAQ511) -> 2.3904 | BAR7: =AVERAGE(BAR11:BAR511) -> 3.2354 | BAT7: =AVERAGE(BAT11:BAT511) -> 2.8274 | BAU7: =AVERAGE(BAU11:BAU511) -> 3.5548 | BAW7: =AVERAGE(BAW11:BAW511) -> 2.7552 | BAX7: =AVERAGE(BAX11:BAX511) -> 3.3764 | BAZ7: =AVERAGE(BAZ11:BAZ511) -> 2.5796 | BBA7: =AVERAGE(BBA11:BBA511) -> 3.3178 | BBC7: =AVERAGE(BBC11:BBC511) -> 2.8528 | BBD7: =AVERAGE(BBD11:BBD511) -> 3.4682 | BBF7: =AVERAGE(BBF11:BBF511) -> 2.3922 | BBG7: =AVERAGE(BBG11:BBG511) -> 3.009 | BBI7: =AVERAGE(BBI11:BBI511) -> 2.7186 | BBJ7: =AVERAGE(BBJ11:BBJ511) -> 3.465 | BBL7: =AVERAGE(BBL11:BBL511) -> 2.688 | BBM7: =AVERAGE(BBM11:BBM511) -> 3.5164 | BBO7: =AVERAGE(BBO11:BBO511) -> 2.3344 | BBP7: =AVERAGE(BBP11:BBP511) -> 3.1458 | BBR7: =AVERAGE(BBR11:BBR511) -> 1.9524 | BBS7: =AVERAGE(BBS11:BBS511) -> 2.7196 | BBU7: =AVERAGE(BBU11:BBU511) -> 2.539 | BBV7: =AVERAGE(BBV11:BBV511) -> 3.057 | BBX7: =AVERAGE(BBX11:BBX511) -> 2.1826 | BBY7: =AVERAGE(BBY11:BBY511) -> 2.9526 | BCA7: =AVERAGE(BCA11:BCA511) -> 2.147 | BCB7: =AVERAGE(BCB11:BCB511) -> 2.9968 | BCD7: =AVERAGE(BCD11:BCD511) -> 2.7472 | BCE7: =AVERAGE(BCE11:BCE511) -> 3.5066 | BCG7: =AVERAGE(BCG11:BCG511) -> 2.5024 | BCH7: =AVERAGE(BCH11:BCH511) -> 3.1318 | BCJ7: =AVERAGE(BCJ11:BCJ511) -> 2.4946 | BCK7: =AVERAGE(BCK11:BCK511) -> 3.1646 | BCM7: =AVERAGE(BCM11:BCM511) -> 2.193 | BCN7: =AVERAGE(BCN11:BCN511) -> 3.0406 | BCP7: =AVERAGE(BCP11:BCP511) -> 2.1312 | BCQ7: =AVERAGE(BCQ11:BCQ511) -> 3.0938 | BCS7: =AVERAGE(BCS11:BCS511) -> 2.4494 | BCT7: =AVERAGE(BCT11:BCT511) -> 3.0952 | BCV7: =AVERAGE(BCV11:BCV511) -> 2.3808 | BCW7: =AVERAGE(BCW11:BCW511) -> 3.2268 | BCY7: =AVERAGE(BCY11:BCY511) -> 2.8804 | BCZ7: =AVERAGE(BCZ11:BCZ511) -> 3.5514 | BDB7: =AVERAGE(BDB11:BDB511) -> 2.9254 | BDC7: =AVERAGE(BDC11:BDC511) -> 3.5332 | BDE7: =AVERAGE(BDE11:BDE511) -> 2.3142 | BDF7: =AVERAGE(BDF11:BDF511) -> 2.8106 | BDH7: =AVERAGE(BDH11:BDH511) -> 2.5858 | BDI7: =AVERAGE(BDI11:BDI511) -> 3.1664 | BDK7: =AVERAGE(BDK11:BDK511) -> 2.6382 | BDL7: =AVERAGE(BDL11:BDL511) -> 3.2364 | BDN7: =AVERAGE(BDN11:BDN511) -> 2.4058 | BDO7: =AVERAGE(BDO11:BDO511) -> 3.1458 | BDQ7: =AVERAGE(BDQ11:BDQ511) -> 2.4434 | BDR7: =AVERAGE(BDR11:BDR511) -> 2.9614 | BDT7: =AVERAGE(BDT11:BDT511) -> 2.4298 | BDU7: =AVERAGE(BDU11:BDU511) -> 3.0422 | BDW7: =AVERAGE(BDW11:BDW511) -> 2.6256 | BDX7: =AVERAGE(BDX11:BDX511) -> 3.6294 | BDZ7: =AVERAGE(BDZ11:BDZ511) -> 2.0898 | BEA7: =AVERAGE(BEA11:BEA511) -> 2.5614 | BEC7: =AVERAGE(BEC11:BEC511) -> 2.761 | BED7: =AVERAGE(BED11:BED511) -> 3.5044 | BEF7: =AVERAGE(BEF11:BEF511) -> 2.2254 | BEG7: =AVERAGE(BEG11:BEG511) -> 2.991 | BEI7: =AVERAGE(BEI11:BEI511) -> 2.5322 | BEJ7: =AVERAGE(BEJ11:BEJ511) -> 3.2458 | BEL7: =AVERAGE(BEL11:BEL511) -> 2.828 | BEM7: =AVERAGE(BEM11:BEM511) -> 3.3674 | BEO7: =AVERAGE(BEO11:BEO511) -> 2.3388 | BEP7: =AVERAGE(BEP11:BEP511) -> 2.8296 | BER7: =AVERAGE(BER11:BER511) -> 2.4528 | BES7: =AVERAGE(BES11:BES511) -> 3.1476 | BEU7: =AVERAGE(BEU11:BEU511) -> 2.7168 | BEV7: =AVERAGE(BEV11:BEV511) -> 3.4088 | BEX7: =AVERAGE(BEX11:BEX511) -> 2.4642 | BEY7: =AVERAGE(BEY11:BEY511) -> 3.0432 | BFA7: =AVERAGE(BFA11:BFA511) -> 2.1466 | BFB7: =AVERAGE(BFB11:BFB511) -> 2.9652 | BFD7: =AVERAGE(BFD11:BFD511) -> 2.3726 | BFE7: =AVERAGE(BFE11:BFE511) -> 3.2906 | BFG7: =AVERAGE(BFG11:BFG511) -> 2.2818 | BFH7: =AVERAGE(BFH11:BFH511) -> 2.7962 | BFJ7: =AVERAGE(BFJ11:BFJ511) -> 2.7144 | BFK7: =AVERAGE(BFK11:BFK511) -> 3.22 | BFM7: =AVERAGE(BFM11:BFM511) -> 2.3986 | BFN7: =AVERAGE(BFN11:BFN511) -> 2.8338 | BFP7: =AVERAGE(BFP11:BFP511) -> 2.572 | BFQ7: =AVERAGE(BFQ11:BFQ511) -> 3.3846 | BFS7: =AVERAGE(BFS11:BFS511) -> 2.4546 | BFT7: =AVERAGE(BFT11:BFT511) -> 3.023 | BFV7: =AVERAGE(BFV11:BFV511) -> 2.3062 | BFW7: =AVERAGE(BFW11:BFW511) -> 3.078 | BFY7: =AVERAGE(BFY11:BFY511) -> 2.6392 | BFZ7: =AVERAGE(BFZ11:BFZ511) -> 3.3006 | BGB7: =AVERAGE(BGB11:BGB511) -> 2.7766 | BGC7: =AVERAGE(BGC11:BGC511) -> 3.5018 | BGE7: =AVERAGE(BGE11:BGE511) -> 2.619 | BGF7: =AVERAGE(BGF11:BGF511) -> 3.443 | BGH7: =AVERAGE(BGH11:BGH511) -> 2.2026 | BGI7: =AVERAGE(BGI11:BGI511) -> 2.9472 | BGK7: =AVERAGE(BGK11:BGK511) -> 2.6142 | BGL7: =AVERAGE(BGL11:BGL511) -> 3.4304 | BGN7: =AVERAGE(BGN11:BGN511) -> 3.1248 | BGO7: =AVERAGE(BGO11:BGO511) -> 3.3958 | BGQ7: =AVERAGE(BGQ11:BGQ511) -> 2.238 | BGR7: =AVERAGE(BGR11:BGR511) -> 2.9074 | BGT7: =AVERAGE(BGT11:BGT511) -> 2.25 | BGU7: =AVERAGE(BGU11:BGU511) -> 2.9422
C8: 4 | D8: 0.32 | E8: 0.75 | H8: 0 | I8: 0 | K8: 標準偏差：=STDEV(セル範囲) | M8: =STDEV(D5:D1304) -> 1.678069299 | N8: =STDEV(E5:E1304) -> 1.854109435 | O8: =STDEV(F5:F1304) ->  | P8: =STDEV(G5:G1304) ->  | Q8: 誤差分散比(λ) | R8: =S5/R5 ->  | U8: 2.11 | V8: 23 | W8: 6 | X8: 2.26 | Y8: 20 | Z8: 8 | AD8: =AD7+$AC$7 -> -1.391224916 | AE8: 0.28594512 | AF8: -1.252753108 | AG8: 0.6963025506 | AN8: 47 | AO8: 47 | AS8: 0.535 | AT8: 0.43 | AV8: 0.535 | AW8: 0.43 | BA8: Sｘｙ= | BB8: =COVAR(BB11:BB510,BC11:BC510)*$N$5 -> 130.81294 | BE8: =COVAR(BE11:BE510,BF11:BF510)*$N$5 -> 128.058076 | BH8: =COVAR(BH11:BH510,BI11:BI510)*$N$5 -> 134.38678 | BK8: =COVAR(BK11:BK510,BL11:BL510)*$N$5 -> 120.61014 | BN8: =COVAR(BN11:BN510,BO11:BO510)*$N$5 -> 167.122926 | BQ8: =COVAR(BQ11:BQ510,BR11:BR510)*$N$5 -> 110.7823 | BT8: =COVAR(BT11:BT510,BU11:BU510)*$N$5 -> 104.24677 | BW8: =COVAR(BW11:BW510,BX11:BX510)*$N$5 -> 101.72468 | BZ8: =COVAR(BZ11:BZ510,CA11:CA510)*$N$5 -> 137.606588 | CC8: =COVAR(CC11:CC510,CD11:CD510)*$N$5 -> 147.57114 | CF8: =COVAR(CF11:CF510,CG11:CG510)*$N$5 -> 118.57391 | CI8: =COVAR(CI11:CI510,CJ11:CJ510)*$N$5 -> 126.16743 | CL8: =COVAR(CL11:CL510,CM11:CM510)*$N$5 -> 137.014632 | CO8: =COVAR(CO11:CO510,CP11:CP510)*$N$5 -> 116.799012 | CR8: =COVAR(CR11:CR510,CS11:CS510)*$N$5 -> 110.176456 | CU8: =COVAR(CU11:CU510,CV11:CV510)*$N$5 -> 95.37764 | CX8: =COVAR(CX11:CX510,CY11:CY510)*$N$5 -> 115.279044 | DA8: =COVAR(DA11:DA510,DB11:DB510)*$N$5 -> 96.405118 | DD8: =COVAR(DD11:DD510,DE11:DE510)*$N$5 -> 135.8092 | DG8: =COVAR(DG11:DG510,DH11:DH510)*$N$5 -> 174.860184 | DJ8: =COVAR(DJ11:DJ510,DK11:DK510)*$N$5 -> 120.559314 | DM8: =COVAR(DM11:DM510,DN11:DN510)*$N$5 -> 128.05005 | DP8: =COVAR(DP11:DP510,DQ11:DQ510)*$N$5 -> 130.977698 | DS8: =COVAR(DS11:DS510,DT11:DT510)*$N$5 -> 113.790948 | DV8: =COVAR(DV11:DV510,DW11:DW510)*$N$5 -> 103.590984 | DY8: =COVAR(DY11:DY510,DZ11:DZ510)*$N$5 -> 115.4575 | EB8: =COVAR(EB11:EB510,EC11:EC510)*$N$5 -> 118.541482 | EE8: =COVAR(EE11:EE510,EF11:EF510)*$N$5 -> 109.564916 | EH8: =COVAR(EH11:EH510,EI11:EI510)*$N$5 -> 139.0216 | EK8: =COVAR(EK11:EK510,EL11:EL510)*$N$5 -> 165.323854 | EN8: =COVAR(EN11:EN510,EO11:EO510)*$N$5 -> 126.603828 | EQ8: =COVAR(EQ11:EQ510,ER11:ER510)*$N$5 -> 120.97552 | ET8: =COVAR(ET11:ET510,EU11:EU510)*$N$5 -> 129.508528 | EW8: =COVAR(EW11:EW510,EX11:EX510)*$N$5 -> 151.478376 | EZ8: =COVAR(EZ11:EZ510,FA11:FA510)*$N$5 -> 146.73676 | FC8: =COVAR(FC11:FC510,FD11:FD510)*$N$5 -> 101.32592 | FF8: =COVAR(FF11:FF510,FG11:FG510)*$N$5 -> 86.51829 | FI8: =COVAR(FI11:FI510,FJ11:FJ510)*$N$5 -> 157.146208 | FL8: =COVAR(FL11:FL510,FM11:FM510)*$N$5 -> 138.917274 | FO8: =COVAR(FO11:FO510,FP11:FP510)*$N$5 -> 112.112838 | FR8: =COVAR(FR11:FR510,FS11:FS510)*$N$5 -> 104.193188 | FU8: =COVAR(FU11:FU510,FV11:FV510)*$N$5 -> 111.91734 | FX8: =COVAR(FX11:FX510,FY11:FY510)*$N$5 -> 102.441716 | GA8: =COVAR(GA11:GA510,GB11:GB510)*$N$5 -> 155.76928 | GD8: =COVAR(GD11:GD510,GE11:GE510)*$N$5 -> 103.076154 | GG8: =COVAR(GG11:GG510,GH11:GH510)*$N$5 -> 133.936146 | GJ8: =COVAR(GJ11:GJ510,GK11:GK510)*$N$5 -> 104.22345 | GM8: =COVAR(GM11:GM510,GN11:GN510)*$N$5 -> 113.247558 | GP8: =COVAR(GP11:GP510,GQ11:GQ510)*$N$5 -> 114.085264 | GS8: =COVAR(GS11:GS510,GT11:GT510)*$N$5 -> 144.109424 | GV8: =COVAR(GV11:GV510,GW11:GW510)*$N$5 -> 111.49013 | GY8: =COVAR(GY11:GY510,GZ11:GZ510)*$N$5 -> 133.5853 | HB8: =COVAR(HB11:HB510,HC11:HC510)*$N$5 -> 164.67065 | HE8: =COVAR(HE11:HE510,HF11:HF510)*$N$5 -> 86.01398 | HH8: =COVAR(HH11:HH510,HI11:HI510)*$N$5 -> 155.168826 | HK8: =COVAR(HK11:HK510,HL11:HL510)*$N$5 -> 93.994 | HN8: =COVAR(HN11:HN510,HO11:HO510)*$N$5 -> 111.71627 | HQ8: =COVAR(HQ11:HQ510,HR11:HR510)*$N$5 -> 128.521396 | HT8: =COVAR(HT11:HT510,HU11:HU510)*$N$5 -> 135.32375 | HW8: =COVAR(HW11:HW510,HX11:HX510)*$N$5 -> 124.913272 | HZ8: =COVAR(HZ11:HZ510,IA11:IA510)*$N$5 -> 142.559326 | IC8: =COVAR(IC11:IC510,ID11:ID510)*$N$5 -> 106.277192 | IF8: =COVAR(IF11:IF510,IG11:IG510)*$N$5 -> 145.72708 | II8: =COVAR(II11:II510,IJ11:IJ510)*$N$5 -> 133.150124 | IL8: =COVAR(IL11:IL510,IM11:IM510)*$N$5 -> 141.49852 | IO8: =COVAR(IO11:IO510,IP11:IP510)*$N$5 -> 130.903444 | IR8: =COVAR(IR11:IR510,IS11:IS510)*$N$5 -> 141.625128 | IU8: =COVAR(IU11:IU510,IV11:IV510)*$N$5 -> 124.163616 | IX8: =COVAR(IX11:IX510,IY11:IY510)*$N$5 -> 121.695288 | JA8: =COVAR(JA11:JA510,JB11:JB510)*$N$5 -> 136.255164 | JD8: =COVAR(JD11:JD510,JE11:JE510)*$N$5 -> 143.962472 | JG8: =COVAR(JG11:JG510,JH11:JH510)*$N$5 -> 111.296668 | JJ8: =COVAR(JJ11:JJ510,JK11:JK510)*$N$5 -> 105.825528 | JM8: =COVAR(JM11:JM510,JN11:JN510)*$N$5 -> 147.915364 | JP8: =COVAR(JP11:JP510,JQ11:JQ510)*$N$5 -> 129.66444 | JS8: =COVAR(JS11:JS510,JT11:JT510)*$N$5 -> 105.012176 | JV8: =COVAR(JV11:JV510,JW11:JW510)*$N$5 -> 150.32428 | JY8: =COVAR(JY11:JY510,JZ11:JZ510)*$N$5 -> 139.349844 | KB8: =COVAR(KB11:KB510,KC11:KC510)*$N$5 -> 170.8502 | KE8: =COVAR(KE11:KE510,KF11:KF510)*$N$5 -> 147.816692 | KH8: =COVAR(KH11:KH510,KI11:KI510)*$N$5 -> 138.8864 | KK8: =COVAR(KK11:KK510,KL11:KL510)*$N$5 -> 99.457028 | KN8: =COVAR(KN11:KN510,KO11:KO510)*$N$5 -> 120.482358 | KQ8: =COVAR(KQ11:KQ510,KR11:KR510)*$N$5 -> 122.64116 | KT8: =COVAR(KT11:KT510,KU11:KU510)*$N$5 -> 99.769804 | KW8: =COVAR(KW11:KW510,KX11:KX510)*$N$5 -> 113.396084 | KZ8: =COVAR(KZ11:KZ510,LA11:LA510)*$N$5 -> 173.46712 | LC8: =COVAR(LC11:LC510,LD11:LD510)*$N$5 -> 152.279566 | LF8: =COVAR(LF11:LF510,LG11:LG510)*$N$5 -> 115.971126 | LI8: =COVAR(LI11:LI510,LJ11:LJ510)*$N$5 -> 124.345268 | LL8: =COVAR(LL11:LL510,LM11:LM510)*$N$5 -> 140.000352 | LO8: =COVAR(LO11:LO510,LP11:LP510)*$N$5 -> 174.714268 | LR8: =COVAR(LR11:LR510,LS11:LS510)*$N$5 -> 127.09084 | LU8: =COVAR(LU11:LU510,LV11:LV510)*$N$5 -> 116.95764 | LX8: =COVAR(LX11:LX510,LY11:LY510)*$N$5 -> 131.87787 | MA8: =COVAR(MA11:MA510,MB11:MB510)*$N$5 -> 120.872376 | MD8: =COVAR(MD11:MD510,ME11:ME510)*$N$5 -> 122.306706 | MG8: =COVAR(MG11:MG510,MH11:MH510)*$N$5 -> 136.477368 | MJ8: =COVAR(MJ11:MJ510,MK11:MK510)*$N$5 -> 100.448464 | MM8: =COVAR(MM11:MM510,MN11:MN510)*$N$5 -> 151.42894 | MP8: =COVAR(MP11:MP510,MQ11:MQ510)*$N$5 -> 125.892312 | MS8: =COVAR(MS11:MS510,MT11:MT510)*$N$5 -> 149.336384 | MV8: =COVAR(MV11:MV510,MW11:MW510)*$N$5 -> 138.528528 | MY8: =COVAR(MY11:MY510,MZ11:MZ510)*$N$5 -> 135.986624 | NB8: =COVAR(NB11:NB510,NC11:NC510)*$N$5 -> 112.656462 | NE8: =COVAR(NE11:NE510,NF11:NF510)*$N$5 -> 141.734664 | NH8: =COVAR(NH11:NH510,NI11:NI510)*$N$5 -> 146.83274 | NK8: =COVAR(NK11:NK510,NL11:NL510)*$N$5 -> 136.18909 | NN8: =COVAR(NN11:NN510,NO11:NO510)*$N$5 -> 101.01684 | NQ8: =COVAR(NQ11:NQ510,NR11:NR510)*$N$5 -> 135.155364 | NT8: =COVAR(NT11:NT510,NU11:NU510)*$N$5 -> 136.528704 | NW8: =COVAR(NW11:NW510,NX11:NX510)*$N$5 -> 183.328872 | NZ8: =COVAR(NZ11:NZ510,OA11:OA510)*$N$5 -> 121.924158 | OC8: =COVAR(OC11:OC510,OD11:OD510)*$N$5 -> 101.429798 | OF8: =COVAR(OF11:OF510,OG11:OG510)*$N$5 -> 119.427774 | OI8: =COVAR(OI11:OI510,OJ11:OJ510)*$N$5 -> 108.230626 | OL8: =COVAR(OL11:OL510,OM11:OM510)*$N$5 -> 153.99066 | OO8: =COVAR(OO11:OO510,OP11:OP510)*$N$5 -> 110.497788 | OR8: =COVAR(OR11:OR510,OS11:OS510)*$N$5 -> 155.05541 | OU8: =COVAR(OU11:OU510,OV11:OV510)*$N$5 -> 122.279904 | OX8: =COVAR(OX11:OX510,OY11:OY510)*$N$5 -> 186.053512 | PA8: =COVAR(PA11:PA510,PB11:PB510)*$N$5 -> 127.267582 | PD8: =COVAR(PD11:PD510,PE11:PE510)*$N$5 -> 118.56717 | PG8: =COVAR(PG11:PG510,PH11:PH510)*$N$5 -> 105.940308 | PJ8: =COVAR(PJ11:PJ510,PK11:PK510)*$N$5 -> 109.4249 | PM8: =COVAR(PM11:PM510,PN11:PN510)*$N$5 -> 152.07483 | PP8: =COVAR(PP11:PP510,PQ11:PQ510)*$N$5 -> 160.441406 | PS8: =COVAR(PS11:PS510,PT11:PT510)*$N$5 -> 126.564364 | PV8: =COVAR(PV11:PV510,PW11:PW510)*$N$5 -> 160.338096 | PY8: =COVAR(PY11:PY510,PZ11:PZ510)*$N$5 -> 104.272144 | QB8: =COVAR(QB11:QB510,QC11:QC510)*$N$5 -> 131.257944 | QE8: =COVAR(QE11:QE510,QF11:QF510)*$N$5 -> 113.342568 | QH8: =COVAR(QH11:QH510,QI11:QI510)*$N$5 -> 128.23918 | QK8: =COVAR(QK11:QK510,QL11:QL510)*$N$5 -> 142.2102 | QN8: =COVAR(QN11:QN510,QO11:QO510)*$N$5 -> 109.212196 | QQ8: =COVAR(QQ11:QQ510,QR11:QR510)*$N$5 -> 90.284194 | QT8: =COVAR(QT11:QT510,QU11:QU510)*$N$5 -> 130.907138 | QW8: =COVAR(QW11:QW510,QX11:QX510)*$N$5 -> 97.441244 | QZ8: =COVAR(QZ11:QZ510,RA11:RA510)*$N$5 -> 129.794744 | RC8: =COVAR(RC11:RC510,RD11:RD510)*$N$5 -> 131.441948 | RF8: =COVAR(RF11:RF510,RG11:RG510)*$N$5 -> 111.88221 | RI8: =COVAR(RI11:RI510,RJ11:RJ510)*$N$5 -> 141.490924 | RL8: =COVAR(RL11:RL510,RM11:RM510)*$N$5 -> 141.025616 | RO8: =COVAR(RO11:RO510,RP11:RP510)*$N$5 -> 127.70504 | RR8: =COVAR(RR11:RR510,RS11:RS510)*$N$5 -> 89.28004 | RU8: =COVAR(RU11:RU510,RV11:RV510)*$N$5 -> 158.679816 | RX8: =COVAR(RX11:RX510,RY11:RY510)*$N$5 -> 102.305968 | SA8: =COVAR(SA11:SA510,SB11:SB510)*$N$5 -> 95.030904 | SD8: =COVAR(SD11:SD510,SE11:SE510)*$N$5 -> 147.092954 | SG8: =COVAR(SG11:SG510,SH11:SH510)*$N$5 -> 124.735062 | SJ8: =COVAR(SJ11:SJ510,SK11:SK510)*$N$5 -> 132.111712 | SM8: =COVAR(SM11:SM510,SN11:SN510)*$N$5 -> 116.129724 | SP8: =COVAR(SP11:SP510,SQ11:SQ510)*$N$5 -> 135.659494 | SS8: =COVAR(SS11:SS510,ST11:ST510)*$N$5 -> 138.331378 | SV8: =COVAR(SV11:SV510,SW11:SW510)*$N$5 -> 137.67466 | SY8: =COVAR(SY11:SY510,SZ11:SZ510)*$N$5 -> 130.211954 | TB8: =COVAR(TB11:TB510,TC11:TC510)*$N$5 -> 127.712948 | TE8: =COVAR(TE11:TE510,TF11:TF510)*$N$5 -> 130.047144 | TH8: =COVAR(TH11:TH510,TI11:TI510)*$N$5 -> 127.229706 | TK8: =COVAR(TK11:TK510,TL11:TL510)*$N$5 -> 125.71108 | TN8: =COVAR(TN11:TN510,TO11:TO510)*$N$5 -> 117.803904 | TQ8: =COVAR(TQ11:TQ510,TR11:TR510)*$N$5 -> 136.982828 | TT8: =COVAR(TT11:TT510,TU11:TU510)*$N$5 -> 133.198144 | TW8: =COVAR(TW11:TW510,TX11:TX510)*$N$5 -> 137.52483 | TZ8: =COVAR(TZ11:TZ510,UA11:UA510)*$N$5 -> 142.703072 | UC8: =COVAR(UC11:UC510,UD11:UD510)*$N$5 -> 131.986116 | UF8: =COVAR(UF11:UF510,UG11:UG510)*$N$5 -> 124.794572 | UI8: =COVAR(UI11:UI510,UJ11:UJ510)*$N$5 -> 112.664116 | UL8: =COVAR(UL11:UL510,UM11:UM510)*$N$5 -> 121.966718 | UO8: =COVAR(UO11:UO510,UP11:UP510)*$N$5 -> 94.585058 | UR8: =COVAR(UR11:UR510,US11:US510)*$N$5 -> 129.42392 | UU8: =COVAR(UU11:UU510,UV11:UV510)*$N$5 -> 148.423 | UX8: =COVAR(UX11:UX510,UY11:UY510)*$N$5 -> 121.539188 | VA8: =COVAR(VA11:VA510,VB11:VB510)*$N$5 -> 139.5362 | VD8: =COVAR(VD11:VD510,VE11:VE510)*$N$5 -> 99.60099 | VG8: =COVAR(VG11:VG510,VH11:VH510)*$N$5 -> 101.66131 | VJ8: =COVAR(VJ11:VJ510,VK11:VK510)*$N$5 -> 96.570652 | VM8: =COVAR(VM11:VM510,VN11:VN510)*$N$5 -> 81.20588 | VP8: =COVAR(VP11:VP510,VQ11:VQ510)*$N$5 -> 113.326364 | VS8: =COVAR(VS11:VS510,VT11:VT510)*$N$5 -> 124.73378 | VV8: =COVAR(VV11:VV510,VW11:VW510)*$N$5 -> 146.246294 | VY8: =COVAR(VY11:VY510,VZ11:VZ510)*$N$5 -> 131.562608 | WB8: =COVAR(WB11:WB510,WC11:WC510)*$N$5 -> 142.91835 | WE8: =COVAR(WE11:WE510,WF11:WF510)*$N$5 -> 93.137094 | WH8: =COVAR(WH11:WH510,WI11:WI510)*$N$5 -> 126.20714 | WK8: =COVAR(WK11:WK510,WL11:WL510)*$N$5 -> 133.22076 | WN8: =COVAR(WN11:WN510,WO11:WO510)*$N$5 -> 128.461268 | WQ8: =COVAR(WQ11:WQ510,WR11:WR510)*$N$5 -> 142.393532 | WT8: =COVAR(WT11:WT510,WU11:WU510)*$N$5 -> 120.90817 | WW8: =COVAR(WW11:WW510,WX11:WX510)*$N$5 -> 124.133424 | WZ8: =COVAR(WZ11:WZ510,XA11:XA510)*$N$5 -> 145.97286 | XC8: =COVAR(XC11:XC510,XD11:XD510)*$N$5 -> 117.802912 | XF8: =COVAR(XF11:XF510,XG11:XG510)*$N$5 -> 139.480636 | XI8: =COVAR(XI11:XI510,XJ11:XJ510)*$N$5 -> 109.690402 | XL8: =COVAR(XL11:XL510,XM11:XM510)*$N$5 -> 145.254696 | XO8: =COVAR(XO11:XO510,XP11:XP510)*$N$5 -> 134.89459 | XR8: =COVAR(XR11:XR510,XS11:XS510)*$N$5 -> 118.3238 | XU8: =COVAR(XU11:XU510,XV11:XV510)*$N$5 -> 119.712116 | XX8: =COVAR(XX11:XX510,XY11:XY510)*$N$5 -> 107.531794 | YA8: =COVAR(YA11:YA510,YB11:YB510)*$N$5 -> 124.031712 | YD8: =COVAR(YD11:YD510,YE11:YE510)*$N$5 -> 119.3733 | YG8: =COVAR(YG11:YG510,YH11:YH510)*$N$5 -> 135.055836 | YJ8: =COVAR(YJ11:YJ510,YK11:YK510)*$N$5 -> 144.49948 | YM8: =COVAR(YM11:YM510,YN11:YN510)*$N$5 -> 122.410128 | YP8: =COVAR(YP11:YP510,YQ11:YQ510)*$N$5 -> 130.485672 | YS8: =COVAR(YS11:YS510,YT11:YT510)*$N$5 -> 119.132636 | YV8: =COVAR(YV11:YV510,YW11:YW510)*$N$5 -> 106.3153 | YY8: =COVAR(YY11:YY510,YZ11:YZ510)*$N$5 -> 128.5244 | ZB8: =COVAR(ZB11:ZB510,ZC11:ZC510)*$N$5 -> 133.08665 | ZE8: =COVAR(ZE11:ZE510,ZF11:ZF510)*$N$5 -> 112.623352 | ZH8: =COVAR(ZH11:ZH510,ZI11:ZI510)*$N$5 -> 176.26916 | ZK8: =COVAR(ZK11:ZK510,ZL11:ZL510)*$N$5 -> 107.97916 | ZN8: =COVAR(ZN11:ZN510,ZO11:ZO510)*$N$5 -> 90.486176 | ZQ8: =COVAR(ZQ11:ZQ510,ZR11:ZR510)*$N$5 -> 105.282584 | ZT8: =COVAR(ZT11:ZT510,ZU11:ZU510)*$N$5 -> 109.628744 | ZW8: =COVAR(ZW11:ZW510,ZX11:ZX510)*$N$5 -> 146.63112 | ZZ8: =COVAR(ZZ11:ZZ510,AAA11:AAA510)*$N$5 -> 104.260648 | AAC8: =COVAR(AAC11:AAC510,AAD11:AAD510)*$N$5 -> 151.894228 | AAF8: =COVAR(AAF11:AAF510,AAG11:AAG510)*$N$5 -> 129.71918 | AAI8: =COVAR(AAI11:AAI510,AAJ11:AAJ510)*$N$5 -> 121.890888 | AAL8: =COVAR(AAL11:AAL510,AAM11:AAM510)*$N$5 -> 126.71868 | AAO8: =COVAR(AAO11:AAO510,AAP11:AAP510)*$N$5 -> 130.0339 | AAR8: =COVAR(AAR11:AAR510,AAS11:AAS510)*$N$5 -> 153.982884 | AAU8: =COVAR(AAU11:AAU510,AAV11:AAV510)*$N$5 -> 121.179126 | AAX8: =COVAR(AAX11:AAX510,AAY11:AAY510)*$N$5 -> 141.534076 | ABA8: =COVAR(ABA11:ABA510,ABB11:ABB510)*$N$5 -> 106.010614 | ABD8: =COVAR(ABD11:ABD510,ABE11:ABE510)*$N$5 -> 136.66118 | ABG8: =COVAR(ABG11:ABG510,ABH11:ABH510)*$N$5 -> 127.2396 | ABJ8: =COVAR(ABJ11:ABJ510,ABK11:ABK510)*$N$5 -> 107.21426 | ABM8: =COVAR(ABM11:ABM510,ABN11:ABN510)*$N$5 -> 147.696056 | ABP8: =COVAR(ABP11:ABP510,ABQ11:ABQ510)*$N$5 -> 174.952628 | ABS8: =COVAR(ABS11:ABS510,ABT11:ABT510)*$N$5 -> 116.223718 | ABV8: =COVAR(ABV11:ABV510,ABW11:ABW510)*$N$5 -> 99.966576 | ABY8: =COVAR(ABY11:ABY510,ABZ11:ABZ510)*$N$5 -> 128.366312 | ACB8: =COVAR(ACB11:ACB510,ACC11:ACC510)*$N$5 -> 91.605672 | ACE8: =COVAR(ACE11:ACE510,ACF11:ACF510)*$N$5 -> 131.31298 | ACH8: =COVAR(ACH11:ACH510,ACI11:ACI510)*$N$5 -> 111.550456 | ACK8: =COVAR(ACK11:ACK510,ACL11:ACL510)*$N$5 -> 111.03498 | ACN8: =COVAR(ACN11:ACN510,ACO11:ACO510)*$N$5 -> 128.09251 | ACQ8: =COVAR(ACQ11:ACQ510,ACR11:ACR510)*$N$5 -> 142.49454 | ACT8: =COVAR(ACT11:ACT510,ACU11:ACU510)*$N$5 -> 165.748972 | ACW8: =COVAR(ACW11:ACW510,ACX11:ACX510)*$N$5 -> 128.565184 | ACZ8: =COVAR(ACZ11:ACZ510,ADA11:ADA510)*$N$5 -> 125.349984 | ADC8: =COVAR(ADC11:ADC510,ADD11:ADD510)*$N$5 -> 143.340294 | ADF8: =COVAR(ADF11:ADF510,ADG11:ADG510)*$N$5 -> 115.439488 | ADI8: =COVAR(ADI11:ADI510,ADJ11:ADJ510)*$N$5 -> 167.9988 | ADL8: =COVAR(ADL11:ADL510,ADM11:ADM510)*$N$5 -> 125.519038 | ADO8: =COVAR(ADO11:ADO510,ADP11:ADP510)*$N$5 -> 123.364594 | ADR8: =COVAR(ADR11:ADR510,ADS11:ADS510)*$N$5 -> 118.805568 | ADU8: =COVAR(ADU11:ADU510,ADV11:ADV510)*$N$5 -> 106.16704 | ADX8: =COVAR(ADX11:ADX510,ADY11:ADY510)*$N$5 -> 148.10708 | AEA8: =COVAR(AEA11:AEA510,AEB11:AEB510)*$N$5 -> 144.414272 | AED8: =COVAR(AED11:AED510,AEE11:AEE510)*$N$5 -> 121.843246 | AEG8: =COVAR(AEG11:AEG510,AEH11:AEH510)*$N$5 -> 108.10938 | AEJ8: =COVAR(AEJ11:AEJ510,AEK11:AEK510)*$N$5 -> 113.35128 | AEM8: =COVAR(AEM11:AEM510,AEN11:AEN510)*$N$5 -> 152.14466 | AEP8: =COVAR(AEP11:AEP510,AEQ11:AEQ510)*$N$5 -> 137.18734 | AES8: =COVAR(AES11:AES510,AET11:AET510)*$N$5 -> 103.187652 | AEV8: =COVAR(AEV11:AEV510,AEW11:AEW510)*$N$5 -> 156.470552 | AEY8: =COVAR(AEY11:AEY510,AEZ11:AEZ510)*$N$5 -> 133.5671 | AFB8: =COVAR(AFB11:AFB510,AFC11:AFC510)*$N$5 -> 116.607124 | AFE8: =COVAR(AFE11:AFE510,AFF11:AFF510)*$N$5 -> 149.754784 | AFH8: =COVAR(AFH11:AFH510,AFI11:AFI510)*$N$5 -> 114.85983 | AFK8: =COVAR(AFK11:AFK510,AFL11:AFL510)*$N$5 -> 141.575594 | AFN8: =COVAR(AFN11:AFN510,AFO11:AFO510)*$N$5 -> 133.845606 | AFQ8: =COVAR(AFQ11:AFQ510,AFR11:AFR510)*$N$5 -> 126.80516 | AFT8: =COVAR(AFT11:AFT510,AFU11:AFU510)*$N$5 -> 131.352972 | AFW8: =COVAR(AFW11:AFW510,AFX11:AFX510)*$N$5 -> 126.52748 | AFZ8: =COVAR(AFZ11:AFZ510,AGA11:AGA510)*$N$5 -> 110.972204 | AGC8: =COVAR(AGC11:AGC510,AGD11:AGD510)*$N$5 -> 143.80658 | AGF8: =COVAR(AGF11:AGF510,AGG11:AGG510)*$N$5 -> 176.52234 | AGI8: =COVAR(AGI11:AGI510,AGJ11:AGJ510)*$N$5 -> 110.361 | AGL8: =COVAR(AGL11:AGL510,AGM11:AGM510)*$N$5 -> 141.27666 | AGO8: =COVAR(AGO11:AGO510,AGP11:AGP510)*$N$5 -> 90.55741 | AGR8: =COVAR(AGR11:AGR510,AGS11:AGS510)*$N$5 -> 116.420302 | AGU8: =COVAR(AGU11:AGU510,AGV11:AGV510)*$N$5 -> 111.114374 | AGX8: =COVAR(AGX11:AGX510,AGY11:AGY510)*$N$5 -> 94.993228 | AHA8: =COVAR(AHA11:AHA510,AHB11:AHB510)*$N$5 -> 131.679356 | AHD8: =COVAR(AHD11:AHD510,AHE11:AHE510)*$N$5 -> 128.15496 | AHG8: =COVAR(AHG11:AHG510,AHH11:AHH510)*$N$5 -> 139.029572 | AHJ8: =COVAR(AHJ11:AHJ510,AHK11:AHK510)*$N$5 -> 105.610558 | AHM8: =COVAR(AHM11:AHM510,AHN11:AHN510)*$N$5 -> 121.2607 | AHP8: =COVAR(AHP11:AHP510,AHQ11:AHQ510)*$N$5 -> 132.655668 | AHS8: =COVAR(AHS11:AHS510,AHT11:AHT510)*$N$5 -> 149.43408 | AHV8: =COVAR(AHV11:AHV510,AHW11:AHW510)*$N$5 -> 127.06087 | AHY8: =COVAR(AHY11:AHY510,AHZ11:AHZ510)*$N$5 -> 136.320576 | AIB8: =COVAR(AIB11:AIB510,AIC11:AIC510)*$N$5 -> 111.7505 | AIE8: =COVAR(AIE11:AIE510,AIF11:AIF510)*$N$5 -> 153.470042 | AIH8: =COVAR(AIH11:AIH510,AII11:AII510)*$N$5 -> 144.028904 | AIK8: =COVAR(AIK11:AIK510,AIL11:AIL510)*$N$5 -> 102.259874 | AIN8: =COVAR(AIN11:AIN510,AIO11:AIO510)*$N$5 -> 74.650968 | AIQ8: =COVAR(AIQ11:AIQ510,AIR11:AIR510)*$N$5 -> 142.75502 | AIT8: =COVAR(AIT11:AIT510,AIU11:AIU510)*$N$5 -> 108.698776 | AIW8: =COVAR(AIW11:AIW510,AIX11:AIX510)*$N$5 -> 103.398212 | AIZ8: =COVAR(AIZ11:AIZ510,AJA11:AJA510)*$N$5 -> 108.551588 | AJC8: =COVAR(AJC11:AJC510,AJD11:AJD510)*$N$5 -> 115.219952 | AJF8: =COVAR(AJF11:AJF510,AJG11:AJG510)*$N$5 -> 114.392666 | AJI8: =COVAR(AJI11:AJI510,AJJ11:AJJ510)*$N$5 -> 137.24317 | AJL8: =COVAR(AJL11:AJL510,AJM11:AJM510)*$N$5 -> 115.678036 | AJO8: =COVAR(AJO11:AJO510,AJP11:AJP510)*$N$5 -> 143.480136 | AJR8: =COVAR(AJR11:AJR510,AJS11:AJS510)*$N$5 -> 146.7349 | AJU8: =COVAR(AJU11:AJU510,AJV11:AJV510)*$N$5 -> 141.29615 | AJX8: =COVAR(AJX11:AJX510,AJY11:AJY510)*$N$5 -> 129.68232 | AKA8: =COVAR(AKA11:AKA510,AKB11:AKB510)*$N$5 -> 87.81717 | AKD8: =COVAR(AKD11:AKD510,AKE11:AKE510)*$N$5 -> 125.415708 | AKG8: =COVAR(AKG11:AKG510,AKH11:AKH510)*$N$5 -> 120.23049 | AKJ8: =COVAR(AKJ11:AKJ510,AKK11:AKK510)*$N$5 -> 128.08465 | AKM8: =COVAR(AKM11:AKM510,AKN11:AKN510)*$N$5 -> 128.19662 | AKP8: =COVAR(AKP11:AKP510,AKQ11:AKQ510)*$N$5 -> 116.61652 | AKS8: =COVAR(AKS11:AKS510,AKT11:AKT510)*$N$5 -> 102.571692 | AKV8: =COVAR(AKV11:AKV510,AKW11:AKW510)*$N$5 -> 116.466458 | AKY8: =COVAR(AKY11:AKY510,AKZ11:AKZ510)*$N$5 -> 155.310188 | ALB8: =COVAR(ALB11:ALB510,ALC11:ALC510)*$N$5 -> 136.04947 | ALE8: =COVAR(ALE11:ALE510,ALF11:ALF510)*$N$5 -> 124.78614 | ALH8: =COVAR(ALH11:ALH510,ALI11:ALI510)*$N$5 -> 135.154336 | ALK8: =COVAR(ALK11:ALK510,ALL11:ALL510)*$N$5 -> 129.76679 | ALN8: =COVAR(ALN11:ALN510,ALO11:ALO510)*$N$5 -> 100.969912 | ALQ8: =COVAR(ALQ11:ALQ510,ALR11:ALR510)*$N$5 -> 136.914488 | ALT8: =COVAR(ALT11:ALT510,ALU11:ALU510)*$N$5 -> 120.37678 | ALW8: =COVAR(ALW11:ALW510,ALX11:ALX510)*$N$5 -> 114.502564 | ALZ8: =COVAR(ALZ11:ALZ510,AMA11:AMA510)*$N$5 -> 132.849112 | AMC8: =COVAR(AMC11:AMC510,AMD11:AMD510)*$N$5 -> 144.928184 | AMF8: =COVAR(AMF11:AMF510,AMG11:AMG510)*$N$5 -> 140.514974 | AMI8: =COVAR(AMI11:AMI510,AMJ11:AMJ510)*$N$5 -> 124.6598 | AML8: =COVAR(AML11:AML510,AMM11:AMM510)*$N$5 -> 124.93608 | AMO8: =COVAR(AMO11:AMO510,AMP11:AMP510)*$N$5 -> 139.257512 | AMR8: =COVAR(AMR11:AMR510,AMS11:AMS510)*$N$5 -> 153.697976 | AMU8: =COVAR(AMU11:AMU510,AMV11:AMV510)*$N$5 -> 134.26707 | AMX8: =COVAR(AMX11:AMX510,AMY11:AMY510)*$N$5 -> 147.3753 | ANA8: =COVAR(ANA11:ANA510,ANB11:ANB510)*$N$5 -> 152.236384 | AND8: =COVAR(AND11:AND510,ANE11:ANE510)*$N$5 -> 93.77178 | ANG8: =COVAR(ANG11:ANG510,ANH11:ANH510)*$N$5 -> 138.28706 | ANJ8: =COVAR(ANJ11:ANJ510,ANK11:ANK510)*$N$5 -> 110.7523 | ANM8: =COVAR(ANM11:ANM510,ANN11:ANN510)*$N$5 -> 105.702832 | ANP8: =COVAR(ANP11:ANP510,ANQ11:ANQ510)*$N$5 -> 139.16806 | ANS8: =COVAR(ANS11:ANS510,ANT11:ANT510)*$N$5 -> 91.488964 | ANV8: =COVAR(ANV11:ANV510,ANW11:ANW510)*$N$5 -> 96.102808 | ANY8: =COVAR(ANY11:ANY510,ANZ11:ANZ510)*$N$5 -> 111.643726 | AOB8: =COVAR(AOB11:AOB510,AOC11:AOC510)*$N$5 -> 107.607512 | AOE8: =COVAR(AOE11:AOE510,AOF11:AOF510)*$N$5 -> 116.880468 | AOH8: =COVAR(AOH11:AOH510,AOI11:AOI510)*$N$5 -> 112.17779 | AOK8: =COVAR(AOK11:AOK510,AOL11:AOL510)*$N$5 -> 119.670554 | AON8: =COVAR(AON11:AON510,AOO11:AOO510)*$N$5 -> 146.631764 | AOQ8: =COVAR(AOQ11:AOQ510,AOR11:AOR510)*$N$5 -> 138.876018 | AOT8: =COVAR(AOT11:AOT510,AOU11:AOU510)*$N$5 -> 119.375788 | AOW8: =COVAR(AOW11:AOW510,AOX11:AOX510)*$N$5 -> 117.585602 | AOZ8: =COVAR(AOZ11:AOZ510,APA11:APA510)*$N$5 -> 149.024094 | APC8: =COVAR(APC11:APC510,APD11:APD510)*$N$5 -> 116.728536 | APF8: =COVAR(APF11:APF510,APG11:APG510)*$N$5 -> 107.448292 | API8: =COVAR(API11:API510,APJ11:APJ510)*$N$5 -> 152.856868 | APL8: =COVAR(APL11:APL510,APM11:APM510)*$N$5 -> 167.27882 | APO8: =COVAR(APO11:APO510,APP11:APP510)*$N$5 -> 145.865762 | APR8: =COVAR(APR11:APR510,APS11:APS510)*$N$5 -> 106.882436 | APU8: =COVAR(APU11:APU510,APV11:APV510)*$N$5 -> 130.415232 | APX8: =COVAR(APX11:APX510,APY11:APY510)*$N$5 -> 148.848602 | AQA8: =COVAR(AQA11:AQA510,AQB11:AQB510)*$N$5 -> 137.068024 | AQD8: =COVAR(AQD11:AQD510,AQE11:AQE510)*$N$5 -> 121.464568 | AQG8: =COVAR(AQG11:AQG510,AQH11:AQH510)*$N$5 -> 160.2021 | AQJ8: =COVAR(AQJ11:AQJ510,AQK11:AQK510)*$N$5 -> 130.67312 | AQM8: =COVAR(AQM11:AQM510,AQN11:AQN510)*$N$5 -> 114.643896 | AQP8: =COVAR(AQP11:AQP510,AQQ11:AQQ510)*$N$5 -> 136.911512 | AQS8: =COVAR(AQS11:AQS510,AQT11:AQT510)*$N$5 -> 111.297928 | AQV8: =COVAR(AQV11:AQV510,AQW11:AQW510)*$N$5 -> 132.634296 | AQY8: =COVAR(AQY11:AQY510,AQZ11:AQZ510)*$N$5 -> 154.164476 | ARB8: =COVAR(ARB11:ARB510,ARC11:ARC510)*$N$5 -> 103.96609 | ARE8: =COVAR(ARE11:ARE510,ARF11:ARF510)*$N$5 -> 104.2204 | ARH8: =COVAR(ARH11:ARH510,ARI11:ARI510)*$N$5 -> 110.525788 | ARK8: =COVAR(ARK11:ARK510,ARL11:ARL510)*$N$5 -> 109.65168 | ARN8: =COVAR(ARN11:ARN510,ARO11:ARO510)*$N$5 -> 130.329524 | ARQ8: =COVAR(ARQ11:ARQ510,ARR11:ARR510)*$N$5 -> 128.13542 | ART8: =COVAR(ART11:ART510,ARU11:ARU510)*$N$5 -> 170.65354 | ARW8: =COVAR(ARW11:ARW510,ARX11:ARX510)*$N$5 -> 90.402404 | ARZ8: =COVAR(ARZ11:ARZ510,ASA11:ASA510)*$N$5 -> 144.409626 | ASC8: =COVAR(ASC11:ASC510,ASD11:ASD510)*$N$5 -> 126.73605 | ASF8: =COVAR(ASF11:ASF510,ASG11:ASG510)*$N$5 -> 103.5553 | ASI8: =COVAR(ASI11:ASI510,ASJ11:ASJ510)*$N$5 -> 148.97298 | ASL8: =COVAR(ASL11:ASL510,ASM11:ASM510)*$N$5 -> 112.644128 | ASO8: =COVAR(ASO11:ASO510,ASP11:ASP510)*$N$5 -> 133.78676 | ASR8: =COVAR(ASR11:ASR510,ASS11:ASS510)*$N$5 -> 123.103164 | ASU8: =COVAR(ASU11:ASU510,ASV11:ASV510)*$N$5 -> 142.467892 | ASX8: =COVAR(ASX11:ASX510,ASY11:ASY510)*$N$5 -> 165.212176 | ATA8: =COVAR(ATA11:ATA510,ATB11:ATB510)*$N$5 -> 140.744952 | ATD8: =COVAR(ATD11:ATD510,ATE11:ATE510)*$N$5 -> 134.514226 | ATG8: =COVAR(ATG11:ATG510,ATH11:ATH510)*$N$5 -> 115.367226 | ATJ8: =COVAR(ATJ11:ATJ510,ATK11:ATK510)*$N$5 -> 117.230676 | ATM8: =COVAR(ATM11:ATM510,ATN11:ATN510)*$N$5 -> 141.574918 | ATP8: =COVAR(ATP11:ATP510,ATQ11:ATQ510)*$N$5 -> 119.98996 | ATS8: =COVAR(ATS11:ATS510,ATT11:ATT510)*$N$5 -> 162.17178 | ATV8: =COVAR(ATV11:ATV510,ATW11:ATW510)*$N$5 -> 71.481568 | ATY8: =COVAR(ATY11:ATY510,ATZ11:ATZ510)*$N$5 -> 125.70683 | AUB8: =COVAR(AUB11:AUB510,AUC11:AUC510)*$N$5 -> 127.30294 | AUE8: =COVAR(AUE11:AUE510,AUF11:AUF510)*$N$5 -> 123.791272 | AUH8: =COVAR(AUH11:AUH510,AUI11:AUI510)*$N$5 -> 100.87486 | AUK8: =COVAR(AUK11:AUK510,AUL11:AUL510)*$N$5 -> 139.88964 | AUN8: =COVAR(AUN11:AUN510,AUO11:AUO510)*$N$5 -> 128.92053 | AUQ8: =COVAR(AUQ11:AUQ510,AUR11:AUR510)*$N$5 -> 137.07855 | AUT8: =COVAR(AUT11:AUT510,AUU11:AUU510)*$N$5 -> 160.54485 | AUW8: =COVAR(AUW11:AUW510,AUX11:AUX510)*$N$5 -> 114.624332 | AUZ8: =COVAR(AUZ11:AUZ510,AVA11:AVA510)*$N$5 -> 117.9881 | AVC8: =COVAR(AVC11:AVC510,AVD11:AVD510)*$N$5 -> 113.354094 | AVF8: =COVAR(AVF11:AVF510,AVG11:AVG510)*$N$5 -> 162.18284 | AVI8: =COVAR(AVI11:AVI510,AVJ11:AVJ510)*$N$5 -> 94.77906 | AVL8: =COVAR(AVL11:AVL510,AVM11:AVM510)*$N$5 -> 102.205976 | AVO8: =COVAR(AVO11:AVO510,AVP11:AVP510)*$N$5 -> 113.792848 | AVR8: =COVAR(AVR11:AVR510,AVS11:AVS510)*$N$5 -> 110.411466 | AVU8: =COVAR(AVU11:AVU510,AVV11:AVV510)*$N$5 -> 111.90446 | AVX8: =COVAR(AVX11:AVX510,AVY11:AVY510)*$N$5 -> 125.50792 | AWA8: =COVAR(AWA11:AWA510,AWB11:AWB510)*$N$5 -> 115.6425 | AWD8: =COVAR(AWD11:AWD510,AWE11:AWE510)*$N$5 -> 111.730616 | AWG8: =COVAR(AWG11:AWG510,AWH11:AWH510)*$N$5 -> 129.63325 | AWJ8: =COVAR(AWJ11:AWJ510,AWK11:AWK510)*$N$5 -> 112.3562 | AWM8: =COVAR(AWM11:AWM510,AWN11:AWN510)*$N$5 -> 117.797854 | AWP8: =COVAR(AWP11:AWP510,AWQ11:AWQ510)*$N$5 -> 99.271488 | AWS8: =COVAR(AWS11:AWS510,AWT11:AWT510)*$N$5 -> 114.038412 | AWV8: =COVAR(AWV11:AWV510,AWW11:AWW510)*$N$5 -> 135.149446 | AWY8: =COVAR(AWY11:AWY510,AWZ11:AWZ510)*$N$5 -> 147.93294 | AXB8: =COVAR(AXB11:AXB510,AXC11:AXC510)*$N$5 -> 131.619096 | AXE8: =COVAR(AXE11:AXE510,AXF11:AXF510)*$N$5 -> 98.208608 | AXH8: =COVAR(AXH11:AXH510,AXI11:AXI510)*$N$5 -> 130.519454 | AXK8: =COVAR(AXK11:AXK510,AXL11:AXL510)*$N$5 -> 154.073674 | AXN8: =COVAR(AXN11:AXN510,AXO11:AXO510)*$N$5 -> 116.03386 | AXQ8: =COVAR(AXQ11:AXQ510,AXR11:AXR510)*$N$5 -> 177.4241 | AXT8: =COVAR(AXT11:AXT510,AXU11:AXU510)*$N$5 -> 151.765218 | AXW8: =COVAR(AXW11:AXW510,AXX11:AXX510)*$N$5 -> 131.737844 | AXZ8: =COVAR(AXZ11:AXZ510,AYA11:AYA510)*$N$5 -> 129.61608 | AYC8: =COVAR(AYC11:AYC510,AYD11:AYD510)*$N$5 -> 134.559488 | AYF8: =COVAR(AYF11:AYF510,AYG11:AYG510)*$N$5 -> 138.393326 | AYI8: =COVAR(AYI11:AYI510,AYJ11:AYJ510)*$N$5 -> 145.95445 | AYL8: =COVAR(AYL11:AYL510,AYM11:AYM510)*$N$5 -> 134.71437 | AYO8: =COVAR(AYO11:AYO510,AYP11:AYP510)*$N$5 -> 135.970764 | AYR8: =COVAR(AYR11:AYR510,AYS11:AYS510)*$N$5 -> 109.72028 | AYU8: =COVAR(AYU11:AYU510,AYV11:AYV510)*$N$5 -> 145.44708 | AYX8: =COVAR(AYX11:AYX510,AYY11:AYY510)*$N$5 -> 106.575832 | AZA8: =COVAR(AZA11:AZA510,AZB11:AZB510)*$N$5 -> 118.025056 | AZD8: =COVAR(AZD11:AZD510,AZE11:AZE510)*$N$5 -> 119.616264 | AZG8: =COVAR(AZG11:AZG510,AZH11:AZH510)*$N$5 -> 138.024236 | AZJ8: =COVAR(AZJ11:AZJ510,AZK11:AZK510)*$N$5 -> 124.659402 | AZM8: =COVAR(AZM11:AZM510,AZN11:AZN510)*$N$5 -> 121.910628 | AZP8: =COVAR(AZP11:AZP510,AZQ11:AZQ510)*$N$5 -> 124.249674 | AZS8: =COVAR(AZS11:AZS510,AZT11:AZT510)*$N$5 -> 125.240976 | AZV8: =COVAR(AZV11:AZV510,AZW11:AZW510)*$N$5 -> 152.5932 | AZY8: =COVAR(AZY11:AZY510,AZZ11:AZZ510)*$N$5 -> 110.99316 | BAB8: =COVAR(BAB11:BAB510,BAC11:BAC510)*$N$5 -> 132.757824 | BAE8: =COVAR(BAE11:BAE510,BAF11:BAF510)*$N$5 -> 105.012628 | BAH8: =COVAR(BAH11:BAH510,BAI11:BAI510)*$N$5 -> 164.41698 | BAK8: =COVAR(BAK11:BAK510,BAL11:BAL510)*$N$5 -> 101.631178 | BAN8: =COVAR(BAN11:BAN510,BAO11:BAO510)*$N$5 -> 131.26864 | BAQ8: =COVAR(BAQ11:BAQ510,BAR11:BAR510)*$N$5 -> 93.849392 | BAT8: =COVAR(BAT11:BAT510,BAU11:BAU510)*$N$5 -> 116.216724 | BAW8: =COVAR(BAW11:BAW510,BAX11:BAX510)*$N$5 -> 144.284936 | BAZ8: =COVAR(BAZ11:BAZ510,BBA11:BBA510)*$N$5 -> 127.040656 | BBC8: =COVAR(BBC11:BBC510,BBD11:BBD510)*$N$5 -> 151.970952 | BBF8: =COVAR(BBF11:BBF510,BBG11:BBG510)*$N$5 -> 162.17531 | BBI8: =COVAR(BBI11:BBI510,BBJ11:BBJ510)*$N$5 -> 131.92355 | BBL8: =COVAR(BBL11:BBL510,BBM11:BBM510)*$N$5 -> 107.71914 | BBO8: =COVAR(BBO11:BBO510,BBP11:BBP510)*$N$5 -> 136.015524 | BBR8: =COVAR(BBR11:BBR510,BBS11:BBS510)*$N$5 -> 95.328848 | BBU8: =COVAR(BBU11:BBU510,BBV11:BBV510)*$N$5 -> 156.27165 | BBX8: =COVAR(BBX11:BBX510,BBY11:BBY510)*$N$5 -> 125.173262 | BCA8: =COVAR(BCA11:BCA510,BCB11:BCB510)*$N$5 -> 129.73052 | BCD8: =COVAR(BCD11:BCD510,BCE11:BCE510)*$N$5 -> 150.917224 | BCG8: =COVAR(BCG11:BCG510,BCH11:BCH510)*$N$5 -> 107.781884 | BCJ8: =COVAR(BCJ11:BCJ510,BCK11:BCK510)*$N$5 -> 133.255842 | BCM8: =COVAR(BCM11:BCM510,BCN11:BCN510)*$N$5 -> 110.48011 | BCP8: =COVAR(BCP11:BCP510,BCQ11:BCQ510)*$N$5 -> 86.681672 | BCS8: =COVAR(BCS11:BCS510,BCT11:BCT510)*$N$5 -> 108.762056 | BCV8: =COVAR(BCV11:BCV510,BCW11:BCW510)*$N$5 -> 132.356428 | BCY8: =COVAR(BCY11:BCY510,BCZ11:BCZ510)*$N$5 -> 129.723172 | BDB8: =COVAR(BDB11:BDB510,BDC11:BDC510)*$N$5 -> 171.666536 | BDE8: =COVAR(BDE11:BDE510,BDF11:BDF510)*$N$5 -> 113.839474 | BDH8: =COVAR(BDH11:BDH510,BDI11:BDI510)*$N$5 -> 178.477644 | BDK8: =COVAR(BDK11:BDK510,BDL11:BDL510)*$N$5 -> 130.755076 | BDN8: =COVAR(BDN11:BDN510,BDO11:BDO510)*$N$5 -> 109.266718 | BDQ8: =COVAR(BDQ11:BDQ510,BDR11:BDR510)*$N$5 -> 140.742462 | BDT8: =COVAR(BDT11:BDT510,BDU11:BDU510)*$N$5 -> 172.222222 | BDW8: =COVAR(BDW11:BDW510,BDX11:BDX510)*$N$5 -> 94.095168 | BDZ8: =COVAR(BDZ11:BDZ510,BEA11:BEA510)*$N$5 -> 118.718514 | BEC8: =COVAR(BEC11:BEC510,BED11:BED510)*$N$5 -> 125.79528 | BEF8: =COVAR(BEF11:BEF510,BEG11:BEG510)*$N$5 -> 110.59453 | BEI8: =COVAR(BEI11:BEI510,BEJ11:BEJ510)*$N$5 -> 141.480362 | BEL8: =COVAR(BEL11:BEL510,BEM11:BEM510)*$N$5 -> 159.17064 | BEO8: =COVAR(BEO11:BEO510,BEP11:BEP510)*$N$5 -> 119.341676 | BER8: =COVAR(BER11:BER510,BES11:BES510)*$N$5 -> 106.889836 | BEU8: =COVAR(BEU11:BEU510,BEV11:BEV510)*$N$5 -> 110.342008 | BEX8: =COVAR(BEX11:BEX510,BEY11:BEY510)*$N$5 -> 144.417228 | BFA8: =COVAR(BFA11:BFA510,BFB11:BFB510)*$N$5 -> 120.240084 | BFD8: =COVAR(BFD11:BFD510,BFE11:BFE510)*$N$5 -> 126.841222 | BFG8: =COVAR(BFG11:BFG510,BFH11:BFH510)*$N$5 -> 168.559342 | BFJ8: =COVAR(BFJ11:BFJ510,BFK11:BFK510)*$N$5 -> 168.0628 | BFM8: =COVAR(BFM11:BFM510,BFN11:BFN510)*$N$5 -> 152.234066 | BFP8: =COVAR(BFP11:BFP510,BFQ11:BFQ510)*$N$5 -> 138.13274 | BFS8: =COVAR(BFS11:BFS510,BFT11:BFT510)*$N$5 -> 168.71541 | BFV8: =COVAR(BFV11:BFV510,BFW11:BFW510)*$N$5 -> 134.44912 | BFY8: =COVAR(BFY11:BFY510,BFZ11:BFZ510)*$N$5 -> 106.842324 | BGB8: =COVAR(BGB11:BGB510,BGC11:BGC510)*$N$5 -> 122.695806 | BGE8: =COVAR(BGE11:BGE510,BGF11:BGF510)*$N$5 -> 135.09925 | BGH8: =COVAR(BGH11:BGH510,BGI11:BGI510)*$N$5 -> 128.067364 | BGK8: =COVAR(BGK11:BGK510,BGL11:BGL510)*$N$5 -> 99.600516 | BGN8: =COVAR(BGN11:BGN510,BGO11:BGO510)*$N$5 -> 181.428108 | BGQ8: =COVAR(BGQ11:BGQ510,BGR11:BGR510)*$N$5 -> 97.76964 | BGT8: =COVAR(BGT11:BGT510,BGU11:BGU510)*$N$5 -> 95.7148
C9: 5 | D9: 0.32 | E9: 0.91 | H9: 0 | I9: 0 | K9: 変動計数：=SD/n＊100 | M9: =M8/M6*100 -> 67.18727173 | N9: =N8/N6*100 -> 58.47449964 | O9: =O8/O6*100 ->  | P9: =P8/P6*100 ->  | U9: 2.74 | V9: 28 | W9: 5 | X9: 2.84 | Y9: 24 | Z9: 4 | AD9: -1.336452734 | AE9: 0.425271317 | AF9: -1.289143981 | AG9: 0.7758192758 | AN9: 47 | AO9: 46 | AS9: =IF(D9<>"",(D9+E9)/2,"") -> 0.615 | AT9: 0.59 | AV9: 0.615 | AW9: 0.59 | BA9: Sｘｘ・Sｙｙ= | BB9: =DEVSQ(BB11:BB510) -> 161.080818 | BC9: =DEVSQ(BC11:BC510) -> 148.2566 | BE9: =DEVSQ(BE11:BE510) -> 133.374282 | BF9: =DEVSQ(BF11:BF510) -> 181.785768 | BH9: =DEVSQ(BH11:BH510) -> 146.670338 | BI9: =DEVSQ(BI11:BI510) -> 166.0544 | BK9: =DEVSQ(BK11:BK510) -> 107.703032 | BL9: =DEVSQ(BL11:BL510) -> 182.10345 | BN9: =DEVSQ(BN11:BN510) -> 194.642522 | BO9: =DEVSQ(BO11:BO510) -> 180.801858 | BQ9: =DEVSQ(BQ11:BQ510) -> 127.9608 | BR9: =DEVSQ(BR11:BR510) -> 131.281762 | BT9: =DEVSQ(BT11:BT510) -> 94.307538 | BU9: =DEVSQ(BU11:BU510) -> 146.70085 | BW9: =DEVSQ(BW11:BW510) -> 95.773 | BX9: =DEVSQ(BX11:BX510) -> 145.558352 | BZ9: =DEVSQ(BZ11:BZ510) -> 157.148832 | CA9: =DEVSQ(CA11:CA510) -> 140.326392 | CC9: =DEVSQ(CC11:CC510) -> 153.692482 | CD9: =DEVSQ(CD11:CD510) -> 186.9574 | CF9: =DEVSQ(CF11:CF510) -> 136.06345 | CG9: =DEVSQ(CG11:CG510) -> 167.927842 | CI9: =DEVSQ(CI11:CI510) -> 141.17625 | CJ9: =DEVSQ(CJ11:CJ510) -> 148.212218 | CL9: =DEVSQ(CL11:CL510) -> 150.578432 | CM9: =DEVSQ(CM11:CM510) -> 153.169882 | CO9: =DEVSQ(CO11:CO510) -> 137.475402 | CP9: =DEVSQ(CP11:CP510) -> 134.045072 | CR9: =DEVSQ(CR11:CR510) -> 128.168322 | CS9: =DEVSQ(CS11:CS510) -> 135.317288 | CU9: =DEVSQ(CU11:CU510) -> 111.44345 | CV9: =DEVSQ(CV11:CV510) -> 142.507712 | CX9: =DEVSQ(CX11:CX510) -> 128.015082 | CY9: =DEVSQ(CY11:CY510) -> 139.216848 | DA9: =DEVSQ(DA11:DA510) -> 91.062178 | DB9: =DEVSQ(DB11:DB510) -> 135.347458 | DD9: =DEVSQ(DD11:DD510) -> 148.7098 | DE9: =DEVSQ(DE11:DE510) -> 164.0464 | DG9: =DEVSQ(DG11:DG510) -> 189.147248 | DH9: =DEVSQ(DH11:DH510) -> 224.572272 | DJ9: =DEVSQ(DJ11:DJ510) -> 126.043522 | DK9: =DEVSQ(DK11:DK510) -> 162.757018 | DM9: =DEVSQ(DM11:DM510) -> 139.31985 | DN9: =DEVSQ(DN11:DN510) -> 188.49405 | DP9: =DEVSQ(DP11:DP510) -> 128.455898 | DQ9: =DEVSQ(DQ11:DQ510) -> 192.531898 | DS9: =DEVSQ(DS11:DS510) -> 109.310032 | DT9: =DEVSQ(DT11:DT510) -> 152.546922 | DV9: =DEVSQ(DV11:DV510) -> 109.563842 | DW9: =DEVSQ(DW11:DW510) -> 139.087768 | DY9: =DEVSQ(DY11:DY510) -> 122.418178 | DZ9: =DEVSQ(DZ11:DZ510) -> 143.7624 | EB9: =DEVSQ(EB11:EB510) -> 134.067962 | EC9: =DEVSQ(EC11:EC510) -> 150.906202 | EE9: =DEVSQ(EE11:EE510) -> 95.464112 | EF9: =DEVSQ(EF11:EF510) -> 176.718088 | EH9: =DEVSQ(EH11:EH510) -> 147.4132 | EI9: =DEVSQ(EI11:EI510) -> 167.0694 | EK9: =DEVSQ(EK11:EK510) -> 168.674538 | EL9: =DEVSQ(EL11:EL510) -> 210.399482 | EN9: =DEVSQ(EN11:EN510) -> 116.084912 | EO9: =DEVSQ(EO11:EO510) -> 193.107482 | EQ9: =DEVSQ(EQ11:EQ510) -> 110.762738 | ER9: =DEVSQ(ER11:ER510) -> 170.7936 | ET9: =DEVSQ(ET11:ET510) -> 118.670288 | EU9: =DEVSQ(EU11:EU510) -> 187.365018 | EW9: =DEVSQ(EW11:EW510) -> 163.886498 | EX9: =DEVSQ(EX11:EX510) -> 184.513712 | EZ9: =DEVSQ(EZ11:EZ510) -> 151.68945 | FA9: =DEVSQ(FA11:FA510) -> 174.123608 | FC9: =DEVSQ(FC11:FC510) -> 109.24945 | FD9: =DEVSQ(FD11:FD510) -> 118.614848 | FF9: =DEVSQ(FF11:FF510) -> 80.299842 | FG9: =DEVSQ(FG11:FG510) -> 123.42765 | FI9: =DEVSQ(FI11:FI510) -> 176.977608 | FJ9: =DEVSQ(FJ11:FJ510) -> 170.794258 | FL9: =DEVSQ(FL11:FL510) -> 141.427362 | FM9: =DEVSQ(FM11:FM510) -> 202.014498 | FO9: =DEVSQ(FO11:FO510) -> 121.793418 | FP9: =DEVSQ(FP11:FP510) -> 136.161058 | FR9: =DEVSQ(FR11:FR510) -> 108.549752 | FS9: =DEVSQ(FS11:FS510) -> 130.803322 | FU9: =DEVSQ(FU11:FU510) -> 132.5672 | FV9: =DEVSQ(FV11:FV510) -> 157.416162 | FX9: =DEVSQ(FX11:FX510) -> 92.635312 | FY9: =DEVSQ(FY11:FY510) -> 159.020538 | GA9: =DEVSQ(GA11:GA510) -> 198.363402 | GB9: =DEVSQ(GB11:GB510) -> 179.5522 | GD9: =DEVSQ(GD11:GD510) -> 109.633162 | GE9: =DEVSQ(GE11:GE510) -> 124.094618 | GG9: =DEVSQ(GG11:GG510) -> 145.962442 | GH9: =DEVSQ(GH11:GH510) -> 167.516098 | GJ9: =DEVSQ(GJ11:GJ510) -> 104.55745 | GK9: =DEVSQ(GK11:GK510) -> 137.744202 | GM9: =DEVSQ(GM11:GM510) -> 104.616978 | GN9: =DEVSQ(GN11:GN510) -> 186.030538 | GP9: =DEVSQ(GP11:GP510) -> 104.222762 | GQ9: =DEVSQ(GQ11:GQ510) -> 153.601208 | GS9: =DEVSQ(GS11:GS510) -> 166.579978 | GT9: =DEVSQ(GT11:GT510) -> 155.213792 | GV9: =DEVSQ(GV11:GV510) -> 123.88905 | GW9: =DEVSQ(GW11:GW510) -> 162.293818 | GY9: =DEVSQ(GY11:GY510) -> 149.757138 | GZ9: =DEVSQ(GZ11:GZ510) -> 173.7428 | HB9: =DEVSQ(HB11:HB510) -> 180.58165 | HC9: =DEVSQ(HC11:HC510) -> 192.86405 | HE9: =DEVSQ(HE11:HE510) -> 84.82025 | HF9: =DEVSQ(HF11:HF510) -> 148.895872 | HH9: =DEVSQ(HH11:HH510) -> 167.493858 | HI9: =DEVSQ(HI11:HI510) -> 175.729922 | HK9: =DEVSQ(HK11:HK510) -> 94.2354 | HL9: =DEVSQ(HL11:HL510) -> 118.277368 | HN9: =DEVSQ(HN11:HN510) -> 101.629458 | HO9: =DEVSQ(HO11:HO510) -> 159.74945 | HQ9: =DEVSQ(HQ11:HQ510) -> 129.942992 | HR9: =DEVSQ(HR11:HR510) -> 166.900298 | HT9: =DEVSQ(HT11:HT510) -> 162.247338 | HU9: =DEVSQ(HU11:HU510) -> 137.43385 | HW9: =DEVSQ(HW11:HW510) -> 151.779312 | HX9: =DEVSQ(HX11:HX510) -> 126.147232 | HZ9: =DEVSQ(HZ11:HZ510) -> 138.742018 | IA9: =DEVSQ(IA11:IA510) -> 190.121282 | IC9: =DEVSQ(IC11:IC510) -> 112.213512 | ID9: =DEVSQ(ID11:ID510) -> 155.411122 | IF9: =DEVSQ(IF11:IF510) -> 158.228 | IG9: =DEVSQ(IG11:IG510) -> 175.618258 | II9: =DEVSQ(II11:II510) -> 132.697232 | IJ9: =DEVSQ(IJ11:IJ510) -> 171.074018 | IL9: =DEVSQ(IL11:IL510) -> 176.854712 | IM9: =DEVSQ(IM11:IM510) -> 170.7754 | IO9: =DEVSQ(IO11:IO510) -> 143.191088 | IP9: =DEVSQ(IP11:IP510) -> 163.375722 | IR9: =DEVSQ(IR11:IR510) -> 141.221152 | IS9: =DEVSQ(IS11:IS510) -> 181.924242 | IU9: =DEVSQ(IU11:IU510) -> 121.113168 | IV9: =DEVSQ(IV11:IV510) -> 176.149242 | IX9: =DEVSQ(IX11:IX510) -> 114.304088 | IY9: =DEVSQ(IY11:IY510) -> 174.105488 | JA9: =DEVSQ(JA11:JA510) -> 158.602738 | JB9: =DEVSQ(JB11:JB510) -> 138.323992 | JD9: =DEVSQ(JD11:JD510) -> 141.371528 | JE9: =DEVSQ(JE11:JE510) -> 203.183128 | JG9: =DEVSQ(JG11:JG510) -> 114.770472 | JH9: =DEVSQ(JH11:JH510) -> 158.070192 | JJ9: =DEVSQ(JJ11:JJ510) -> 110.305098 | JK9: =DEVSQ(JK11:JK510) -> 145.549808 | JM9: =DEVSQ(JM11:JM510) -> 161.489128 | JN9: =DEVSQ(JN11:JN510) -> 182.554482 | JP9: =DEVSQ(JP11:JP510) -> 151.325 | JQ9: =DEVSQ(JQ11:JQ510) -> 155.612362 | JS9: =DEVSQ(JS11:JS510) -> 100.607208 | JT9: =DEVSQ(JT11:JT510) -> 144.488472 | JV9: =DEVSQ(JV11:JV510) -> 156.087472 | JW9: =DEVSQ(JW11:JW510) -> 184.7706 | JY9: =DEVSQ(JY11:JY510) -> 142.226522 | JZ9: =DEVSQ(JZ11:JZ510) -> 191.950288 | KB9: =DEVSQ(KB11:KB510) -> 186.3376 | KC9: =DEVSQ(KC11:KC510) -> 196.41805 | KE9: =DEVSQ(KE11:KE510) -> 170.144578 | KF9: =DEVSQ(KF11:KF510) -> 160.469688 | KH9: =DEVSQ(KH11:KH510) -> 136.393 | KI9: =DEVSQ(KI11:KI510) -> 195.37585 | KK9: =DEVSQ(KK11:KK510) -> 93.429082 | KL9: =DEVSQ(KL11:KL510) -> 140.531512 | KN9: =DEVSQ(KN11:KN510) -> 147.045242 | KO9: =DEVSQ(KO11:KO510) -> 127.588442 | KQ9: =DEVSQ(KQ11:KQ510) -> 117.691 | KR9: =DEVSQ(KR11:KR510) -> 162.774458 | KT9: =DEVSQ(KT11:KT510) -> 107.703738 | KU9: =DEVSQ(KU11:KU510) -> 135.658032 | KW9: =DEVSQ(KW11:KW510) -> 132.052338 | KX9: =DEVSQ(KX11:KX510) -> 130.707912 | KZ9: =DEVSQ(KZ11:KZ510) -> 175.7676 | LA9: =DEVSQ(LA11:LA510) -> 209.528688 | LC9: =DEVSQ(LC11:LC510) -> 172.442818 | LD9: =DEVSQ(LD11:LD510) -> 172.027442 | LF9: =DEVSQ(LF11:LF510) -> 133.401682 | LG9: =DEVSQ(LG11:LG510) -> 134.971618 | LI9: =DEVSQ(LI11:LI510) -> 129.664192 | LJ9: =DEVSQ(LJ11:LJ510) -> 149.902872 | LL9: =DEVSQ(LL11:LL510) -> 166.484368 | LM9: =DEVSQ(LM11:LM510) -> 167.652778 | LO9: =DEVSQ(LO11:LO510) -> 192.216432 | LP9: =DEVSQ(LP11:LP510) -> 208.354832 | LR9: =DEVSQ(LR11:LR510) -> 132.725 | LS9: =DEVSQ(LS11:LS510) -> 162.530928 | LU9: =DEVSQ(LU11:LU510) -> 137.6014 | LV9: =DEVSQ(LV11:LV510) -> 152.584778 | LX9: =DEVSQ(LX11:LX510) -> 140.78685 | LY9: =DEVSQ(LY11:LY510) -> 174.195378 | MA9: =DEVSQ(MA11:MA510) -> 141.435538 | MB9: =DEVSQ(MB11:MB510) -> 168.134352 | MD9: =DEVSQ(MD11:MD510) -> 116.516642 | ME9: =DEVSQ(ME11:ME510) -> 169.963858 | MG9: =DEVSQ(MG11:MG510) -> 155.632048 | MH9: =DEVSQ(MH11:MH510) -> 173.589488 | MJ9: =DEVSQ(MJ11:MJ510) -> 95.358672 | MK9: =DEVSQ(MK11:MK510) -> 143.115418 | MM9: =DEVSQ(MM11:MM510) -> 160.751368 | MN9: =DEVSQ(MN11:MN510) -> 197.5104 | MP9: =DEVSQ(MP11:MP510) -> 121.505642 | MQ9: =DEVSQ(MQ11:MQ510) -> 174.322632 | MS9: =DEVSQ(MS11:MS510) -> 162.568968 | MT9: =DEVSQ(MT11:MT510) -> 176.421792 | MV9: =DEVSQ(MV11:MV510) -> 145.666968 | MW9: =DEVSQ(MW11:MW510) -> 182.882688 | MY9: =DEVSQ(MY11:MY510) -> 154.269418 | MZ9: =DEVSQ(MZ11:MZ510) -> 169.434432 | NB9: =DEVSQ(NB11:NB510) -> 123.942538 | NC9: =DEVSQ(NC11:NC510) -> 155.200938 | NE9: =DEVSQ(NE11:NE510) -> 152.930832 | NF9: =DEVSQ(NF11:NF510) -> 172.586778 | NH9: =DEVSQ(NH11:NH510) -> 161.6 | NI9: =DEVSQ(NI11:NI510) -> 173.598818 | NK9: =DEVSQ(NK11:NK510) -> 155.65145 | NL9: =DEVSQ(NL11:NL510) -> 153.490722 | NN9: =DEVSQ(NN11:NN510) -> 108.866832 | NO9: =DEVSQ(NO11:NO510) -> 140.88385 | NQ9: =DEVSQ(NQ11:NQ510) -> 143.762368 | NR9: =DEVSQ(NR11:NR510) -> 187.186522 | NT9: =DEVSQ(NT11:NT510) -> 161.490488 | NU9: =DEVSQ(NU11:NU510) -> 139.769882 | NW9: =DEVSQ(NW11:NW510) -> 198.071928 | NX9: =DEVSQ(NX11:NX510) -> 231.159328 | NZ9: =DEVSQ(NZ11:NZ510) -> 123.825882 | OA9: =DEVSQ(OA11:OA510) -> 150.947802 | OC9: =DEVSQ(OC11:OC510) -> 89.013178 | OD9: =DEVSQ(OD11:OD510) -> 153.330618 | OF9: =DEVSQ(OF11:OF510) -> 119.038522 | OG9: =DEVSQ(OG11:OG510) -> 159.586858 | OI9: =DEVSQ(OI11:OI510) -> 112.588418 | OJ9: =DEVSQ(OJ11:OJ510) -> 131.233882 | OL9: =DEVSQ(OL11:OL510) -> 144.6396 | OM9: =DEVSQ(OM11:OM510) -> 204.868432 | OO9: =DEVSQ(OO11:OO510) -> 111.563842 | OP9: =DEVSQ(OP11:OP510) -> 145.059432 | OR9: =DEVSQ(OR11:OR510) -> 174.43585 | OS9: =DEVSQ(OS11:OS510) -> 174.805538 | OU9: =DEVSQ(OU11:OU510) -> 139.750768 | OV9: =DEVSQ(OV11:OV510) -> 139.476312 | OX9: =DEVSQ(OX11:OX510) -> 199.193528 | OY9: =DEVSQ(OY11:OY510) -> 214.950098 | PA9: =DEVSQ(PA11:PA510) -> 128.889722 | PB9: =DEVSQ(PB11:PB510) -> 166.131842 | PD9: =DEVSQ(PD11:PD510) -> 127.724018 | PE9: =DEVSQ(PE11:PE510) -> 146.32505 | PG9: =DEVSQ(PG11:PG510) -> 103.650488 | PH9: =DEVSQ(PH11:PH510) -> 144.880378 | PJ9: =DEVSQ(PJ11:PJ510) -> 106.378832 | PK9: =DEVSQ(PK11:PK510) -> 164.396 | PM9: =DEVSQ(PM11:PM510) -> 163.597762 | PN9: =DEVSQ(PN11:PN510) -> 185.59505 | PP9: =DEVSQ(PP11:PP510) -> 170.484938 | PQ9: =DEVSQ(PQ11:PQ510) -> 192.854522 | PS9: =DEVSQ(PS11:PS510) -> 138.940602 | PT9: =DEVSQ(PT11:PT510) -> 160.897448 | PV9: =DEVSQ(PV11:PV510) -> 173.408992 | PW9: =DEVSQ(PW11:PW510) -> 198.635848 | PY9: =DEVSQ(PY11:PY510) -> 97.126512 | PZ9: =DEVSQ(PZ11:PZ510) -> 175.045728 | QB9: =DEVSQ(QB11:QB510) -> 125.987592 | QC9: =DEVSQ(QC11:QC510) -> 199.158858 | QE9: =DEVSQ(QE11:QE510) -> 125.318642 | QF9: =DEVSQ(QF11:QF510) -> 136.556072 | QH9: =DEVSQ(QH11:QH510) -> 130.104568 | QI9: =DEVSQ(QI11:QI510) -> 174.25185 | QK9: =DEVSQ(QK11:QK510) -> 162.7364 | QL9: =DEVSQ(QL11:QL510) -> 161.61585 | QN9: =DEVSQ(QN11:QN510) -> 95.145648 | QO9: =DEVSQ(QO11:QO510) -> 192.384392 | QQ9: =DEVSQ(QQ11:QQ510) -> 96.378938 | QR9: =DEVSQ(QR11:QR510) -> 129.394722 | QT9: =DEVSQ(QT11:QT510) -> 150.547818 | QU9: =DEVSQ(QU11:QU510) -> 145.723258 | QW9: =DEVSQ(QW11:QW510) -> 112.013202 | QX9: =DEVSQ(QX11:QX510) -> 145.860368 | QZ9: =DEVSQ(QZ11:QZ510) -> 149.602552 | RA9: =DEVSQ(RA11:RA510) -> 158.733168 | RC9: =DEVSQ(RC11:RC510) -> 139.475938 | RD9: =DEVSQ(RD11:RD510) -> 181.766008 | RF9: =DEVSQ(RF11:RF510) -> 127.88545 | RG9: =DEVSQ(RG11:RG510) -> 130.582482 | RI9: =DEVSQ(RI11:RI510) -> 151.619778 | RJ9: =DEVSQ(RJ11:RJ510) -> 177.385392 | RL9: =DEVSQ(RL11:RL510) -> 139.779528 | RM9: =DEVSQ(RM11:RM510) -> 183.713552 | RO9: =DEVSQ(RO11:RO510) -> 148.258328 | RP9: =DEVSQ(RP11:RP510) -> 135.9884 | RR9: =DEVSQ(RR11:RR510) -> 118.107928 | RS9: =DEVSQ(RS11:RS510) -> 129.435 | RU9: =DEVSQ(RU11:RU510) -> 174.270602 | RV9: =DEVSQ(RV11:RV510) -> 206.496328 | RX9: =DEVSQ(RX11:RX510) -> 92.914448 | RY9: =DEVSQ(RY11:RY510) -> 157.218538 | SA9: =DEVSQ(SA11:SA510) -> 111.695408 | SB9: =DEVSQ(SB11:SB510) -> 133.958952 | SD9: =DEVSQ(SD11:SD510) -> 169.078258 | SE9: =DEVSQ(SE11:SE510) -> 189.951002 | SG9: =DEVSQ(SG11:SG510) -> 132.074362 | SH9: =DEVSQ(SH11:SH510) -> 169.305362 | SJ9: =DEVSQ(SJ11:SJ510) -> 143.551992 | SK9: =DEVSQ(SK11:SK510) -> 169.243032 | SM9: =DEVSQ(SM11:SM510) -> 121.121432 | SN9: =DEVSQ(SN11:SN510) -> 146.583018 | SP9: =DEVSQ(SP11:SP510) -> 143.987642 | SQ9: =DEVSQ(SQ11:SQ510) -> 179.643058 | SS9: =DEVSQ(SS11:SS510) -> 161.631082 | ST9: =DEVSQ(ST11:ST510) -> 178.123762 | SV9: =DEVSQ(SV11:SV510) -> 140.3334 | SW9: =DEVSQ(SW11:SW510) -> 168.621842 | SY9: =DEVSQ(SY11:SY510) -> 134.208442 | SZ9: =DEVSQ(SZ11:SZ510) -> 169.773298 | TB9: =DEVSQ(TB11:TB510) -> 151.323608 | TC9: =DEVSQ(TC11:TC510) -> 133.756888 | TE9: =DEVSQ(TE11:TE510) -> 145.019312 | TF9: =DEVSQ(TF11:TF510) -> 164.526378 | TH9: =DEVSQ(TH11:TH510) -> 150.474338 | TI9: =DEVSQ(TI11:TI510) -> 161.922322 | TK9: =DEVSQ(TK11:TK510) -> 135.1596 | TL9: =DEVSQ(TL11:TL510) -> 164.885088 | TN9: =DEVSQ(TN11:TN510) -> 119.820448 | TO9: =DEVSQ(TO11:TO510) -> 164.190792 | TQ9: =DEVSQ(TQ11:TQ510) -> 123.516288 | TR9: =DEVSQ(TR11:TR510) -> 211.825368 | TT9: =DEVSQ(TT11:TT510) -> 143.721658 | TU9: =DEVSQ(TU11:TU510) -> 182.810192 | TW9: =DEVSQ(TW11:TW510) -> 141.46545 | TX9: =DEVSQ(TX11:TX510) -> 161.782202 | TZ9: =DEVSQ(TZ11:TZ510) -> 160.117248 | UA9: =DEVSQ(UA11:UA510) -> 157.913208 | UC9: =DEVSQ(UC11:UC510) -> 140.900448 | UD9: =DEVSQ(UD11:UD510) -> 186.642672 | UF9: =DEVSQ(UF11:UF510) -> 116.083338 | UG9: =DEVSQ(UG11:UG510) -> 191.653368 | UI9: =DEVSQ(UI11:UI510) -> 127.273888 | UJ9: =DEVSQ(UJ11:UJ510) -> 152.708962 | UL9: =DEVSQ(UL11:UL510) -> 117.920858 | UM9: =DEVSQ(UM11:UM510) -> 164.945778 | UO9: =DEVSQ(UO11:UO510) -> 93.625842 | UP9: =DEVSQ(UP11:UP510) -> 124.850842 | UR9: =DEVSQ(UR11:UR510) -> 168.0594 | US9: =DEVSQ(US11:US510) -> 142.394128 | UU9: =DEVSQ(UU11:UU510) -> 164.97745 | UV9: =DEVSQ(UV11:UV510) -> 174.5916 | UX9: =DEVSQ(UX11:UX510) -> 125.816528 | UY9: =DEVSQ(UY11:UY510) -> 148.289498 | VA9: =DEVSQ(VA11:VA510) -> 135.823208 | VB9: =DEVSQ(VB11:VB510) -> 193.1312 | VD9: =DEVSQ(VD11:VD510) -> 93.552362 | VE9: =DEVSQ(VE11:VE510) -> 154.31565 | VG9: =DEVSQ(VG11:VG510) -> 108.83325 | VH9: =DEVSQ(VH11:VH510) -> 146.001962 | VJ9: =DEVSQ(VJ11:VJ510) -> 93.857232 | VK9: =DEVSQ(VK11:VK510) -> 159.757122 | VM9: =DEVSQ(VM11:VM510) -> 84.734552 | VN9: =DEVSQ(VN11:VN510) -> 124.5832 | VP9: =DEVSQ(VP11:VP510) -> 125.325912 | VQ9: =DEVSQ(VQ11:VQ510) -> 159.590858 | VS9: =DEVSQ(VS11:VS510) -> 134.942072 | VT9: =DEVSQ(VT11:VT510) -> 162.90165 | VV9: =DEVSQ(VV11:VV510) -> 158.578762 | VW9: =DEVSQ(VW11:VW510) -> 166.883378 | VY9: =DEVSQ(VY11:VY510) -> 130.470082 | VZ9: =DEVSQ(VZ11:VZ510) -> 178.138152 | WB9: =DEVSQ(WB11:WB510) -> 158.71265 | WC9: =DEVSQ(WC11:WC510) -> 156.39705 | WE9: =DEVSQ(WE11:WE510) -> 91.275218 | WF9: =DEVSQ(WF11:WF510) -> 161.359602 | WH9: =DEVSQ(WH11:WH510) -> 108.721658 | WI9: =DEVSQ(WI11:WI510) -> 196.5706 | WK9: =DEVSQ(WK11:WK510) -> 139.1178 | WL9: =DEVSQ(WL11:WL510) -> 159.359338 | WN9: =DEVSQ(WN11:WN510) -> 140.931192 | WO9: =DEVSQ(WO11:WO510) -> 146.479722 | WQ9: =DEVSQ(WQ11:WQ510) -> 141.182912 | WR9: =DEVSQ(WR11:WR510) -> 202.741402 | WT9: =DEVSQ(WT11:WT510) -> 116.47985 | WU9: =DEVSQ(WU11:WU510) -> 188.461698 | WW9: =DEVSQ(WW11:WW510) -> 122.946282 | WX9: =DEVSQ(WX11:WX510) -> 188.467168 | WZ9: =DEVSQ(WZ11:WZ510) -> 154.2618 | XA9: =DEVSQ(XA11:XA510) -> 175.885938 | XC9: =DEVSQ(XC11:XC510) -> 125.437472 | XD9: =DEVSQ(XD11:XD510) -> 156.718352 | XF9: =DEVSQ(XF11:XF510) -> 161.645512 | XG9: =DEVSQ(XG11:XG510) -> 161.819058 | XI9: =DEVSQ(XI11:XI510) -> 126.723762 | XJ9: =DEVSQ(XJ11:XJ510) -> 133.456442 | XL9: =DEVSQ(XL11:XL510) -> 168.505152 | XM9: =DEVSQ(XM11:XM510) -> 155.271258 | XO9: =DEVSQ(XO11:XO510) -> 137.179402 | XP9: =DEVSQ(XP11:XP510) -> 170.75105 | XR9: =DEVSQ(XR11:XR510) -> 133.705 | XS9: =DEVSQ(XS11:XS510) -> 133.4928 | XU9: =DEVSQ(XU11:XU510) -> 117.781642 | XV9: =DEVSQ(XV11:XV510) -> 167.848168 | XX9: =DEVSQ(XX11:XX510) -> 113.977042 | XY9: =DEVSQ(XY11:XY510) -> 144.541658 | YA9: =DEVSQ(YA11:YA510) -> 135.935088 | YB9: =DEVSQ(YB11:YB510) -> 155.366138 | YD9: =DEVSQ(YD11:YD510) -> 108.635178 | YE9: =DEVSQ(YE11:YE510) -> 179.603 | YG9: =DEVSQ(YG11:YG510) -> 153.447592 | YH9: =DEVSQ(YH11:YH510) -> 149.601938 | YJ9: =DEVSQ(YJ11:YJ510) -> 142.59 | YK9: =DEVSQ(YK11:YK510) -> 184.540808 | YM9: =DEVSQ(YM11:YM510) -> 118.795632 | YN9: =DEVSQ(YN11:YN510) -> 185.215762 | YP9: =DEVSQ(YP11:YP510) -> 148.357232 | YQ9: =DEVSQ(YQ11:YQ510) -> 154.015762 | YS9: =DEVSQ(YS11:YS510) -> 135.458178 | YT9: =DEVSQ(YT11:YT510) -> 147.912232 | YV9: =DEVSQ(YV11:YV510) -> 133.1352 | YW9: =DEVSQ(YW11:YW510) -> 143.06065 | YY9: =DEVSQ(YY11:YY510) -> 121.5256 | YZ9: =DEVSQ(YZ11:YZ510) -> 162.371888 | ZB9: =DEVSQ(ZB11:ZB510) -> 117.22525 | ZC9: =DEVSQ(ZC11:ZC510) -> 203.419482 | ZE9: =DEVSQ(ZE11:ZE510) -> 128.692552 | ZF9: =DEVSQ(ZF11:ZF510) -> 161.624802 | ZH9: =DEVSQ(ZH11:ZH510) -> 201.1718 | ZI9: =DEVSQ(ZI11:ZI510) -> 202.027048 | ZK9: =DEVSQ(ZK11:ZK510) -> 99.39325 | ZL9: =DEVSQ(ZL11:ZL510) -> 147.264648 | ZN9: =DEVSQ(ZN11:ZN510) -> 98.278088 | ZO9: =DEVSQ(ZO11:ZO510) -> 148.273002 | ZQ9: =DEVSQ(ZQ11:ZQ510) -> 117.581848 | ZR9: =DEVSQ(ZR11:ZR510) -> 124.634872 | ZT9: =DEVSQ(ZT11:ZT510) -> 120.802808 | ZU9: =DEVSQ(ZU11:ZU510) -> 127.370442 | ZW9: =DEVSQ(ZW11:ZW510) -> 165.655 | ZX9: =DEVSQ(ZX11:ZX510) -> 159.583042 | ZZ9: =DEVSQ(ZZ11:ZZ510) -> 111.140752 | AAA9: =DEVSQ(AAA11:AAA510) -> 151.049802 | AAC9: =DEVSQ(AAC11:AAC510) -> 161.478218 | AAD9: =DEVSQ(AAD11:AAD510) -> 209.744288 | AAF9: =DEVSQ(AAF11:AAF510) -> 148.598632 | AAG9: =DEVSQ(AAG11:AAG510) -> 160.49645 | AAI9: =DEVSQ(AAI11:AAI510) -> 131.873458 | AAJ9: =DEVSQ(AAJ11:AAJ510) -> 180.750368 | AAL9: =DEVSQ(AAL11:AAL510) -> 133.92845 | AAM9: =DEVSQ(AAM11:AAM510) -> 161.714952 | AAO9: =DEVSQ(AAO11:AAO510) -> 153.068818 | AAP9: =DEVSQ(AAP11:AAP510) -> 139.9436 | AAR9: =DEVSQ(AAR11:AAR510) -> 144.474768 | AAS9: =DEVSQ(AAS11:AAS510) -> 210.153442 | AAU9: =DEVSQ(AAU11:AAU510) -> 144.384282 | AAV9: =DEVSQ(AAV11:AAV510) -> 152.349418 | AAX9: =DEVSQ(AAX11:AAX510) -> 157.839242 | AAY9: =DEVSQ(AAY11:AAY510) -> 162.610128 | ABA9: =DEVSQ(ABA11:ABA510) -> 105.298482 | ABB9: =DEVSQ(ABB11:ABB510) -> 153.451378 | ABD9: =DEVSQ(ABD11:ABD510) -> 132.335832 | ABE9: =DEVSQ(ABE11:ABE510) -> 196.05905 | ABG9: =DEVSQ(ABG11:ABG510) -> 134.04045 | ABH9: =DEVSQ(ABH11:ABH510) -> 167.400072 | ABJ9: =DEVSQ(ABJ11:ABJ510) -> 121.3986 | ABK9: =DEVSQ(ABK11:ABK510) -> 140.895298 | ABM9: =DEVSQ(ABM11:ABM510) -> 164.291688 | ABN9: =DEVSQ(ABN11:ABN510) -> 166.458072 | ABP9: =DEVSQ(ABP11:ABP510) -> 182.517602 | ABQ9: =DEVSQ(ABQ11:ABQ510) -> 242.167392 | ABS9: =DEVSQ(ABS11:ABS510) -> 127.299562 | ABT9: =DEVSQ(ABT11:ABT510) -> 146.624002 | ABV9: =DEVSQ(ABV11:ABV510) -> 99.848568 | ABW9: =DEVSQ(ABW11:ABW510) -> 144.308632 | ABY9: =DEVSQ(ABY11:ABY510) -> 131.408608 | ABZ9: =DEVSQ(ABZ11:ABZ510) -> 179.246168 | ACB9: =DEVSQ(ACB11:ACB510) -> 85.119978 | ACC9: =DEVSQ(ACC11:ACC510) -> 138.857528 | ACE9: =DEVSQ(ACE11:ACE510) -> 158.1972 | ACF9: =DEVSQ(ACF11:ACF510) -> 145.187178 | ACH9: =DEVSQ(ACH11:ACH510) -> 112.018768 | ACI9: =DEVSQ(ACI11:ACI510) -> 152.544602 | ACK9: =DEVSQ(ACK11:ACK510) -> 101.445112 | ACL9: =DEVSQ(ACL11:ACL510) -> 146.27025 | ACN9: =DEVSQ(ACN11:ACN510) -> 143.46625 | ACO9: =DEVSQ(ACO11:ACO510) -> 189.715978 | ACQ9: =DEVSQ(ACQ11:ACQ510) -> 145.537288 | ACR9: =DEVSQ(ACR11:ACR510) -> 179.0322 | ACT9: =DEVSQ(ACT11:ACT510) -> 159.147258 | ACU9: =DEVSQ(ACU11:ACU510) -> 216.286848 | ACW9: =DEVSQ(ACW11:ACW510) -> 141.388808 | ACX9: =DEVSQ(ACX11:ACX510) -> 154.683032 | ACZ9: =DEVSQ(ACZ11:ACZ510) -> 135.864482 | ADA9: =DEVSQ(ADA11:ADA510) -> 159.997808 | ADC9: =DEVSQ(ADC11:ADC510) -> 146.209298 | ADD9: =DEVSQ(ADD11:ADD510) -> 188.030482 | ADF9: =DEVSQ(ADF11:ADF510) -> 108.442992 | ADG9: =DEVSQ(ADG11:ADG510) -> 168.891082 | ADI9: =DEVSQ(ADI11:ADI510) -> 161.549 | ADJ9: =DEVSQ(ADJ11:ADJ510) -> 217.9716 | ADL9: =DEVSQ(ADL11:ADL510) -> 128.392018 | ADM9: =DEVSQ(ADM11:ADM510) -> 172.000258 | ADO9: =DEVSQ(ADO11:ADO510) -> 137.263682 | ADP9: =DEVSQ(ADP11:ADP510) -> 146.802098 | ADR9: =DEVSQ(ADR11:ADR510) -> 134.182048 | ADS9: =DEVSQ(ADS11:ADS510) -> 172.978688 | ADU9: =DEVSQ(ADU11:ADU510) -> 106.3852 | ADV9: =DEVSQ(ADV11:ADV510) -> 134.207872 | ADX9: =DEVSQ(ADX11:ADX510) -> 151.023088 | ADY9: =DEVSQ(ADY11:ADY510) -> 188.12525 | AEA9: =DEVSQ(AEA11:AEA510) -> 142.835448 | AEB9: =DEVSQ(AEB11:AEB510) -> 196.169208 | AED9: =DEVSQ(AED11:AED510) -> 115.252978 | AEE9: =DEVSQ(AEE11:AEE510) -> 163.660322 | AEG9: =DEVSQ(AEG11:AEG510) -> 139.517 | AEH9: =DEVSQ(AEH11:AEH510) -> 124.975402 | AEJ9: =DEVSQ(AEJ11:AEJ510) -> 115.334848 | AEK9: =DEVSQ(AEK11:AEK510) -> 152.23925 | AEM9: =DEVSQ(AEM11:AEM510) -> 178.398912 | AEN9: =DEVSQ(AEN11:AEN510) -> 175.92565 | AEP9: =DEVSQ(AEP11:AEP510) -> 147.225 | AEQ9: =DEVSQ(AEQ11:AEQ510) -> 169.810448 | AES9: =DEVSQ(AES11:AES510) -> 123.053408 | AET9: =DEVSQ(AET11:AET510) -> 123.252688 | AEV9: =DEVSQ(AEV11:AEV510) -> 160.500248 | AEW9: =DEVSQ(AEW11:AEW510) -> 182.502248 | AEY9: =DEVSQ(AEY11:AEY510) -> 149.6428 | AEZ9: =DEVSQ(AEZ11:AEZ510) -> 168.0456 | AFB9: =DEVSQ(AFB11:AFB510) -> 109.601648 | AFC9: =DEVSQ(AFC11:AFC510) -> 146.433962 | AFE9: =DEVSQ(AFE11:AFE510) -> 160.410498 | AFF9: =DEVSQ(AFF11:AFF510) -> 182.556472 | AFH9: =DEVSQ(AFH11:AFH510) -> 127.29665 | AFI9: =DEVSQ(AFI11:AFI510) -> 147.773962 | AFK9: =DEVSQ(AFK11:AFK510) -> 162.992442 | AFL9: =DEVSQ(AFL11:AFL510) -> 171.710658 | AFN9: =DEVSQ(AFN11:AFN510) -> 143.114698 | AFO9: =DEVSQ(AFO11:AFO510) -> 166.347882 | AFQ9: =DEVSQ(AFQ11:AFQ510) -> 163.461368 | AFR9: =DEVSQ(AFR11:AFR510) -> 138.33325 | AFT9: =DEVSQ(AFT11:AFT510) -> 119.485352 | AFU9: =DEVSQ(AFU11:AFU510) -> 172.759192 | AFW9: =DEVSQ(AFW11:AFW510) -> 133.9466 | AFX9: =DEVSQ(AFX11:AFX510) -> 163.885722 | AFZ9: =DEVSQ(AFZ11:AFZ510) -> 116.456048 | AGA9: =DEVSQ(AGA11:AGA510) -> 142.189442 | AGC9: =DEVSQ(AGC11:AGC510) -> 148.454408 | AGD9: =DEVSQ(AGD11:AGD510) -> 195.1558 | AGF9: =DEVSQ(AGF11:AGF510) -> 180.792248 | AGG9: =DEVSQ(AGG11:AGG510) -> 221.7594 | AGI9: =DEVSQ(AGI11:AGI510) -> 114.154178 | AGJ9: =DEVSQ(AGJ11:AGJ510) -> 143.8136 | AGL9: =DEVSQ(AGL11:AGL510) -> 145.4746 | AGM9: =DEVSQ(AGM11:AGM510) -> 171.241242 | AGO9: =DEVSQ(AGO11:AGO510) -> 84.608538 | AGP9: =DEVSQ(AGP11:AGP510) -> 132.28405 | AGR9: =DEVSQ(AGR11:AGR510) -> 123.450978 | AGS9: =DEVSQ(AGS11:AGS510) -> 134.810018 | AGU9: =DEVSQ(AGU11:AGU510) -> 97.097498 | AGV9: =DEVSQ(AGV11:AGV510) -> 176.382162 | AGX9: =DEVSQ(AGX11:AGX510) -> 114.613352 | AGY9: =DEVSQ(AGY11:AGY510) -> 128.781192 | AHA9: =DEVSQ(AHA11:AHA510) -> 154.680442 | AHB9: =DEVSQ(AHB11:AHB510) -> 138.993008 | AHD9: =DEVSQ(AHD11:AHD510) -> 129.563098 | AHE9: =DEVSQ(AHE11:AHE510) -> 164.5366 | AHG9: =DEVSQ(AHG11:AHG510) -> 136.890328 | AHH9: =DEVSQ(AHH11:AHH510) -> 195.714778 | AHJ9: =DEVSQ(AHJ11:AHJ510) -> 112.642562 | AHK9: =DEVSQ(AHK11:AHK510) -> 134.680522 | AHM9: =DEVSQ(AHM11:AHM510) -> 128.39945 | AHN9: =DEVSQ(AHN11:AHN510) -> 147.2764 | AHP9: =DEVSQ(AHP11:AHP510) -> 150.617512 | AHQ9: =DEVSQ(AHQ11:AHQ510) -> 144.463552 | AHS9: =DEVSQ(AHS11:AHS510) -> 165.8574 | AHT9: =DEVSQ(AHT11:AHT510) -> 182.961672 | AHV9: =DEVSQ(AHV11:AHV510) -> 132.583482 | AHW9: =DEVSQ(AHW11:AHW510) -> 165.95345 | AHY9: =DEVSQ(AHY11:AHY510) -> 149.850352 | AHZ9: =DEVSQ(AHZ11:AHZ510) -> 199.976738 | AIB9: =DEVSQ(AIB11:AIB510) -> 122.3882 | AIC9: =DEVSQ(AIC11:AIC510) -> 155.92 | AIE9: =DEVSQ(AIE11:AIE510) -> 180.142898 | AIF9: =DEVSQ(AIF11:AIF510) -> 173.929418 | AIH9: =DEVSQ(AIH11:AIH510) -> 143.271632 | AII9: =DEVSQ(AII11:AII510) -> 188.267138 | AIK9: =DEVSQ(AIK11:AIK510) -> 114.549042 | AIL9: =DEVSQ(AIL11:AIL510) -> 153.311578 | AIN9: =DEVSQ(AIN11:AIN510) -> 70.969232 | AIO9: =DEVSQ(AIO11:AIO510) -> 109.596032 | AIQ9: =DEVSQ(AIQ11:AIQ510) -> 143.3794 | AIR9: =DEVSQ(AIR11:AIR510) -> 202.041658 | AIT9: =DEVSQ(AIT11:AIT510) -> 109.843432 | AIU9: =DEVSQ(AIU11:AIU510) -> 145.826168 | AIW9: =DEVSQ(AIW11:AIW510) -> 89.377778 | AIX9: =DEVSQ(AIX11:AIX510) -> 159.002048 | AIZ9: =DEVSQ(AIZ11:AIZ510) -> 112.522632 | AJA9: =DEVSQ(AJA11:AJA510) -> 160.952592 | AJC9: =DEVSQ(AJC11:AJC510) -> 124.401368 | AJD9: =DEVSQ(AJD11:AJD510) -> 149.712578 | AJF9: =DEVSQ(AJF11:AJF510) -> 130.964698 | AJG9: =DEVSQ(AJG11:AJG510) -> 146.534122 | AJI9: =DEVSQ(AJI11:AJI510) -> 152.255042 | AJJ9: =DEVSQ(AJJ11:AJJ510) -> 154.32145 | AJL9: =DEVSQ(AJL11:AJL510) -> 133.513128 | AJM9: =DEVSQ(AJM11:AJM510) -> 153.428232 | AJO9: =DEVSQ(AJO11:AJO510) -> 132.574672 | AJP9: =DEVSQ(AJP11:AJP510) -> 201.560418 | AJR9: =DEVSQ(AJR11:AJR510) -> 157.841088 | AJS9: =DEVSQ(AJS11:AJS510) -> 182.432 | AJU9: =DEVSQ(AJU11:AJU510) -> 161.65485 | AJV9: =DEVSQ(AJV11:AJV510) -> 139.47405 | AJX9: =DEVSQ(AJX11:AJX510) -> 132.506768 | AJY9: =DEVSQ(AJY11:AJY510) -> 176.11725 | AKA9: =DEVSQ(AKA11:AKA510) -> 82.961242 | AKB9: =DEVSQ(AKB11:AKB510) -> 135.95205 | AKD9: =DEVSQ(AKD11:AKD510) -> 129.763538 | AKE9: =DEVSQ(AKE11:AKE510) -> 170.797728 | AKG9: =DEVSQ(AKG11:AKG510) -> 114.98825 | AKH9: =DEVSQ(AKH11:AKH510) -> 181.043322 | AKJ9: =DEVSQ(AKJ11:AKJ510) -> 134.52985 | AKK9: =DEVSQ(AKK11:AKK510) -> 181.16365 | AKM9: =DEVSQ(AKM11:AKM510) -> 146.879392 | AKN9: =DEVSQ(AKN11:AKN510) -> 171.94645 | AKP9: =DEVSQ(AKP11:AKP510) -> 134.300042 | AKQ9: =DEVSQ(AKQ11:AKQ510) -> 146.9934 | AKS9: =DEVSQ(AKS11:AKS510) -> 94.588522 | AKT9: =DEVSQ(AKT11:AKT510) -> 140.542112 | AKV9: =DEVSQ(AKV11:AKV510) -> 108.776602 | AKW9: =DEVSQ(AKW11:AKW510) -> 194.547482 | AKY9: =DEVSQ(AKY11:AKY510) -> 158.700088 | AKZ9: =DEVSQ(AKZ11:AKZ510) -> 200.040488 | ALB9: =DEVSQ(ALB11:ALB510) -> 151.056058 | ALC9: =DEVSQ(ALC11:ALC510) -> 171.02745 | ALE9: =DEVSQ(ALE11:ALE510) -> 120.807288 | ALF9: =DEVSQ(ALF11:ALF510) -> 183.1092 | ALH9: =DEVSQ(ALH11:ALH510) -> 136.701922 | ALI9: =DEVSQ(ALI11:ALI510) -> 191.485368 | ALK9: =DEVSQ(ALK11:ALK510) -> 128.88665 | ALL9: =DEVSQ(ALL11:ALL510) -> 170.111778 | ALN9: =DEVSQ(ALN11:ALN510) -> 115.159232 | ALO9: =DEVSQ(ALO11:ALO510) -> 133.279792 | ALQ9: =DEVSQ(ALQ11:ALQ510) -> 135.071858 | ALR9: =DEVSQ(ALR11:ALR510) -> 193.998568 | ALT9: =DEVSQ(ALT11:ALT510) -> 131.60805 | ALU9: =DEVSQ(ALU11:ALU510) -> 156.400432 | ALW9: =DEVSQ(ALW11:ALW510) -> 138.951378 | ALX9: =DEVSQ(ALX11:ALX510) -> 160.580032 | ALZ9: =DEVSQ(ALZ11:ALZ510) -> 147.107098 | AMA9: =DEVSQ(AMA11:AMA510) -> 166.562128 | AMC9: =DEVSQ(AMC11:AMC510) -> 141.974962 | AMD9: =DEVSQ(AMD11:AMD510) -> 200.910488 | AMF9: =DEVSQ(AMF11:AMF510) -> 139.760018 | AMG9: =DEVSQ(AMG11:AMG510) -> 182.001682 | AMI9: =DEVSQ(AMI11:AMI510) -> 119.5934 | AMJ9: =DEVSQ(AMJ11:AMJ510) -> 198.39065 | AML9: =DEVSQ(AML11:AML510) -> 139.64005 | AMM9: =DEVSQ(AMM11:AMM510) -> 138.580568 | AMO9: =DEVSQ(AMO11:AMO510) -> 140.253472 | AMP9: =DEVSQ(AMP11:AMP510) -> 194.062552 | AMR9: =DEVSQ(AMR11:AMR510) -> 157.640248 | AMS9: =DEVSQ(AMS11:AMS510) -> 202.630162 | AMU9: =DEVSQ(AMU11:AMU510) -> 149.30125 | AMV9: =DEVSQ(AMV11:AMV510) -> 158.505258 | AMX9: =DEVSQ(AMX11:AMX510) -> 152.340632 | AMY9: =DEVSQ(AMY11:AMY510) -> 202.5828 | ANA9: =DEVSQ(ANA11:ANA510) -> 162.389192 | ANB9: =DEVSQ(ANB11:ANB510) -> 205.768018 | AND9: =DEVSQ(AND11:AND510) -> 87.8954 | ANE9: =DEVSQ(ANE11:ANE510) -> 154.800682 | ANG9: =DEVSQ(ANG11:ANG510) -> 146.3034 | ANH9: =DEVSQ(ANH11:ANH510) -> 184.113162 | ANJ9: =DEVSQ(ANJ11:ANJ510) -> 133.093178 | ANK9: =DEVSQ(ANK11:ANK510) -> 144.7098 | ANM9: =DEVSQ(ANM11:ANM510) -> 123.316968 | ANN9: =DEVSQ(ANN11:ANN510) -> 159.415368 | ANP9: =DEVSQ(ANP11:ANP510) -> 142.02405 | ANQ9: =DEVSQ(ANQ11:ANQ510) -> 174.909952 | ANS9: =DEVSQ(ANS11:ANS510) -> 89.731378 | ANT9: =DEVSQ(ANT11:ANT510) -> 124.700632 | ANV9: =DEVSQ(ANV11:ANV510) -> 102.224872 | ANW9: =DEVSQ(ANW11:ANW510) -> 124.657962 | ANY9: =DEVSQ(ANY11:ANY510) -> 143.690978 | ANZ9: =DEVSQ(ANZ11:ANZ510) -> 139.923242 | AOB9: =DEVSQ(AOB11:AOB510) -> 105.671192 | AOC9: =DEVSQ(AOC11:AOC510) -> 143.685832 | AOE9: =DEVSQ(AOE11:AOE510) -> 123.386472 | AOF9: =DEVSQ(AOF11:AOF510) -> 169.248992 | AOH9: =DEVSQ(AOH11:AOH510) -> 148.168578 | AOI9: =DEVSQ(AOI11:AOI510) -> 124.93605 | AOK9: =DEVSQ(AOK11:AOK510) -> 109.207138 | AOL9: =DEVSQ(AOL11:AOL510) -> 198.864282 | AON9: =DEVSQ(AON11:AON510) -> 167.369658 | AOO9: =DEVSQ(AOO11:AOO510) -> 155.058512 | AOQ9: =DEVSQ(AOQ11:AOQ510) -> 169.384698 | AOR9: =DEVSQ(AOR11:AOR510) -> 171.934538 | AOT9: =DEVSQ(AOT11:AOT510) -> 106.902448 | AOU9: =DEVSQ(AOU11:AOU510) -> 175.178178 | AOW9: =DEVSQ(AOW11:AOW510) -> 116.766962 | AOX9: =DEVSQ(AOX11:AOX510) -> 147.338842 | AOZ9: =DEVSQ(AOZ11:AOZ510) -> 169.943202 | APA9: =DEVSQ(APA11:APA510) -> 161.250418 | APC9: =DEVSQ(APC11:APC510) -> 125.587688 | APD9: =DEVSQ(APD11:APD510) -> 179.422592 | APF9: =DEVSQ(APF11:APF510) -> 118.536762 | APG9: =DEVSQ(APG11:APG510) -> 129.357272 | API9: =DEVSQ(API11:API510) -> 154.314408 | APJ9: =DEVSQ(APJ11:APJ510) -> 213.382378 | APL9: =DEVSQ(APL11:APL510) -> 180.9994 | APM9: =DEVSQ(APM11:APM510) -> 192.619208 | APO9: =DEVSQ(APO11:APO510) -> 155.794098 | APP9: =DEVSQ(APP11:APP510) -> 195.063978 | APR9: =DEVSQ(APR11:APR510) -> 109.163872 | APS9: =DEVSQ(APS11:APS510) -> 140.773218 | APU9: =DEVSQ(APU11:APU510) -> 126.957592 | APV9: =DEVSQ(APV11:APV510) -> 179.245072 | APX9: =DEVSQ(APX11:APX510) -> 135.269042 | APY9: =DEVSQ(APY11:APY510) -> 192.597962 | AQA9: =DEVSQ(AQA11:AQA510) -> 122.051248 | AQB9: =DEVSQ(AQB11:AQB510) -> 196.480512 | AQD9: =DEVSQ(AQD11:AQD510) -> 132.990072 | AQE9: =DEVSQ(AQE11:AQE510) -> 177.280042 | AQG9: =DEVSQ(AQG11:AQG510) -> 190.962312 | AQH9: =DEVSQ(AQH11:AQH510) -> 159.37925 | AQJ9: =DEVSQ(AQJ11:AQJ510) -> 156.8996 | AQK9: =DEVSQ(AQK11:AQK510) -> 148.279048 | AQM9: =DEVSQ(AQM11:AQM510) -> 112.678722 | AQN9: =DEVSQ(AQN11:AQN510) -> 182.876328 | AQP9: =DEVSQ(AQP11:AQP510) -> 142.697962 | AQQ9: =DEVSQ(AQQ11:AQQ510) -> 198.147312 | AQS9: =DEVSQ(AQS11:AQS510) -> 116.829272 | AQT9: =DEVSQ(AQT11:AQT510) -> 133.700472 | AQV9: =DEVSQ(AQV11:AQV510) -> 150.319282 | AQW9: =DEVSQ(AQW11:AQW510) -> 152.127088 | AQY9: =DEVSQ(AQY11:AQY510) -> 175.851192 | AQZ9: =DEVSQ(AQZ11:AQZ510) -> 189.685528 | ARB9: =DEVSQ(ARB11:ARB510) -> 125.348658 | ARC9: =DEVSQ(ARC11:ARC510) -> 159.64745 | ARE9: =DEVSQ(ARE11:ARE510) -> 111.695282 | ARF9: =DEVSQ(ARF11:ARF510) -> 154.7996 | ARH9: =DEVSQ(ARH11:ARH510) -> 103.312032 | ARI9: =DEVSQ(ARI11:ARI510) -> 170.489042 | ARK9: =DEVSQ(ARK11:ARK510) -> 102.549072 | ARL9: =DEVSQ(ARL11:ARL510) -> 156.80745 | ARN9: =DEVSQ(ARN11:ARN510) -> 130.116168 | ARO9: =DEVSQ(ARO11:ARO510) -> 189.805682 | ARQ9: =DEVSQ(ARQ11:ARQ510) -> 111.704472 | ARR9: =DEVSQ(ARR11:ARR510) -> 196.5288 | ART9: =DEVSQ(ART11:ART510) -> 176.073592 | ARU9: =DEVSQ(ARU11:ARU510) -> 210.4538 | ARW9: =DEVSQ(ARW11:ARW510) -> 95.775538 | ARX9: =DEVSQ(ARX11:ARX510) -> 132.377632 | ARZ9: =DEVSQ(ARZ11:ARZ510) -> 154.043962 | ASA9: =DEVSQ(ASA11:ASA510) -> 175.094698 | ASC9: =DEVSQ(ASC11:ASC510) -> 146.58025 | ASD9: =DEVSQ(ASD11:ASD510) -> 143.19105 | ASF9: =DEVSQ(ASF11:ASF510) -> 116.2516 | ASG9: =DEVSQ(ASG11:ASG510) -> 109.671762 | ASI9: =DEVSQ(ASI11:ASI510) -> 180.5984 | ASJ9: =DEVSQ(ASJ11:ASJ510) -> 155.689592 | ASL9: =DEVSQ(ASL11:ASL510) -> 129.879352 | ASM9: =DEVSQ(ASM11:ASM510) -> 158.879392 | ASO9: =DEVSQ(ASO11:ASO510) -> 124.47105 | ASP9: =DEVSQ(ASP11:ASP510) -> 207.158512 | ASR9: =DEVSQ(ASR11:ASR510) -> 136.704858 | ASS9: =DEVSQ(ASS11:ASS510) -> 153.244512 | ASU9: =DEVSQ(ASU11:ASU510) -> 141.408258 | ASV9: =DEVSQ(ASV11:ASV510) -> 178.072608 | ASX9: =DEVSQ(ASX11:ASX510) -> 173.176712 | ASY9: =DEVSQ(ASY11:ASY510) -> 193.289298 | ATA9: =DEVSQ(ATA11:ATA510) -> 163.672002 | ATB9: =DEVSQ(ATB11:ATB510) -> 146.340552 | ATD9: =DEVSQ(ATD11:ATD510) -> 128.500762 | ATE9: =DEVSQ(ATE11:ATE510) -> 185.870298 | ATG9: =DEVSQ(ATG11:ATG510) -> 114.936402 | ATH9: =DEVSQ(ATH11:ATH510) -> 151.986538 | ATJ9: =DEVSQ(ATJ11:ATJ510) -> 110.808378 | ATK9: =DEVSQ(ATK11:ATK510) -> 174.729592 | ATM9: =DEVSQ(ATM11:ATM510) -> 135.072338 | ATN9: =DEVSQ(ATN11:ATN510) -> 198.063098 | ATP9: =DEVSQ(ATP11:ATP510) -> 115.06805 | ATQ9: =DEVSQ(ATQ11:ATQ510) -> 156.693312 | ATS9: =DEVSQ(ATS11:ATS510) -> 187.898522 | ATT9: =DEVSQ(ATT11:ATT510) -> 168.9436 | ATV9: =DEVSQ(ATV11:ATV510) -> 72.730008 | ATW9: =DEVSQ(ATW11:ATW510) -> 126.445328 | ATY9: =DEVSQ(ATY11:ATY510) -> 146.54485 | ATZ9: =DEVSQ(ATZ11:ATZ510) -> 159.295538 | AUB9: =DEVSQ(AUB11:AUB510) -> 127.752192 | AUC9: =DEVSQ(AUC11:AUC510) -> 166.5858 | AUE9: =DEVSQ(AUE11:AUE510) -> 125.669168 | AUF9: =DEVSQ(AUF11:AUF510) -> 158.931738 | AUH9: =DEVSQ(AUH11:AUH510) -> 108.70125 | AUI9: =DEVSQ(AUI11:AUI510) -> 151.213272 | AUK9: =DEVSQ(AUK11:AUK510) -> 155.00185 | AUL9: =DEVSQ(AUL11:AUL510) -> 168.305888 | AUN9: =DEVSQ(AUN11:AUN510) -> 134.61685 | AUO9: =DEVSQ(AUO11:AUO510) -> 147.611042 | AUQ9: =DEVSQ(AUQ11:AUQ510) -> 148.10225 | AUR9: =DEVSQ(AUR11:AUR510) -> 156.68385 | AUT9: =DEVSQ(AUT11:AUT510) -> 179.921418 | AUU9: =DEVSQ(AUU11:AUU510) -> 177.29805 | AUW9: =DEVSQ(AUW11:AUW510) -> 114.994432 | AUX9: =DEVSQ(AUX11:AUX510) -> 159.284232 | AUZ9: =DEVSQ(AUZ11:AUZ510) -> 134.4454 | AVA9: =DEVSQ(AVA11:AVA510) -> 140.069658 | AVC9: =DEVSQ(AVC11:AVC510) -> 127.953058 | AVD9: =DEVSQ(AVD11:AVD510) -> 148.706042 | AVF9: =DEVSQ(AVF11:AVF510) -> 195.31645 | AVG9: =DEVSQ(AVG11:AVG510) -> 182.782688 | AVI9: =DEVSQ(AVI11:AVI510) -> 85.112 | AVJ9: =DEVSQ(AVJ11:AVJ510) -> 153.579362 | AVL9: =DEVSQ(AVL11:AVL510) -> 120.851042 | AVM9: =DEVSQ(AVM11:AVM510) -> 112.959928 | AVO9: =DEVSQ(AVO11:AVO510) -> 118.100912 | AVP9: =DEVSQ(AVP11:AVP510) -> 161.239242 | AVR9: =DEVSQ(AVR11:AVR510) -> 106.521362 | AVS9: =DEVSQ(AVS11:AVS510) -> 143.055738 | AVU9: =DEVSQ(AVU11:AVU510) -> 126.741522 | AVV9: =DEVSQ(AVV11:AVV510) -> 138.034 | AVX9: =DEVSQ(AVX11:AVX510) -> 127.962042 | AVY9: =DEVSQ(AVY11:AVY510) -> 173.4662 | AWA9: =DEVSQ(AWA11:AWA510) -> 95.246922 | AWB9: =DEVSQ(AWB11:AWB510) -> 188.1148 | AWD9: =DEVSQ(AWD11:AWD510) -> 116.673568 | AWE9: =DEVSQ(AWE11:AWE510) -> 173.795642 | AWG9: =DEVSQ(AWG11:AWG510) -> 125.01385 | AWH9: =DEVSQ(AWH11:AWH510) -> 190.044642 | AWJ9: =DEVSQ(AWJ11:AWJ510) -> 111.4244 | AWK9: =DEVSQ(AWK11:AWK510) -> 159.313962 | AWM9: =DEVSQ(AWM11:AWM510) -> 117.301858 | AWN9: =DEVSQ(AWN11:AWN510) -> 152.722402 | AWP9: =DEVSQ(AWP11:AWP510) -> 116.585312 | AWQ9: =DEVSQ(AWQ11:AWQ510) -> 158.556912 | AWS9: =DEVSQ(AWS11:AWS510) -> 131.307928 | AWT9: =DEVSQ(AWT11:AWT510) -> 124.837848 | AWV9: =DEVSQ(AWV11:AWV510) -> 138.960778 | AWW9: =DEVSQ(AWW11:AWW510) -> 197.289922 | AWY9: =DEVSQ(AWY11:AWY510) -> 162.41365 | AWZ9: =DEVSQ(AWZ11:AWZ510) -> 169.653112 | AXB9: =DEVSQ(AXB11:AXB510) -> 147.107632 | AXC9: =DEVSQ(AXC11:AXC510) -> 148.994488 | AXE9: =DEVSQ(AXE11:AXE510) -> 97.106162 | AXF9: =DEVSQ(AXF11:AXF510) -> 134.153272 | AXH9: =DEVSQ(AXH11:AXH510) -> 135.381242 | AXI9: =DEVSQ(AXI11:AXI510) -> 180.313898 | AXK9: =DEVSQ(AXK11:AXK510) -> 146.877562 | AXL9: =DEVSQ(AXL11:AXL510) -> 196.724098 | AXN9: =DEVSQ(AXN11:AXN510) -> 130.04085 | AXO9: =DEVSQ(AXO11:AXO510) -> 160.542232 | AXQ9: =DEVSQ(AXQ11:AXQ510) -> 178.41625 | AXR9: =DEVSQ(AXR11:AXR510) -> 225.485 | AXT9: =DEVSQ(AXT11:AXT510) -> 157.143162 | AXU9: =DEVSQ(AXU11:AXU510) -> 200.042602 | AXW9: =DEVSQ(AXW11:AXW510) -> 135.887738 | AXX9: =DEVSQ(AXX11:AXX510) -> 156.930272 | AXZ9: =DEVSQ(AXZ11:AXZ510) -> 143.232242 | AYA9: =DEVSQ(AYA11:AYA510) -> 181.4184 | AYC9: =DEVSQ(AYC11:AYC510) -> 130.239912 | AYD9: =DEVSQ(AYD11:AYD510) -> 191.432912 | AYF9: =DEVSQ(AYF11:AYF510) -> 173.483842 | AYG9: =DEVSQ(AYG11:AYG510) -> 129.965378 | AYI9: =DEVSQ(AYI11:AYI510) -> 154.13105 | AYJ9: =DEVSQ(AYJ11:AYJ510) -> 196.28625 | AYL9: =DEVSQ(AYL11:AYL510) -> 151.61225 | AYM9: =DEVSQ(AYM11:AYM510) -> 159.007242 | AYO9: =DEVSQ(AYO11:AYO510) -> 135.070192 | AYP9: =DEVSQ(AYP11:AYP510) -> 178.136688 | AYR9: =DEVSQ(AYR11:AYR510) -> 125.092482 | AYS9: =DEVSQ(AYS11:AYS510) -> 122.7996 | AYU9: =DEVSQ(AYU11:AYU510) -> 155.506498 | AYV9: =DEVSQ(AYV11:AYV510) -> 201.127 | AYX9: =DEVSQ(AYX11:AYX510) -> 102.561768 | AYY9: =DEVSQ(AYY11:AYY510) -> 163.236618 | AZA9: =DEVSQ(AZA11:AZA510) -> 143.555032 | AZB9: =DEVSQ(AZB11:AZB510) -> 127.033648 | AZD9: =DEVSQ(AZD11:AZD510) -> 124.099072 | AZE9: =DEVSQ(AZE11:AZE510) -> 141.979618 | AZG9: =DEVSQ(AZG11:AZG510) -> 145.144752 | AZH9: =DEVSQ(AZH11:AZH510) -> 161.834098 | AZJ9: =DEVSQ(AZJ11:AZJ510) -> 130.630042 | AZK9: =DEVSQ(AZK11:AZK510) -> 179.558762 | AZM9: =DEVSQ(AZM11:AZM510) -> 133.215538 | AZN9: =DEVSQ(AZN11:AZN510) -> 151.428968 | AZP9: =DEVSQ(AZP11:AZP510) -> 116.788282 | AZQ9: =DEVSQ(AZQ11:AZQ510) -> 179.916418 | AZS9: =DEVSQ(AZS11:AZS510) -> 123.080888 | AZT9: =DEVSQ(AZT11:AZT510) -> 164.932402 | AZV9: =DEVSQ(AZV11:AZV510) -> 162.616 | AZW9: =DEVSQ(AZW11:AZW510) -> 183.853288 | AZY9: =DEVSQ(AZY11:AZY510) -> 117.9586 | AZZ9: =DEVSQ(AZZ11:AZZ510) -> 159.298928 | BAB9: =DEVSQ(BAB11:BAB510) -> 129.910408 | BAC9: =DEVSQ(BAC11:BAC510) -> 175.095072 | BAE9: =DEVSQ(BAE11:BAE510) -> 111.225688 | BAF9: =DEVSQ(BAF11:BAF510) -> 151.535818 | BAH9: =DEVSQ(BAH11:BAH510) -> 188.7714 | BAI9: =DEVSQ(BAI11:BAI510) -> 183.262938 | BAK9: =DEVSQ(BAK11:BAK510) -> 117.644938 | BAL9: =DEVSQ(BAL11:BAL510) -> 137.624018 | BAN9: =DEVSQ(BAN11:BAN510) -> 126.92165 | BAO9: =DEVSQ(BAO11:BAO510) -> 177.640328 | BAQ9: =DEVSQ(BAQ11:BAQ510) -> 86.747392 | BAR9: =DEVSQ(BAR11:BAR510) -> 157.334042 | BAT9: =DEVSQ(BAT11:BAT510) -> 129.265562 | BAU9: =DEVSQ(BAU11:BAU510) -> 170.288048 | BAW9: =DEVSQ(BAW11:BAW510) -> 168.195848 | BAX9: =DEVSQ(BAX11:BAX510) -> 163.189152 | BAZ9: =DEVSQ(BAZ11:BAZ510) -> 124.525592 | BBA9: =DEVSQ(BBA11:BBA510) -> 168.664258 | BBC9: =DEVSQ(BBC11:BBC510) -> 168.240208 | BBD9: =DEVSQ(BBD11:BBD510) -> 175.531138 | BBF9: =DEVSQ(BBF11:BBF510) -> 177.604858 | BBG9: =DEVSQ(BBG11:BBG510) -> 189.41505 | BBI9: =DEVSQ(BBI11:BBI510) -> 156.966802 | BBJ9: =DEVSQ(BBJ11:BBJ510) -> 162.41625 | BBL9: =DEVSQ(BBL11:BBL510) -> 121.3136 | BBM9: =DEVSQ(BBM11:BBM510) -> 149.231152 | BBO9: =DEVSQ(BBO11:BBO510) -> 130.893832 | BBP9: =DEVSQ(BBP11:BBP510) -> 175.841418 | BBR9: =DEVSQ(BBR11:BBR510) -> 82.719112 | BBS9: =DEVSQ(BBS11:BBS510) -> 148.125792 | BBU9: =DEVSQ(BBU11:BBU510) -> 189.95065 | BBV9: =DEVSQ(BBV11:BBV510) -> 172.27465 | BBX9: =DEVSQ(BBX11:BBX510) -> 118.378162 | BBY9: =DEVSQ(BBY11:BBY510) -> 168.583162 | BCA9: =DEVSQ(BCA11:BCA510) -> 120.25965 | BCB9: =DEVSQ(BCB11:BCB510) -> 173.347288 | BCD9: =DEVSQ(BCD11:BCD510) -> 161.774808 | BCE9: =DEVSQ(BCE11:BCE510) -> 195.960322 | BCG9: =DEVSQ(BCG11:BCG510) -> 122.675712 | BCH9: =DEVSQ(BCH11:BCH510) -> 147.260938 | BCJ9: =DEVSQ(BCJ11:BCJ510) -> 161.252842 | BCK9: =DEVSQ(BCK11:BCK510) -> 176.726042 | BCM9: =DEVSQ(BCM11:BCM510) -> 112.15705 | BCN9: =DEVSQ(BCN11:BCN510) -> 166.332482 | BCP9: =DEVSQ(BCP11:BCP510) -> 80.311528 | BCQ9: =DEVSQ(BCQ11:BCQ510) -> 146.433578 | BCS9: =DEVSQ(BCS11:BCS510) -> 96.023482 | BCT9: =DEVSQ(BCT11:BCT510) -> 171.549248 | BCV9: =DEVSQ(BCV11:BCV510) -> 109.145368 | BCW9: =DEVSQ(BCW11:BCW510) -> 195.824688 | BCY9: =DEVSQ(BCY11:BCY510) -> 138.698192 | BCZ9: =DEVSQ(BCZ11:BCZ510) -> 165.709602 | BDB9: =DEVSQ(BDB11:BDB510) -> 198.896842 | BDC9: =DEVSQ(BDC11:BDC510) -> 197.953088 | BDE9: =DEVSQ(BDE11:BDE510) -> 139.733618 | BDF9: =DEVSQ(BDF11:BDF510) -> 122.998882 | BDH9: =DEVSQ(BDH11:BDH510) -> 200.186418 | BDI9: =DEVSQ(BDI11:BDI510) -> 191.853952 | BDK9: =DEVSQ(BDK11:BDK510) -> 142.007538 | BDL9: =DEVSQ(BDL11:BDL510) -> 151.714752 | BDN9: =DEVSQ(BDN11:BDN510) -> 104.701418 | BDO9: =DEVSQ(BDO11:BDO510) -> 168.095218 | BDQ9: =DEVSQ(BDQ11:BDQ510) -> 164.824522 | BDR9: =DEVSQ(BDR11:BDR510) -> 173.494402 | BDT9: =DEVSQ(BDT11:BDT510) -> 180.462698 | BDU9: =DEVSQ(BDU11:BDU510) -> 205.510258 | BDW9: =DEVSQ(BDW11:BDW510) -> 97.633032 | BDX9: =DEVSQ(BDX11:BDX510) -> 154.246082 | BDZ9: =DEVSQ(BDZ11:BDZ510) -> 132.629298 | BEA9: =DEVSQ(BEA11:BEA510) -> 131.060802 | BEC9: =DEVSQ(BEC11:BEC510) -> 129.33845 | BED9: =DEVSQ(BED11:BED510) -> 176.524432 | BEF9: =DEVSQ(BEF11:BEF510) -> 99.202042 | BEG9: =DEVSQ(BEG11:BEG510) -> 161.99145 | BEI9: =DEVSQ(BEI11:BEI510) -> 156.907258 | BEJ9: =DEVSQ(BEJ11:BEJ510) -> 179.067218 | BEL9: =DEVSQ(BEL11:BEL510) -> 179.0902 | BEM9: =DEVSQ(BEM11:BEM510) -> 191.747562 | BEO9: =DEVSQ(BEO11:BEO510) -> 138.237728 | BEP9: =DEVSQ(BEP11:BEP510) -> 133.540192 | BER9: =DEVSQ(BER11:BER510) -> 117.248208 | BES9: =DEVSQ(BES11:BES510) -> 155.609912 | BEU9: =DEVSQ(BEU11:BEU510) -> 119.392288 | BEV9: =DEVSQ(BEV11:BEV510) -> 142.968328 | BEX9: =DEVSQ(BEX11:BEX510) -> 149.214818 | BEY9: =DEVSQ(BEY11:BEY510) -> 187.488288 | BFA9: =DEVSQ(BFA11:BFA510) -> 117.850722 | BFB9: =DEVSQ(BFB11:BFB510) -> 163.741648 | BFD9: =DEVSQ(BFD11:BFD510) -> 121.907962 | BFE9: =DEVSQ(BFE11:BFE510) -> 192.900282 | BFG9: =DEVSQ(BFG11:BFG510) -> 180.149138 | BFH9: =DEVSQ(BFH11:BFH510) -> 182.547178 | BFJ9: =DEVSQ(BFJ11:BFJ510) -> 196.437432 | BFK9: =DEVSQ(BFK11:BFK510) -> 205.1534 | BFM9: =DEVSQ(BFM11:BFM510) -> 176.402402 | BFN9: =DEVSQ(BFN11:BFN510) -> 159.382978 | BFP9: =DEVSQ(BFP11:BFP510) -> 153.8534 | BFQ9: =DEVSQ(BFQ11:BFQ510) -> 168.692642 | BFS9: =DEVSQ(BFS11:BFS510) -> 199.201042 | BFT9: =DEVSQ(BFT11:BFT510) -> 187.07245 | BFV9: =DEVSQ(BFV11:BFV510) -> 139.812778 | BFW9: =DEVSQ(BFW11:BFW510) -> 175.2412 | BFY9: =DEVSQ(BFY11:BFY510) -> 122.929968 | BFZ9: =DEVSQ(BFZ11:BFZ510) -> 138.878682 | BGB9: =DEVSQ(BGB11:BGB510) -> 117.613122 | BGC9: =DEVSQ(BGC11:BGC510) -> 177.611138 | BGE9: =DEVSQ(BGE11:BGE510) -> 140.54405 | BGF9: =DEVSQ(BGF11:BGF510) -> 193.12485 | BGH9: =DEVSQ(BGH11:BGH510) -> 131.222362 | BGI9: =DEVSQ(BGI11:BGI510) -> 167.296608 | BGK9: =DEVSQ(BGK11:BGK510) -> 122.495818 | BGL9: =DEVSQ(BGL11:BGL510) -> 145.828192 | BGN9: =DEVSQ(BGN11:BGN510) -> 224.665448 | BGO9: =DEVSQ(BGO11:BGO510) -> 167.918818 | BGQ9: =DEVSQ(BGQ11:BGQ510) -> 106.0972 | BGR9: =DEVSQ(BGR11:BGR510) -> 113.002762 | BGT9: =DEVSQ(BGT11:BGT510) -> 100.311 | BGU9: =DEVSQ(BGU11:BGU510) -> 124.065258
C10: 6 | D10: 0.38 | E10: 0.96 | H10: 0 | I10: 0 | K10: 最小値 ：=MIN(セル範囲) | M10: =MIN(D5:D1304) -> 0.22 | N10: =MIN(E5:E1304) -> 0.51 | O10: =MIN(F5:F1304) -> 0 | P10: =MIN(G5:G1304) -> 0 | Q10: LAM | R10: =R5/(M7-R5) -> 0 | U10: 3.37 | V10: 33 | W10: 5 | X10: 3.42 | Y10: 28 | Z10: 4 | AD10: -1.281680552 | AE10: 0.5553116459 | AF10: -1.316248987 | AG10: 0.8469317882 | AN10: 46 | AO10: 45 | AS10: 0.67 | AT10: 0.58 | AV10: 0.67 | AW10: 0.58 | AY10: 元データ | BIB10: =IF($E10<>"",VLOOKUP(BHZ10,$C$5:$E$504,3,FALSE),"") -> 
C11: 7 | D11: 0.4 | E11: 1.05 | H11: 0 | I11: 0 | K11: 最大値 ：=MAX(セル範囲) | M11: =MAX(D5:D1304) -> 7.1 | N11: =MAX(E5:E1304) -> 6.8 | O11: =MAX(F5:F1304) -> 0 | P11: =MAX(G5:G1304) -> 0 | Q11: SYXD | R11: =(N7-(1+R10)*(N7-M29^2))^0.5 -> 0.9854720373 | U11: 4 | V11: 41 | W11: 8 | X11: 4 | Y11: 34 | Z11: 6 | AD11: -1.22690837 | AE11: 0.6782415633 | AF11: -1.33624358 | AG11: 0.9116089937 | AN11: 45 | AO11: 44 | AS11: 0.725 | AT11: 0.65 | AV11: 0.725 | AW11: 0.65 | AY11: =IF(D5<>"",D5,"") -> 0.22 | AZ11: =IF(E5<>"",E5,"") -> 0.51 | BA11: 29 | BB11: 2.4 | BC11: 3.5 | BD11: 7 | BE11: 0.4 | BF11: 1.05 | BG11: 32 | BH11: 2.83 | BI11: 3.77 | BJ11: 14 | BK11: 1.16 | BL11: 1.72 | BM11: 27 | BN11: 4.01 | BO11: 3 | BP11: 3 | BQ11: 0.46 | BR11: 0.7 | BS11: 43 | BT11: 3.79 | BU11: 5.65 | BV11: 29 | BW11: 2.4 | BX11: 3.5 | BY11: 7 | BZ11: 0.4 | CA11: 1.05 | CB11: 48 | CC11: 7.1 | CD11: 6.2 | CE11: 15 | CF11: 1.3 | CG11: 1.8 | CH11: 41 | CI11: 5.95 | CJ11: 5.1 | CK11: 20 | CL11: 2.06 | CM11: 2.23 | CN11: 14 | CO11: 1.16 | CP11: 1.72 | CQ11: 13 | CR11: 1.24 | CS11: 1.7 | CT11: 43 | CU11: 3.79 | CV11: 5.65 | CW11: 22 | CX11: 2.75 | CY11: 2.4 | CZ11: 26 | DA11: 2.15 | DB11: 2.91 | DC11: 21 | DD11: 1.83 | DE11: 2.32 | DF11: 40 | DG11: 5.16 | DH11: 4.92 | DI11: 6 | DJ11: 0.38 | DK11: 0.96 | DL11: 40 | DM11: 5.16 | DN11: 4.92 | DO11: 6 | DP11: 0.38 | DQ11: 0.96 | DR11: 27 | DS11: 4.01 | DT11: 3 | DU11: 48 | DV11: 7.1 | DW11: 6.2 | DX11: 33 | DY11: 4.28 | DZ11: 3.99 | EA11: 41 | EB11: 5.95 | EC11: 5.1 | ED11: 41 | EE11: 5.95 | EF11: 5.1 | EG11: 6 | EH11: 0.38 | EI11: 0.96 | EJ11: 6 | EK11: 0.38 | EL11: 0.96 | EM11: 42 | EN11: 2.97 | EO11: 5.3 | EP11: 16 | EQ11: 1.58 | ER11: 1.83 | ES11: 42 | ET11: 2.97 | EU11: 5.3 | EV11: 47 | EW11: 2.34 | EX11: 6.2 | EY11: 16 | EZ11: 1.58 | FA11: 1.83 | FB11: 5 | FC11: 0.32 | FD11: 0.91 | FE11: 5 | FF11: 0.32 | FG11: 0.91 | FH11: 10 | FI11: 1.12 | FJ11: 1.2 | FK11: 27 | FL11: 4.01 | FM11: 3 | FN11: 14 | FO11: 1.16 | FP11: 1.72 | FQ11: 18 | FR11: 1.32 | FS11: 2 | FT11: 4 | FU11: 0.32 | FV11: 0.75 | FW11: 15 | FX11: 1.3 | FY11: 1.8 | FZ11: 47 | GA11: 2.34 | GB11: 6.2 | GC11: 37 | GD11: 3.7 | GE11: 4.2 | GF11: 47 | GG11: 2.34 | GH11: 6.2 | GI11: 34 | GJ11: 3.4 | GK11: 4 | GL11: 15 | GM11: 1.3 | GN11: 1.8 | GO11: 19 | GP11: 1.33 | GQ11: 2.06 | GR11: 28 | GS11: 2.8 | GT11: 3.4 | GU11: 4 | GV11: 0.32 | GW11: 0.75 | GX11: 8 | GY11: 1.68 | GZ11: 1.13 | HA11: 3 | HB11: 0.46 | HC11: 0.7 | HD11: 36 | HE11: 2.28 | HF11: 4.1 | HG11: 20 | HH11: 2.06 | HI11: 2.23 | HJ11: 29 | HK11: 2.4 | HL11: 3.5 | HM11: 50 | HN11: 4.5 | HO11: 6.8 | HP11: 50 | HQ11: 4.5 | HR11: 6.8 | HS11: 28 | HT11: 2.8 | HU11: 3.4 | HV11: 37 | HW11: 3.7 | HX11: 4.2 | HY11: 50 | HZ11: 4.5 | IA11: 6.8 | IB11: 42 | IC11: 2.97 | ID11: 5.3 | IE11: 9 | IF11: 0.6 | IG11: 1.18 | IH11: 9 | II11: 0.6 | IJ11: 1.18 | IK11: 43 | IL11: 3.79 | IM11: 5.65 | IN11: 39 | IO11: 4.19 | IP11: 4.89 | IQ11: 31 | IR11: 1.56 | IS11: 3.71 | IT11: 9 | IU11: 0.6 | IV11: 1.18 | IW11: 45 | IX11: 5.2 | IY11: 5.8 | IZ11: 4 | JA11: 0.32 | JB11: 0.75 | JC11: 11 | JD11: 0.91 | JE11: 1.3 | JF11: 22 | JG11: 2.75 | JH11: 2.4 | JI11: 41 | JJ11: 5.95 | JK11: 5.1 | JL11: 23 | JM11: 1.15 | JN11: 2.5 | JO11: 35 | JP11: 2.83 | JQ11: 4.02 | JR11: 3 | JS11: 0.46 | JT11: 0.7 | JU11: 46 | JV11: 5.9 | JW11: 6.1 | JX11: 8 | JY11: 1.68 | JZ11: 1.13 | KA11: 50 | KB11: 4.5 | KC11: 6.8 | KD11: 30 | KE11: 3.4 | KF11: 3.7 | KG11: 17 | KH11: 1.3 | KI11: 1.89 | KJ11: 15 | KK11: 1.3 | KL11: 1.8 | KM11: 10 | KN11: 1.12 | KO11: 1.2 | KP11: 29 | KQ11: 2.4 | KR11: 3.5 | KS11: 35 | KT11: 2.83 | KU11: 4.02 | KV11: 14 | KW11: 1.16 | KX11: 1.72 | KY11: 39 | KZ11: 4.19 | LA11: 4.89 | LB11: 7 | LC11: 0.4 | LD11: 1.05 | LE11: 1 | LF11: 0.22 | LG11: 0.51 | LH11: 38 | LI11: 3.61 | LJ11: 4.7 | LK11: 3 | LL11: 0.46 | LM11: 0.7 | LN11: 48 | LO11: 7.1 | LP11: 6.2 | LQ11: 37 | LR11: 3.7 | LS11: 4.2 | LT11: 27 | LU11: 4.01 | LV11: 3 | LW11: 2 | LX11: 0.22 | LY11: 0.56 | LZ11: 22 | MA11: 2.75 | MB11: 2.4 | MC11: 6 | MD11: 0.38 | ME11: 0.96 | MF11: 1 | MG11: 0.22 | MH11: 0.51 | MI11: 13 | MJ11: 1.24 | MK11: 1.7 | ML11: 3 | MM11: 0.46 | MN11: 0.7 | MO11: 44 | MP11: 3.4 | MQ11: 5.8 | MR11: 28 | MS11: 2.8 | MT11: 3.4 | MU11: 5 | MV11: 0.32 | MW11: 0.91 | MX11: 9 | MY11: 0.6 | MZ11: 1.18 | NA11: 1 | NB11: 0.22 | NC11: 0.51 | ND11: 22 | NE11: 2.75 | NF11: 2.4 | NG11: 12 | NH11: 2.16 | NI11: 1.6 | NJ11: 39 | NK11: 4.19 | NL11: 4.89 | NM11: 46 | NN11: 5.9 | NO11: 6.1 | NP11: 41 | NQ11: 5.95 | NR11: 5.1 | NS11: 23 | NT11: 1.15 | NU11: 2.5 | NV11: 42 | NW11: 2.97 | NX11: 5.3 | NY11: 38 | NZ11: 3.61 | OA11: 4.7 | OB11: 5 | OC11: 0.32 | OD11: 0.91 | OE11: 26 | OF11: 2.15 | OG11: 2.91 | OH11: 30 | OI11: 3.4 | OJ11: 3.7 | OK11: 2 | OL11: 0.22 | OM11: 0.56 | ON11: 18 | OO11: 1.32 | OP11: 2 | OQ11: 23 | OR11: 1.15 | OS11: 2.5 | OT11: 15 | OU11: 1.3 | OV11: 1.8 | OW11: 25 | OX11: 3.68 | OY11: 2.88 | OZ11: 14 | PA11: 1.16 | PB11: 1.72 | PC11: 4 | PD11: 0.32 | PE11: 0.75 | PF11: 4 | PG11: 0.32 | PH11: 0.75 | PI11: 13 | PJ11: 1.24 | PK11: 1.7 | PL11: 6 | PM11: 0.38 | PN11: 0.96 | PO11: 33 | PP11: 4.28 | PQ11: 3.99 | PR11: 10 | PS11: 1.12 | PT11: 1.2 | PU11: 4 | PV11: 0.32 | PW11: 0.75 | PX11: 49 | PY11: 3.94 | PZ11: 6.8 | QA11: 47 | QB11: 2.34 | QC11: 6.2 | QD11: 19 | QE11: 1.33 | QF11: 2.06 | QG11: 2 | QH11: 0.22 | QI11: 0.56 | QJ11: 23 | QK11: 1.15 | QL11: 2.5 | QM11: 20 | QN11: 2.06 | QO11: 2.23 | QP11: 27 | QQ11: 4.01 | QR11: 3 | QS11: 21 | QT11: 1.83 | QU11: 2.32 | QV11: 18 | QW11: 1.32 | QX11: 2 | QY11: 32 | QZ11: 2.83 | RA11: 3.77 | RB11: 35 | RC11: 2.83 | RD11: 4.02 | RE11: 36 | RF11: 2.28 | RG11: 4.1 | RH11: 38 | RI11: 3.61 | RJ11: 4.7 | RK11: 14 | RL11: 1.16 | RM11: 1.72 | RN11: 7 | RO11: 0.4 | RP11: 1.05 | RQ11: 6 | RR11: 0.38 | RS11: 0.96 | RT11: 16 | RU11: 1.58 | RV11: 1.83 | RW11: 37 | RX11: 3.7 | RY11: 4.2 | RZ11: 42 | SA11: 2.97 | SB11: 5.3 | SC11: 1 | SD11: 0.22 | SE11: 0.51 | SF11: 40 | SG11: 5.16 | SH11: 4.92 | SI11: 34 | SJ11: 3.4 | SK11: 4 | SL11: 8 | SM11: 1.68 | SN11: 1.13 | SO11: 46 | SP11: 5.9 | SQ11: 6.1 | SR11: 47 | SS11: 2.34 | ST11: 6.2 | SU11: 15 | SV11: 1.3 | SW11: 1.8 | SX11: 35 | SY11: 2.83 | SZ11: 4.02 | TA11: 28 | TB11: 2.8 | TC11: 3.4 | TD11: 18 | TE11: 1.32 | TF11: 2 | TG11: 11 | TH11: 0.91 | TI11: 1.3 | TJ11: 28 | TK11: 2.8 | TL11: 3.4 | TM11: 10 | TN11: 1.12 | TO11: 1.2 | TP11: 1 | TQ11: 0.22 | TR11: 0.51 | TS11: 20 | TT11: 2.06 | TU11: 2.23 | TV11: 35 | TW11: 2.83 | TX11: 4.02 | TY11: 17 | TZ11: 1.3 | UA11: 1.89 | UB11: 32 | UC11: 2.83 | UD11: 3.77 | UE11: 17 | UF11: 1.3 | UG11: 1.89 | UH11: 33 | UI11: 4.28 | UJ11: 3.99 | UK11: 23 | UL11: 1.15 | UM11: 2.5 | UN11: 28 | UO11: 2.8 | UP11: 3.4 | UQ11: 31 | UR11: 1.56 | US11: 3.71 | UT11: 20 | UU11: 2.06 | UV11: 2.23 | UW11: 13 | UX11: 1.24 | UY11: 1.7 | UZ11: 40 | VA11: 5.16 | VB11: 4.92 | VC11: 33 | VD11: 4.28 | VE11: 3.99 | VF11: 29 | VG11: 2.4 | VH11: 3.5 | VI11: 44 | VJ11: 3.4 | VK11: 5.8 | VL11: 14 | VM11: 1.16 | VN11: 1.72 | VO11: 30 | VP11: 3.4 | VQ11: 3.7 | VR11: 45 | VS11: 5.2 | VT11: 5.8 | VU11: 31 | VV11: 1.56 | VW11: 3.71 | VX11: 22 | VY11: 2.75 | VZ11: 2.4 | WA11: 32 | WB11: 2.83 | WC11: 3.77 | WD11: 40 | WE11: 5.16 | WF11: 4.92 | WG11: 36 | WH11: 2.28 | WI11: 4.1 | WJ11: 2 | WK11: 0.22 | WL11: 0.56 | WM11: 23 | WN11: 1.15 | WO11: 2.5 | WP11: 20 | WQ11: 2.06 | WR11: 2.23 | WS11: 29 | WT11: 2.4 | WU11: 3.5 | WV11: 8 | WW11: 1.68 | WX11: 1.13 | WY11: 49 | WZ11: 3.94 | XA11: 6.8 | XB11: 30 | XC11: 3.4 | XD11: 3.7 | XE11: 48 | XF11: 7.1 | XG11: 6.2 | XH11: 24 | XI11: 1.7 | XJ11: 2.8 | XK11: 17 | XL11: 1.3 | XM11: 1.89 | XN11: 32 | XO11: 2.83 | XP11: 3.77 | XQ11: 36 | XR11: 2.28 | XS11: 4.1 | XT11: 47 | XU11: 2.34 | XV11: 6.2 | XW11: 6 | XX11: 0.38 | XY11: 0.96 | XZ11: 31 | YA11: 1.56 | YB11: 3.71 | YC11: 32 | YD11: 2.83 | YE11: 3.77 | YF11: 20 | YG11: 2.06 | YH11: 2.23 | YI11: 45 | YJ11: 5.2 | YK11: 5.8 | YL11: 24 | YM11: 1.7 | YN11: 2.8 | YO11: 26 | YP11: 2.15 | YQ11: 2.91 | YR11: 40 | YS11: 5.16 | YT11: 4.92 | YU11: 42 | YV11: 2.97 | YW11: 5.3 | YX11: 13 | YY11: 1.24 | YZ11: 1.7 | ZA11: 26 | ZB11: 2.15 | ZC11: 2.91 | ZD11: 16 | ZE11: 1.58 | ZF11: 1.83 | ZG11: 40 | ZH11: 5.16 | ZI11: 4.92 | ZJ11: 18 | ZK11: 1.32 | ZL11: 2 | ZM11: 40 | ZN11: 5.16 | ZO11: 4.92 | ZP11: 6 | ZQ11: 0.38 | ZR11: 0.96 | ZS11: 29 | ZT11: 2.4 | ZU11: 3.5 | ZV11: 17 | ZW11: 1.3 | ZX11: 1.89 | ZY11: 20 | ZZ11: 2.06 | AAA11: 2.23 | AAB11: 48 | AAC11: 7.1 | AAD11: 6.2 | AAE11: 13 | AAF11: 1.24 | AAG11: 1.7 | AAH11: 38 | AAI11: 3.61 | AAJ11: 4.7 | AAK11: 16 | AAL11: 1.58 | AAM11: 1.83 | AAN11: 16 | AAO11: 1.58 | AAP11: 1.83 | AAQ11: 6 | AAR11: 0.38 | AAS11: 0.96 | AAT11: 22 | AAU11: 2.75 | AAV11: 2.4 | AAW11: 42 | AAX11: 2.97 | AAY11: 5.3 | AAZ11: 36 | ABA11: 2.28 | ABB11: 4.1 | ABC11: 24 | ABD11: 1.7 | ABE11: 2.8 | ABF11: 39 | ABG11: 4.19 | ABH11: 4.89 | ABI11: 10 | ABJ11: 1.12 | ABK11: 1.2 | ABL11: 11 | ABM11: 0.91 | ABN11: 1.3 | ABO11: 50 | ABP11: 4.5 | ABQ11: 6.8 | ABR11: 25 | ABS11: 3.68 | ABT11: 2.88 | ABU11: 22 | ABV11: 2.75 | ABW11: 2.4 | ABX11: 11 | ABY11: 0.91 | ABZ11: 1.3 | ACA11: 9 | ACB11: 0.6 | ACC11: 1.18 | ACD11: 27 | ACE11: 4.01 | ACF11: 3 | ACG11: 23 | ACH11: 1.15 | ACI11: 2.5 | ACJ11: 29 | ACK11: 2.4 | ACL11: 3.5 | ACM11: 1 | ACN11: 0.22 | ACO11: 0.51 | ACP11: 13 | ACQ11: 1.24 | ACR11: 1.7 | ACS11: 24 | ACT11: 1.7 | ACU11: 2.8 | ACV11: 41 | ACW11: 5.95 | ACX11: 5.1 | ACY11: 4 | ACZ11: 0.32 | ADA11: 0.75 | ADB11: 41 | ADC11: 5.95 | ADD11: 5.1 | ADE11: 27 | ADF11: 4.01 | ADG11: 3 | ADH11: 34 | ADI11: 3.4 | ADJ11: 4 | ADK11: 35 | ADL11: 2.83 | ADM11: 4.02 | ADN11: 42 | ADO11: 2.97 | ADP11: 5.3 | ADQ11: 21 | ADR11: 1.83 | ADS11: 2.32 | ADT11: 1 | ADU11: 0.22 | ADV11: 0.51 | ADW11: 22 | ADX11: 2.75 | ADY11: 2.4 | ADZ11: 20 | AEA11: 2.06 | AEB11: 2.23 | AEC11: 36 | AED11: 2.28 | AEE11: 4.1 | AEF11: 35 | AEG11: 2.83 | AEH11: 4.02 | AEI11: 45 | AEJ11: 5.2 | AEK11: 5.8 | AEL11: 7 | AEM11: 0.4 | AEN11: 1.05 | AEO11: 14 | AEP11: 1.16 | AEQ11: 1.72 | AER11: 3 | AES11: 0.46 | AET11: 0.7 | AEU11: 28 | AEV11: 2.8 | AEW11: 3.4 | AEX11: 35 | AEY11: 2.83 | AEZ11: 4.02 | AFA11: 35 | AFB11: 2.83 | AFC11: 4.02 | AFD11: 14 | AFE11: 1.16 | AFF11: 1.72 | AFG11: 9 | AFH11: 0.6 | AFI11: 1.18 | AFJ11: 20 | AFK11: 2.06 | AFL11: 2.23 | AFM11: 14 | AFN11: 1.16 | AFO11: 1.72 | AFP11: 18 | AFQ11: 1.32 | AFR11: 2 | AFS11: 9 | AFT11: 0.6 | AFU11: 1.18 | AFV11: 8 | AFW11: 1.68 | AFX11: 1.13 | AFY11: 4 | AFZ11: 0.32 | AGA11: 0.75 | AGB11: 1 | AGC11: 0.22 | AGD11: 0.51 | AGE11: 21 | AGF11: 1.83 | AGG11: 2.32 | AGH11: 35 | AGI11: 2.83 | AGJ11: 4.02 | AGK11: 14 | AGL11: 1.16 | AGM11: 1.72 | AGN11: 4 | AGO11: 0.32 | AGP11: 0.75 | AGQ11: 7 | AGR11: 0.4 | AGS11: 1.05 | AGT11: 43 | AGU11: 3.79 | AGV11: 5.65 | AGW11: 41 | AGX11: 5.95 | AGY11: 5.1 | AGZ11: 49 | AHA11: 3.94 | AHB11: 6.8 | AHC11: 11 | AHD11: 0.91 | AHE11: 1.3 | AHF11: 21 | AHG11: 1.83 | AHH11: 2.32 | AHI11: 11 | AHJ11: 0.91 | AHK11: 1.3 | AHL11: 28 | AHM11: 2.8 | AHN11: 3.4 | AHO11: 36 | AHP11: 2.28 | AHQ11: 4.1 | AHR11: 46 | AHS11: 5.9 | AHT11: 6.1 | AHU11: 39 | AHV11: 4.19 | AHW11: 4.89 | AHX11: 8 | AHY11: 1.68 | AHZ11: 1.13 | AIA11: 25 | AIB11: 3.68 | AIC11: 2.88 | AID11: 41 | AIE11: 5.95 | AIF11: 5.1 | AIG11: 39 | AIH11: 4.19 | AII11: 4.89 | AIJ11: 42 | AIK11: 2.97 | AIL11: 5.3 | AIM11: 14 | AIN11: 1.16 | AIO11: 1.72 | AIP11: 1 | AIQ11: 0.22 | AIR11: 0.51 | AIS11: 11 | AIT11: 0.91 | AIU11: 1.3 | AIV11: 1 | AIW11: 0.22 | AIX11: 0.51 | AIY11: 43 | AIZ11: 3.79 | AJA11: 5.65 | AJB11: 21 | AJC11: 1.83 | AJD11: 2.32 | AJE11: 34 | AJF11: 3.4 | AJG11: 4 | AJH11: 8 | AJI11: 1.68 | AJJ11: 1.13 | AJK11: 32 | AJL11: 2.83 | AJM11: 3.77 | AJN11: 48 | AJO11: 7.1 | AJP11: 6.2 | AJQ11: 16 | AJR11: 1.58 | AJS11: 1.83 | AJT11: 48 | AJU11: 7.1 | AJV11: 6.2 | AJW11: 14 | AJX11: 1.16 | AJY11: 1.72 | AJZ11: 32 | AKA11: 2.83 | AKB11: 3.77 | AKC11: 17 | AKD11: 1.3 | AKE11: 1.89 | AKF11: 24 | AKG11: 1.7 | AKH11: 2.8 | AKI11: 35 | AKJ11: 2.83 | AKK11: 4.02 | AKL11: 5 | AKM11: 0.32 | AKN11: 0.91 | AKO11: 29 | AKP11: 2.4 | AKQ11: 3.5 | AKR11: 43 | AKS11: 3.79 | AKT11: 5.65 | AKU11: 19 | AKV11: 1.33 | AKW11: 2.06 | AKX11: 8 | AKY11: 1.68 | AKZ11: 1.13 | ALA11: 16 | ALB11: 1.58 | ALC11: 1.83 | ALD11: 48 | ALE11: 7.1 | ALF11: 6.2 | ALG11: 40 | ALH11: 5.16 | ALI11: 4.92 | ALJ11: 44 | ALK11: 3.4 | ALL11: 5.8 | ALM11: 22 | ALN11: 2.75 | ALO11: 2.4 | ALP11: 26 | ALQ11: 2.15 | ALR11: 2.91 | ALS11: 8 | ALT11: 1.68 | ALU11: 1.13 | ALV11: 28 | ALW11: 2.8 | ALX11: 3.4 | ALY11: 39 | ALZ11: 4.19 | AMA11: 4.89 | AMB11: 21 | AMC11: 1.83 | AMD11: 2.32 | AME11: 18 | AMF11: 1.32 | AMG11: 2 | AMH11: 15 | AMI11: 1.3 | AMJ11: 1.8 | AMK11: 36 | AML11: 2.28 | AMM11: 4.1 | AMN11: 12 | AMO11: 2.16 | AMP11: 1.6 | AMQ11: 15 | AMR11: 1.3 | AMS11: 1.8 | AMT11: 33 | AMU11: 4.28 | AMV11: 3.99 | AMW11: 4 | AMX11: 0.32 | AMY11: 0.75 | AMZ11: 49 | ANA11: 3.94 | ANB11: 6.8 | ANC11: 14 | AND11: 1.16 | ANE11: 1.72 | ANF11: 25 | ANG11: 3.68 | ANH11: 2.88 | ANI11: 7 | ANJ11: 0.4 | ANK11: 1.05 | ANL11: 11 | ANM11: 0.91 | ANN11: 1.3 | ANO11: 39 | ANP11: 4.19 | ANQ11: 4.89 | ANR11: 10 | ANS11: 1.12 | ANT11: 1.2 | ANU11: 8 | ANV11: 1.68 | ANW11: 1.13 | ANX11: 17 | ANY11: 1.3 | ANZ11: 1.89 | AOA11: 24 | AOB11: 1.7 | AOC11: 2.8 | AOD11: 5 | AOE11: 0.32 | AOF11: 0.91 | AOG11: 40 | AOH11: 5.16 | AOI11: 4.92 | AOJ11: 7 | AOK11: 0.4 | AOL11: 1.05 | AOM11: 19 | AON11: 1.33 | AOO11: 2.06 | AOP11: 9 | AOQ11: 0.6 | AOR11: 1.18 | AOS11: 7 | AOT11: 0.4 | AOU11: 1.05 | AOV11: 26 | AOW11: 2.15 | AOX11: 2.91 | AOY11: 20 | AOZ11: 2.06 | APA11: 2.23 | APB11: 45 | APC11: 5.2 | APD11: 5.8 | APE11: 34 | APF11: 3.4 | APG11: 4 | APH11: 32 | API11: 2.83 | APJ11: 3.77 | APK11: 4 | APL11: 0.32 | APM11: 0.75 | APN11: 23 | APO11: 1.15 | APP11: 2.5 | APQ11: 38 | APR11: 3.61 | APS11: 4.7 | APT11: 8 | APU11: 1.68 | APV11: 1.13 | APW11: 26 | APX11: 2.15 | APY11: 2.91 | APZ11: 9 | AQA11: 0.6 | AQB11: 1.18 | AQC11: 9 | AQD11: 0.6 | AQE11: 1.18 | AQF11: 40 | AQG11: 5.16 | AQH11: 4.92 | AQI11: 34 | AQJ11: 3.4 | AQK11: 4 | AQL11: 10 | AQM11: 1.12 | AQN11: 1.2 | AQO11: 47 | AQP11: 2.34 | AQQ11: 6.2 | AQR11: 7 | AQS11: 0.4 | AQT11: 1.05 | AQU11: 40 | AQV11: 5.16 | AQW11: 4.92 | AQX11: 19 | AQY11: 1.33 | AQZ11: 2.06 | ARA11: 27 | ARB11: 4.01 | ARC11: 3 | ARD11: 32 | ARE11: 2.83 | ARF11: 3.77 | ARG11: 9 | ARH11: 0.6 | ARI11: 1.18 | ARJ11: 23 | ARK11: 1.15 | ARL11: 2.5 | ARM11: 9 | ARN11: 0.6 | ARO11: 1.18 | ARP11: 1 | ARQ11: 0.22 | ARR11: 0.51 | ARS11: 10 | ART11: 1.12 | ARU11: 1.2 | ARV11: 24 | ARW11: 1.7 | ARX11: 2.8 | ARY11: 23 | ARZ11: 1.15 | ASA11: 2.5 | ASB11: 34 | ASC11: 3.4 | ASD11: 4 | ASE11: 22 | ASF11: 2.75 | ASG11: 2.4 | ASH11: 27 | ASI11: 4.01 | ASJ11: 3 | ASK11: 9 | ASL11: 0.6 | ASM11: 1.18 | ASN11: 30 | ASO11: 3.4 | ASP11: 3.7 | ASQ11: 13 | ASR11: 1.24 | ASS11: 1.7 | AST11: 28 | ASU11: 2.8 | ASV11: 3.4 | ASW11: 24 | ASX11: 1.7 | ASY11: 2.8 | ASZ11: 17 | ATA11: 1.3 | ATB11: 1.89 | ATC11: 25 | ATD11: 3.68 | ATE11: 2.88 | ATF11: 30 | ATG11: 3.4 | ATH11: 3.7 | ATI11: 11 | ATJ11: 0.91 | ATK11: 1.3 | ATL11: 18 | ATM11: 1.32 | ATN11: 2 | ATO11: 24 | ATP11: 1.7 | ATQ11: 2.8 | ATR11: 11 | ATS11: 0.91 | ATT11: 1.3 | ATU11: 27 | ATV11: 4.01 | ATW11: 3 | ATX11: 27 | ATY11: 4.01 | ATZ11: 3 | AUA11: 11 | AUB11: 0.91 | AUC11: 1.3 | AUD11: 8 | AUE11: 1.68 | AUF11: 1.13 | AUG11: 38 | AUH11: 3.61 | AUI11: 4.7 | AUJ11: 49 | AUK11: 3.94 | AUL11: 6.8 | AUM11: 46 | AUN11: 5.9 | AUO11: 6.1 | AUP11: 11 | AUQ11: 0.91 | AUR11: 1.3 | AUS11: 24 | AUT11: 1.7 | AUU11: 2.8 | AUV11: 5 | AUW11: 0.32 | AUX11: 0.91 | AUY11: 35 | AUZ11: 2.83 | AVA11: 4.02 | AVB11: 26 | AVC11: 2.15 | AVD11: 2.91 | AVE11: 45 | AVF11: 5.2 | AVG11: 5.8 | AVH11: 43 | AVI11: 3.79 | AVJ11: 5.65 | AVK11: 29 | AVL11: 2.4 | AVM11: 3.5 | AVN11: 42 | AVO11: 2.97 | AVP11: 5.3 | AVQ11: 26 | AVR11: 2.15 | AVS11: 2.91 | AVT11: 17 | AVU11: 1.3 | AVV11: 1.89 | AVW11: 39 | AVX11: 4.19 | AVY11: 4.89 | AVZ11: 17 | AWA11: 1.3 | AWB11: 1.89 | AWC11: 44 | AWD11: 3.4 | AWE11: 5.8 | AWF11: 28 | AWG11: 2.8 | AWH11: 3.4 | AWI11: 4 | AWJ11: 0.32 | AWK11: 0.75 | AWL11: 23 | AWM11: 1.15 | AWN11: 2.5 | AWO11: 39 | AWP11: 4.19 | AWQ11: 4.89 | AWR11: 25 | AWS11: 3.68 | AWT11: 2.88 | AWU11: 32 | AWV11: 2.83 | AWW11: 3.77 | AWX11: 5 | AWY11: 0.32 | AWZ11: 0.91 | AXA11: 29 | AXB11: 2.4 | AXC11: 3.5 | AXD11: 20 | AXE11: 2.06 | AXF11: 2.23 | AXG11: 49 | AXH11: 3.94 | AXI11: 6.8 | AXJ11: 1 | AXK11: 0.22 | AXL11: 0.51 | AXM11: 39 | AXN11: 4.19 | AXO11: 4.89 | AXP11: 15 | AXQ11: 1.3 | AXR11: 1.8 | AXS11: 8 | AXT11: 1.68 | AXU11: 1.13 | AXV11: 30 | AXW11: 3.4 | AXX11: 3.7 | AXY11: 49 | AXZ11: 3.94 | AYA11: 6.8 | AYB11: 44 | AYC11: 3.4 | AYD11: 5.8 | AYE11: 18 | AYF11: 1.32 | AYG11: 2 | AYH11: 29 | AYI11: 2.4 | AYJ11: 3.5 | AYK11: 45 | AYL11: 5.2 | AYM11: 5.8 | AYN11: 21 | AYO11: 1.83 | AYP11: 2.32 | AYQ11: 26 | AYR11: 2.15 | AYS11: 2.91 | AYT11: 23 | AYU11: 1.15 | AYV11: 2.5 | AYW11: 39 | AYX11: 4.19 | AYY11: 4.89 | AYZ11: 9 | AZA11: 0.6 | AZB11: 1.18 | AZC11: 18 | AZD11: 1.32 | AZE11: 2 | AZF11: 37 | AZG11: 3.7 | AZH11: 4.2 | AZI11: 47 | AZJ11: 2.34 | AZK11: 6.2 | AZL11: 47 | AZM11: 2.34 | AZN11: 6.2 | AZO11: 31 | AZP11: 1.56 | AZQ11: 3.71 | AZR11: 34 | AZS11: 3.4 | AZT11: 4 | AZU11: 37 | AZV11: 3.7 | AZW11: 4.2 | AZX11: 36 | AZY11: 2.28 | AZZ11: 4.1 | BAA11: 29 | BAB11: 2.4 | BAC11: 3.5 | BAD11: 9 | BAE11: 0.6 | BAF11: 1.18 | BAG11: 29 | BAH11: 2.4 | BAI11: 3.5 | BAJ11: 47 | BAK11: 2.34 | BAL11: 6.2 | BAM11: 35 | BAN11: 2.83 | BAO11: 4.02 | BAP11: 1 | BAQ11: 0.22 | BAR11: 0.51 | BAS11: 16 | BAT11: 1.58 | BAU11: 1.83 | BAV11: 31 | BAW11: 1.56 | BAX11: 3.71 | BAY11: 35 | BAZ11: 2.83 | BBA11: 4.02 | BBB11: 9 | BBC11: 0.6 | BBD11: 1.18 | BBE11: 44 | BBF11: 3.4 | BBG11: 5.8 | BBH11: 47 | BBI11: 2.34 | BBJ11: 6.2 | BBK11: 36 | BBL11: 2.28 | BBM11: 4.1 | BBN11: 31 | BBO11: 1.56 | BBP11: 3.71 | BBQ11: 5 | BBR11: 0.32 | BBS11: 0.91 | BBT11: 7 | BBU11: 0.4 | BBV11: 1.05 | BBW11: 42 | BBX11: 2.97 | BBY11: 5.3 | BBZ11: 4 | BCA11: 0.32 | BCB11: 0.75 | BCC11: 40 | BCD11: 5.16 | BCE11: 4.92 | BCF11: 22 | BCG11: 2.75 | BCH11: 2.4 | BCI11: 44 | BCJ11: 3.4 | BCK11: 5.8 | BCL11: 20 | BCM11: 2.06 | BCN11: 2.23 | BCO11: 13 | BCP11: 1.24 | BCQ11: 1.7 | BCR11: 18 | BCS11: 1.32 | BCT11: 2 | BCU11: 11 | BCV11: 0.91 | BCW11: 1.3 | BCX11: 40 | BCY11: 5.16 | BCZ11: 4.92 | BDA11: 36 | BDB11: 2.28 | BDC11: 4.1 | BDD11: 16 | BDE11: 1.58 | BDF11: 1.83 | BDG11: 10 | BDH11: 1.12 | BDI11: 1.2 | BDJ11: 33 | BDK11: 4.28 | BDL11: 3.99 | BDM11: 11 | BDN11: 0.91 | BDO11: 1.3 | BDP11: 22 | BDQ11: 2.75 | BDR11: 2.4 | BDS11: 25 | BDT11: 3.68 | BDU11: 2.88 | BDV11: 18 | BDW11: 1.32 | BDX11: 2 | BDY11: 42 | BDZ11: 2.97 | BEA11: 5.3 | BEB11: 25 | BEC11: 3.68 | BED11: 2.88 | BEE11: 46 | BEF11: 5.9 | BEG11: 6.1 | BEH11: 24 | BEI11: 1.7 | BEJ11: 2.8 | BEK11: 46 | BEL11: 5.9 | BEM11: 6.1 | BEN11: 17 | BEO11: 1.3 | BEP11: 1.89 | BEQ11: 19 | BER11: 1.33 | BES11: 2.06 | BET11: 15 | BEU11: 1.3 | BEV11: 1.8 | BEW11: 40 | BEX11: 5.16 | BEY11: 4.92 | BEZ11: 15 | BFA11: 1.3 | BFB11: 1.8 | BFC11: 5 | BFD11: 0.32 | BFE11: 0.91 | BFF11: 16 | BFG11: 1.58 | BFH11: 1.83 | BFI11: 27 | BFJ11: 4.01 | BFK11: 3 | BFL11: 7 | BFM11: 0.4 | BFN11: 1.05 | BFO11: 5 | BFP11: 0.32 | BFQ11: 0.91 | BFR11: 15 | BFS11: 1.3 | BFT11: 1.8 | BFU11: 8 | BFV11: 1.68 | BFW11: 1.13 | BFX11: 50 | BFY11: 4.5 | BFZ11: 6.8 | BGA11: 50 | BGB11: 4.5 | BGC11: 6.8 | BGD11: 21 | BGE11: 1.83 | BGF11: 2.32 | BGG11: 43 | BGH11: 3.79 | BGI11: 5.65 | BGJ11: 36 | BGK11: 2.28 | BGL11: 4.1 | BGM11: 45 | BGN11: 5.2 | BGO11: 5.8 | BGP11: 31 | BGQ11: 1.56 | BGR11: 3.71 | BGS11: 39 | BGT11: 4.19 | BGU11: 4.89
C12: 8 | D12: 1.68 | E12: 1.13 | H12: 0 | I12: 0 | K12: 歪 度：=SKEW(セル範囲) | M12: =SKEW(D5:D1304) -> 0.6723672664 | N12: =SKEW(E5:E1304) -> 0.3737864439 | O12: =SKEW(F5:F1304) ->  | P12: =SKEW(G5:G1304) ->  | Q12: Sy.x / SDy(<2) = | R12: =R11/S6 ->  | U12: 4.63 | V12: 45 | W12: 4 | X12: 4.58 | Y12: 37 | Z12: 3 | AD12: -1.172136188 | AE12: 0.7954826591 | AF12: -1.350549352 | AG12: 0.9711375081 | AN12: 31 | AO12: 43 | AS12: 1.405 | AT12: -0.55 | AV12: 1.405 | AW12: -0.55 | AY12: 0.22 | AZ12: 0.56 | BA12: 17 | BB12: 1.3 | BC12: 1.89 | BD12: 34 | BE12: 3.4 | BF12: 4 | BG12: 30 | BH12: 3.4 | BI12: 3.7 | BJ12: 49 | BK12: 3.94 | BL12: 6.8 | BM12: 46 | BN12: 5.9 | BO12: 6.1 | BP12: 44 | BQ12: 3.4 | BR12: 5.8 | BS12: 49 | BT12: 3.94 | BU12: 6.8 | BV12: 9 | BW12: 0.6 | BX12: 1.18 | BY12: 13 | BZ12: 1.24 | CA12: 1.7 | CB12: 18 | CC12: 1.32 | CD12: 2 | CE12: 50 | CF12: 4.5 | CG12: 6.8 | CH12: 39 | CI12: 4.19 | CJ12: 4.89 | CK12: 39 | CL12: 4.19 | CM12: 4.89 | CN12: 1 | CO12: 0.22 | CP12: 0.51 | CQ12: 36 | CR12: 2.28 | CS12: 4.1 | CT12: 43 | CU12: 3.79 | CV12: 5.65 | CW12: 28 | CX12: 2.8 | CY12: 3.4 | CZ12: 27 | DA12: 4.01 | DB12: 3 | DC12: 2 | DD12: 0.22 | DE12: 0.56 | DF12: 44 | DG12: 3.4 | DH12: 5.8 | DI12: 19 | DJ12: 1.33 | DK12: 2.06 | DL12: 36 | DM12: 2.28 | DN12: 4.1 | DO12: 43 | DP12: 3.79 | DQ12: 5.65 | DR12: 36 | DS12: 2.28 | DT12: 4.1 | DU12: 15 | DV12: 1.3 | DW12: 1.8 | DX12: 8 | DY12: 1.68 | DZ12: 1.13 | EA12: 37 | EB12: 3.7 | EC12: 4.2 | ED12: 44 | EE12: 3.4 | EF12: 5.8 | EG12: 7 | EH12: 0.4 | EI12: 1.05 | EJ12: 50 | EK12: 4.5 | EL12: 6.8 | EM12: 35 | EN12: 2.83 | EO12: 4.02 | EP12: 2 | EQ12: 0.22 | ER12: 0.56 | ES12: 30 | ET12: 3.4 | EU12: 3.7 | EV12: 6 | EW12: 0.38 | EX12: 0.96 | EY12: 8 | EZ12: 1.68 | FA12: 1.13 | FB12: 35 | FC12: 2.83 | FD12: 4.02 | FE12: 15 | FF12: 1.3 | FG12: 1.8 | FH12: 23 | FI12: 1.15 | FJ12: 2.5 | FK12: 16 | FL12: 1.58 | FM12: 1.83 | FN12: 10 | FO12: 1.12 | FP12: 1.2 | FQ12: 10 | FR12: 1.12 | FS12: 1.2 | FT12: 33 | FU12: 4.28 | FV12: 3.99 | FW12: 35 | FX12: 2.83 | FY12: 4.02 | FZ12: 48 | GA12: 7.1 | GB12: 6.2 | GC12: 19 | GD12: 1.33 | GE12: 2.06 | GF12: 43 | GG12: 3.79 | GH12: 5.65 | GI12: 47 | GJ12: 2.34 | GK12: 6.2 | GL12: 50 | GM12: 4.5 | GN12: 6.8 | GO12: 42 | GP12: 2.97 | GQ12: 5.3 | GR12: 46 | GS12: 5.9 | GT12: 6.1 | GU12: 40 | GV12: 5.16 | GW12: 4.92 | GX12: 30 | GY12: 3.4 | GZ12: 3.7 | HA12: 39 | HB12: 4.19 | HC12: 4.89 | HD12: 31 | HE12: 1.56 | HF12: 3.71 | HG12: 27 | HH12: 4.01 | HI12: 3 | HJ12: 16 | HK12: 1.58 | HL12: 1.83 | HM12: 45 | HN12: 5.2 | HO12: 5.8 | HP12: 22 | HQ12: 2.75 | HR12: 2.4 | HS12: 17 | HT12: 1.3 | HU12: 1.89 | HV12: 14 | HW12: 1.16 | HX12: 1.72 | HY12: 10 | HZ12: 1.12 | IA12: 1.2 | IB12: 15 | IC12: 1.3 | ID12: 1.8 | IE12: 12 | IF12: 2.16 | IG12: 1.6 | IH12: 28 | II12: 2.8 | IJ12: 3.4 | IK12: 41 | IL12: 5.95 | IM12: 5.1 | IN12: 34 | IO12: 3.4 | IP12: 4 | IQ12: 6 | IR12: 0.38 | IS12: 0.96 | IT12: 49 | IU12: 3.94 | IV12: 6.8 | IW12: 11 | IX12: 0.91 | IY12: 1.3 | IZ12: 2 | JA12: 0.22 | JB12: 0.56 | JC12: 47 | JD12: 2.34 | JE12: 6.2 | JF12: 4 | JG12: 0.32 | JH12: 0.75 | JI12: 31 | JJ12: 1.56 | JK12: 3.71 | JL12: 21 | JM12: 1.83 | JN12: 2.32 | JO12: 20 | JP12: 2.06 | JQ12: 2.23 | JR12: 19 | JS12: 1.33 | JT12: 2.06 | JU12: 34 | JV12: 3.4 | JW12: 4 | JX12: 11 | JY12: 0.91 | JZ12: 1.3 | KA12: 33 | KB12: 4.28 | KC12: 3.99 | KD12: 40 | KE12: 5.16 | KF12: 4.92 | KG12: 19 | KH12: 1.33 | KI12: 2.06 | KJ12: 20 | KK12: 2.06 | KL12: 2.23 | KM12: 21 | KN12: 1.83 | KO12: 2.32 | KP12: 24 | KQ12: 1.7 | KR12: 2.8 | KS12: 13 | KT12: 1.24 | KU12: 1.7 | KV12: 39 | KW12: 4.19 | KX12: 4.89 | KY12: 9 | KZ12: 0.6 | LA12: 1.18 | LB12: 33 | LC12: 4.28 | LD12: 3.99 | LE12: 40 | LF12: 5.16 | LG12: 4.92 | LH12: 35 | LI12: 2.83 | LJ12: 4.02 | LK12: 42 | LL12: 2.97 | LM12: 5.3 | LN12: 1 | LO12: 0.22 | LP12: 0.51 | LQ12: 1 | LR12: 0.22 | LS12: 0.51 | LT12: 41 | LU12: 5.95 | LV12: 5.1 | LW12: 23 | LX12: 1.15 | LY12: 2.5 | LZ12: 4 | MA12: 0.32 | MB12: 0.75 | MC12: 30 | MD12: 3.4 | ME12: 3.7 | MF12: 16 | MG12: 1.58 | MH12: 1.83 | MI12: 16 | MJ12: 1.58 | MK12: 1.83 | ML12: 1 | MM12: 0.22 | MN12: 0.51 | MO12: 40 | MP12: 5.16 | MQ12: 4.92 | MR12: 6 | MS12: 0.38 | MT12: 0.96 | MU12: 10 | MV12: 1.12 | MW12: 1.2 | MX12: 27 | MY12: 4.01 | MZ12: 3 | NA12: 6 | NB12: 0.38 | NC12: 0.96 | ND12: 32 | NE12: 2.83 | NF12: 3.77 | NG12: 46 | NH12: 5.9 | NI12: 6.1 | NJ12: 12 | NK12: 2.16 | NL12: 1.6 | NM12: 39 | NN12: 4.19 | NO12: 4.89 | NP12: 27 | NQ12: 4.01 | NR12: 3 | NS12: 11 | NT12: 0.91 | NU12: 1.3 | NV12: 50 | NW12: 4.5 | NX12: 6.8 | NY12: 39 | NZ12: 4.19 | OA12: 4.89 | OB12: 47 | OC12: 2.34 | OD12: 6.2 | OE12: 35 | OF12: 2.83 | OG12: 4.02 | OH12: 37 | OI12: 3.7 | OJ12: 4.2 | OK12: 49 | OL12: 3.94 | OM12: 6.8 | ON12: 32 | OO12: 2.83 | OP12: 3.77 | OQ12: 7 | OR12: 0.4 | OS12: 1.05 | OT12: 22 | OU12: 2.75 | OV12: 2.4 | OW12: 28 | OX12: 2.8 | OY12: 3.4 | OZ12: 43 | PA12: 3.79 | PB12: 5.65 | PC12: 6 | PD12: 0.38 | PE12: 0.96 | PF12: 16 | PG12: 1.58 | PH12: 1.83 | PI12: 35 | PJ12: 2.83 | PK12: 4.02 | PL12: 3 | PM12: 0.46 | PN12: 0.7 | PO12: 36 | PP12: 2.28 | PQ12: 4.1 | PR12: 18 | PS12: 1.32 | PT12: 2 | PU12: 26 | PV12: 2.15 | PW12: 2.91 | PX12: 50 | PY12: 4.5 | PZ12: 6.8 | QA12: 32 | QB12: 2.83 | QC12: 3.77 | QD12: 3 | QE12: 0.46 | QF12: 0.7 | QG12: 7 | QH12: 0.4 | QI12: 1.05 | QJ12: 7 | QK12: 0.4 | QL12: 1.05 | QM12: 22 | QN12: 2.75 | QO12: 2.4 | QP12: 15 | QQ12: 1.3 | QR12: 1.8 | QS12: 15 | QT12: 1.3 | QU12: 1.8 | QV12: 13 | QW12: 1.24 | QX12: 1.7 | QY12: 7 | QZ12: 0.4 | RA12: 1.05 | RB12: 39 | RC12: 4.19 | RD12: 4.89 | RE12: 40 | RF12: 5.16 | RG12: 4.92 | RH12: 16 | RI12: 1.58 | RJ12: 1.83 | RK12: 49 | RL12: 3.94 | RM12: 6.8 | RN12: 15 | RO12: 1.3 | RP12: 1.8 | RQ12: 31 | RR12: 1.56 | RS12: 3.71 | RT12: 25 | RU12: 3.68 | RV12: 2.88 | RW12: 25 | RX12: 3.68 | RY12: 2.88 | RZ12: 30 | SA12: 3.4 | SB12: 3.7 | SC12: 49 | SD12: 3.94 | SE12: 6.8 | SF12: 34 | SG12: 3.4 | SH12: 4 | SI12: 38 | SJ12: 3.61 | SK12: 4.7 | SL12: 19 | SM12: 1.33 | SN12: 2.06 | SO12: 39 | SP12: 4.19 | SQ12: 4.89 | SR12: 47 | SS12: 2.34 | ST12: 6.2 | SU12: 50 | SV12: 4.5 | SW12: 6.8 | SX12: 20 | SY12: 2.06 | SZ12: 2.23 | TA12: 16 | TB12: 1.58 | TC12: 1.83 | TD12: 24 | TE12: 1.7 | TF12: 2.8 | TG12: 17 | TH12: 1.3 | TI12: 1.89 | TJ12: 6 | TK12: 0.38 | TL12: 0.96 | TM12: 8 | TN12: 1.68 | TO12: 1.13 | TP12: 35 | TQ12: 2.83 | TR12: 4.02 | TS12: 44 | TT12: 3.4 | TU12: 5.8 | TV12: 15 | TW12: 1.3 | TX12: 1.8 | TY12: 17 | TZ12: 1.3 | UA12: 1.89 | UB12: 29 | UC12: 2.4 | UD12: 3.5 | UE12: 1 | UF12: 0.22 | UG12: 0.51 | UH12: 5 | UI12: 0.32 | UJ12: 0.91 | UK12: 36 | UL12: 2.28 | UM12: 4.1 | UN12: 14 | UO12: 1.16 | UP12: 1.72 | UQ12: 44 | UR12: 3.4 | US12: 5.8 | UT12: 10 | UU12: 1.12 | UV12: 1.2 | UW12: 40 | UX12: 5.16 | UY12: 4.92 | UZ12: 50 | VA12: 4.5 | VB12: 6.8 | VC12: 15 | VD12: 1.3 | VE12: 1.8 | VF12: 21 | VG12: 1.83 | VH12: 2.32 | VI12: 24 | VJ12: 1.7 | VK12: 2.8 | VL12: 4 | VM12: 0.32 | VN12: 0.75 | VO12: 33 | VP12: 4.28 | VQ12: 3.99 | VR12: 15 | VS12: 1.3 | VT12: 1.8 | VU12: 18 | VV12: 1.32 | VW12: 2 | VX12: 20 | VY12: 2.06 | VZ12: 2.23 | WA12: 19 | WB12: 1.33 | WC12: 2.06 | WD12: 9 | WE12: 0.6 | WF12: 1.18 | WG12: 3 | WH12: 0.46 | WI12: 0.7 | WJ12: 45 | WK12: 5.2 | WL12: 5.8 | WM12: 16 | WN12: 1.58 | WO12: 1.83 | WP12: 24 | WQ12: 1.7 | WR12: 2.8 | WS12: 49 | WT12: 3.94 | WU12: 6.8 | WV12: 28 | WW12: 2.8 | WX12: 3.4 | WY12: 33 | WZ12: 4.28 | XA12: 3.99 | XB12: 2 | XC12: 0.22 | XD12: 0.56 | XE12: 8 | XF12: 1.68 | XG12: 1.13 | XH12: 20 | XI12: 2.06 | XJ12: 2.23 | XK12: 46 | XL12: 5.9 | XM12: 6.1 | XN12: 49 | XO12: 3.94 | XP12: 6.8 | XQ12: 23 | XR12: 1.15 | XS12: 2.5 | XT12: 46 | XU12: 5.9 | XV12: 6.1 | XW12: 13 | XX12: 1.24 | XY12: 1.7 | XZ12: 31 | YA12: 1.56 | YB12: 3.71 | YC12: 1 | YD12: 0.22 | YE12: 0.51 | YF12: 33 | YG12: 4.28 | YH12: 3.99 | YI12: 50 | YJ12: 4.5 | YK12: 6.8 | YL12: 37 | YM12: 3.7 | YN12: 4.2 | YO12: 45 | YP12: 5.2 | YQ12: 5.8 | YR12: 3 | YS12: 0.46 | YT12: 0.7 | YU12: 24 | YV12: 1.7 | YW12: 2.8 | YX12: 4 | YY12: 0.32 | YZ12: 0.75 | ZA12: 50 | ZB12: 4.5 | ZC12: 6.8 | ZD12: 32 | ZE12: 2.83 | ZF12: 3.77 | ZG12: 1 | ZH12: 0.22 | ZI12: 0.51 | ZJ12: 1 | ZK12: 0.22 | ZL12: 0.51 | ZM12: 12 | ZN12: 2.16 | ZO12: 1.6 | ZP12: 11 | ZQ12: 0.91 | ZR12: 1.3 | ZS12: 16 | ZT12: 1.58 | ZU12: 1.83 | ZV12: 30 | ZW12: 3.4 | ZX12: 3.7 | ZY12: 50 | ZZ12: 4.5 | AAA12: 6.8 | AAB12: 34 | AAC12: 3.4 | AAD12: 4 | AAE12: 46 | AAF12: 5.9 | AAG12: 6.1 | AAH12: 39 | AAI12: 4.19 | AAJ12: 4.89 | AAK12: 39 | AAL12: 4.19 | AAM12: 4.89 | AAN12: 37 | AAO12: 3.7 | AAP12: 4.2 | AAQ12: 2 | AAR12: 0.22 | AAS12: 0.56 | AAT12: 44 | AAU12: 3.4 | AAV12: 5.8 | AAW12: 3 | AAX12: 0.46 | AAY12: 0.7 | AAZ12: 2 | ABA12: 0.22 | ABB12: 0.56 | ABC12: 29 | ABD12: 2.4 | ABE12: 3.5 | ABF12: 15 | ABG12: 1.3 | ABH12: 1.8 | ABI12: 30 | ABJ12: 3.4 | ABK12: 3.7 | ABL12: 30 | ABM12: 3.4 | ABN12: 3.7 | ABO12: 26 | ABP12: 2.15 | ABQ12: 2.91 | ABR12: 30 | ABS12: 3.4 | ABT12: 3.7 | ABU12: 38 | ABV12: 3.61 | ABW12: 4.7 | ABX12: 17 | ABY12: 1.3 | ABZ12: 1.89 | ACA12: 16 | ACB12: 1.58 | ACC12: 1.83 | ACD12: 31 | ACE12: 1.56 | ACF12: 3.71 | ACG12: 8 | ACH12: 1.68 | ACI12: 1.13 | ACJ12: 49 | ACK12: 3.94 | ACL12: 6.8 | ACM12: 44 | ACN12: 3.4 | ACO12: 5.8 | ACP12: 50 | ACQ12: 4.5 | ACR12: 6.8 | ACS12: 36 | ACT12: 2.28 | ACU12: 4.1 | ACV12: 6 | ACW12: 0.38 | ACX12: 0.96 | ACY12: 22 | ACZ12: 2.75 | ADA12: 2.4 | ADB12: 50 | ADC12: 4.5 | ADD12: 6.8 | ADE12: 35 | ADF12: 2.83 | ADG12: 4.02 | ADH12: 32 | ADI12: 2.83 | ADJ12: 3.77 | ADK12: 49 | ADL12: 3.94 | ADM12: 6.8 | ADN12: 17 | ADO12: 1.3 | ADP12: 1.89 | ADQ12: 10 | ADR12: 1.12 | ADS12: 1.2 | ADT12: 14 | ADU12: 1.16 | ADV12: 1.72 | ADW12: 34 | ADX12: 3.4 | ADY12: 4 | ADZ12: 26 | AEA12: 2.15 | AEB12: 2.91 | AEC12: 40 | AED12: 5.16 | AEE12: 4.92 | AEF12: 25 | AEG12: 3.68 | AEH12: 2.88 | AEI12: 41 | AEJ12: 5.95 | AEK12: 5.1 | AEL12: 16 | AEM12: 1.58 | AEN12: 1.83 | AEO12: 25 | AEP12: 3.68 | AEQ12: 2.88 | AER12: 31 | AES12: 1.56 | AET12: 3.71 | AEU12: 36 | AEV12: 2.28 | AEW12: 4.1 | AEX12: 25 | AEY12: 3.68 | AEZ12: 2.88 | AFA12: 45 | AFB12: 5.2 | AFC12: 5.8 | AFD12: 6 | AFE12: 0.38 | AFF12: 0.96 | AFG12: 7 | AFH12: 0.4 | AFI12: 1.05 | AFJ12: 38 | AFK12: 3.61 | AFL12: 4.7 | AFM12: 27 | AFN12: 4.01 | AFO12: 3 | AFP12: 17 | AFQ12: 1.3 | AFR12: 1.89 | AFS12: 36 | AFT12: 2.28 | AFU12: 4.1 | AFV12: 1 | AFW12: 0.22 | AFX12: 0.51 | AFY12: 35 | AFZ12: 2.83 | AGA12: 4.02 | AGB12: 11 | AGC12: 0.91 | AGD12: 1.3 | AGE12: 43 | AGF12: 3.79 | AGG12: 5.65 | AGH12: 46 | AGI12: 5.9 | AGJ12: 6.1 | AGK12: 13 | AGL12: 1.24 | AGM12: 1.7 | AGN12: 26 | AGO12: 2.15 | AGP12: 2.91 | AGQ12: 38 | AGR12: 3.61 | AGS12: 4.7 | AGT12: 23 | AGU12: 1.15 | AGV12: 2.5 | AGW12: 41 | AGX12: 5.95 | AGY12: 5.1 | AGZ12: 6 | AHA12: 0.38 | AHB12: 0.96 | AHC12: 32 | AHD12: 2.83 | AHE12: 3.77 | AHF12: 5 | AHG12: 0.32 | AHH12: 0.91 | AHI12: 11 | AHJ12: 0.91 | AHK12: 1.3 | AHL12: 32 | AHM12: 2.83 | AHN12: 3.77 | AHO12: 20 | AHP12: 2.06 | AHQ12: 2.23 | AHR12: 46 | AHS12: 5.9 | AHT12: 6.1 | AHU12: 7 | AHV12: 0.4 | AHW12: 1.05 | AHX12: 16 | AHY12: 1.58 | AHZ12: 1.83 | AIA12: 17 | AIB12: 1.3 | AIC12: 1.89 | AID12: 6 | AIE12: 0.38 | AIF12: 0.96 | AIG12: 3 | AIH12: 0.46 | AII12: 0.7 | AIJ12: 4 | AIK12: 0.32 | AIL12: 0.75 | AIM12: 9 | AIN12: 0.6 | AIO12: 1.18 | AIP12: 39 | AIQ12: 4.19 | AIR12: 4.89 | AIS12: 20 | AIT12: 2.06 | AIU12: 2.23 | AIV12: 47 | AIW12: 2.34 | AIX12: 6.2 | AIY12: 22 | AIZ12: 2.75 | AJA12: 2.4 | AJB12: 41 | AJC12: 5.95 | AJD12: 5.1 | AJE12: 48 | AJF12: 7.1 | AJG12: 6.2 | AJH12: 29 | AJI12: 2.4 | AJJ12: 3.5 | AJK12: 50 | AJL12: 4.5 | AJM12: 6.8 | AJN12: 10 | AJO12: 1.12 | AJP12: 1.2 | AJQ12: 31 | AJR12: 1.56 | AJS12: 3.71 | AJT12: 12 | AJU12: 2.16 | AJV12: 1.6 | AJW12: 38 | AJX12: 3.61 | AJY12: 4.7 | AJZ12: 26 | AKA12: 2.15 | AKB12: 2.91 | AKC12: 11 | AKD12: 0.91 | AKE12: 1.3 | AKF12: 39 | AKG12: 4.19 | AKH12: 4.89 | AKI12: 40 | AKJ12: 5.16 | AKK12: 4.92 | AKL12: 31 | AKM12: 1.56 | AKN12: 3.71 | AKO12: 36 | AKP12: 2.28 | AKQ12: 4.1 | AKR12: 6 | AKS12: 0.38 | AKT12: 0.96 | AKU12: 35 | AKV12: 2.83 | AKW12: 4.02 | AKX12: 31 | AKY12: 1.56 | AKZ12: 3.71 | ALA12: 34 | ALB12: 3.4 | ALC12: 4 | ALD12: 38 | ALE12: 3.61 | ALF12: 4.7 | ALG12: 48 | ALH12: 7.1 | ALI12: 6.2 | ALJ12: 9 | ALK12: 0.6 | ALL12: 1.18 | ALM12: 45 | ALN12: 5.2 | ALO12: 5.8 | ALP12: 33 | ALQ12: 4.28 | ALR12: 3.99 | ALS12: 47 | ALT12: 2.34 | ALU12: 6.2 | ALV12: 49 | ALW12: 3.94 | ALX12: 6.8 | ALY12: 16 | ALZ12: 1.58 | AMA12: 1.83 | AMB12: 20 | AMC12: 2.06 | AMD12: 2.23 | AME12: 39 | AMF12: 4.19 | AMG12: 4.89 | AMH12: 18 | AMI12: 1.32 | AMJ12: 2 | AMK12: 10 | AML12: 1.12 | AMM12: 1.2 | AMN12: 25 | AMO12: 3.68 | AMP12: 2.88 | AMQ12: 41 | AMR12: 5.95 | AMS12: 5.1 | AMT12: 24 | AMU12: 1.7 | AMV12: 2.8 | AMW12: 31 | AMX12: 1.56 | AMY12: 3.71 | AMZ12: 2 | ANA12: 0.22 | ANB12: 0.56 | ANC12: 2 | AND12: 0.22 | ANE12: 0.56 | ANF12: 19 | ANG12: 1.33 | ANH12: 2.06 | ANI12: 50 | ANJ12: 4.5 | ANK12: 6.8 | ANL12: 26 | ANM12: 2.15 | ANN12: 2.91 | ANO12: 45 | ANP12: 5.2 | ANQ12: 5.8 | ANR12: 28 | ANS12: 2.8 | ANT12: 3.4 | ANU12: 9 | ANV12: 0.6 | ANW12: 1.18 | ANX12: 45 | ANY12: 5.2 | ANZ12: 5.8 | AOA12: 22 | AOB12: 2.75 | AOC12: 2.4 | AOD12: 34 | AOE12: 3.4 | AOF12: 4 | AOG12: 24 | AOH12: 1.7 | AOI12: 2.8 | AOJ12: 7 | AOK12: 0.4 | AOL12: 1.05 | AOM12: 23 | AON12: 1.15 | AOO12: 2.5 | AOP12: 31 | AOQ12: 1.56 | AOR12: 3.71 | AOS12: 9 | AOT12: 0.6 | AOU12: 1.18 | AOV12: 29 | AOW12: 2.4 | AOX12: 3.5 | AOY12: 9 | AOZ12: 0.6 | APA12: 1.18 | APB12: 27 | APC12: 4.01 | APD12: 3 | APE12: 9 | APF12: 0.6 | APG12: 1.18 | APH12: 49 | API12: 3.94 | APJ12: 6.8 | APK12: 48 | APL12: 7.1 | APM12: 6.2 | APN12: 30 | APO12: 3.4 | APP12: 3.7 | APQ12: 44 | APR12: 3.4 | APS12: 5.8 | APT12: 28 | APU12: 2.8 | APV12: 3.4 | APW12: 20 | APX12: 2.06 | APY12: 2.23 | APZ12: 24 | AQA12: 1.7 | AQB12: 2.8 | AQC12: 21 | AQD12: 1.83 | AQE12: 2.32 | AQF12: 16 | AQG12: 1.58 | AQH12: 1.83 | AQI12: 29 | AQJ12: 2.4 | AQK12: 3.5 | AQL12: 24 | AQM12: 1.7 | AQN12: 2.8 | AQO12: 5 | AQP12: 0.32 | AQQ12: 0.91 | AQR12: 36 | AQS12: 2.28 | AQT12: 4.1 | AQU12: 33 | AQV12: 4.28 | AQW12: 3.99 | AQX12: 37 | AQY12: 3.7 | AQZ12: 4.2 | ARA12: 47 | ARB12: 2.34 | ARC12: 6.2 | ARD12: 26 | ARE12: 2.15 | ARF12: 2.91 | ARG12: 33 | ARH12: 4.28 | ARI12: 3.99 | ARJ12: 36 | ARK12: 2.28 | ARL12: 4.1 | ARM12: 37 | ARN12: 3.7 | ARO12: 4.2 | ARP12: 42 | ARQ12: 2.97 | ARR12: 5.3 | ARS12: 25 | ART12: 3.68 | ARU12: 2.88 | ARV12: 44 | ARW12: 3.4 | ARX12: 5.8 | ARY12: 10 | ARZ12: 1.12 | ASA12: 1.2 | ASB12: 30 | ASC12: 3.4 | ASD12: 3.7 | ASE12: 15 | ASF12: 1.3 | ASG12: 1.8 | ASH12: 40 | ASI12: 5.16 | ASJ12: 4.92 | ASK12: 15 | ASL12: 1.3 | ASM12: 1.8 | ASN12: 4 | ASO12: 0.32 | ASP12: 0.75 | ASQ12: 46 | ASR12: 5.9 | ASS12: 6.1 | AST12: 11 | ASU12: 0.91 | ASV12: 1.3 | ASW12: 2 | ASX12: 0.22 | ASY12: 0.56 | ASZ12: 39 | ATA12: 4.19 | ATB12: 4.89 | ATC12: 39 | ATD12: 4.19 | ATE12: 4.89 | ATF12: 36 | ATG12: 2.28 | ATH12: 4.1 | ATI12: 17 | ATJ12: 1.3 | ATK12: 1.89 | ATL12: 26 | ATM12: 2.15 | ATN12: 2.91 | ATO12: 43 | ATP12: 3.79 | ATQ12: 5.65 | ATR12: 16 | ATS12: 1.58 | ATT12: 1.83 | ATU12: 8 | ATV12: 1.68 | ATW12: 1.13 | ATX12: 41 | ATY12: 5.95 | ATZ12: 5.1 | AUA12: 3 | AUB12: 0.46 | AUC12: 0.7 | AUD12: 26 | AUE12: 2.15 | AUF12: 2.91 | AUG12: 50 | AUH12: 4.5 | AUI12: 6.8 | AUJ12: 28 | AUK12: 2.8 | AUL12: 3.4 | AUM12: 35 | AUN12: 2.83 | AUO12: 4.02 | AUP12: 27 | AUQ12: 4.01 | AUR12: 3 | AUS12: 26 | AUT12: 2.15 | AUU12: 2.91 | AUV12: 35 | AUW12: 2.83 | AUX12: 4.02 | AUY12: 18 | AUZ12: 1.32 | AVA12: 2 | AVB12: 37 | AVC12: 3.7 | AVD12: 4.2 | AVE12: 24 | AVF12: 1.7 | AVG12: 2.8 | AVH12: 28 | AVI12: 2.8 | AVJ12: 3.4 | AVK12: 41 | AVL12: 5.95 | AVM12: 5.1 | AVN12: 22 | AVO12: 2.75 | AVP12: 2.4 | AVQ12: 48 | AVR12: 7.1 | AVS12: 6.2 | AVT12: 1 | AVU12: 0.22 | AVV12: 0.51 | AVW12: 27 | AVX12: 4.01 | AVY12: 3 | AVZ12: 44 | AWA12: 3.4 | AWB12: 5.8 | AWC12: 31 | AWD12: 1.56 | AWE12: 3.71 | AWF12: 12 | AWG12: 2.16 | AWH12: 1.6 | AWI12: 50 | AWJ12: 4.5 | AWK12: 6.8 | AWL12: 22 | AWM12: 2.75 | AWN12: 2.4 | AWO12: 31 | AWP12: 1.56 | AWQ12: 3.71 | AWR12: 25 | AWS12: 3.68 | AWT12: 2.88 | AWU12: 35 | AWV12: 2.83 | AWW12: 4.02 | AWX12: 3 | AWY12: 0.46 | AWZ12: 0.7 | AXA12: 14 | AXB12: 1.16 | AXC12: 1.72 | AXD12: 12 | AXE12: 2.16 | AXF12: 1.6 | AXG12: 50 | AXH12: 4.5 | AXI12: 6.8 | AXJ12: 7 | AXK12: 0.4 | AXL12: 1.05 | AXM12: 24 | AXN12: 1.7 | AXO12: 2.8 | AXP12: 25 | AXQ12: 3.68 | AXR12: 2.88 | AXS12: 31 | AXT12: 1.56 | AXU12: 3.71 | AXV12: 17 | AXW12: 1.3 | AXX12: 1.89 | AXY12: 45 | AXZ12: 5.2 | AYA12: 5.8 | AYB12: 26 | AYC12: 2.15 | AYD12: 2.91 | AYE12: 2 | AYF12: 0.22 | AYG12: 0.56 | AYH12: 48 | AYI12: 7.1 | AYJ12: 6.2 | AYK12: 42 | AYL12: 2.97 | AYM12: 5.3 | AYN12: 28 | AYO12: 2.8 | AYP12: 3.4 | AYQ12: 17 | AYR12: 1.3 | AYS12: 1.89 | AYT12: 16 | AYU12: 1.58 | AYV12: 1.83 | AYW12: 1 | AYX12: 0.22 | AYY12: 0.51 | AYZ12: 1 | AZA12: 0.22 | AZB12: 0.51 | AZC12: 13 | AZD12: 1.24 | AZE12: 1.7 | AZF12: 28 | AZG12: 2.8 | AZH12: 3.4 | AZI12: 43 | AZJ12: 3.79 | AZK12: 5.65 | AZL12: 42 | AZM12: 2.97 | AZN12: 5.3 | AZO12: 26 | AZP12: 2.15 | AZQ12: 2.91 | AZR12: 31 | AZS12: 1.56 | AZT12: 3.71 | AZU12: 38 | AZV12: 3.61 | AZW12: 4.7 | AZX12: 1 | AZY12: 0.22 | AZZ12: 0.51 | BAA12: 14 | BAB12: 1.16 | BAC12: 1.72 | BAD12: 20 | BAE12: 2.06 | BAF12: 2.23 | BAG12: 48 | BAH12: 7.1 | BAI12: 6.2 | BAJ12: 30 | BAK12: 3.4 | BAL12: 3.7 | BAM12: 4 | BAN12: 0.32 | BAO12: 0.75 | BAP12: 17 | BAQ12: 1.3 | BAR12: 1.89 | BAS12: 15 | BAT12: 1.3 | BAU12: 1.8 | BAV12: 35 | BAW12: 2.83 | BAX12: 4.02 | BAY12: 35 | BAZ12: 2.83 | BBA12: 4.02 | BBB12: 7 | BBC12: 0.4 | BBD12: 1.05 | BBE12: 24 | BBF12: 1.7 | BBG12: 2.8 | BBH12: 41 | BBI12: 5.95 | BBJ12: 5.1 | BBK12: 31 | BBL12: 1.56 | BBM12: 3.71 | BBN12: 33 | BBO12: 4.28 | BBP12: 3.99 | BBQ12: 21 | BBR12: 1.83 | BBS12: 2.32 | BBT12: 30 | BBU12: 3.4 | BBV12: 3.7 | BBW12: 24 | BBX12: 1.7 | BBY12: 2.8 | BBZ12: 13 | BCA12: 1.24 | BCB12: 1.7 | BCC12: 50 | BCD12: 4.5 | BCE12: 6.8 | BCF12: 28 | BCG12: 2.8 | BCH12: 3.4 | BCI12: 47 | BCJ12: 2.34 | BCK12: 6.2 | BCL12: 11 | BCM12: 0.91 | BCN12: 1.3 | BCO12: 47 | BCP12: 2.34 | BCQ12: 6.2 | BCR12: 11 | BCS12: 0.91 | BCT12: 1.3 | BCU12: 33 | BCV12: 4.28 | BCW12: 3.99 | BCX12: 24 | BCY12: 1.7 | BCZ12: 2.8 | BDA12: 49 | BDB12: 3.94 | BDC12: 6.8 | BDD12: 26 | BDE12: 2.15 | BDF12: 2.91 | BDG12: 30 | BDH12: 3.4 | BDI12: 3.7 | BDJ12: 34 | BDK12: 3.4 | BDL12: 4 | BDM12: 16 | BDN12: 1.58 | BDO12: 1.83 | BDP12: 19 | BDQ12: 1.33 | BDR12: 2.06 | BDS12: 31 | BDT12: 1.56 | BDU12: 3.71 | BDV12: 16 | BDW12: 1.58 | BDX12: 1.83 | BDY12: 10 | BDZ12: 1.12 | BEA12: 1.2 | BEB12: 29 | BEC12: 2.4 | BED12: 3.5 | BEE12: 13 | BEF12: 1.24 | BEG12: 1.7 | BEH12: 13 | BEI12: 1.24 | BEJ12: 1.7 | BEK12: 1 | BEL12: 0.22 | BEM12: 0.51 | BEN12: 43 | BEO12: 3.79 | BEP12: 5.65 | BEQ12: 38 | BER12: 3.61 | BES12: 4.7 | BET12: 26 | BEU12: 2.15 | BEV12: 2.91 | BEW12: 13 | BEX12: 1.24 | BEY12: 1.7 | BEZ12: 12 | BFA12: 2.16 | BFB12: 1.6 | BFC12: 18 | BFD12: 1.32 | BFE12: 2 | BFF12: 8 | BFG12: 1.68 | BFH12: 1.13 | BFI12: 7 | BFJ12: 0.4 | BFK12: 1.05 | BFL12: 38 | BFM12: 3.61 | BFN12: 4.7 | BFO12: 45 | BFP12: 5.2 | BFQ12: 5.8 | BFR12: 31 | BFS12: 1.56 | BFT12: 3.71 | BFU12: 5 | BFV12: 0.32 | BFW12: 0.91 | BFX12: 7 | BFY12: 0.4 | BFZ12: 1.05 | BGA12: 27 | BGB12: 4.01 | BGC12: 3 | BGD12: 5 | BGE12: 0.32 | BGF12: 0.91 | BGG12: 42 | BGH12: 2.97 | BGI12: 5.3 | BGJ12: 5 | BGK12: 0.32 | BGL12: 0.91 | BGM12: 42 | BGN12: 2.97 | BGO12: 5.3 | BGP12: 20 | BGQ12: 2.06 | BGR12: 2.23 | BGS12: 23 | BGT12: 1.15 | BGU12: 2.5
